Workbook

Sheet Instrucciones
B3: CALIFICACIÓN DE LAS COMPETENCIAS CLAVE Y DE LAS ÁREAS 4º_EP
B6: INSTRUCCIONES 1. INCORPORAR LOS CRITERIOS DE CALIFICACIÓN DE LAS COMPETENCIAS CLAVE BOTÓN: "INCORPORAR LOS CRITERIOS DE CALIFICACIÓN DE LAS COMPETENCIAS CLAVE." Para introducir los criterios de calificación de las competencias clave hay que seleccionar una opción en cada uno de los siguientes campos: -Pesos de los criterios de evaluación en el cálculo de la calificación de los descriptores operativos. -Pesos de los descriptores operativos en el cálculo de la calificación de las competencias clave. Si se considera, se puede bloquear la información introducida pulsado en el botón "PROTEGIDA" e introduciendo una contaseña. En caso de querer desbloquear la página se debe pulsar en el botón "DESPROTEGIDA" e introducir la contraseña marcada. 2. INCORPORAR EL NOMBRE DE LOS ALUMNOS QUE COMPONEN EL GRUPO. BOTÓN: "INCORPORAR EL LISTADO DE ALUMNOS" Introducir el nombre de todos los alumnos que componen el grupo-clase. Marcar las áreas de opción que cursa cada alumno. Pulsando sobre el botón "informe" en cada alumnno se visualiza de forma individualizada la composición de las calificaciones de las áreas y de las competencias clave a partir de las notas de los criterios de evaluación. Además, se incorporan dos botones para facilitar el trabajo colaborativo a través de TEAMS o Onedrive. El procedimiento es el siguiente: 1º Se pulsa el botón superior de esta sección TEAMS/Onedrive; 2º Una vez guardado el archivo, se comparte con las citadas aplicaciones; 3º Los docentes incorporan las céntésimas de redondeo de su área en la pestaña "Redondeo" y las notas de los criterios de evaluación en la pestaña correspondiente a su área; 4º Se descarga el archivo y se pulsa en el segundo botón de esta sección TEAMS/Onedrive para normalizar su funcionamiento y poder visualizar toda la información que esta herramienta ofrece. 3. INCORPORAR LAS CALIFICACIONES DE LOS CRITERIOS DE EVALUACIÓN DE LAS ÁREAS CURSADAS POR EL ALUMNO. BOTÓN: "INCORPORAR LA CALIFICACIÓN POR ÁREAS DE LOS CRITERIOS DE EVALUACIÓN " Seleccionar el área. En la pestaña de destino introducir los pesos (ponderaciones) de cada criterio de evaluación (es decir, los criterios de calificación del área) y las calificaciones de los criterios de evaluación para los alumnos que cursen el área o, en su caso, la calificación del área. 4. OBSERVAR LAS NOTAS DE LAS COMPETENCIAS CLAVE DE LOS ALUMNOS. BOTÓN: "VISUALIZAR LAS NOTAS DE LAS COMPETENCIAS CLAVE" Permite observar las notas de las competencias clave de cada alumno en función de los criterios de calificación de las competencias clave introducidos. Además, desde la pantalla de destino se puede generar un documento para exportar las notas de las competencias clave a STILUS. Para ello, previamente es necesario introducir las centésimas de redondeo de las notas de las competencias clave en la celda creadad al efecto. 5. OBSERVAR LAS NOTAS DE LAS ÁREAS DE LOS ALUMNOS. BOTÓN: "VISUALIZAR LAS NOTAS DE LAS ÁREAS" Permite observar las notas de las áreas de cada alumno, en función de los criterios de calificación del área introducidos. Además, desde la pantalla de destino se puede generar un documento para exportar las notas de las áreas a STILUS.

Sheet Criterios de calificacion CClav
D4: CRITERIOS DE CALIFICACIÓN DE LAS COMPETENCIAS CLAVE
D6: Pesos de los criterios de evaluación en el cálculo de la calificación de los descriptores operativos
E8: MEDIA SIMPLE. Se aplica un criterio común para el cálculo de la calificación de todos los descriptores. Todos los criterios de evaluación pesan (ponderan) los mismo en la calificaión de los descriptores operativos.
E10: MEDIA PONDERADA POR CARGA HORARIA. Se aplica un criterio común para el cálculo de la calificación de todos los descriptores. El peso de los criterios de evaluación se determina en función de la carga horaria deL área. (RECOMENDADO)
E12: LIBRE. Se aplica un criterio común para el cálculo de la calificación de todos los descriptores. El peso de cada criterio de evaluación en la calificación de los descriptores se determina por el centro.
E14: LIBRE DIFERENCIADO POR DESCRIPTORES. Se aplica un criterio diferenciado para el cálculo de la calificación de cada descriptor. El peso de cada criterio de evaluación en la calificación de cada descriptor se determina por el centro.
D16: Pesos de los descriptores operativos en el cálculo de la calificación de las competencias clave
E18: MEDIA PONDERADA. El peso de los descriptores operativos en el cálculo de la calificación de la competencia clave se determina en proporción al número de vinculaciones de cada descriptor operativo con los criterios de evaluación (RECOMENDADO)
E20: LIBRE. El peso (ponderación) de los descriptores operativos en el cálculo de la calificación de la competencia clave se determina por el centro.

Sheet Peso criterios carga horaria
F2: Mismo peso todos los descriptores
F3: Sí
E4: CALIFICACIÓN | F4: PESO TODOS
B5: Ciencias de la Naturaleza | C5: Comp. Esp. 1 | D5: Criterio Evaluación 1.1 | E5: - | F5: 2
D6: Criterio Evaluación 1.2 | E6: - | F6: 2
D7: Criterio Evaluación 1.3 | E7: - | F7: 2
C8: Comp. Esp. 2 | D8: Criterio Evaluación 2.1 | E8: - | F8: 2
D9: Criterio Evaluación 2.2 | E9: - | F9: 2
D10: Criterio Evaluación 2.3 | E10: - | F10: 2
D11: Criterio Evaluación 2.4 | E11: - | F11: 2
D12: Criterio Evaluación 2.5 | E12: - | F12: 2
C13: Comp. Esp. 3 | D13: Criterio Evaluación 3.1 | E13: - | F13: 2
D14: Criterio Evaluación 3.2 | E14: - | F14: 2
D15: Criterio Evaluación 3.3 | E15: - | F15: 2
C16: Comp. Esp. 4 | D16: Criterio Evaluación 4.1 | E16: - | F16: 2
D17: Criterio Evaluación 4.2 | E17: - | F17: 2
C18: Comp. Esp. 5 | D18: Criterio Evaluación 5.1 | E18: - | F18: 2
D19: Criterio Evaluación 5.2 | E19: - | F19: 2
D20: Criterio Evaluación 5.3 | E20: - | F20: 2
C21: Comp. Esp. 6 | D21: Criterio Evaluación 6.1 | E21: - | F21: 2
D22: Criterio Evaluación 6.2 | E22: - | F22: 2
B23: Ciencias Sociales | C23: Comp. Esp. 1 | D23: Criterio Evaluación 1.1 | E23: - | F23: 2
D24: Criterio Evaluación 1.2 | E24: - | F24: 2
D25: Criterio Evaluación 1.3 | E25: - | F25: 2
C26: Comp. Esp. 2 | D26: Criterio Evaluación 2.1 | E26: - | F26: 2
D27: Criterio Evaluación 2.2 | E27: - | F27: 2
D28: Criterio Evaluación 2.3 | E28: - | F28: 2
D29: Criterio Evaluación 2.4 | E29: - | F29: 2
C30: Comp. Esp. 3 | D30: Criterio Evaluación 3.1 | E30: - | F30: 2
D31: Criterio Evaluación 3.2 | E31: - | F31: 2
D32: Criterio Evaluación 3.3 | E32: - | F32: 2
C33: Comp. Esp. 4 | D33: Criterio Evaluación 4.1 | E33: - | F33: 2
D34: Criterio Evaluación 4.2 | E34: - | F34: 2
C35: Comp. Esp. 5 | D35: Criterio Evaluación 5.1 | E35: - | F35: 2
D36: Criterio Evaluación 5.2 | E36: - | F36: 2
D37: Criterio Evaluación 5.3 | E37: - | F37: 2
D38: Criterio Evaluación 5.4 | E38: - | F38: 2
C39: Comp. Esp. 6 | D39: Criterio Evaluación 6.1 | E39: - | F39: 2
D40: Criterio Evaluación 6.2 | E40: - | F40: 2
C41: Comp. Esp. 7 | D41: Criterio Evaluación 7.1 | E41: - | F41: 2
D42: Criterio Evaluación 7.2 | E42: - | F42: 2
D43: Criterio Evaluación 7.3 | E43: - | F43: 2
B44: Educación Plástica y Visual | C44: Comp. Esp. 1 | D44: Criterio Evaluación 1.1 | E44: - | F44: 1.5
D45: Criterio Evaluación 1.2 | E45: - | F45: 1.5
D46: Criterio Evaluación 1.3 | E46: - | F46: 1.5
C47: Comp. Esp. 2 | D47: Criterio Evaluación 2.1 | E47: - | F47: 1.5
D48: Criterio Evaluación 2.2 | E48: - | F48: 1.5
D49: Criterio Evaluación 2.3 | E49: - | F49: 1.5
C50: Comp. Esp. 3 | D50: Criterio Evaluación 3.1 | E50: - | F50: 1.5
D51: Criterio Evaluación 3.2 | E51: - | F51: 1.5
D52: Criterio Evaluación 3.3 | E52: - | F52: 1.5
C53: Comp. Esp. 4 | D53: Criterio Evaluación 4.1 | E53: - | F53: 1.5
D54: Criterio Evaluación 4.2 | E54: - | F54: 1.5
D55: Criterio Evaluación 4.3 | E55: - | F55: 1.5
B56: Música y Danza | C56: Comp. Esp. 1 | D56: Criterio Evaluación 1.1 | E56: - | F56: 1
D57: Criterio Evaluación 1.2 | E57: - | F57: 1
D58: Criterio Evaluación 1.3 | E58: - | F58: 1
C59: Comp. Esp. 2 | D59: Criterio Evaluación 2.1 | E59: - | F59: 1
D60: Criterio Evaluación 2.2 | E60: - | F60: 1
D61: Criterio Evaluación 2.3 | E61: - | F61: 1
C62: Comp. Esp. 3 | D62: Criterio Evaluación 3.1 | E62: - | F62: 1
D63: Criterio Evaluación 3.2 | E63: - | F63: 1
D64: Criterio Evaluación 3.3 | E64: - | F64: 1
C65: Comp. Esp. 4 | D65: Criterio Evaluación 4.1 | E65: - | F65: 1
D66: Criterio Evaluación 4.2 | E66: - | F66: 1
D67: Criterio Evaluación 4.3 | E67: - | F67: 1
C68: Comp. Esp. 5 | D68: Criterio Evaluación 5.1 | E68: - | F68: 1
D69: Criterio Evaluación 5.2 | E69: - | F69: 1
D70: Criterio Evaluación 5.3 | E70: - | F70: 1
D71: Criterio Evaluación 5.4 | E71: - | F71: 1
D72: Criterio Evaluación 5.5 | E72: - | F72: 1
B73: Educación Física | C73: Comp. Esp. 1 | D73: Criterio Evaluación 1.1 | E73: - | F73: 2.5
D74: Criterio Evaluación 1.2 | E74: - | F74: 2.5
D75: Criterio Evaluación 1.3 | E75: - | F75: 2.5
D76: Criterio Evaluación 1.4 | E76: - | F76: 2.5
C77: Comp. Esp. 2 | D77: Criterio Evaluación 2.1 | E77: - | F77: 2.5
D78: Criterio Evaluación 2.2 | E78: - | F78: 2.5
D79: Criterio Evaluación 2.3 | E79: - | F79: 2.5
C80: Comp. Esp. 3 | D80: Criterio Evaluación 3.1 | E80: - | F80: 2.5
D81: Criterio Evaluación 3.2 | E81: - | F81: 2.5
D82: Criterio Evaluación 3.3 | E82: - | F82: 2.5
C83: Comp. Esp. 4 | D83: Criterio Evaluación 4.1 | E83: - | F83: 2.5
D84: Criterio Evaluación 4.2 | E84: - | F84: 2.5
D85: Criterio Evaluación 4.3 | E85: - | F85: 2.5
D86: Criterio Evaluación 4.4 | E86: - | F86: 2.5
C87: Comp. Esp. 5 | D87: Criterio Evaluación 5.1 | E87: - | F87: 2.5
D88: Criterio Evaluación 5.2 | E88: - | F88: 2.5
D89: Criterio Evaluación 5.3 | E89: - | F89: 2.5
C90: Comp. Esp. 6 | D90: Criterio Evaluación 6.1 | E90: - | F90: 2.5
D91: Criterio Evaluación 6.2 | E91: - | F91: 2.5
D92: Criterio Evaluación 6.3 | E92: - | F92: 2.5
B93: Lengua Castellana y Literatura | C93: Comp. Esp. 1 | D93: Criterio Evaluación 1.1 | E93: - | F93: 5.5
D94: Criterio Evaluación 1.2 | E94: - | F94: 5.5
C95: Comp. Esp. 2 | D95: Criterio Evaluación 2.1 | E95: - | F95: 5.5
D96: Criterio Evaluación 2.2 | E96: - | F96: 5.5
C97: Comp. Esp. 3 | D97: Criterio Evaluación 3.1 | E97: - | F97: 5.5
D98: Criterio Evaluación 3.2 | E98: - | F98: 5.5
D99: Criterio Evaluación 3.3 | E99: - | F99: 5.5
C100: Comp. Esp. 4 | D100: Criterio Evaluación 4.1 | E100: - | F100: 5.5
D101: Criterio Evaluación 4.2 | E101: - | F101: 5.5
D102: Criterio Evaluación 4.3 | E102: - | F102: 5.5
C103: Comp. Esp. 5 | D103: Criterio Evaluación 5.1 | E103: - | F103: 5.5
D104: Criterio Evaluación 5.2 | E104: - | F104: 5.5
C105: Comp. Esp. 6 | D105: Criterio Evaluación 6.1 | E105: - | F105: 5.5
D106: Criterio Evaluación 6.2 | E106: - | F106: 5.5
D107: Criterio Evaluación 6.3 | E107: - | F107: 5.5
D108: Criterio Evaluación 6.4 | E108: - | F108: 5.5
C109: Comp. Esp. 7 | D109: Criterio Evaluación 7.1 | E109: - | F109: 5.5
D110: Criterio Evaluación 7.2 | E110: - | F110: 5.5
D111: Criterio Evaluación 7.3 | E111: - | F111: 5.5
C112: Comp. Esp. 8 | D112: Criterio Evaluación 8.1 | E112: - | F112: 5.5
D113: Criterio Evaluación 8.2 | E113: - | F113: 5.5
D114: Criterio Evaluación 8.3 | E114: - | F114: 5.5
C115: Comp. Esp. 9 | D115: Criterio Evaluación 9.1 | E115: - | F115: 5.5
D116: Criterio Evaluación 9.2 | E116: - | F116: 5.5
C117: Comp. Esp. 10 | D117: Criterio Evaluación 10.1 | E117: - | F117: 5.5
D118: Criterio Evaluación 10.2 | E118: - | F118: 5.5
B119: Lengua Extranjera | C119: Comp. Esp. 1 | D119: Criterio Evaluación 1.1 | E119: - | F119: 2.5
D120: Criterio Evaluación 1.2 | E120: - | F120: 2.5
C121: Comp. Esp. 2 | D121: Criterio Evaluación 2.1 | E121: - | F121: 2.5
D122: Criterio Evaluación 2.2 | E122: - | F122: 2.5
D123: Criterio Evaluación 2.3 | E123: - | F123: 2.5
C124: Comp. Esp. 3 | D124: Criterio Evaluación 3.1 | E124: - | F124: 2.5
D125: Criterio Evaluación 3.2 | E125: - | F125: 2.5
C126: Comp. Esp. 4 | D126: Criterio Evaluación 4.1 | E126: - | F126: 2.5
D127: Criterio Evaluación 4.2 | E127: - | F127: 2.5
C128: Comp. Esp. 5 | D128: Criterio Evaluación 5.1 | E128: - | F128: 2.5
D129: Criterio Evaluación 5.2 | E129: - | F129: 2.5
D130: Criterio Evaluación 5.3 | E130: - | F130: 2.5
C131: Comp. Esp. 6 | D131: Criterio Evaluación 6.1 | E131: - | F131: 2.5
D132: Criterio Evaluación 6.2 | E132: - | F132: 2.5
D133: Criterio Evaluación 6.3 | E133: - | F133: 2.5
B134: Matemáticas | C134: Comp. Esp. 1 | D134: Criterio Evaluación 1.1 | E134: - | F134: 4.5
D135: Criterio Evaluación 1.2 | E135: - | F135: 4.5
C136: Comp. Esp. 2 | D136: Criterio Evaluación 2.1 | E136: - | F136: 4.5
D137: Criterio Evaluación 2.2 | E137: - | F137: 4.5
D138: Criterio Evaluación 2.3 | E138: - | F138: 4.5
D139: Criterio Evaluación 2.4 | E139: - | F139: 4.5
C140: Comp. Esp. 3 | D140: Criterio Evaluación 3.1 | E140: - | F140: 4.5
D141: Criterio Evaluación 3.2 | E141: - | F141: 4.5
C142: Comp. Esp. 4 | D142: Criterio Evaluación 4.1 | E142: - | F142: 4.5
D143: Criterio Evaluación 4.2 | E143: - | F143: 4.5
C144: Comp. Esp. 5 | D144: Criterio Evaluación 5.1 | E144: - | F144: 4.5
D145: Criterio Evaluación 5.2 | E145: - | F145: 4.5
C146: Comp. Esp. 6 | D146: Criterio Evaluación 6.1 | E146: - | F146: 4.5
D147: Criterio Evaluación 6.2 | E147: - | F147: 4.5
C148: Comp. Esp. 7 | D148: Criterio Evaluación 7.1 | E148: - | F148: 4.5
D149: Criterio Evaluación 7.2 | E149: - | F149: 4.5
C150: Comp. Esp. 8 | D150: Criterio Evaluación 8.1 | E150: - | F150: 4.5
D151: Criterio Evaluación 8.2 | E151: - | F151: 4.5
B152: Religión | C152: Comp. Esp. 1 | D152: Criterio Evaluación 1.1 | E152: - | F152: 1
C153: Comp. Esp. 2 | D153: Criterio Evaluación 2.1 | E153: - | F153: 1
C154: Comp. Esp. 3 | D154: Criterio Evaluación 3.1 | E154: - | F154: 1
C155: Comp. Esp. 4 | D155: Criterio Evaluación 4.1 | E155: - | F155: 1
C156: Comp. Esp. 5 | D156: Criterio Evaluación 5.1 | E156: - | F156: 1
C157: Comp. Esp. 6 | D157: Criterio Evaluación 6.1 | E157: - | F157: 1
B158: Área dirigida al alumnado que no cursa religión | C158: Comp. Esp. 1 | D158: Criterio Evaluación 1.1 | E158: - | F158: 1
C159: Comp. Esp. 2 | D159: Criterio Evaluación 2.1 | E159: - | F159: 1
C160: Comp. Esp. 3 | D160: Criterio Evaluación 3.1 | E160: - | F160: 1
C161: Comp. Esp. 4 | D161: Criterio Evaluación 4.1 | E161: - | F161: 1
C162: Comp. Esp. 5 | D162: Criterio Evaluación 5.1 | E162: - | F162: 1
C163: Comp. Esp. 6 | D163: Criterio Evaluación 6.1 | E163: - | F163: 1
F164: TOTAL

Sheet Peso criterios libre
E4: CALIFICACIÓN | F4: PESO | G4: PORCENTAJE
B5: Ciencias de la Naturaleza | C5: Comp. Esp. 1 | D5: Criterio Evaluación 1.1 | F5: 1 | G5: =F5/SUM($F$5:$F$163) -> 0.006289308176
D6: Criterio Evaluación 1.2 | E6: 1 | F6: 1 | G6: 0.006289308176
D7: Criterio Evaluación 1.3 | E7: 1 | F7: 1 | G7: 0.006289308176
C8: Comp. Esp. 2 | D8: Criterio Evaluación 2.1 | E8: 1 | F8: 1 | G8: 0.006289308176
D9: Criterio Evaluación 2.2 | F9: 1 | G9: 0.006289308176
D10: Criterio Evaluación 2.3 | F10: 1 | G10: 0.006289308176
D11: Criterio Evaluación 2.4 | E11: 1 | F11: 1 | G11: 0.006289308176
D12: Criterio Evaluación 2.5 | E12: 1 | F12: 1 | G12: 0.006289308176
C13: Comp. Esp. 3 | D13: Criterio Evaluación 3.1 | F13: 1 | G13: 0.006289308176
D14: Criterio Evaluación 3.2 | E14: 1 | F14: 1 | G14: 0.006289308176
D15: Criterio Evaluación 3.3 | F15: 1 | G15: 0.006289308176
C16: Comp. Esp. 4 | D16: Criterio Evaluación 4.1 | F16: 1 | G16: 0.006289308176
D17: Criterio Evaluación 4.2 | F17: 1 | G17: 0.006289308176
C18: Comp. Esp. 5 | D18: Criterio Evaluación 5.1 | E18: 1 | F18: 1 | G18: 0.006289308176
D19: Criterio Evaluación 5.2 | F19: 1 | G19: 0.006289308176
D20: Criterio Evaluación 5.3 | F20: 1 | G20: 0.006289308176
C21: Comp. Esp. 6 | D21: Criterio Evaluación 6.1 | F21: 1 | G21: 0.006289308176
D22: Criterio Evaluación 6.2 | F22: 1 | G22: 0.006289308176
B23: Ciencias Sociales | C23: Comp. Esp. 1 | D23: Criterio Evaluación 1.1 | F23: 1 | G23: 0.006289308176
D24: Criterio Evaluación 1.2 | E24: 1 | F24: 1 | G24: 0.006289308176
D25: Criterio Evaluación 1.3 | E25: 1 | F25: 1 | G25: 0.006289308176
C26: Comp. Esp. 2 | D26: Criterio Evaluación 2.1 | E26: 1 | F26: 1 | G26: 0.006289308176
D27: Criterio Evaluación 2.2 | F27: 1 | G27: 0.006289308176
D28: Criterio Evaluación 2.3 | E28: 1 | F28: 1 | G28: 0.006289308176
D29: Criterio Evaluación 2.4 | E29: 1 | F29: 1 | G29: 0.006289308176
C30: Comp. Esp. 3 | D30: Criterio Evaluación 3.1 | E30: 1 | F30: 1 | G30: 0.006289308176
D31: Criterio Evaluación 3.2 | F31: 1 | G31: 0.006289308176
D32: Criterio Evaluación 3.3 | F32: 1 | G32: 0.006289308176
C33: Comp. Esp. 4 | D33: Criterio Evaluación 4.1 | F33: 1 | G33: 0.006289308176
D34: Criterio Evaluación 4.2 | F34: 1 | G34: 0.006289308176
C35: Comp. Esp. 5 | D35: Criterio Evaluación 5.1 | F35: 1 | G35: 0.006289308176
D36: Criterio Evaluación 5.2 | F36: 1 | G36: 0.006289308176
D37: Criterio Evaluación 5.3 | F37: 1 | G37: =F37/SUM($F$5:$F$163) -> 0.006289308176
D38: Criterio Evaluación 5.4 | F38: 1 | G38: 0.006289308176
C39: Comp. Esp. 6 | D39: Criterio Evaluación 6.1 | F39: 1 | G39: 0.006289308176
D40: Criterio Evaluación 6.2 | F40: 1 | G40: 0.006289308176
C41: Comp. Esp. 7 | D41: Criterio Evaluación 7.1 | F41: 1 | G41: 0.006289308176
D42: Criterio Evaluación 7.2 | F42: 1 | G42: 0.006289308176
D43: Criterio Evaluación 7.3 | F43: 1 | G43: 0.006289308176
B44: Educación Plástica y Visual | C44: Comp. Esp. 1 | D44: Criterio Evaluación 1.1 | E44: 1 | F44: 1 | G44: 0.006289308176
D45: Criterio Evaluación 1.2 | E45: 1 | F45: 1 | G45: 0.006289308176
D46: Criterio Evaluación 1.3 | E46: 1 | F46: 1 | G46: 0.006289308176
C47: Comp. Esp. 2 | D47: Criterio Evaluación 2.1 | F47: 1 | G47: 0.006289308176
D48: Criterio Evaluación 2.2 | F48: 1 | G48: 0.006289308176
D49: Criterio Evaluación 2.3 | F49: 1 | G49: 0.006289308176
C50: Comp. Esp. 3 | D50: Criterio Evaluación 3.1 | F50: 1 | G50: 0.006289308176
D51: Criterio Evaluación 3.2 | E51: 1 | F51: 1 | G51: 0.006289308176
D52: Criterio Evaluación 3.3 | E52: 1 | F52: 1 | G52: 0.006289308176
C53: Comp. Esp. 4 | D53: Criterio Evaluación 4.1 | E53: 1 | F53: 1 | G53: 0.006289308176
D54: Criterio Evaluación 4.2 | E54: 1 | F54: 1 | G54: 0.006289308176
D55: Criterio Evaluación 4.3 | E55: 1 | F55: 1 | G55: 0.006289308176
B56: Música y Danza | C56: Comp. Esp. 1 | D56: Criterio Evaluación 1.1 | E56: 1 | F56: 1 | G56: 0.006289308176
D57: Criterio Evaluación 1.2 | E57: 1 | F57: 1 | G57: 0.006289308176
D58: Criterio Evaluación 1.3 | E58: 1 | F58: 1 | G58: 0.006289308176
C59: Comp. Esp. 2 | D59: Criterio Evaluación 2.1 | F59: 1 | G59: 0.006289308176
D60: Criterio Evaluación 2.2 | F60: 1 | G60: 0.006289308176
D61: Criterio Evaluación 2.3 | F61: 1 | G61: 0.006289308176
C62: Comp. Esp. 3 | D62: Criterio Evaluación 3.1 | F62: 1 | G62: 0.006289308176
D63: Criterio Evaluación 3.2 | E63: 1 | F63: 1 | G63: 0.006289308176
D64: Criterio Evaluación 3.3 | E64: 1 | F64: 1 | G64: 0.006289308176
C65: Comp. Esp. 4 | D65: Criterio Evaluación 4.1 | E65: 1 | F65: 1 | G65: 0.006289308176
D66: Criterio Evaluación 4.2 | E66: 1 | F66: 1 | G66: 0.006289308176
D67: Criterio Evaluación 4.3 | E67: 1 | F67: 1 | G67: 0.006289308176
C68: Comp. Esp. 5 | D68: Criterio Evaluación 5.1 | F68: 1 | G68: 0.006289308176
D69: Criterio Evaluación 5.2 | F69: 1 | G69: =F69/SUM($F$5:$F$163) -> 0.006289308176
D70: Criterio Evaluación 5.3 | F70: 1 | G70: 0.006289308176
D71: Criterio Evaluación 5.4 | F71: 1 | G71: 0.006289308176
D72: Criterio Evaluación 5.5 | F72: 1 | G72: 0.006289308176
B73: Educación Física | C73: Comp. Esp. 1 | D73: Criterio Evaluación 1.1 | F73: 1 | G73: 0.006289308176
D74: Criterio Evaluación 1.2 | F74: 1 | G74: 0.006289308176
D75: Criterio Evaluación 1.3 | F75: 1 | G75: 0.006289308176
D76: Criterio Evaluación 1.4 | F76: 1 | G76: 0.006289308176
C77: Comp. Esp. 2 | D77: Criterio Evaluación 2.1 | F77: 1 | G77: 0.006289308176
D78: Criterio Evaluación 2.2 | F78: 1 | G78: 0.006289308176
D79: Criterio Evaluación 2.3 | F79: 1 | G79: 0.006289308176
C80: Comp. Esp. 3 | D80: Criterio Evaluación 3.1 | F80: 1 | G80: 0.006289308176
D81: Criterio Evaluación 3.2 | F81: 1 | G81: 0.006289308176
D82: Criterio Evaluación 3.3 | E82: 1 | F82: 1 | G82: 0.006289308176
C83: Comp. Esp. 4 | D83: Criterio Evaluación 4.1 | F83: 1 | G83: 0.006289308176
D84: Criterio Evaluación 4.2 | F84: 1 | G84: 0.006289308176
D85: Criterio Evaluación 4.3 | F85: 1 | G85: 0.006289308176
D86: Criterio Evaluación 4.4 | F86: 1 | G86: 0.006289308176
C87: Comp. Esp. 5 | D87: Criterio Evaluación 5.1 | F87: 1 | G87: 0.006289308176
D88: Criterio Evaluación 5.2 | F88: 1 | G88: 0.006289308176
D89: Criterio Evaluación 5.3 | F89: 1 | G89: 0.006289308176
C90: Comp. Esp. 6 | D90: Criterio Evaluación 6.1 | F90: 1 | G90: 0.006289308176
D91: Criterio Evaluación 6.2 | F91: 1 | G91: 0.006289308176
D92: Criterio Evaluación 6.3 | E92: 1 | F92: 1 | G92: 0.006289308176
B93: Lengua Castellana y Literatura | C93: Comp. Esp. 1 | D93: Criterio Evaluación 1.1 | E93: 1 | F93: 1 | G93: 0.006289308176
D94: Criterio Evaluación 1.2 | E94: 1 | F94: 1 | G94: 0.006289308176
C95: Comp. Esp. 2 | D95: Criterio Evaluación 2.1 | F95: 1 | G95: 0.006289308176
D96: Criterio Evaluación 2.2 | F96: 1 | G96: 0.006289308176
C97: Comp. Esp. 3 | D97: Criterio Evaluación 3.1 | E97: 1 | F97: 1 | G97: 0.006289308176
D98: Criterio Evaluación 3.2 | E98: 1 | F98: 1 | G98: 0.006289308176
D99: Criterio Evaluación 3.3 | E99: 1 | F99: 1 | G99: 0.006289308176
C100: Comp. Esp. 4 | D100: Criterio Evaluación 4.1 | F100: 1 | G100: 0.006289308176
D101: Criterio Evaluación 4.2 | F101: 1 | G101: =F101/SUM($F$5:$F$163) -> 0.006289308176
D102: Criterio Evaluación 4.3 | F102: 1 | G102: 0.006289308176
C103: Comp. Esp. 5 | D103: Criterio Evaluación 5.1 | E103: 1 | F103: 1 | G103: 0.006289308176
D104: Criterio Evaluación 5.2 | E104: 1 | F104: 1 | G104: 0.006289308176
C105: Comp. Esp. 6 | D105: Criterio Evaluación 6.1 | E105: 1 | F105: 1 | G105: 0.006289308176
D106: Criterio Evaluación 6.2 | E106: 1 | F106: 1 | G106: 0.006289308176
D107: Criterio Evaluación 6.3 | F107: 1 | G107: 0.006289308176
D108: Criterio Evaluación 6.4 | F108: 1 | G108: 0.006289308176
C109: Comp. Esp. 7 | D109: Criterio Evaluación 7.1 | F109: 1 | G109: 0.006289308176
D110: Criterio Evaluación 7.2 | E110: 1 | F110: 1 | G110: 0.006289308176
D111: Criterio Evaluación 7.3 | E111: 1 | F111: 1 | G111: 0.006289308176
C112: Comp. Esp. 8 | D112: Criterio Evaluación 8.1 | E112: 1 | F112: 1 | G112: 0.006289308176
D113: Criterio Evaluación 8.2 | F113: 1 | G113: 0.006289308176
D114: Criterio Evaluación 8.3 | E114: 1 | F114: 1 | G114: 0.006289308176
C115: Comp. Esp. 9 | D115: Criterio Evaluación 9.1 | E115: 1 | F115: 1 | G115: 0.006289308176
D116: Criterio Evaluación 9.2 | E116: 1 | F116: 1 | G116: 0.006289308176
C117: Comp. Esp. 10 | D117: Criterio Evaluación 10.1 | E117: 1 | F117: 1 | G117: 0.006289308176
D118: Criterio Evaluación 10.2 | E118: 1 | F118: 1 | G118: 0.006289308176
B119: Lengua Extranjera | C119: Comp. Esp. 1 | D119: Criterio Evaluación 1.1 | F119: 1 | G119: 0.006289308176
D120: Criterio Evaluación 1.2 | F120: 1 | G120: 0.006289308176
C121: Comp. Esp. 2 | D121: Criterio Evaluación 2.1 | E121: 1 | F121: 1 | G121: 0.006289308176
D122: Criterio Evaluación 2.2 | E122: 1 | F122: 1 | G122: 0.006289308176
D123: Criterio Evaluación 2.3 | F123: 1 | G123: 0.006289308176
C124: Comp. Esp. 3 | D124: Criterio Evaluación 3.1 | E124: 1 | F124: 1 | G124: 0.006289308176
D125: Criterio Evaluación 3.2 | E125: 1 | F125: 1 | G125: 0.006289308176
C126: Comp. Esp. 4 | D126: Criterio Evaluación 4.1 | F126: 1 | G126: 0.006289308176
D127: Criterio Evaluación 4.2 | F127: 1 | G127: 0.006289308176
C128: Comp. Esp. 5 | D128: Criterio Evaluación 5.1 | F128: 1 | G128: 0.006289308176
D129: Criterio Evaluación 5.2 | F129: 1 | G129: 0.006289308176
D130: Criterio Evaluación 5.3 | F130: 1 | G130: 0.006289308176
C131: Comp. Esp. 6 | D131: Criterio Evaluación 6.1 | F131: 1 | G131: 0.006289308176
D132: Criterio Evaluación 6.2 | F132: 1 | G132: 0.006289308176
D133: Criterio Evaluación 6.3 | F133: 1 | G133: =F133/SUM($F$5:$F$163) -> 0.006289308176
B134: Matemáticas | C134: Comp. Esp. 1 | D134: Criterio Evaluación 1.1 | F134: 1 | G134: 0.006289308176
D135: Criterio Evaluación 1.2 | E135: 1 | F135: 1 | G135: 0.006289308176
C136: Comp. Esp. 2 | D136: Criterio Evaluación 2.1 | F136: 1 | G136: 0.006289308176
D137: Criterio Evaluación 2.2 | F137: 1 | G137: 0.006289308176
D138: Criterio Evaluación 2.3 | F138: 1 | G138: 0.006289308176
D139: Criterio Evaluación 2.4 | F139: 1 | G139: 0.006289308176
C140: Comp. Esp. 3 | D140: Criterio Evaluación 3.1 | F140: 1 | G140: 0.006289308176
D141: Criterio Evaluación 3.2 | E141: 1 | F141: 1 | G141: 0.006289308176
C142: Comp. Esp. 4 | D142: Criterio Evaluación 4.1 | F142: 1 | G142: 0.006289308176
D143: Criterio Evaluación 4.2 | F143: 1 | G143: 0.006289308176
C144: Comp. Esp. 5 | D144: Criterio Evaluación 5.1 | F144: 1 | G144: 0.006289308176
D145: Criterio Evaluación 5.2 | F145: 1 | G145: 0.006289308176
C146: Comp. Esp. 6 | D146: Criterio Evaluación 6.1 | F146: 1 | G146: 0.006289308176
D147: Criterio Evaluación 6.2 | E147: 1 | F147: 1 | G147: 0.006289308176
C148: Comp. Esp. 7 | D148: Criterio Evaluación 7.1 | E148: 1 | F148: 1 | G148: 0.006289308176
D149: Criterio Evaluación 7.2 | F149: 1 | G149: 0.006289308176
C150: Comp. Esp. 8 | D150: Criterio Evaluación 8.1 | E150: 1 | F150: 1 | G150: 0.006289308176
D151: Criterio Evaluación 8.2 | F151: 1 | G151: 0.006289308176
B152: Religión | C152: Comp. Esp. 1 | D152: Criterio Evaluación 1.1 | E152: - | F152: 1 | G152: 0.006289308176
C153: Comp. Esp. 2 | D153: Criterio Evaluación 2.1 | E153: - | F153: 1 | G153: 0.006289308176
C154: Comp. Esp. 3 | D154: Criterio Evaluación 3.1 | E154: - | F154: 1 | G154: 0.006289308176
C155: Comp. Esp. 4 | D155: Criterio Evaluación 4.1 | E155: - | F155: 1 | G155: 0.006289308176
C156: Comp. Esp. 5 | D156: Criterio Evaluación 5.1 | E156: - | F156: 1 | G156: 0.006289308176
C157: Comp. Esp. 6 | D157: Criterio Evaluación 6.1 | E157: - | F157: 1 | G157: 0.006289308176
B158: Área dirigida al alumnado que no cursa religión | C158: Comp. Esp. 1 | D158: Criterio Evaluación 1.1 | E158: - | F158: 1 | G158: 0.006289308176
C159: Comp. Esp. 2 | D159: Criterio Evaluación 2.1 | E159: - | F159: 1 | G159: 0.006289308176
C160: Comp. Esp. 3 | D160: Criterio Evaluación 3.1 | E160: - | F160: 1 | G160: 0.006289308176
C161: Comp. Esp. 4 | D161: Criterio Evaluación 4.1 | E161: - | F161: 1 | G161: 0.006289308176
C162: Comp. Esp. 5 | D162: Criterio Evaluación 5.1 | E162: - | F162: 1 | G162: 0.006289308176
C163: Comp. Esp. 6 | D163: Criterio Evaluación 6.1 | E163: - | F163: 1 | G163: 0.006289308176
G164: =SUM($G$5:$G$163) -> 1

Sheet Peso descrip. libre
E2: Competencia en Comunicación Lingüística | Y2: Competencia Plurilingüe | AK2: Competencia Matemática y Competencia en Ciencia, Tecnología e Ingeniería | BE2: Competencia Digital | BY2: Competencia Personal, Social y de Aprender a Aprender | CS2: Competencia Ciudadana | DI2: Competencia Emprendedora | DU2: Competencia en Conciencia y Expresión Culturales
E3: CCL 1 | I3: CCL 2 | M3: CCL 3 | Q3: CCL 4 | U3: CCL 5 | Y3: CP 1 | AC3: CP 2 | AG3: CP 3 | AK3: STEM 1 | AO3: STEM 2 | AS3: STEM 3 | AW3: STEM 4 | BA3: STEM 5 | BE3: CD 1 | BI3: CD 2 | BM3: CD 3 | BQ3: CD 4 | BU3: CD 5 | BY3: CPSAA 1 | CC3: CPSAA 2 | CG3: CPSAA 3 | CK3: CPSAA 4 | CO3: CPSAA 5 | CS3: CC 1 | CW3: CC 2 | DA3: CC 3 | DE3: CC 4 | DI3: CE 1 | DM3: CE 2 | DQ3: CE 3 | DU3: CCEC 1 | DY3: CCEC 2 | EC3: CCEC 3 | EG3: CCEC 4
B5: NO | C5: PESO DESCRIPTORES | E5: 1 | I5: 1 | M5: 1 | Q5: 1 | U5: 1 | Y5: 1 | AC5: 1 | AG5: 1 | AK5: 1 | AO5: 1 | AS5: 1 | AW5: 1 | BA5: 1 | BE5: 1 | BI5: 1 | BM5: 1 | BQ5: 1 | BU5: 1 | BY5: 1 | CC5: 1 | CG5: 1 | CK5: 1 | CO5: 1 | CS5: 1 | CW5: 1 | DA5: 1 | DE5: 1 | DI5: 1 | DM5: 1 | DQ5: 1 | DU5: 1 | DY5: 1 | EC5: 1 | EG5: 1
C6: PORCENTAJES | E6: =E5/SUM($E5:$U5) -> 0.2 | I6: =I5/SUM($E5:$U5) -> 0.2 | M6: =M5/SUM($E5:$U5) -> 0.2 | Q6: =Q5/SUM($E5:$U5) -> 0.2 | U6: =U5/SUM($E5:$U5) -> 0.2 | Y6: =Y5/SUM($Y5:$AG5) -> 0.3333333333 | AC6: =AC5/SUM($Y5:$AG5) -> 0.3333333333 | AG6: 0.3333333333 | AK6: =AK5/SUM($AK5:$BA5) -> 0.2 | AO6: =AO5/SUM($AK5:$BA5) -> 0.2 | AS6: 0.2 | AW6: 0.2 | BA6: 0.2 | BE6: =BE5/SUM($BE5:$BU5) -> 0.2 | BI6: =BI5/SUM($BE5:$BU5) -> 0.2 | BM6: 0.2 | BQ6: 0.2 | BU6: 0.2 | BY6: =BY5/SUM($BY5:$CO5) -> 0.2 | CC6: =CC5/SUM($BY5:$CO5) -> 0.2 | CG6: 0.2 | CK6: 0.2 | CO6: 0.2 | CS6: =CS5/SUM($CS5:$DE5) -> 0.25 | CW6: =CW5/SUM($CS5:$DE5) -> 0.25 | DA6: 0.25 | DE6: 0.25 | DI6: =DI5/SUM($DI5:$DQ5) -> 0.3333333333 | DM6: =DM5/SUM($DI5:$DQ5) -> 0.3333333333 | DQ6: 0.3333333333 | DU6: =DU5/SUM($DU5:$EG5) -> 0.25 | DY6: =DY5/SUM($DU5:$EG5) -> 0.25 | EC6: 0.25 | EG6: 0.25

Sheet Peso descrip. vinculaciones
E2: Competencia en Comunicación Lingüística | Y2: Competencia Plurilingüe | AK2: Competencia Matemática y Competencia en Ciencia, Tecnología e Ingeniería | BE2: Competencia Digital | BY2: Competencia Personal, Social y de Aprender a Aprender | CS2: Competencia Ciudadana | DI2: Competencia Emprendedora | DU2: Competencia en Conciencia y Expresión Culturales | EK2: Vinculaciones Criterios - Descriptores
E3: CCL 1 | I3: CCL 2 | M3: CCL 3 | Q3: CCL 4 | U3: CCL 5 | Y3: CP 1 | AC3: CP 2 | AG3: CP 3 | AK3: STEM 1 | AO3: STEM 2 | AS3: STEM 3 | AW3: STEM 4 | BA3: STEM 5 | BE3: CD 1 | BI3: CD 2 | BM3: CD 3 | BQ3: CD 4 | BU3: CD 5 | BY3: CPSAA 1 | CC3: CPSAA 2 | CG3: CPSAA 3 | CK3: CPSAA 4 | CO3: CPSAA 5 | CS3: CC 1 | CW3: CC 2 | DA3: CC 3 | DE3: CC 4 | DI3: CE 1 | DM3: CE 2 | DQ3: CE 3 | DU3: CCEC 1 | DY3: CCEC 2 | EC3: CCEC 3 | EG3: CCEC 4
B5: NO | C5: PESO DESCRIPTORES | E5: 0.3705882353 | I5: 0.1411764706 | M5: 0.1823529412 | Q5: 0.07058823529 | U5: 0.2352941176 | Y5: 0.125 | AC5: 0.2708333333 | AG5: 0.6041666667 | AK5: 0.325203252 | AO5: 0.2682926829 | AS5: 0.1056910569 | AW5: 0.1382113821 | BA5: 0.162601626 | BE5: 0.2735849057 | BI5: 0.2169811321 | BM5: 0.2358490566 | BQ5: 0.1698113208 | BU5: 0.1037735849 | BY5: 0.1888888889 | CC5: 0.09444444444 | CG5: 0.2777777778 | CK5: 0.2055555556 | CO5: 0.2333333333 | CS5: 0.1896551724 | CW5: 0.3189655172 | DA5: 0.3103448276 | DE5: 0.1810344828 | DI5: 0.3866666667 | DM5: 0.09333333333 | DQ5: 0.52 | DU5: 0.3423423423 | DY5: 0.1531531532 | EC5: 0.2792792793 | EG5: 0.2252252252
C6: PORCENTAJES | E6: =E5/SUM($E5:$U5) -> 0.3705882353 | I6: =I5/SUM($E5:$U5) -> 0.1411764706 | M6: =M5/SUM($E5:$U5) -> 0.1823529412 | Q6: =Q5/SUM($E5:$U5) -> 0.07058823529 | U6: =U5/SUM($E5:$U5) -> 0.2352941176 | Y6: =Y5/SUM($Y5:$AG5) -> 0.125 | AC6: =AC5/SUM($Y5:$AG5) -> 0.2708333333 | AG6: 0.6041666667 | AK6: =AK5/SUM($AK5:$BA5) -> 0.325203252 | AO6: =AO5/SUM($AK5:$BA5) -> 0.2682926829 | AS6: 0.1056910569 | AW6: 0.1382113821 | BA6: 0.162601626 | BE6: =BE5/SUM($BE5:$BU5) -> 0.2735849057 | BI6: =BI5/SUM($BE5:$BU5) -> 0.2169811321 | BM6: 0.2358490566 | BQ6: 0.1698113208 | BU6: 0.1037735849 | BY6: =BY5/SUM($BY5:$CO5) -> 0.1888888889 | CC6: =CC5/SUM($BY5:$CO5) -> 0.09444444444 | CG6: 0.2777777778 | CK6: 0.2055555556 | CO6: 0.2333333333 | CS6: =CS5/SUM($CS5:$DE5) -> 0.1896551724 | CW6: =CW5/SUM($CS5:$DE5) -> 0.3189655172 | DA6: 0.3103448276 | DE6: 0.1810344828 | DI6: =DI5/SUM($DI5:$DQ5) -> 0.3866666667 | DM6: =DM5/SUM($DI5:$DQ5) -> 0.09333333333 | DQ6: 0.52 | DU6: =DU5/SUM($DU5:$EG5) -> 0.3423423423 | DY6: =DY5/SUM($DU5:$EG5) -> 0.1531531532 | EC6: 0.2792792793 | EG6: 0.2252252252
C7: CALIFICACIONES COMPETENCIAS | E7: =IFERROR(SUMPRODUCT(#REF!,E5:U5)/SUMIF(#REF!,">=0",E5:U5),"") ->  | Y7: =IFERROR(SUMPRODUCT(#REF!,Y5:AG5)/SUMIF(#REF!,">=0",Y5:AG5),"") ->  | AK7: =IFERROR(SUMPRODUCT(#REF!,AK5:BA5)/SUMIF(#REF!,">=0",AK5:BA5),"") ->  | BE7: =IFERROR(SUMPRODUCT(#REF!,BE5:BU5)/SUMIF(#REF!,">=0",BE5:BU5),"") ->  | BY7: =IFERROR(SUMPRODUCT(#REF!,BY5:CO5)/SUMIF(#REF!,">=0",BY5:CO5),"") ->  | CS7: =IFERROR(SUMPRODUCT(#REF!,CS5:DE5)/SUMIF(#REF!,">=0",CS5:DE5),"") ->  | DI7: =IFERROR(SUMPRODUCT(#REF!,DI5:DQ5)/SUMIF(#REF!,">=0",DI5:DQ5),"") ->  | DU7: =IFERROR(SUMPRODUCT(#REF!,DU5:EG5)/SUMIF(#REF!,">=0",DU5:EG5),"") -> 

Sheet Alumnos
C4: LISTADO DE ALUMNOS | F4: ÁREAS | I4: TEAMS / Onedrive
C5: Informe | D5: Grupo 1º _____ | E5: Id matrícula | F5: ÁreaNoRel | G5: REL
D6: Nombre_Alumno_1 | E6: 0000000_1 | F6: x
C7: 2 | D7: Nombre_Alumno_2 | E7: 0000000_2 | G7: x
C8: 3 | D8: Nombre_Alumno_3 | E8: 0000000_3 | F8: x
C9: 4 | D9: Nombre_Alumno_4 | E9: 0000000_4 | G9: x
D10: Nombre_Alumno_5 | E10: 0000000_5 | F10: x
C11: 6 | D11: Nombre_Alumno_6 | E11: 0000000_6 | G11: x
C12: 7 | D12: Nombre_Alumno_7 | E12: 0000000_7 | F12: x
C13: 8 | D13: Nombre_Alumno_8 | E13: 0000000_8 | G13: x
C14: 9 | D14: Nombre_Alumno_9 | E14: 0000000_9 | F14: x
C15: 10 | D15: Nombre_Alumno_10 | E15: 0000000_10 | G15: x
C16: 11
C17: 12
C18: 13
C19: 14
C20: 15
C21: 16
C22: 17
C23: 18
C24: 19
C25: 20
C26: 21
C27: 22
C28: 23
C29: 24
C30: 25
C31: 26
C32: 27
C33: 28
C34: 29
C35: 30
C36: 31
C37: 32
C38: 33
C39: 34
C40: 35
D41: TOTAL MATRICULADOS | F41: =COUNTA(F6:F40) -> 5 | G41: 5

Sheet Redondeo
R2: EXPORTACIÓN NOTAS COMPETENCIAS A STILUS
C3: CALIFICACIONES DE ÁREAS | R3: 1º_Introduce para cada materia las centésimas a partir de las que se realizará un redondeo al alza (valor entre 1 y 100):
C4: CENTÉSIMAS REONDEO
C5: 90 | D5: 90 | E5: 90 | F5: 90 | G5: 90 | H5: 90 | I5: 90 | J5: 90 | K5: 90 | L5: 90 | R5: Ejemplo: si se marca 85, desde el 4,85 (inclusive) se redondeará a 5, Si se marca 100, el 4,99 e inferiores se redondearán a 4
B6: =TRANSPOSE('Calificación materias'!B5:AK15) -> 0 | C6: Ciencias de la Naturaleza | D6: Ciencias Sociales | E6: Educación Física | F6: Educación Plástica y Visual | G6: Lengua Castellana y Literatura | H6: Lengua Extranjera | I6: Matemáticas | J6: Música y Danza | K6: Área alumnado no Religión | L6: Religión | R6: 2º_Pulsa el siguiente botón:
B7: Nombre_Alumno_1
B8: Nombre_Alumno_2
B9: Nombre_Alumno_3
B10: Nombre_Alumno_4
B11: Nombre_Alumno_5
B12: Nombre_Alumno_6
B13: Nombre_Alumno_7
B14: Nombre_Alumno_8
B15: Nombre_Alumno_9
B16: Nombre_Alumno_10

Sheet Materias
C2: ÁREAS DE 4º EP

Sheet Calif. de crit.
E2: =IF(Alumnos!D6="","",Alumnos!D6) -> Nombre_Alumno_1 | F2: =IF(Alumnos!D7="","",Alumnos!D7) -> Nombre_Alumno_2 | G2: =IF(Alumnos!D8="","",Alumnos!D8) -> Nombre_Alumno_3 | H2: =IF(Alumnos!D9="","",Alumnos!D9) -> Nombre_Alumno_4 | I2: =IF(Alumnos!D10="","",Alumnos!D10) -> Nombre_Alumno_5 | J2: =IF(Alumnos!D11="","",Alumnos!D11) -> Nombre_Alumno_6 | K2: =IF(Alumnos!D12="","",Alumnos!D12) -> Nombre_Alumno_7 | L2: =IF(Alumnos!D13="","",Alumnos!D13) -> Nombre_Alumno_8 | M2: =IF(Alumnos!D14="","",Alumnos!D14) -> Nombre_Alumno_9 | N2: =IF(Alumnos!D15="","",Alumnos!D15) -> Nombre_Alumno_10 | O2: =IF(Alumnos!D16="","",Alumnos!D16) ->  | P2: =IF(Alumnos!D17="","",Alumnos!D17) ->  | Q2: =IF(Alumnos!D18="","",Alumnos!D18) ->  | R2: =IF(Alumnos!D19="","",Alumnos!D19) ->  | S2: =IF(Alumnos!D20="","",Alumnos!D20) ->  | T2: =IF(Alumnos!D21="","",Alumnos!D21) ->  | U2: =IF(Alumnos!D22="","",Alumnos!D22) ->  | V2: =IF(Alumnos!D23="","",Alumnos!D23) ->  | W2: =IF(Alumnos!D24="","",Alumnos!D24) ->  | X2: =IF(Alumnos!D25="","",Alumnos!D25) ->  | Y2: =IF(Alumnos!D26="","",Alumnos!D26) ->  | Z2: =IF(Alumnos!D27="","",Alumnos!D27) ->  | AA2: =IF(Alumnos!D28="","",Alumnos!D28) ->  | AB2: =IF(Alumnos!D29="","",Alumnos!D29) ->  | AC2: =IF(Alumnos!D30="","",Alumnos!D30) ->  | AD2: =IF(Alumnos!D31="","",Alumnos!D31) ->  | AE2: =IF(Alumnos!D32="","",Alumnos!D32) ->  | AF2: =IF(Alumnos!D33="","",Alumnos!D33) ->  | AG2: =IF(Alumnos!D34="","",Alumnos!D34) ->  | AH2: =IF(Alumnos!D35="","",Alumnos!D35) ->  | AI2: =IF(Alumnos!D36="","",Alumnos!D36) ->  | AJ2: =IF(Alumnos!D37="","",Alumnos!D37) ->  | AK2: =IF(Alumnos!D38="","",Alumnos!D38) ->  | AL2: =IF(Alumnos!D39="","",Alumnos!D39) ->  | AM2: =IF(Alumnos!D40="","",Alumnos!D40) -> 
B3: Ciencias de la Naturaleza | C3: Comp. Esp. 1 | D3: Criterio Evaluación 1.1 | E3: =IF('Ciencias de la Naturaleza'!H4="","",'Ciencias de la Naturaleza'!H4) ->  | F3: =IF('Ciencias de la Naturaleza'!I4="","",'Ciencias de la Naturaleza'!I4) ->  | G3: =IF('Ciencias de la Naturaleza'!J4="","",'Ciencias de la Naturaleza'!J4) ->  | H3: =IF('Ciencias de la Naturaleza'!K4="","",'Ciencias de la Naturaleza'!K4) ->  | I3: =IF('Ciencias de la Naturaleza'!L4="","",'Ciencias de la Naturaleza'!L4) ->  | J3: =IF('Ciencias de la Naturaleza'!M4="","",'Ciencias de la Naturaleza'!M4) ->  | K3: =IF('Ciencias de la Naturaleza'!N4="","",'Ciencias de la Naturaleza'!N4) ->  | L3: =IF('Ciencias de la Naturaleza'!O4="","",'Ciencias de la Naturaleza'!O4) ->  | M3: =IF('Ciencias de la Naturaleza'!P4="","",'Ciencias de la Naturaleza'!P4) ->  | N3: =IF('Ciencias de la Naturaleza'!Q4="","",'Ciencias de la Naturaleza'!Q4) ->  | O3: =IF('Ciencias de la Naturaleza'!R4="","",'Ciencias de la Naturaleza'!R4) ->  | P3: =IF('Ciencias de la Naturaleza'!S4="","",'Ciencias de la Naturaleza'!S4) ->  | Q3: =IF('Ciencias de la Naturaleza'!T4="","",'Ciencias de la Naturaleza'!T4) ->  | R3: =IF('Ciencias de la Naturaleza'!U4="","",'Ciencias de la Naturaleza'!U4) ->  | S3: =IF('Ciencias de la Naturaleza'!V4="","",'Ciencias de la Naturaleza'!V4) ->  | T3: =IF('Ciencias de la Naturaleza'!W4="","",'Ciencias de la Naturaleza'!W4) ->  | U3: =IF('Ciencias de la Naturaleza'!X4="","",'Ciencias de la Naturaleza'!X4) ->  | V3: =IF('Ciencias de la Naturaleza'!Y4="","",'Ciencias de la Naturaleza'!Y4) ->  | W3: =IF('Ciencias de la Naturaleza'!Z4="","",'Ciencias de la Naturaleza'!Z4) ->  | X3: =IF('Ciencias de la Naturaleza'!AA4="","",'Ciencias de la Naturaleza'!AA4) ->  | Y3: =IF('Ciencias de la Naturaleza'!AB4="","",'Ciencias de la Naturaleza'!AB4) ->  | Z3: =IF('Ciencias de la Naturaleza'!AC4="","",'Ciencias de la Naturaleza'!AC4) ->  | AA3: =IF('Ciencias de la Naturaleza'!AD4="","",'Ciencias de la Naturaleza'!AD4) ->  | AB3: =IF('Ciencias de la Naturaleza'!AE4="","",'Ciencias de la Naturaleza'!AE4) ->  | AC3: =IF('Ciencias de la Naturaleza'!AF4="","",'Ciencias de la Naturaleza'!AF4) ->  | AD3: =IF('Ciencias de la Naturaleza'!AG4="","",'Ciencias de la Naturaleza'!AG4) ->  | AE3: =IF('Ciencias de la Naturaleza'!AH4="","",'Ciencias de la Naturaleza'!AH4) ->  | AF3: =IF('Ciencias de la Naturaleza'!AI4="","",'Ciencias de la Naturaleza'!AI4) ->  | AG3: =IF('Ciencias de la Naturaleza'!AJ4="","",'Ciencias de la Naturaleza'!AJ4) ->  | AH3: =IF('Ciencias de la Naturaleza'!AK4="","",'Ciencias de la Naturaleza'!AK4) ->  | AI3: =IF('Ciencias de la Naturaleza'!AL4="","",'Ciencias de la Naturaleza'!AL4) ->  | AJ3: =IF('Ciencias de la Naturaleza'!AM4="","",'Ciencias de la Naturaleza'!AM4) ->  | AK3: =IF('Ciencias de la Naturaleza'!AN4="","",'Ciencias de la Naturaleza'!AN4) ->  | AL3: =IF('Ciencias de la Naturaleza'!AO4="","",'Ciencias de la Naturaleza'!AO4) ->  | AM3: =IF('Ciencias de la Naturaleza'!AP4="","",'Ciencias de la Naturaleza'!AP4) -> 
D4: Criterio Evaluación 1.2 | E4: =IF('Ciencias de la Naturaleza'!H5="","",'Ciencias de la Naturaleza'!H5) ->  | F4: =IF('Ciencias de la Naturaleza'!I5="","",'Ciencias de la Naturaleza'!I5) ->  | G4: =IF('Ciencias de la Naturaleza'!J5="","",'Ciencias de la Naturaleza'!J5) ->  | H4: =IF('Ciencias de la Naturaleza'!K5="","",'Ciencias de la Naturaleza'!K5) ->  | I4: =IF('Ciencias de la Naturaleza'!L5="","",'Ciencias de la Naturaleza'!L5) ->  | J4: =IF('Ciencias de la Naturaleza'!M5="","",'Ciencias de la Naturaleza'!M5) ->  | K4: =IF('Ciencias de la Naturaleza'!N5="","",'Ciencias de la Naturaleza'!N5) ->  | L4: =IF('Ciencias de la Naturaleza'!O5="","",'Ciencias de la Naturaleza'!O5) ->  | M4: =IF('Ciencias de la Naturaleza'!P5="","",'Ciencias de la Naturaleza'!P5) ->  | N4: =IF('Ciencias de la Naturaleza'!Q5="","",'Ciencias de la Naturaleza'!Q5) ->  | O4: =IF('Ciencias de la Naturaleza'!R5="","",'Ciencias de la Naturaleza'!R5) ->  | P4: =IF('Ciencias de la Naturaleza'!S5="","",'Ciencias de la Naturaleza'!S5) ->  | Q4: =IF('Ciencias de la Naturaleza'!T5="","",'Ciencias de la Naturaleza'!T5) ->  | R4: =IF('Ciencias de la Naturaleza'!U5="","",'Ciencias de la Naturaleza'!U5) ->  | S4: =IF('Ciencias de la Naturaleza'!V5="","",'Ciencias de la Naturaleza'!V5) ->  | T4: =IF('Ciencias de la Naturaleza'!W5="","",'Ciencias de la Naturaleza'!W5) ->  | U4: =IF('Ciencias de la Naturaleza'!X5="","",'Ciencias de la Naturaleza'!X5) ->  | V4: =IF('Ciencias de la Naturaleza'!Y5="","",'Ciencias de la Naturaleza'!Y5) ->  | W4: =IF('Ciencias de la Naturaleza'!Z5="","",'Ciencias de la Naturaleza'!Z5) ->  | X4: =IF('Ciencias de la Naturaleza'!AA5="","",'Ciencias de la Naturaleza'!AA5) ->  | Y4: =IF('Ciencias de la Naturaleza'!AB5="","",'Ciencias de la Naturaleza'!AB5) ->  | Z4: =IF('Ciencias de la Naturaleza'!AC5="","",'Ciencias de la Naturaleza'!AC5) ->  | AA4: =IF('Ciencias de la Naturaleza'!AD5="","",'Ciencias de la Naturaleza'!AD5) ->  | AB4: =IF('Ciencias de la Naturaleza'!AE5="","",'Ciencias de la Naturaleza'!AE5) ->  | AC4: =IF('Ciencias de la Naturaleza'!AF5="","",'Ciencias de la Naturaleza'!AF5) ->  | AD4: =IF('Ciencias de la Naturaleza'!AG5="","",'Ciencias de la Naturaleza'!AG5) ->  | AE4: =IF('Ciencias de la Naturaleza'!AH5="","",'Ciencias de la Naturaleza'!AH5) ->  | AF4: =IF('Ciencias de la Naturaleza'!AI5="","",'Ciencias de la Naturaleza'!AI5) ->  | AG4: =IF('Ciencias de la Naturaleza'!AJ5="","",'Ciencias de la Naturaleza'!AJ5) ->  | AH4: =IF('Ciencias de la Naturaleza'!AK5="","",'Ciencias de la Naturaleza'!AK5) ->  | AI4: =IF('Ciencias de la Naturaleza'!AL5="","",'Ciencias de la Naturaleza'!AL5) ->  | AJ4: =IF('Ciencias de la Naturaleza'!AM5="","",'Ciencias de la Naturaleza'!AM5) ->  | AK4: =IF('Ciencias de la Naturaleza'!AN5="","",'Ciencias de la Naturaleza'!AN5) ->  | AL4: =IF('Ciencias de la Naturaleza'!AO5="","",'Ciencias de la Naturaleza'!AO5) ->  | AM4: =IF('Ciencias de la Naturaleza'!AP5="","",'Ciencias de la Naturaleza'!AP5) -> 
D5: Criterio Evaluación 1.3 | E5: =IF('Ciencias de la Naturaleza'!H6="","",'Ciencias de la Naturaleza'!H6) ->  | F5: =IF('Ciencias de la Naturaleza'!I6="","",'Ciencias de la Naturaleza'!I6) ->  | G5: =IF('Ciencias de la Naturaleza'!J6="","",'Ciencias de la Naturaleza'!J6) ->  | H5: =IF('Ciencias de la Naturaleza'!K6="","",'Ciencias de la Naturaleza'!K6) ->  | I5: =IF('Ciencias de la Naturaleza'!L6="","",'Ciencias de la Naturaleza'!L6) ->  | J5: =IF('Ciencias de la Naturaleza'!M6="","",'Ciencias de la Naturaleza'!M6) ->  | K5: =IF('Ciencias de la Naturaleza'!N6="","",'Ciencias de la Naturaleza'!N6) ->  | L5: =IF('Ciencias de la Naturaleza'!O6="","",'Ciencias de la Naturaleza'!O6) ->  | M5: =IF('Ciencias de la Naturaleza'!P6="","",'Ciencias de la Naturaleza'!P6) ->  | N5: =IF('Ciencias de la Naturaleza'!Q6="","",'Ciencias de la Naturaleza'!Q6) ->  | O5: =IF('Ciencias de la Naturaleza'!R6="","",'Ciencias de la Naturaleza'!R6) ->  | P5: =IF('Ciencias de la Naturaleza'!S6="","",'Ciencias de la Naturaleza'!S6) ->  | Q5: =IF('Ciencias de la Naturaleza'!T6="","",'Ciencias de la Naturaleza'!T6) ->  | R5: =IF('Ciencias de la Naturaleza'!U6="","",'Ciencias de la Naturaleza'!U6) ->  | S5: =IF('Ciencias de la Naturaleza'!V6="","",'Ciencias de la Naturaleza'!V6) ->  | T5: =IF('Ciencias de la Naturaleza'!W6="","",'Ciencias de la Naturaleza'!W6) ->  | U5: =IF('Ciencias de la Naturaleza'!X6="","",'Ciencias de la Naturaleza'!X6) ->  | V5: =IF('Ciencias de la Naturaleza'!Y6="","",'Ciencias de la Naturaleza'!Y6) ->  | W5: =IF('Ciencias de la Naturaleza'!Z6="","",'Ciencias de la Naturaleza'!Z6) ->  | X5: =IF('Ciencias de la Naturaleza'!AA6="","",'Ciencias de la Naturaleza'!AA6) ->  | Y5: =IF('Ciencias de la Naturaleza'!AB6="","",'Ciencias de la Naturaleza'!AB6) ->  | Z5: =IF('Ciencias de la Naturaleza'!AC6="","",'Ciencias de la Naturaleza'!AC6) ->  | AA5: =IF('Ciencias de la Naturaleza'!AD6="","",'Ciencias de la Naturaleza'!AD6) ->  | AB5: =IF('Ciencias de la Naturaleza'!AE6="","",'Ciencias de la Naturaleza'!AE6) ->  | AC5: =IF('Ciencias de la Naturaleza'!AF6="","",'Ciencias de la Naturaleza'!AF6) ->  | AD5: =IF('Ciencias de la Naturaleza'!AG6="","",'Ciencias de la Naturaleza'!AG6) ->  | AE5: =IF('Ciencias de la Naturaleza'!AH6="","",'Ciencias de la Naturaleza'!AH6) ->  | AF5: =IF('Ciencias de la Naturaleza'!AI6="","",'Ciencias de la Naturaleza'!AI6) ->  | AG5: =IF('Ciencias de la Naturaleza'!AJ6="","",'Ciencias de la Naturaleza'!AJ6) ->  | AH5: =IF('Ciencias de la Naturaleza'!AK6="","",'Ciencias de la Naturaleza'!AK6) ->  | AI5: =IF('Ciencias de la Naturaleza'!AL6="","",'Ciencias de la Naturaleza'!AL6) ->  | AJ5: =IF('Ciencias de la Naturaleza'!AM6="","",'Ciencias de la Naturaleza'!AM6) ->  | AK5: =IF('Ciencias de la Naturaleza'!AN6="","",'Ciencias de la Naturaleza'!AN6) ->  | AL5: =IF('Ciencias de la Naturaleza'!AO6="","",'Ciencias de la Naturaleza'!AO6) ->  | AM5: =IF('Ciencias de la Naturaleza'!AP6="","",'Ciencias de la Naturaleza'!AP6) -> 
C6: Comp. Esp. 2 | D6: Criterio Evaluación 2.1 | E6: =IF('Ciencias de la Naturaleza'!H7="","",'Ciencias de la Naturaleza'!H7) ->  | F6: =IF('Ciencias de la Naturaleza'!I7="","",'Ciencias de la Naturaleza'!I7) ->  | G6: =IF('Ciencias de la Naturaleza'!J7="","",'Ciencias de la Naturaleza'!J7) ->  | H6: =IF('Ciencias de la Naturaleza'!K7="","",'Ciencias de la Naturaleza'!K7) ->  | I6: =IF('Ciencias de la Naturaleza'!L7="","",'Ciencias de la Naturaleza'!L7) ->  | J6: =IF('Ciencias de la Naturaleza'!M7="","",'Ciencias de la Naturaleza'!M7) ->  | K6: =IF('Ciencias de la Naturaleza'!N7="","",'Ciencias de la Naturaleza'!N7) ->  | L6: =IF('Ciencias de la Naturaleza'!O7="","",'Ciencias de la Naturaleza'!O7) ->  | M6: =IF('Ciencias de la Naturaleza'!P7="","",'Ciencias de la Naturaleza'!P7) ->  | N6: =IF('Ciencias de la Naturaleza'!Q7="","",'Ciencias de la Naturaleza'!Q7) ->  | O6: =IF('Ciencias de la Naturaleza'!R7="","",'Ciencias de la Naturaleza'!R7) ->  | P6: =IF('Ciencias de la Naturaleza'!S7="","",'Ciencias de la Naturaleza'!S7) ->  | Q6: =IF('Ciencias de la Naturaleza'!T7="","",'Ciencias de la Naturaleza'!T7) ->  | R6: =IF('Ciencias de la Naturaleza'!U7="","",'Ciencias de la Naturaleza'!U7) ->  | S6: =IF('Ciencias de la Naturaleza'!V7="","",'Ciencias de la Naturaleza'!V7) ->  | T6: =IF('Ciencias de la Naturaleza'!W7="","",'Ciencias de la Naturaleza'!W7) ->  | U6: =IF('Ciencias de la Naturaleza'!X7="","",'Ciencias de la Naturaleza'!X7) ->  | V6: =IF('Ciencias de la Naturaleza'!Y7="","",'Ciencias de la Naturaleza'!Y7) ->  | W6: =IF('Ciencias de la Naturaleza'!Z7="","",'Ciencias de la Naturaleza'!Z7) ->  | X6: =IF('Ciencias de la Naturaleza'!AA7="","",'Ciencias de la Naturaleza'!AA7) ->  | Y6: =IF('Ciencias de la Naturaleza'!AB7="","",'Ciencias de la Naturaleza'!AB7) ->  | Z6: =IF('Ciencias de la Naturaleza'!AC7="","",'Ciencias de la Naturaleza'!AC7) ->  | AA6: =IF('Ciencias de la Naturaleza'!AD7="","",'Ciencias de la Naturaleza'!AD7) ->  | AB6: =IF('Ciencias de la Naturaleza'!AE7="","",'Ciencias de la Naturaleza'!AE7) ->  | AC6: =IF('Ciencias de la Naturaleza'!AF7="","",'Ciencias de la Naturaleza'!AF7) ->  | AD6: =IF('Ciencias de la Naturaleza'!AG7="","",'Ciencias de la Naturaleza'!AG7) ->  | AE6: =IF('Ciencias de la Naturaleza'!AH7="","",'Ciencias de la Naturaleza'!AH7) ->  | AF6: =IF('Ciencias de la Naturaleza'!AI7="","",'Ciencias de la Naturaleza'!AI7) ->  | AG6: =IF('Ciencias de la Naturaleza'!AJ7="","",'Ciencias de la Naturaleza'!AJ7) ->  | AH6: =IF('Ciencias de la Naturaleza'!AK7="","",'Ciencias de la Naturaleza'!AK7) ->  | AI6: =IF('Ciencias de la Naturaleza'!AL7="","",'Ciencias de la Naturaleza'!AL7) ->  | AJ6: =IF('Ciencias de la Naturaleza'!AM7="","",'Ciencias de la Naturaleza'!AM7) ->  | AK6: =IF('Ciencias de la Naturaleza'!AN7="","",'Ciencias de la Naturaleza'!AN7) ->  | AL6: =IF('Ciencias de la Naturaleza'!AO7="","",'Ciencias de la Naturaleza'!AO7) ->  | AM6: =IF('Ciencias de la Naturaleza'!AP7="","",'Ciencias de la Naturaleza'!AP7) -> 
D7: Criterio Evaluación 2.2 | E7: =IF('Ciencias de la Naturaleza'!H8="","",'Ciencias de la Naturaleza'!H8) ->  | F7: =IF('Ciencias de la Naturaleza'!I8="","",'Ciencias de la Naturaleza'!I8) ->  | G7: =IF('Ciencias de la Naturaleza'!J8="","",'Ciencias de la Naturaleza'!J8) ->  | H7: =IF('Ciencias de la Naturaleza'!K8="","",'Ciencias de la Naturaleza'!K8) ->  | I7: =IF('Ciencias de la Naturaleza'!L8="","",'Ciencias de la Naturaleza'!L8) ->  | J7: =IF('Ciencias de la Naturaleza'!M8="","",'Ciencias de la Naturaleza'!M8) ->  | K7: =IF('Ciencias de la Naturaleza'!N8="","",'Ciencias de la Naturaleza'!N8) ->  | L7: =IF('Ciencias de la Naturaleza'!O8="","",'Ciencias de la Naturaleza'!O8) ->  | M7: =IF('Ciencias de la Naturaleza'!P8="","",'Ciencias de la Naturaleza'!P8) ->  | N7: =IF('Ciencias de la Naturaleza'!Q8="","",'Ciencias de la Naturaleza'!Q8) ->  | O7: =IF('Ciencias de la Naturaleza'!R8="","",'Ciencias de la Naturaleza'!R8) ->  | P7: =IF('Ciencias de la Naturaleza'!S8="","",'Ciencias de la Naturaleza'!S8) ->  | Q7: =IF('Ciencias de la Naturaleza'!T8="","",'Ciencias de la Naturaleza'!T8) ->  | R7: =IF('Ciencias de la Naturaleza'!U8="","",'Ciencias de la Naturaleza'!U8) ->  | S7: =IF('Ciencias de la Naturaleza'!V8="","",'Ciencias de la Naturaleza'!V8) ->  | T7: =IF('Ciencias de la Naturaleza'!W8="","",'Ciencias de la Naturaleza'!W8) ->  | U7: =IF('Ciencias de la Naturaleza'!X8="","",'Ciencias de la Naturaleza'!X8) ->  | V7: =IF('Ciencias de la Naturaleza'!Y8="","",'Ciencias de la Naturaleza'!Y8) ->  | W7: =IF('Ciencias de la Naturaleza'!Z8="","",'Ciencias de la Naturaleza'!Z8) ->  | X7: =IF('Ciencias de la Naturaleza'!AA8="","",'Ciencias de la Naturaleza'!AA8) ->  | Y7: =IF('Ciencias de la Naturaleza'!AB8="","",'Ciencias de la Naturaleza'!AB8) ->  | Z7: =IF('Ciencias de la Naturaleza'!AC8="","",'Ciencias de la Naturaleza'!AC8) ->  | AA7: =IF('Ciencias de la Naturaleza'!AD8="","",'Ciencias de la Naturaleza'!AD8) ->  | AB7: =IF('Ciencias de la Naturaleza'!AE8="","",'Ciencias de la Naturaleza'!AE8) ->  | AC7: =IF('Ciencias de la Naturaleza'!AF8="","",'Ciencias de la Naturaleza'!AF8) ->  | AD7: =IF('Ciencias de la Naturaleza'!AG8="","",'Ciencias de la Naturaleza'!AG8) ->  | AE7: =IF('Ciencias de la Naturaleza'!AH8="","",'Ciencias de la Naturaleza'!AH8) ->  | AF7: =IF('Ciencias de la Naturaleza'!AI8="","",'Ciencias de la Naturaleza'!AI8) ->  | AG7: =IF('Ciencias de la Naturaleza'!AJ8="","",'Ciencias de la Naturaleza'!AJ8) ->  | AH7: =IF('Ciencias de la Naturaleza'!AK8="","",'Ciencias de la Naturaleza'!AK8) ->  | AI7: =IF('Ciencias de la Naturaleza'!AL8="","",'Ciencias de la Naturaleza'!AL8) ->  | AJ7: =IF('Ciencias de la Naturaleza'!AM8="","",'Ciencias de la Naturaleza'!AM8) ->  | AK7: =IF('Ciencias de la Naturaleza'!AN8="","",'Ciencias de la Naturaleza'!AN8) ->  | AL7: =IF('Ciencias de la Naturaleza'!AO8="","",'Ciencias de la Naturaleza'!AO8) ->  | AM7: =IF('Ciencias de la Naturaleza'!AP8="","",'Ciencias de la Naturaleza'!AP8) -> 
D8: Criterio Evaluación 2.3 | E8: =IF('Ciencias de la Naturaleza'!H9="","",'Ciencias de la Naturaleza'!H9) ->  | F8: =IF('Ciencias de la Naturaleza'!I9="","",'Ciencias de la Naturaleza'!I9) ->  | G8: =IF('Ciencias de la Naturaleza'!J9="","",'Ciencias de la Naturaleza'!J9) ->  | H8: =IF('Ciencias de la Naturaleza'!K9="","",'Ciencias de la Naturaleza'!K9) ->  | I8: =IF('Ciencias de la Naturaleza'!L9="","",'Ciencias de la Naturaleza'!L9) ->  | J8: =IF('Ciencias de la Naturaleza'!M9="","",'Ciencias de la Naturaleza'!M9) ->  | K8: =IF('Ciencias de la Naturaleza'!N9="","",'Ciencias de la Naturaleza'!N9) ->  | L8: =IF('Ciencias de la Naturaleza'!O9="","",'Ciencias de la Naturaleza'!O9) ->  | M8: =IF('Ciencias de la Naturaleza'!P9="","",'Ciencias de la Naturaleza'!P9) ->  | N8: =IF('Ciencias de la Naturaleza'!Q9="","",'Ciencias de la Naturaleza'!Q9) ->  | O8: =IF('Ciencias de la Naturaleza'!R9="","",'Ciencias de la Naturaleza'!R9) ->  | P8: =IF('Ciencias de la Naturaleza'!S9="","",'Ciencias de la Naturaleza'!S9) ->  | Q8: =IF('Ciencias de la Naturaleza'!T9="","",'Ciencias de la Naturaleza'!T9) ->  | R8: =IF('Ciencias de la Naturaleza'!U9="","",'Ciencias de la Naturaleza'!U9) ->  | S8: =IF('Ciencias de la Naturaleza'!V9="","",'Ciencias de la Naturaleza'!V9) ->  | T8: =IF('Ciencias de la Naturaleza'!W9="","",'Ciencias de la Naturaleza'!W9) ->  | U8: =IF('Ciencias de la Naturaleza'!X9="","",'Ciencias de la Naturaleza'!X9) ->  | V8: =IF('Ciencias de la Naturaleza'!Y9="","",'Ciencias de la Naturaleza'!Y9) ->  | W8: =IF('Ciencias de la Naturaleza'!Z9="","",'Ciencias de la Naturaleza'!Z9) ->  | X8: =IF('Ciencias de la Naturaleza'!AA9="","",'Ciencias de la Naturaleza'!AA9) ->  | Y8: =IF('Ciencias de la Naturaleza'!AB9="","",'Ciencias de la Naturaleza'!AB9) ->  | Z8: =IF('Ciencias de la Naturaleza'!AC9="","",'Ciencias de la Naturaleza'!AC9) ->  | AA8: =IF('Ciencias de la Naturaleza'!AD9="","",'Ciencias de la Naturaleza'!AD9) ->  | AB8: =IF('Ciencias de la Naturaleza'!AE9="","",'Ciencias de la Naturaleza'!AE9) ->  | AC8: =IF('Ciencias de la Naturaleza'!AF9="","",'Ciencias de la Naturaleza'!AF9) ->  | AD8: =IF('Ciencias de la Naturaleza'!AG9="","",'Ciencias de la Naturaleza'!AG9) ->  | AE8: =IF('Ciencias de la Naturaleza'!AH9="","",'Ciencias de la Naturaleza'!AH9) ->  | AF8: =IF('Ciencias de la Naturaleza'!AI9="","",'Ciencias de la Naturaleza'!AI9) ->  | AG8: =IF('Ciencias de la Naturaleza'!AJ9="","",'Ciencias de la Naturaleza'!AJ9) ->  | AH8: =IF('Ciencias de la Naturaleza'!AK9="","",'Ciencias de la Naturaleza'!AK9) ->  | AI8: =IF('Ciencias de la Naturaleza'!AL9="","",'Ciencias de la Naturaleza'!AL9) ->  | AJ8: =IF('Ciencias de la Naturaleza'!AM9="","",'Ciencias de la Naturaleza'!AM9) ->  | AK8: =IF('Ciencias de la Naturaleza'!AN9="","",'Ciencias de la Naturaleza'!AN9) ->  | AL8: =IF('Ciencias de la Naturaleza'!AO9="","",'Ciencias de la Naturaleza'!AO9) ->  | AM8: =IF('Ciencias de la Naturaleza'!AP9="","",'Ciencias de la Naturaleza'!AP9) -> 
D9: Criterio Evaluación 2.4 | E9: =IF('Ciencias de la Naturaleza'!H10="","",'Ciencias de la Naturaleza'!H10) ->  | F9: =IF('Ciencias de la Naturaleza'!I10="","",'Ciencias de la Naturaleza'!I10) ->  | G9: =IF('Ciencias de la Naturaleza'!J10="","",'Ciencias de la Naturaleza'!J10) ->  | H9: =IF('Ciencias de la Naturaleza'!K10="","",'Ciencias de la Naturaleza'!K10) ->  | I9: =IF('Ciencias de la Naturaleza'!L10="","",'Ciencias de la Naturaleza'!L10) ->  | J9: =IF('Ciencias de la Naturaleza'!M10="","",'Ciencias de la Naturaleza'!M10) ->  | K9: =IF('Ciencias de la Naturaleza'!N10="","",'Ciencias de la Naturaleza'!N10) ->  | L9: =IF('Ciencias de la Naturaleza'!O10="","",'Ciencias de la Naturaleza'!O10) ->  | M9: =IF('Ciencias de la Naturaleza'!P10="","",'Ciencias de la Naturaleza'!P10) ->  | N9: =IF('Ciencias de la Naturaleza'!Q10="","",'Ciencias de la Naturaleza'!Q10) ->  | O9: =IF('Ciencias de la Naturaleza'!R10="","",'Ciencias de la Naturaleza'!R10) ->  | P9: =IF('Ciencias de la Naturaleza'!S10="","",'Ciencias de la Naturaleza'!S10) ->  | Q9: =IF('Ciencias de la Naturaleza'!T10="","",'Ciencias de la Naturaleza'!T10) ->  | R9: =IF('Ciencias de la Naturaleza'!U10="","",'Ciencias de la Naturaleza'!U10) ->  | S9: =IF('Ciencias de la Naturaleza'!V10="","",'Ciencias de la Naturaleza'!V10) ->  | T9: =IF('Ciencias de la Naturaleza'!W10="","",'Ciencias de la Naturaleza'!W10) ->  | U9: =IF('Ciencias de la Naturaleza'!X10="","",'Ciencias de la Naturaleza'!X10) ->  | V9: =IF('Ciencias de la Naturaleza'!Y10="","",'Ciencias de la Naturaleza'!Y10) ->  | W9: =IF('Ciencias de la Naturaleza'!Z10="","",'Ciencias de la Naturaleza'!Z10) ->  | X9: =IF('Ciencias de la Naturaleza'!AA10="","",'Ciencias de la Naturaleza'!AA10) ->  | Y9: =IF('Ciencias de la Naturaleza'!AB10="","",'Ciencias de la Naturaleza'!AB10) ->  | Z9: =IF('Ciencias de la Naturaleza'!AC10="","",'Ciencias de la Naturaleza'!AC10) ->  | AA9: =IF('Ciencias de la Naturaleza'!AD10="","",'Ciencias de la Naturaleza'!AD10) ->  | AB9: =IF('Ciencias de la Naturaleza'!AE10="","",'Ciencias de la Naturaleza'!AE10) ->  | AC9: =IF('Ciencias de la Naturaleza'!AF10="","",'Ciencias de la Naturaleza'!AF10) ->  | AD9: =IF('Ciencias de la Naturaleza'!AG10="","",'Ciencias de la Naturaleza'!AG10) ->  | AE9: =IF('Ciencias de la Naturaleza'!AH10="","",'Ciencias de la Naturaleza'!AH10) ->  | AF9: =IF('Ciencias de la Naturaleza'!AI10="","",'Ciencias de la Naturaleza'!AI10) ->  | AG9: =IF('Ciencias de la Naturaleza'!AJ10="","",'Ciencias de la Naturaleza'!AJ10) ->  | AH9: =IF('Ciencias de la Naturaleza'!AK10="","",'Ciencias de la Naturaleza'!AK10) ->  | AI9: =IF('Ciencias de la Naturaleza'!AL10="","",'Ciencias de la Naturaleza'!AL10) ->  | AJ9: =IF('Ciencias de la Naturaleza'!AM10="","",'Ciencias de la Naturaleza'!AM10) ->  | AK9: =IF('Ciencias de la Naturaleza'!AN10="","",'Ciencias de la Naturaleza'!AN10) ->  | AL9: =IF('Ciencias de la Naturaleza'!AO10="","",'Ciencias de la Naturaleza'!AO10) ->  | AM9: =IF('Ciencias de la Naturaleza'!AP10="","",'Ciencias de la Naturaleza'!AP10) -> 
D10: Criterio Evaluación 2.5 | E10: =IF('Ciencias de la Naturaleza'!H11="","",'Ciencias de la Naturaleza'!H11) ->  | F10: =IF('Ciencias de la Naturaleza'!I11="","",'Ciencias de la Naturaleza'!I11) ->  | G10: =IF('Ciencias de la Naturaleza'!J11="","",'Ciencias de la Naturaleza'!J11) ->  | H10: =IF('Ciencias de la Naturaleza'!K11="","",'Ciencias de la Naturaleza'!K11) ->  | I10: =IF('Ciencias de la Naturaleza'!L11="","",'Ciencias de la Naturaleza'!L11) ->  | J10: =IF('Ciencias de la Naturaleza'!M11="","",'Ciencias de la Naturaleza'!M11) ->  | K10: =IF('Ciencias de la Naturaleza'!N11="","",'Ciencias de la Naturaleza'!N11) ->  | L10: =IF('Ciencias de la Naturaleza'!O11="","",'Ciencias de la Naturaleza'!O11) ->  | M10: =IF('Ciencias de la Naturaleza'!P11="","",'Ciencias de la Naturaleza'!P11) ->  | N10: =IF('Ciencias de la Naturaleza'!Q11="","",'Ciencias de la Naturaleza'!Q11) ->  | O10: =IF('Ciencias de la Naturaleza'!R11="","",'Ciencias de la Naturaleza'!R11) ->  | P10: =IF('Ciencias de la Naturaleza'!S11="","",'Ciencias de la Naturaleza'!S11) ->  | Q10: =IF('Ciencias de la Naturaleza'!T11="","",'Ciencias de la Naturaleza'!T11) ->  | R10: =IF('Ciencias de la Naturaleza'!U11="","",'Ciencias de la Naturaleza'!U11) ->  | S10: =IF('Ciencias de la Naturaleza'!V11="","",'Ciencias de la Naturaleza'!V11) ->  | T10: =IF('Ciencias de la Naturaleza'!W11="","",'Ciencias de la Naturaleza'!W11) ->  | U10: =IF('Ciencias de la Naturaleza'!X11="","",'Ciencias de la Naturaleza'!X11) ->  | V10: =IF('Ciencias de la Naturaleza'!Y11="","",'Ciencias de la Naturaleza'!Y11) ->  | W10: =IF('Ciencias de la Naturaleza'!Z11="","",'Ciencias de la Naturaleza'!Z11) ->  | X10: =IF('Ciencias de la Naturaleza'!AA11="","",'Ciencias de la Naturaleza'!AA11) ->  | Y10: =IF('Ciencias de la Naturaleza'!AB11="","",'Ciencias de la Naturaleza'!AB11) ->  | Z10: =IF('Ciencias de la Naturaleza'!AC11="","",'Ciencias de la Naturaleza'!AC11) ->  | AA10: =IF('Ciencias de la Naturaleza'!AD11="","",'Ciencias de la Naturaleza'!AD11) ->  | AB10: =IF('Ciencias de la Naturaleza'!AE11="","",'Ciencias de la Naturaleza'!AE11) ->  | AC10: =IF('Ciencias de la Naturaleza'!AF11="","",'Ciencias de la Naturaleza'!AF11) ->  | AD10: =IF('Ciencias de la Naturaleza'!AG11="","",'Ciencias de la Naturaleza'!AG11) ->  | AE10: =IF('Ciencias de la Naturaleza'!AH11="","",'Ciencias de la Naturaleza'!AH11) ->  | AF10: =IF('Ciencias de la Naturaleza'!AI11="","",'Ciencias de la Naturaleza'!AI11) ->  | AG10: =IF('Ciencias de la Naturaleza'!AJ11="","",'Ciencias de la Naturaleza'!AJ11) ->  | AH10: =IF('Ciencias de la Naturaleza'!AK11="","",'Ciencias de la Naturaleza'!AK11) ->  | AI10: =IF('Ciencias de la Naturaleza'!AL11="","",'Ciencias de la Naturaleza'!AL11) ->  | AJ10: =IF('Ciencias de la Naturaleza'!AM11="","",'Ciencias de la Naturaleza'!AM11) ->  | AK10: =IF('Ciencias de la Naturaleza'!AN11="","",'Ciencias de la Naturaleza'!AN11) ->  | AL10: =IF('Ciencias de la Naturaleza'!AO11="","",'Ciencias de la Naturaleza'!AO11) ->  | AM10: =IF('Ciencias de la Naturaleza'!AP11="","",'Ciencias de la Naturaleza'!AP11) -> 
C11: Comp. Esp. 3 | D11: Criterio Evaluación 3.1 | E11: =IF('Ciencias de la Naturaleza'!H12="","",'Ciencias de la Naturaleza'!H12) ->  | F11: =IF('Ciencias de la Naturaleza'!I12="","",'Ciencias de la Naturaleza'!I12) ->  | G11: =IF('Ciencias de la Naturaleza'!J12="","",'Ciencias de la Naturaleza'!J12) ->  | H11: =IF('Ciencias de la Naturaleza'!K12="","",'Ciencias de la Naturaleza'!K12) ->  | I11: =IF('Ciencias de la Naturaleza'!L12="","",'Ciencias de la Naturaleza'!L12) ->  | J11: =IF('Ciencias de la Naturaleza'!M12="","",'Ciencias de la Naturaleza'!M12) ->  | K11: =IF('Ciencias de la Naturaleza'!N12="","",'Ciencias de la Naturaleza'!N12) ->  | L11: =IF('Ciencias de la Naturaleza'!O12="","",'Ciencias de la Naturaleza'!O12) ->  | M11: =IF('Ciencias de la Naturaleza'!P12="","",'Ciencias de la Naturaleza'!P12) ->  | N11: =IF('Ciencias de la Naturaleza'!Q12="","",'Ciencias de la Naturaleza'!Q12) ->  | O11: =IF('Ciencias de la Naturaleza'!R12="","",'Ciencias de la Naturaleza'!R12) ->  | P11: =IF('Ciencias de la Naturaleza'!S12="","",'Ciencias de la Naturaleza'!S12) ->  | Q11: =IF('Ciencias de la Naturaleza'!T12="","",'Ciencias de la Naturaleza'!T12) ->  | R11: =IF('Ciencias de la Naturaleza'!U12="","",'Ciencias de la Naturaleza'!U12) ->  | S11: =IF('Ciencias de la Naturaleza'!V12="","",'Ciencias de la Naturaleza'!V12) ->  | T11: =IF('Ciencias de la Naturaleza'!W12="","",'Ciencias de la Naturaleza'!W12) ->  | U11: =IF('Ciencias de la Naturaleza'!X12="","",'Ciencias de la Naturaleza'!X12) ->  | V11: =IF('Ciencias de la Naturaleza'!Y12="","",'Ciencias de la Naturaleza'!Y12) ->  | W11: =IF('Ciencias de la Naturaleza'!Z12="","",'Ciencias de la Naturaleza'!Z12) ->  | X11: =IF('Ciencias de la Naturaleza'!AA12="","",'Ciencias de la Naturaleza'!AA12) ->  | Y11: =IF('Ciencias de la Naturaleza'!AB12="","",'Ciencias de la Naturaleza'!AB12) ->  | Z11: =IF('Ciencias de la Naturaleza'!AC12="","",'Ciencias de la Naturaleza'!AC12) ->  | AA11: =IF('Ciencias de la Naturaleza'!AD12="","",'Ciencias de la Naturaleza'!AD12) ->  | AB11: =IF('Ciencias de la Naturaleza'!AE12="","",'Ciencias de la Naturaleza'!AE12) ->  | AC11: =IF('Ciencias de la Naturaleza'!AF12="","",'Ciencias de la Naturaleza'!AF12) ->  | AD11: =IF('Ciencias de la Naturaleza'!AG12="","",'Ciencias de la Naturaleza'!AG12) ->  | AE11: =IF('Ciencias de la Naturaleza'!AH12="","",'Ciencias de la Naturaleza'!AH12) ->  | AF11: =IF('Ciencias de la Naturaleza'!AI12="","",'Ciencias de la Naturaleza'!AI12) ->  | AG11: =IF('Ciencias de la Naturaleza'!AJ12="","",'Ciencias de la Naturaleza'!AJ12) ->  | AH11: =IF('Ciencias de la Naturaleza'!AK12="","",'Ciencias de la Naturaleza'!AK12) ->  | AI11: =IF('Ciencias de la Naturaleza'!AL12="","",'Ciencias de la Naturaleza'!AL12) ->  | AJ11: =IF('Ciencias de la Naturaleza'!AM12="","",'Ciencias de la Naturaleza'!AM12) ->  | AK11: =IF('Ciencias de la Naturaleza'!AN12="","",'Ciencias de la Naturaleza'!AN12) ->  | AL11: =IF('Ciencias de la Naturaleza'!AO12="","",'Ciencias de la Naturaleza'!AO12) ->  | AM11: =IF('Ciencias de la Naturaleza'!AP12="","",'Ciencias de la Naturaleza'!AP12) -> 
D12: Criterio Evaluación 3.2 | E12: =IF('Ciencias de la Naturaleza'!H13="","",'Ciencias de la Naturaleza'!H13) ->  | F12: =IF('Ciencias de la Naturaleza'!I13="","",'Ciencias de la Naturaleza'!I13) ->  | G12: =IF('Ciencias de la Naturaleza'!J13="","",'Ciencias de la Naturaleza'!J13) ->  | H12: =IF('Ciencias de la Naturaleza'!K13="","",'Ciencias de la Naturaleza'!K13) ->  | I12: =IF('Ciencias de la Naturaleza'!L13="","",'Ciencias de la Naturaleza'!L13) ->  | J12: =IF('Ciencias de la Naturaleza'!M13="","",'Ciencias de la Naturaleza'!M13) ->  | K12: =IF('Ciencias de la Naturaleza'!N13="","",'Ciencias de la Naturaleza'!N13) ->  | L12: =IF('Ciencias de la Naturaleza'!O13="","",'Ciencias de la Naturaleza'!O13) ->  | M12: =IF('Ciencias de la Naturaleza'!P13="","",'Ciencias de la Naturaleza'!P13) ->  | N12: =IF('Ciencias de la Naturaleza'!Q13="","",'Ciencias de la Naturaleza'!Q13) ->  | O12: =IF('Ciencias de la Naturaleza'!R13="","",'Ciencias de la Naturaleza'!R13) ->  | P12: =IF('Ciencias de la Naturaleza'!S13="","",'Ciencias de la Naturaleza'!S13) ->  | Q12: =IF('Ciencias de la Naturaleza'!T13="","",'Ciencias de la Naturaleza'!T13) ->  | R12: =IF('Ciencias de la Naturaleza'!U13="","",'Ciencias de la Naturaleza'!U13) ->  | S12: =IF('Ciencias de la Naturaleza'!V13="","",'Ciencias de la Naturaleza'!V13) ->  | T12: =IF('Ciencias de la Naturaleza'!W13="","",'Ciencias de la Naturaleza'!W13) ->  | U12: =IF('Ciencias de la Naturaleza'!X13="","",'Ciencias de la Naturaleza'!X13) ->  | V12: =IF('Ciencias de la Naturaleza'!Y13="","",'Ciencias de la Naturaleza'!Y13) ->  | W12: =IF('Ciencias de la Naturaleza'!Z13="","",'Ciencias de la Naturaleza'!Z13) ->  | X12: =IF('Ciencias de la Naturaleza'!AA13="","",'Ciencias de la Naturaleza'!AA13) ->  | Y12: =IF('Ciencias de la Naturaleza'!AB13="","",'Ciencias de la Naturaleza'!AB13) ->  | Z12: =IF('Ciencias de la Naturaleza'!AC13="","",'Ciencias de la Naturaleza'!AC13) ->  | AA12: =IF('Ciencias de la Naturaleza'!AD13="","",'Ciencias de la Naturaleza'!AD13) ->  | AB12: =IF('Ciencias de la Naturaleza'!AE13="","",'Ciencias de la Naturaleza'!AE13) ->  | AC12: =IF('Ciencias de la Naturaleza'!AF13="","",'Ciencias de la Naturaleza'!AF13) ->  | AD12: =IF('Ciencias de la Naturaleza'!AG13="","",'Ciencias de la Naturaleza'!AG13) ->  | AE12: =IF('Ciencias de la Naturaleza'!AH13="","",'Ciencias de la Naturaleza'!AH13) ->  | AF12: =IF('Ciencias de la Naturaleza'!AI13="","",'Ciencias de la Naturaleza'!AI13) ->  | AG12: =IF('Ciencias de la Naturaleza'!AJ13="","",'Ciencias de la Naturaleza'!AJ13) ->  | AH12: =IF('Ciencias de la Naturaleza'!AK13="","",'Ciencias de la Naturaleza'!AK13) ->  | AI12: =IF('Ciencias de la Naturaleza'!AL13="","",'Ciencias de la Naturaleza'!AL13) ->  | AJ12: =IF('Ciencias de la Naturaleza'!AM13="","",'Ciencias de la Naturaleza'!AM13) ->  | AK12: =IF('Ciencias de la Naturaleza'!AN13="","",'Ciencias de la Naturaleza'!AN13) ->  | AL12: =IF('Ciencias de la Naturaleza'!AO13="","",'Ciencias de la Naturaleza'!AO13) ->  | AM12: =IF('Ciencias de la Naturaleza'!AP13="","",'Ciencias de la Naturaleza'!AP13) -> 
D13: Criterio Evaluación 3.3 | E13: =IF('Ciencias de la Naturaleza'!H14="","",'Ciencias de la Naturaleza'!H14) ->  | F13: =IF('Ciencias de la Naturaleza'!I14="","",'Ciencias de la Naturaleza'!I14) ->  | G13: =IF('Ciencias de la Naturaleza'!J14="","",'Ciencias de la Naturaleza'!J14) ->  | H13: =IF('Ciencias de la Naturaleza'!K14="","",'Ciencias de la Naturaleza'!K14) ->  | I13: =IF('Ciencias de la Naturaleza'!L14="","",'Ciencias de la Naturaleza'!L14) ->  | J13: =IF('Ciencias de la Naturaleza'!M14="","",'Ciencias de la Naturaleza'!M14) ->  | K13: =IF('Ciencias de la Naturaleza'!N14="","",'Ciencias de la Naturaleza'!N14) ->  | L13: =IF('Ciencias de la Naturaleza'!O14="","",'Ciencias de la Naturaleza'!O14) ->  | M13: =IF('Ciencias de la Naturaleza'!P14="","",'Ciencias de la Naturaleza'!P14) ->  | N13: =IF('Ciencias de la Naturaleza'!Q14="","",'Ciencias de la Naturaleza'!Q14) ->  | O13: =IF('Ciencias de la Naturaleza'!R14="","",'Ciencias de la Naturaleza'!R14) ->  | P13: =IF('Ciencias de la Naturaleza'!S14="","",'Ciencias de la Naturaleza'!S14) ->  | Q13: =IF('Ciencias de la Naturaleza'!T14="","",'Ciencias de la Naturaleza'!T14) ->  | R13: =IF('Ciencias de la Naturaleza'!U14="","",'Ciencias de la Naturaleza'!U14) ->  | S13: =IF('Ciencias de la Naturaleza'!V14="","",'Ciencias de la Naturaleza'!V14) ->  | T13: =IF('Ciencias de la Naturaleza'!W14="","",'Ciencias de la Naturaleza'!W14) ->  | U13: =IF('Ciencias de la Naturaleza'!X14="","",'Ciencias de la Naturaleza'!X14) ->  | V13: =IF('Ciencias de la Naturaleza'!Y14="","",'Ciencias de la Naturaleza'!Y14) ->  | W13: =IF('Ciencias de la Naturaleza'!Z14="","",'Ciencias de la Naturaleza'!Z14) ->  | X13: =IF('Ciencias de la Naturaleza'!AA14="","",'Ciencias de la Naturaleza'!AA14) ->  | Y13: =IF('Ciencias de la Naturaleza'!AB14="","",'Ciencias de la Naturaleza'!AB14) ->  | Z13: =IF('Ciencias de la Naturaleza'!AC14="","",'Ciencias de la Naturaleza'!AC14) ->  | AA13: =IF('Ciencias de la Naturaleza'!AD14="","",'Ciencias de la Naturaleza'!AD14) ->  | AB13: =IF('Ciencias de la Naturaleza'!AE14="","",'Ciencias de la Naturaleza'!AE14) ->  | AC13: =IF('Ciencias de la Naturaleza'!AF14="","",'Ciencias de la Naturaleza'!AF14) ->  | AD13: =IF('Ciencias de la Naturaleza'!AG14="","",'Ciencias de la Naturaleza'!AG14) ->  | AE13: =IF('Ciencias de la Naturaleza'!AH14="","",'Ciencias de la Naturaleza'!AH14) ->  | AF13: =IF('Ciencias de la Naturaleza'!AI14="","",'Ciencias de la Naturaleza'!AI14) ->  | AG13: =IF('Ciencias de la Naturaleza'!AJ14="","",'Ciencias de la Naturaleza'!AJ14) ->  | AH13: =IF('Ciencias de la Naturaleza'!AK14="","",'Ciencias de la Naturaleza'!AK14) ->  | AI13: =IF('Ciencias de la Naturaleza'!AL14="","",'Ciencias de la Naturaleza'!AL14) ->  | AJ13: =IF('Ciencias de la Naturaleza'!AM14="","",'Ciencias de la Naturaleza'!AM14) ->  | AK13: =IF('Ciencias de la Naturaleza'!AN14="","",'Ciencias de la Naturaleza'!AN14) ->  | AL13: =IF('Ciencias de la Naturaleza'!AO14="","",'Ciencias de la Naturaleza'!AO14) ->  | AM13: =IF('Ciencias de la Naturaleza'!AP14="","",'Ciencias de la Naturaleza'!AP14) -> 
C14: Comp. Esp. 4 | D14: Criterio Evaluación 4.1 | E14: =IF('Ciencias de la Naturaleza'!H15="","",'Ciencias de la Naturaleza'!H15) ->  | F14: =IF('Ciencias de la Naturaleza'!I15="","",'Ciencias de la Naturaleza'!I15) ->  | G14: =IF('Ciencias de la Naturaleza'!J15="","",'Ciencias de la Naturaleza'!J15) ->  | H14: =IF('Ciencias de la Naturaleza'!K15="","",'Ciencias de la Naturaleza'!K15) ->  | I14: =IF('Ciencias de la Naturaleza'!L15="","",'Ciencias de la Naturaleza'!L15) ->  | J14: =IF('Ciencias de la Naturaleza'!M15="","",'Ciencias de la Naturaleza'!M15) ->  | K14: =IF('Ciencias de la Naturaleza'!N15="","",'Ciencias de la Naturaleza'!N15) ->  | L14: =IF('Ciencias de la Naturaleza'!O15="","",'Ciencias de la Naturaleza'!O15) ->  | M14: =IF('Ciencias de la Naturaleza'!P15="","",'Ciencias de la Naturaleza'!P15) ->  | N14: =IF('Ciencias de la Naturaleza'!Q15="","",'Ciencias de la Naturaleza'!Q15) ->  | O14: =IF('Ciencias de la Naturaleza'!R15="","",'Ciencias de la Naturaleza'!R15) ->  | P14: =IF('Ciencias de la Naturaleza'!S15="","",'Ciencias de la Naturaleza'!S15) ->  | Q14: =IF('Ciencias de la Naturaleza'!T15="","",'Ciencias de la Naturaleza'!T15) ->  | R14: =IF('Ciencias de la Naturaleza'!U15="","",'Ciencias de la Naturaleza'!U15) ->  | S14: =IF('Ciencias de la Naturaleza'!V15="","",'Ciencias de la Naturaleza'!V15) ->  | T14: =IF('Ciencias de la Naturaleza'!W15="","",'Ciencias de la Naturaleza'!W15) ->  | U14: =IF('Ciencias de la Naturaleza'!X15="","",'Ciencias de la Naturaleza'!X15) ->  | V14: =IF('Ciencias de la Naturaleza'!Y15="","",'Ciencias de la Naturaleza'!Y15) ->  | W14: =IF('Ciencias de la Naturaleza'!Z15="","",'Ciencias de la Naturaleza'!Z15) ->  | X14: =IF('Ciencias de la Naturaleza'!AA15="","",'Ciencias de la Naturaleza'!AA15) ->  | Y14: =IF('Ciencias de la Naturaleza'!AB15="","",'Ciencias de la Naturaleza'!AB15) ->  | Z14: =IF('Ciencias de la Naturaleza'!AC15="","",'Ciencias de la Naturaleza'!AC15) ->  | AA14: =IF('Ciencias de la Naturaleza'!AD15="","",'Ciencias de la Naturaleza'!AD15) ->  | AB14: =IF('Ciencias de la Naturaleza'!AE15="","",'Ciencias de la Naturaleza'!AE15) ->  | AC14: =IF('Ciencias de la Naturaleza'!AF15="","",'Ciencias de la Naturaleza'!AF15) ->  | AD14: =IF('Ciencias de la Naturaleza'!AG15="","",'Ciencias de la Naturaleza'!AG15) ->  | AE14: =IF('Ciencias de la Naturaleza'!AH15="","",'Ciencias de la Naturaleza'!AH15) ->  | AF14: =IF('Ciencias de la Naturaleza'!AI15="","",'Ciencias de la Naturaleza'!AI15) ->  | AG14: =IF('Ciencias de la Naturaleza'!AJ15="","",'Ciencias de la Naturaleza'!AJ15) ->  | AH14: =IF('Ciencias de la Naturaleza'!AK15="","",'Ciencias de la Naturaleza'!AK15) ->  | AI14: =IF('Ciencias de la Naturaleza'!AL15="","",'Ciencias de la Naturaleza'!AL15) ->  | AJ14: =IF('Ciencias de la Naturaleza'!AM15="","",'Ciencias de la Naturaleza'!AM15) ->  | AK14: =IF('Ciencias de la Naturaleza'!AN15="","",'Ciencias de la Naturaleza'!AN15) ->  | AL14: =IF('Ciencias de la Naturaleza'!AO15="","",'Ciencias de la Naturaleza'!AO15) ->  | AM14: =IF('Ciencias de la Naturaleza'!AP15="","",'Ciencias de la Naturaleza'!AP15) -> 
D15: Criterio Evaluación 4.2 | E15: =IF('Ciencias de la Naturaleza'!H16="","",'Ciencias de la Naturaleza'!H16) ->  | F15: =IF('Ciencias de la Naturaleza'!I16="","",'Ciencias de la Naturaleza'!I16) ->  | G15: =IF('Ciencias de la Naturaleza'!J16="","",'Ciencias de la Naturaleza'!J16) ->  | H15: =IF('Ciencias de la Naturaleza'!K16="","",'Ciencias de la Naturaleza'!K16) ->  | I15: =IF('Ciencias de la Naturaleza'!L16="","",'Ciencias de la Naturaleza'!L16) ->  | J15: =IF('Ciencias de la Naturaleza'!M16="","",'Ciencias de la Naturaleza'!M16) ->  | K15: =IF('Ciencias de la Naturaleza'!N16="","",'Ciencias de la Naturaleza'!N16) ->  | L15: =IF('Ciencias de la Naturaleza'!O16="","",'Ciencias de la Naturaleza'!O16) ->  | M15: =IF('Ciencias de la Naturaleza'!P16="","",'Ciencias de la Naturaleza'!P16) ->  | N15: =IF('Ciencias de la Naturaleza'!Q16="","",'Ciencias de la Naturaleza'!Q16) ->  | O15: =IF('Ciencias de la Naturaleza'!R16="","",'Ciencias de la Naturaleza'!R16) ->  | P15: =IF('Ciencias de la Naturaleza'!S16="","",'Ciencias de la Naturaleza'!S16) ->  | Q15: =IF('Ciencias de la Naturaleza'!T16="","",'Ciencias de la Naturaleza'!T16) ->  | R15: =IF('Ciencias de la Naturaleza'!U16="","",'Ciencias de la Naturaleza'!U16) ->  | S15: =IF('Ciencias de la Naturaleza'!V16="","",'Ciencias de la Naturaleza'!V16) ->  | T15: =IF('Ciencias de la Naturaleza'!W16="","",'Ciencias de la Naturaleza'!W16) ->  | U15: =IF('Ciencias de la Naturaleza'!X16="","",'Ciencias de la Naturaleza'!X16) ->  | V15: =IF('Ciencias de la Naturaleza'!Y16="","",'Ciencias de la Naturaleza'!Y16) ->  | W15: =IF('Ciencias de la Naturaleza'!Z16="","",'Ciencias de la Naturaleza'!Z16) ->  | X15: =IF('Ciencias de la Naturaleza'!AA16="","",'Ciencias de la Naturaleza'!AA16) ->  | Y15: =IF('Ciencias de la Naturaleza'!AB16="","",'Ciencias de la Naturaleza'!AB16) ->  | Z15: =IF('Ciencias de la Naturaleza'!AC16="","",'Ciencias de la Naturaleza'!AC16) ->  | AA15: =IF('Ciencias de la Naturaleza'!AD16="","",'Ciencias de la Naturaleza'!AD16) ->  | AB15: =IF('Ciencias de la Naturaleza'!AE16="","",'Ciencias de la Naturaleza'!AE16) ->  | AC15: =IF('Ciencias de la Naturaleza'!AF16="","",'Ciencias de la Naturaleza'!AF16) ->  | AD15: =IF('Ciencias de la Naturaleza'!AG16="","",'Ciencias de la Naturaleza'!AG16) ->  | AE15: =IF('Ciencias de la Naturaleza'!AH16="","",'Ciencias de la Naturaleza'!AH16) ->  | AF15: =IF('Ciencias de la Naturaleza'!AI16="","",'Ciencias de la Naturaleza'!AI16) ->  | AG15: =IF('Ciencias de la Naturaleza'!AJ16="","",'Ciencias de la Naturaleza'!AJ16) ->  | AH15: =IF('Ciencias de la Naturaleza'!AK16="","",'Ciencias de la Naturaleza'!AK16) ->  | AI15: =IF('Ciencias de la Naturaleza'!AL16="","",'Ciencias de la Naturaleza'!AL16) ->  | AJ15: =IF('Ciencias de la Naturaleza'!AM16="","",'Ciencias de la Naturaleza'!AM16) ->  | AK15: =IF('Ciencias de la Naturaleza'!AN16="","",'Ciencias de la Naturaleza'!AN16) ->  | AL15: =IF('Ciencias de la Naturaleza'!AO16="","",'Ciencias de la Naturaleza'!AO16) ->  | AM15: =IF('Ciencias de la Naturaleza'!AP16="","",'Ciencias de la Naturaleza'!AP16) -> 
C16: Comp. Esp. 5 | D16: Criterio Evaluación 5.1 | E16: =IF('Ciencias de la Naturaleza'!H17="","",'Ciencias de la Naturaleza'!H17) ->  | F16: =IF('Ciencias de la Naturaleza'!I17="","",'Ciencias de la Naturaleza'!I17) ->  | G16: =IF('Ciencias de la Naturaleza'!J17="","",'Ciencias de la Naturaleza'!J17) ->  | H16: =IF('Ciencias de la Naturaleza'!K17="","",'Ciencias de la Naturaleza'!K17) ->  | I16: =IF('Ciencias de la Naturaleza'!L17="","",'Ciencias de la Naturaleza'!L17) ->  | J16: =IF('Ciencias de la Naturaleza'!M17="","",'Ciencias de la Naturaleza'!M17) ->  | K16: =IF('Ciencias de la Naturaleza'!N17="","",'Ciencias de la Naturaleza'!N17) ->  | L16: =IF('Ciencias de la Naturaleza'!O17="","",'Ciencias de la Naturaleza'!O17) ->  | M16: =IF('Ciencias de la Naturaleza'!P17="","",'Ciencias de la Naturaleza'!P17) ->  | N16: =IF('Ciencias de la Naturaleza'!Q17="","",'Ciencias de la Naturaleza'!Q17) ->  | O16: =IF('Ciencias de la Naturaleza'!R17="","",'Ciencias de la Naturaleza'!R17) ->  | P16: =IF('Ciencias de la Naturaleza'!S17="","",'Ciencias de la Naturaleza'!S17) ->  | Q16: =IF('Ciencias de la Naturaleza'!T17="","",'Ciencias de la Naturaleza'!T17) ->  | R16: =IF('Ciencias de la Naturaleza'!U17="","",'Ciencias de la Naturaleza'!U17) ->  | S16: =IF('Ciencias de la Naturaleza'!V17="","",'Ciencias de la Naturaleza'!V17) ->  | T16: =IF('Ciencias de la Naturaleza'!W17="","",'Ciencias de la Naturaleza'!W17) ->  | U16: =IF('Ciencias de la Naturaleza'!X17="","",'Ciencias de la Naturaleza'!X17) ->  | V16: =IF('Ciencias de la Naturaleza'!Y17="","",'Ciencias de la Naturaleza'!Y17) ->  | W16: =IF('Ciencias de la Naturaleza'!Z17="","",'Ciencias de la Naturaleza'!Z17) ->  | X16: =IF('Ciencias de la Naturaleza'!AA17="","",'Ciencias de la Naturaleza'!AA17) ->  | Y16: =IF('Ciencias de la Naturaleza'!AB17="","",'Ciencias de la Naturaleza'!AB17) ->  | Z16: =IF('Ciencias de la Naturaleza'!AC17="","",'Ciencias de la Naturaleza'!AC17) ->  | AA16: =IF('Ciencias de la Naturaleza'!AD17="","",'Ciencias de la Naturaleza'!AD17) ->  | AB16: =IF('Ciencias de la Naturaleza'!AE17="","",'Ciencias de la Naturaleza'!AE17) ->  | AC16: =IF('Ciencias de la Naturaleza'!AF17="","",'Ciencias de la Naturaleza'!AF17) ->  | AD16: =IF('Ciencias de la Naturaleza'!AG17="","",'Ciencias de la Naturaleza'!AG17) ->  | AE16: =IF('Ciencias de la Naturaleza'!AH17="","",'Ciencias de la Naturaleza'!AH17) ->  | AF16: =IF('Ciencias de la Naturaleza'!AI17="","",'Ciencias de la Naturaleza'!AI17) ->  | AG16: =IF('Ciencias de la Naturaleza'!AJ17="","",'Ciencias de la Naturaleza'!AJ17) ->  | AH16: =IF('Ciencias de la Naturaleza'!AK17="","",'Ciencias de la Naturaleza'!AK17) ->  | AI16: =IF('Ciencias de la Naturaleza'!AL17="","",'Ciencias de la Naturaleza'!AL17) ->  | AJ16: =IF('Ciencias de la Naturaleza'!AM17="","",'Ciencias de la Naturaleza'!AM17) ->  | AK16: =IF('Ciencias de la Naturaleza'!AN17="","",'Ciencias de la Naturaleza'!AN17) ->  | AL16: =IF('Ciencias de la Naturaleza'!AO17="","",'Ciencias de la Naturaleza'!AO17) ->  | AM16: =IF('Ciencias de la Naturaleza'!AP17="","",'Ciencias de la Naturaleza'!AP17) -> 
D17: Criterio Evaluación 5.2 | E17: =IF('Ciencias de la Naturaleza'!H18="","",'Ciencias de la Naturaleza'!H18) ->  | F17: =IF('Ciencias de la Naturaleza'!I18="","",'Ciencias de la Naturaleza'!I18) ->  | G17: =IF('Ciencias de la Naturaleza'!J18="","",'Ciencias de la Naturaleza'!J18) ->  | H17: =IF('Ciencias de la Naturaleza'!K18="","",'Ciencias de la Naturaleza'!K18) ->  | I17: =IF('Ciencias de la Naturaleza'!L18="","",'Ciencias de la Naturaleza'!L18) ->  | J17: =IF('Ciencias de la Naturaleza'!M18="","",'Ciencias de la Naturaleza'!M18) ->  | K17: =IF('Ciencias de la Naturaleza'!N18="","",'Ciencias de la Naturaleza'!N18) ->  | L17: =IF('Ciencias de la Naturaleza'!O18="","",'Ciencias de la Naturaleza'!O18) ->  | M17: =IF('Ciencias de la Naturaleza'!P18="","",'Ciencias de la Naturaleza'!P18) ->  | N17: =IF('Ciencias de la Naturaleza'!Q18="","",'Ciencias de la Naturaleza'!Q18) ->  | O17: =IF('Ciencias de la Naturaleza'!R18="","",'Ciencias de la Naturaleza'!R18) ->  | P17: =IF('Ciencias de la Naturaleza'!S18="","",'Ciencias de la Naturaleza'!S18) ->  | Q17: =IF('Ciencias de la Naturaleza'!T18="","",'Ciencias de la Naturaleza'!T18) ->  | R17: =IF('Ciencias de la Naturaleza'!U18="","",'Ciencias de la Naturaleza'!U18) ->  | S17: =IF('Ciencias de la Naturaleza'!V18="","",'Ciencias de la Naturaleza'!V18) ->  | T17: =IF('Ciencias de la Naturaleza'!W18="","",'Ciencias de la Naturaleza'!W18) ->  | U17: =IF('Ciencias de la Naturaleza'!X18="","",'Ciencias de la Naturaleza'!X18) ->  | V17: =IF('Ciencias de la Naturaleza'!Y18="","",'Ciencias de la Naturaleza'!Y18) ->  | W17: =IF('Ciencias de la Naturaleza'!Z18="","",'Ciencias de la Naturaleza'!Z18) ->  | X17: =IF('Ciencias de la Naturaleza'!AA18="","",'Ciencias de la Naturaleza'!AA18) ->  | Y17: =IF('Ciencias de la Naturaleza'!AB18="","",'Ciencias de la Naturaleza'!AB18) ->  | Z17: =IF('Ciencias de la Naturaleza'!AC18="","",'Ciencias de la Naturaleza'!AC18) ->  | AA17: =IF('Ciencias de la Naturaleza'!AD18="","",'Ciencias de la Naturaleza'!AD18) ->  | AB17: =IF('Ciencias de la Naturaleza'!AE18="","",'Ciencias de la Naturaleza'!AE18) ->  | AC17: =IF('Ciencias de la Naturaleza'!AF18="","",'Ciencias de la Naturaleza'!AF18) ->  | AD17: =IF('Ciencias de la Naturaleza'!AG18="","",'Ciencias de la Naturaleza'!AG18) ->  | AE17: =IF('Ciencias de la Naturaleza'!AH18="","",'Ciencias de la Naturaleza'!AH18) ->  | AF17: =IF('Ciencias de la Naturaleza'!AI18="","",'Ciencias de la Naturaleza'!AI18) ->  | AG17: =IF('Ciencias de la Naturaleza'!AJ18="","",'Ciencias de la Naturaleza'!AJ18) ->  | AH17: =IF('Ciencias de la Naturaleza'!AK18="","",'Ciencias de la Naturaleza'!AK18) ->  | AI17: =IF('Ciencias de la Naturaleza'!AL18="","",'Ciencias de la Naturaleza'!AL18) ->  | AJ17: =IF('Ciencias de la Naturaleza'!AM18="","",'Ciencias de la Naturaleza'!AM18) ->  | AK17: =IF('Ciencias de la Naturaleza'!AN18="","",'Ciencias de la Naturaleza'!AN18) ->  | AL17: =IF('Ciencias de la Naturaleza'!AO18="","",'Ciencias de la Naturaleza'!AO18) ->  | AM17: =IF('Ciencias de la Naturaleza'!AP18="","",'Ciencias de la Naturaleza'!AP18) -> 
D18: Criterio Evaluación 5.3 | E18: =IF('Ciencias de la Naturaleza'!H19="","",'Ciencias de la Naturaleza'!H19) ->  | F18: =IF('Ciencias de la Naturaleza'!I19="","",'Ciencias de la Naturaleza'!I19) ->  | G18: =IF('Ciencias de la Naturaleza'!J19="","",'Ciencias de la Naturaleza'!J19) ->  | H18: =IF('Ciencias de la Naturaleza'!K19="","",'Ciencias de la Naturaleza'!K19) ->  | I18: =IF('Ciencias de la Naturaleza'!L19="","",'Ciencias de la Naturaleza'!L19) ->  | J18: =IF('Ciencias de la Naturaleza'!M19="","",'Ciencias de la Naturaleza'!M19) ->  | K18: =IF('Ciencias de la Naturaleza'!N19="","",'Ciencias de la Naturaleza'!N19) ->  | L18: =IF('Ciencias de la Naturaleza'!O19="","",'Ciencias de la Naturaleza'!O19) ->  | M18: =IF('Ciencias de la Naturaleza'!P19="","",'Ciencias de la Naturaleza'!P19) ->  | N18: =IF('Ciencias de la Naturaleza'!Q19="","",'Ciencias de la Naturaleza'!Q19) ->  | O18: =IF('Ciencias de la Naturaleza'!R19="","",'Ciencias de la Naturaleza'!R19) ->  | P18: =IF('Ciencias de la Naturaleza'!S19="","",'Ciencias de la Naturaleza'!S19) ->  | Q18: =IF('Ciencias de la Naturaleza'!T19="","",'Ciencias de la Naturaleza'!T19) ->  | R18: =IF('Ciencias de la Naturaleza'!U19="","",'Ciencias de la Naturaleza'!U19) ->  | S18: =IF('Ciencias de la Naturaleza'!V19="","",'Ciencias de la Naturaleza'!V19) ->  | T18: =IF('Ciencias de la Naturaleza'!W19="","",'Ciencias de la Naturaleza'!W19) ->  | U18: =IF('Ciencias de la Naturaleza'!X19="","",'Ciencias de la Naturaleza'!X19) ->  | V18: =IF('Ciencias de la Naturaleza'!Y19="","",'Ciencias de la Naturaleza'!Y19) ->  | W18: =IF('Ciencias de la Naturaleza'!Z19="","",'Ciencias de la Naturaleza'!Z19) ->  | X18: =IF('Ciencias de la Naturaleza'!AA19="","",'Ciencias de la Naturaleza'!AA19) ->  | Y18: =IF('Ciencias de la Naturaleza'!AB19="","",'Ciencias de la Naturaleza'!AB19) ->  | Z18: =IF('Ciencias de la Naturaleza'!AC19="","",'Ciencias de la Naturaleza'!AC19) ->  | AA18: =IF('Ciencias de la Naturaleza'!AD19="","",'Ciencias de la Naturaleza'!AD19) ->  | AB18: =IF('Ciencias de la Naturaleza'!AE19="","",'Ciencias de la Naturaleza'!AE19) ->  | AC18: =IF('Ciencias de la Naturaleza'!AF19="","",'Ciencias de la Naturaleza'!AF19) ->  | AD18: =IF('Ciencias de la Naturaleza'!AG19="","",'Ciencias de la Naturaleza'!AG19) ->  | AE18: =IF('Ciencias de la Naturaleza'!AH19="","",'Ciencias de la Naturaleza'!AH19) ->  | AF18: =IF('Ciencias de la Naturaleza'!AI19="","",'Ciencias de la Naturaleza'!AI19) ->  | AG18: =IF('Ciencias de la Naturaleza'!AJ19="","",'Ciencias de la Naturaleza'!AJ19) ->  | AH18: =IF('Ciencias de la Naturaleza'!AK19="","",'Ciencias de la Naturaleza'!AK19) ->  | AI18: =IF('Ciencias de la Naturaleza'!AL19="","",'Ciencias de la Naturaleza'!AL19) ->  | AJ18: =IF('Ciencias de la Naturaleza'!AM19="","",'Ciencias de la Naturaleza'!AM19) ->  | AK18: =IF('Ciencias de la Naturaleza'!AN19="","",'Ciencias de la Naturaleza'!AN19) ->  | AL18: =IF('Ciencias de la Naturaleza'!AO19="","",'Ciencias de la Naturaleza'!AO19) ->  | AM18: =IF('Ciencias de la Naturaleza'!AP19="","",'Ciencias de la Naturaleza'!AP19) -> 
C19: Comp. Esp. 6 | D19: Criterio Evaluación 6.1 | E19: =IF('Ciencias de la Naturaleza'!H20="","",'Ciencias de la Naturaleza'!H20) ->  | F19: =IF('Ciencias de la Naturaleza'!I20="","",'Ciencias de la Naturaleza'!I20) ->  | G19: =IF('Ciencias de la Naturaleza'!J20="","",'Ciencias de la Naturaleza'!J20) ->  | H19: =IF('Ciencias de la Naturaleza'!K20="","",'Ciencias de la Naturaleza'!K20) ->  | I19: =IF('Ciencias de la Naturaleza'!L20="","",'Ciencias de la Naturaleza'!L20) ->  | J19: =IF('Ciencias de la Naturaleza'!M20="","",'Ciencias de la Naturaleza'!M20) ->  | K19: =IF('Ciencias de la Naturaleza'!N20="","",'Ciencias de la Naturaleza'!N20) ->  | L19: =IF('Ciencias de la Naturaleza'!O20="","",'Ciencias de la Naturaleza'!O20) ->  | M19: =IF('Ciencias de la Naturaleza'!P20="","",'Ciencias de la Naturaleza'!P20) ->  | N19: =IF('Ciencias de la Naturaleza'!Q20="","",'Ciencias de la Naturaleza'!Q20) ->  | O19: =IF('Ciencias de la Naturaleza'!R20="","",'Ciencias de la Naturaleza'!R20) ->  | P19: =IF('Ciencias de la Naturaleza'!S20="","",'Ciencias de la Naturaleza'!S20) ->  | Q19: =IF('Ciencias de la Naturaleza'!T20="","",'Ciencias de la Naturaleza'!T20) ->  | R19: =IF('Ciencias de la Naturaleza'!U20="","",'Ciencias de la Naturaleza'!U20) ->  | S19: =IF('Ciencias de la Naturaleza'!V20="","",'Ciencias de la Naturaleza'!V20) ->  | T19: =IF('Ciencias de la Naturaleza'!W20="","",'Ciencias de la Naturaleza'!W20) ->  | U19: =IF('Ciencias de la Naturaleza'!X20="","",'Ciencias de la Naturaleza'!X20) ->  | V19: =IF('Ciencias de la Naturaleza'!Y20="","",'Ciencias de la Naturaleza'!Y20) ->  | W19: =IF('Ciencias de la Naturaleza'!Z20="","",'Ciencias de la Naturaleza'!Z20) ->  | X19: =IF('Ciencias de la Naturaleza'!AA20="","",'Ciencias de la Naturaleza'!AA20) ->  | Y19: =IF('Ciencias de la Naturaleza'!AB20="","",'Ciencias de la Naturaleza'!AB20) ->  | Z19: =IF('Ciencias de la Naturaleza'!AC20="","",'Ciencias de la Naturaleza'!AC20) ->  | AA19: =IF('Ciencias de la Naturaleza'!AD20="","",'Ciencias de la Naturaleza'!AD20) ->  | AB19: =IF('Ciencias de la Naturaleza'!AE20="","",'Ciencias de la Naturaleza'!AE20) ->  | AC19: =IF('Ciencias de la Naturaleza'!AF20="","",'Ciencias de la Naturaleza'!AF20) ->  | AD19: =IF('Ciencias de la Naturaleza'!AG20="","",'Ciencias de la Naturaleza'!AG20) ->  | AE19: =IF('Ciencias de la Naturaleza'!AH20="","",'Ciencias de la Naturaleza'!AH20) ->  | AF19: =IF('Ciencias de la Naturaleza'!AI20="","",'Ciencias de la Naturaleza'!AI20) ->  | AG19: =IF('Ciencias de la Naturaleza'!AJ20="","",'Ciencias de la Naturaleza'!AJ20) ->  | AH19: =IF('Ciencias de la Naturaleza'!AK20="","",'Ciencias de la Naturaleza'!AK20) ->  | AI19: =IF('Ciencias de la Naturaleza'!AL20="","",'Ciencias de la Naturaleza'!AL20) ->  | AJ19: =IF('Ciencias de la Naturaleza'!AM20="","",'Ciencias de la Naturaleza'!AM20) ->  | AK19: =IF('Ciencias de la Naturaleza'!AN20="","",'Ciencias de la Naturaleza'!AN20) ->  | AL19: =IF('Ciencias de la Naturaleza'!AO20="","",'Ciencias de la Naturaleza'!AO20) ->  | AM19: =IF('Ciencias de la Naturaleza'!AP20="","",'Ciencias de la Naturaleza'!AP20) -> 
D20: Criterio Evaluación 6.2 | E20: =IF('Ciencias de la Naturaleza'!H21="","",'Ciencias de la Naturaleza'!H21) ->  | F20: =IF('Ciencias de la Naturaleza'!I21="","",'Ciencias de la Naturaleza'!I21) ->  | G20: =IF('Ciencias de la Naturaleza'!J21="","",'Ciencias de la Naturaleza'!J21) ->  | H20: =IF('Ciencias de la Naturaleza'!K21="","",'Ciencias de la Naturaleza'!K21) ->  | I20: =IF('Ciencias de la Naturaleza'!L21="","",'Ciencias de la Naturaleza'!L21) ->  | J20: =IF('Ciencias de la Naturaleza'!M21="","",'Ciencias de la Naturaleza'!M21) ->  | K20: =IF('Ciencias de la Naturaleza'!N21="","",'Ciencias de la Naturaleza'!N21) ->  | L20: =IF('Ciencias de la Naturaleza'!O21="","",'Ciencias de la Naturaleza'!O21) ->  | M20: =IF('Ciencias de la Naturaleza'!P21="","",'Ciencias de la Naturaleza'!P21) ->  | N20: =IF('Ciencias de la Naturaleza'!Q21="","",'Ciencias de la Naturaleza'!Q21) ->  | O20: =IF('Ciencias de la Naturaleza'!R21="","",'Ciencias de la Naturaleza'!R21) ->  | P20: =IF('Ciencias de la Naturaleza'!S21="","",'Ciencias de la Naturaleza'!S21) ->  | Q20: =IF('Ciencias de la Naturaleza'!T21="","",'Ciencias de la Naturaleza'!T21) ->  | R20: =IF('Ciencias de la Naturaleza'!U21="","",'Ciencias de la Naturaleza'!U21) ->  | S20: =IF('Ciencias de la Naturaleza'!V21="","",'Ciencias de la Naturaleza'!V21) ->  | T20: =IF('Ciencias de la Naturaleza'!W21="","",'Ciencias de la Naturaleza'!W21) ->  | U20: =IF('Ciencias de la Naturaleza'!X21="","",'Ciencias de la Naturaleza'!X21) ->  | V20: =IF('Ciencias de la Naturaleza'!Y21="","",'Ciencias de la Naturaleza'!Y21) ->  | W20: =IF('Ciencias de la Naturaleza'!Z21="","",'Ciencias de la Naturaleza'!Z21) ->  | X20: =IF('Ciencias de la Naturaleza'!AA21="","",'Ciencias de la Naturaleza'!AA21) ->  | Y20: =IF('Ciencias de la Naturaleza'!AB21="","",'Ciencias de la Naturaleza'!AB21) ->  | Z20: =IF('Ciencias de la Naturaleza'!AC21="","",'Ciencias de la Naturaleza'!AC21) ->  | AA20: =IF('Ciencias de la Naturaleza'!AD21="","",'Ciencias de la Naturaleza'!AD21) ->  | AB20: =IF('Ciencias de la Naturaleza'!AE21="","",'Ciencias de la Naturaleza'!AE21) ->  | AC20: =IF('Ciencias de la Naturaleza'!AF21="","",'Ciencias de la Naturaleza'!AF21) ->  | AD20: =IF('Ciencias de la Naturaleza'!AG21="","",'Ciencias de la Naturaleza'!AG21) ->  | AE20: =IF('Ciencias de la Naturaleza'!AH21="","",'Ciencias de la Naturaleza'!AH21) ->  | AF20: =IF('Ciencias de la Naturaleza'!AI21="","",'Ciencias de la Naturaleza'!AI21) ->  | AG20: =IF('Ciencias de la Naturaleza'!AJ21="","",'Ciencias de la Naturaleza'!AJ21) ->  | AH20: =IF('Ciencias de la Naturaleza'!AK21="","",'Ciencias de la Naturaleza'!AK21) ->  | AI20: =IF('Ciencias de la Naturaleza'!AL21="","",'Ciencias de la Naturaleza'!AL21) ->  | AJ20: =IF('Ciencias de la Naturaleza'!AM21="","",'Ciencias de la Naturaleza'!AM21) ->  | AK20: =IF('Ciencias de la Naturaleza'!AN21="","",'Ciencias de la Naturaleza'!AN21) ->  | AL20: =IF('Ciencias de la Naturaleza'!AO21="","",'Ciencias de la Naturaleza'!AO21) ->  | AM20: =IF('Ciencias de la Naturaleza'!AP21="","",'Ciencias de la Naturaleza'!AP21) -> 
B21: Ciencias Sociales | C21: Comp. Esp. 1 | D21: Criterio Evaluación 1.1 | E21: =IF('Ciencias Sociales'!H4="","",'Ciencias Sociales'!H4) ->  | F21: =IF('Ciencias Sociales'!I4="","",'Ciencias Sociales'!I4) ->  | G21: =IF('Ciencias Sociales'!J4="","",'Ciencias Sociales'!J4) ->  | H21: =IF('Ciencias Sociales'!K4="","",'Ciencias Sociales'!K4) ->  | I21: =IF('Ciencias Sociales'!L4="","",'Ciencias Sociales'!L4) ->  | J21: =IF('Ciencias Sociales'!M4="","",'Ciencias Sociales'!M4) ->  | K21: =IF('Ciencias Sociales'!N4="","",'Ciencias Sociales'!N4) ->  | L21: =IF('Ciencias Sociales'!O4="","",'Ciencias Sociales'!O4) ->  | M21: =IF('Ciencias Sociales'!P4="","",'Ciencias Sociales'!P4) ->  | N21: =IF('Ciencias Sociales'!Q4="","",'Ciencias Sociales'!Q4) ->  | O21: =IF('Ciencias Sociales'!R4="","",'Ciencias Sociales'!R4) ->  | P21: =IF('Ciencias Sociales'!S4="","",'Ciencias Sociales'!S4) ->  | Q21: =IF('Ciencias Sociales'!T4="","",'Ciencias Sociales'!T4) ->  | R21: =IF('Ciencias Sociales'!U4="","",'Ciencias Sociales'!U4) ->  | S21: =IF('Ciencias Sociales'!V4="","",'Ciencias Sociales'!V4) ->  | T21: =IF('Ciencias Sociales'!W4="","",'Ciencias Sociales'!W4) ->  | U21: =IF('Ciencias Sociales'!X4="","",'Ciencias Sociales'!X4) ->  | V21: =IF('Ciencias Sociales'!Y4="","",'Ciencias Sociales'!Y4) ->  | W21: =IF('Ciencias Sociales'!Z4="","",'Ciencias Sociales'!Z4) ->  | X21: =IF('Ciencias Sociales'!AA4="","",'Ciencias Sociales'!AA4) ->  | Y21: =IF('Ciencias Sociales'!AB4="","",'Ciencias Sociales'!AB4) ->  | Z21: =IF('Ciencias Sociales'!AC4="","",'Ciencias Sociales'!AC4) ->  | AA21: =IF('Ciencias Sociales'!AD4="","",'Ciencias Sociales'!AD4) ->  | AB21: =IF('Ciencias Sociales'!AE4="","",'Ciencias Sociales'!AE4) ->  | AC21: =IF('Ciencias Sociales'!AF4="","",'Ciencias Sociales'!AF4) ->  | AD21: =IF('Ciencias Sociales'!AG4="","",'Ciencias Sociales'!AG4) ->  | AE21: =IF('Ciencias Sociales'!AH4="","",'Ciencias Sociales'!AH4) ->  | AF21: =IF('Ciencias Sociales'!AI4="","",'Ciencias Sociales'!AI4) ->  | AG21: =IF('Ciencias Sociales'!AJ4="","",'Ciencias Sociales'!AJ4) ->  | AH21: =IF('Ciencias Sociales'!AK4="","",'Ciencias Sociales'!AK4) ->  | AI21: =IF('Ciencias Sociales'!AL4="","",'Ciencias Sociales'!AL4) ->  | AJ21: =IF('Ciencias Sociales'!AM4="","",'Ciencias Sociales'!AM4) ->  | AK21: =IF('Ciencias Sociales'!AN4="","",'Ciencias Sociales'!AN4) ->  | AL21: =IF('Ciencias Sociales'!AO4="","",'Ciencias Sociales'!AO4) ->  | AM21: =IF('Ciencias Sociales'!AP4="","",'Ciencias Sociales'!AP4) -> 
D22: Criterio Evaluación 1.2 | E22: =IF('Ciencias Sociales'!H5="","",'Ciencias Sociales'!H5) ->  | F22: =IF('Ciencias Sociales'!I5="","",'Ciencias Sociales'!I5) ->  | G22: =IF('Ciencias Sociales'!J5="","",'Ciencias Sociales'!J5) ->  | H22: =IF('Ciencias Sociales'!K5="","",'Ciencias Sociales'!K5) ->  | I22: =IF('Ciencias Sociales'!L5="","",'Ciencias Sociales'!L5) ->  | J22: =IF('Ciencias Sociales'!M5="","",'Ciencias Sociales'!M5) ->  | K22: =IF('Ciencias Sociales'!N5="","",'Ciencias Sociales'!N5) ->  | L22: =IF('Ciencias Sociales'!O5="","",'Ciencias Sociales'!O5) ->  | M22: =IF('Ciencias Sociales'!P5="","",'Ciencias Sociales'!P5) ->  | N22: =IF('Ciencias Sociales'!Q5="","",'Ciencias Sociales'!Q5) ->  | O22: =IF('Ciencias Sociales'!R5="","",'Ciencias Sociales'!R5) ->  | P22: =IF('Ciencias Sociales'!S5="","",'Ciencias Sociales'!S5) ->  | Q22: =IF('Ciencias Sociales'!T5="","",'Ciencias Sociales'!T5) ->  | R22: =IF('Ciencias Sociales'!U5="","",'Ciencias Sociales'!U5) ->  | S22: =IF('Ciencias Sociales'!V5="","",'Ciencias Sociales'!V5) ->  | T22: =IF('Ciencias Sociales'!W5="","",'Ciencias Sociales'!W5) ->  | U22: =IF('Ciencias Sociales'!X5="","",'Ciencias Sociales'!X5) ->  | V22: =IF('Ciencias Sociales'!Y5="","",'Ciencias Sociales'!Y5) ->  | W22: =IF('Ciencias Sociales'!Z5="","",'Ciencias Sociales'!Z5) ->  | X22: =IF('Ciencias Sociales'!AA5="","",'Ciencias Sociales'!AA5) ->  | Y22: =IF('Ciencias Sociales'!AB5="","",'Ciencias Sociales'!AB5) ->  | Z22: =IF('Ciencias Sociales'!AC5="","",'Ciencias Sociales'!AC5) ->  | AA22: =IF('Ciencias Sociales'!AD5="","",'Ciencias Sociales'!AD5) ->  | AB22: =IF('Ciencias Sociales'!AE5="","",'Ciencias Sociales'!AE5) ->  | AC22: =IF('Ciencias Sociales'!AF5="","",'Ciencias Sociales'!AF5) ->  | AD22: =IF('Ciencias Sociales'!AG5="","",'Ciencias Sociales'!AG5) ->  | AE22: =IF('Ciencias Sociales'!AH5="","",'Ciencias Sociales'!AH5) ->  | AF22: =IF('Ciencias Sociales'!AI5="","",'Ciencias Sociales'!AI5) ->  | AG22: =IF('Ciencias Sociales'!AJ5="","",'Ciencias Sociales'!AJ5) ->  | AH22: =IF('Ciencias Sociales'!AK5="","",'Ciencias Sociales'!AK5) ->  | AI22: =IF('Ciencias Sociales'!AL5="","",'Ciencias Sociales'!AL5) ->  | AJ22: =IF('Ciencias Sociales'!AM5="","",'Ciencias Sociales'!AM5) ->  | AK22: =IF('Ciencias Sociales'!AN5="","",'Ciencias Sociales'!AN5) ->  | AL22: =IF('Ciencias Sociales'!AO5="","",'Ciencias Sociales'!AO5) ->  | AM22: =IF('Ciencias Sociales'!AP5="","",'Ciencias Sociales'!AP5) -> 
D23: Criterio Evaluación 1.3 | E23: =IF('Ciencias Sociales'!H6="","",'Ciencias Sociales'!H6) ->  | F23: =IF('Ciencias Sociales'!I6="","",'Ciencias Sociales'!I6) ->  | G23: =IF('Ciencias Sociales'!J6="","",'Ciencias Sociales'!J6) ->  | H23: =IF('Ciencias Sociales'!K6="","",'Ciencias Sociales'!K6) ->  | I23: =IF('Ciencias Sociales'!L6="","",'Ciencias Sociales'!L6) ->  | J23: =IF('Ciencias Sociales'!M6="","",'Ciencias Sociales'!M6) ->  | K23: =IF('Ciencias Sociales'!N6="","",'Ciencias Sociales'!N6) ->  | L23: =IF('Ciencias Sociales'!O6="","",'Ciencias Sociales'!O6) ->  | M23: =IF('Ciencias Sociales'!P6="","",'Ciencias Sociales'!P6) ->  | N23: =IF('Ciencias Sociales'!Q6="","",'Ciencias Sociales'!Q6) ->  | O23: =IF('Ciencias Sociales'!R6="","",'Ciencias Sociales'!R6) ->  | P23: =IF('Ciencias Sociales'!S6="","",'Ciencias Sociales'!S6) ->  | Q23: =IF('Ciencias Sociales'!T6="","",'Ciencias Sociales'!T6) ->  | R23: =IF('Ciencias Sociales'!U6="","",'Ciencias Sociales'!U6) ->  | S23: =IF('Ciencias Sociales'!V6="","",'Ciencias Sociales'!V6) ->  | T23: =IF('Ciencias Sociales'!W6="","",'Ciencias Sociales'!W6) ->  | U23: =IF('Ciencias Sociales'!X6="","",'Ciencias Sociales'!X6) ->  | V23: =IF('Ciencias Sociales'!Y6="","",'Ciencias Sociales'!Y6) ->  | W23: =IF('Ciencias Sociales'!Z6="","",'Ciencias Sociales'!Z6) ->  | X23: =IF('Ciencias Sociales'!AA6="","",'Ciencias Sociales'!AA6) ->  | Y23: =IF('Ciencias Sociales'!AB6="","",'Ciencias Sociales'!AB6) ->  | Z23: =IF('Ciencias Sociales'!AC6="","",'Ciencias Sociales'!AC6) ->  | AA23: =IF('Ciencias Sociales'!AD6="","",'Ciencias Sociales'!AD6) ->  | AB23: =IF('Ciencias Sociales'!AE6="","",'Ciencias Sociales'!AE6) ->  | AC23: =IF('Ciencias Sociales'!AF6="","",'Ciencias Sociales'!AF6) ->  | AD23: =IF('Ciencias Sociales'!AG6="","",'Ciencias Sociales'!AG6) ->  | AE23: =IF('Ciencias Sociales'!AH6="","",'Ciencias Sociales'!AH6) ->  | AF23: =IF('Ciencias Sociales'!AI6="","",'Ciencias Sociales'!AI6) ->  | AG23: =IF('Ciencias Sociales'!AJ6="","",'Ciencias Sociales'!AJ6) ->  | AH23: =IF('Ciencias Sociales'!AK6="","",'Ciencias Sociales'!AK6) ->  | AI23: =IF('Ciencias Sociales'!AL6="","",'Ciencias Sociales'!AL6) ->  | AJ23: =IF('Ciencias Sociales'!AM6="","",'Ciencias Sociales'!AM6) ->  | AK23: =IF('Ciencias Sociales'!AN6="","",'Ciencias Sociales'!AN6) ->  | AL23: =IF('Ciencias Sociales'!AO6="","",'Ciencias Sociales'!AO6) ->  | AM23: =IF('Ciencias Sociales'!AP6="","",'Ciencias Sociales'!AP6) -> 
C24: Comp. Esp. 2 | D24: Criterio Evaluación 2.1 | E24: =IF('Ciencias Sociales'!H7="","",'Ciencias Sociales'!H7) ->  | F24: =IF('Ciencias Sociales'!I7="","",'Ciencias Sociales'!I7) ->  | G24: =IF('Ciencias Sociales'!J7="","",'Ciencias Sociales'!J7) ->  | H24: =IF('Ciencias Sociales'!K7="","",'Ciencias Sociales'!K7) ->  | I24: =IF('Ciencias Sociales'!L7="","",'Ciencias Sociales'!L7) ->  | J24: =IF('Ciencias Sociales'!M7="","",'Ciencias Sociales'!M7) ->  | K24: =IF('Ciencias Sociales'!N7="","",'Ciencias Sociales'!N7) ->  | L24: =IF('Ciencias Sociales'!O7="","",'Ciencias Sociales'!O7) ->  | M24: =IF('Ciencias Sociales'!P7="","",'Ciencias Sociales'!P7) ->  | N24: =IF('Ciencias Sociales'!Q7="","",'Ciencias Sociales'!Q7) ->  | O24: =IF('Ciencias Sociales'!R7="","",'Ciencias Sociales'!R7) ->  | P24: =IF('Ciencias Sociales'!S7="","",'Ciencias Sociales'!S7) ->  | Q24: =IF('Ciencias Sociales'!T7="","",'Ciencias Sociales'!T7) ->  | R24: =IF('Ciencias Sociales'!U7="","",'Ciencias Sociales'!U7) ->  | S24: =IF('Ciencias Sociales'!V7="","",'Ciencias Sociales'!V7) ->  | T24: =IF('Ciencias Sociales'!W7="","",'Ciencias Sociales'!W7) ->  | U24: =IF('Ciencias Sociales'!X7="","",'Ciencias Sociales'!X7) ->  | V24: =IF('Ciencias Sociales'!Y7="","",'Ciencias Sociales'!Y7) ->  | W24: =IF('Ciencias Sociales'!Z7="","",'Ciencias Sociales'!Z7) ->  | X24: =IF('Ciencias Sociales'!AA7="","",'Ciencias Sociales'!AA7) ->  | Y24: =IF('Ciencias Sociales'!AB7="","",'Ciencias Sociales'!AB7) ->  | Z24: =IF('Ciencias Sociales'!AC7="","",'Ciencias Sociales'!AC7) ->  | AA24: =IF('Ciencias Sociales'!AD7="","",'Ciencias Sociales'!AD7) ->  | AB24: =IF('Ciencias Sociales'!AE7="","",'Ciencias Sociales'!AE7) ->  | AC24: =IF('Ciencias Sociales'!AF7="","",'Ciencias Sociales'!AF7) ->  | AD24: =IF('Ciencias Sociales'!AG7="","",'Ciencias Sociales'!AG7) ->  | AE24: =IF('Ciencias Sociales'!AH7="","",'Ciencias Sociales'!AH7) ->  | AF24: =IF('Ciencias Sociales'!AI7="","",'Ciencias Sociales'!AI7) ->  | AG24: =IF('Ciencias Sociales'!AJ7="","",'Ciencias Sociales'!AJ7) ->  | AH24: =IF('Ciencias Sociales'!AK7="","",'Ciencias Sociales'!AK7) ->  | AI24: =IF('Ciencias Sociales'!AL7="","",'Ciencias Sociales'!AL7) ->  | AJ24: =IF('Ciencias Sociales'!AM7="","",'Ciencias Sociales'!AM7) ->  | AK24: =IF('Ciencias Sociales'!AN7="","",'Ciencias Sociales'!AN7) ->  | AL24: =IF('Ciencias Sociales'!AO7="","",'Ciencias Sociales'!AO7) ->  | AM24: =IF('Ciencias Sociales'!AP7="","",'Ciencias Sociales'!AP7) -> 
D25: Criterio Evaluación 2.2 | E25: =IF('Ciencias Sociales'!H8="","",'Ciencias Sociales'!H8) ->  | F25: =IF('Ciencias Sociales'!I8="","",'Ciencias Sociales'!I8) ->  | G25: =IF('Ciencias Sociales'!J8="","",'Ciencias Sociales'!J8) ->  | H25: =IF('Ciencias Sociales'!K8="","",'Ciencias Sociales'!K8) ->  | I25: =IF('Ciencias Sociales'!L8="","",'Ciencias Sociales'!L8) ->  | J25: =IF('Ciencias Sociales'!M8="","",'Ciencias Sociales'!M8) ->  | K25: =IF('Ciencias Sociales'!N8="","",'Ciencias Sociales'!N8) ->  | L25: =IF('Ciencias Sociales'!O8="","",'Ciencias Sociales'!O8) ->  | M25: =IF('Ciencias Sociales'!P8="","",'Ciencias Sociales'!P8) ->  | N25: =IF('Ciencias Sociales'!Q8="","",'Ciencias Sociales'!Q8) ->  | O25: =IF('Ciencias Sociales'!R8="","",'Ciencias Sociales'!R8) ->  | P25: =IF('Ciencias Sociales'!S8="","",'Ciencias Sociales'!S8) ->  | Q25: =IF('Ciencias Sociales'!T8="","",'Ciencias Sociales'!T8) ->  | R25: =IF('Ciencias Sociales'!U8="","",'Ciencias Sociales'!U8) ->  | S25: =IF('Ciencias Sociales'!V8="","",'Ciencias Sociales'!V8) ->  | T25: =IF('Ciencias Sociales'!W8="","",'Ciencias Sociales'!W8) ->  | U25: =IF('Ciencias Sociales'!X8="","",'Ciencias Sociales'!X8) ->  | V25: =IF('Ciencias Sociales'!Y8="","",'Ciencias Sociales'!Y8) ->  | W25: =IF('Ciencias Sociales'!Z8="","",'Ciencias Sociales'!Z8) ->  | X25: =IF('Ciencias Sociales'!AA8="","",'Ciencias Sociales'!AA8) ->  | Y25: =IF('Ciencias Sociales'!AB8="","",'Ciencias Sociales'!AB8) ->  | Z25: =IF('Ciencias Sociales'!AC8="","",'Ciencias Sociales'!AC8) ->  | AA25: =IF('Ciencias Sociales'!AD8="","",'Ciencias Sociales'!AD8) ->  | AB25: =IF('Ciencias Sociales'!AE8="","",'Ciencias Sociales'!AE8) ->  | AC25: =IF('Ciencias Sociales'!AF8="","",'Ciencias Sociales'!AF8) ->  | AD25: =IF('Ciencias Sociales'!AG8="","",'Ciencias Sociales'!AG8) ->  | AE25: =IF('Ciencias Sociales'!AH8="","",'Ciencias Sociales'!AH8) ->  | AF25: =IF('Ciencias Sociales'!AI8="","",'Ciencias Sociales'!AI8) ->  | AG25: =IF('Ciencias Sociales'!AJ8="","",'Ciencias Sociales'!AJ8) ->  | AH25: =IF('Ciencias Sociales'!AK8="","",'Ciencias Sociales'!AK8) ->  | AI25: =IF('Ciencias Sociales'!AL8="","",'Ciencias Sociales'!AL8) ->  | AJ25: =IF('Ciencias Sociales'!AM8="","",'Ciencias Sociales'!AM8) ->  | AK25: =IF('Ciencias Sociales'!AN8="","",'Ciencias Sociales'!AN8) ->  | AL25: =IF('Ciencias Sociales'!AO8="","",'Ciencias Sociales'!AO8) ->  | AM25: =IF('Ciencias Sociales'!AP8="","",'Ciencias Sociales'!AP8) -> 
D26: Criterio Evaluación 2.3 | E26: =IF('Ciencias Sociales'!H9="","",'Ciencias Sociales'!H9) ->  | F26: =IF('Ciencias Sociales'!I9="","",'Ciencias Sociales'!I9) ->  | G26: =IF('Ciencias Sociales'!J9="","",'Ciencias Sociales'!J9) ->  | H26: =IF('Ciencias Sociales'!K9="","",'Ciencias Sociales'!K9) ->  | I26: =IF('Ciencias Sociales'!L9="","",'Ciencias Sociales'!L9) ->  | J26: =IF('Ciencias Sociales'!M9="","",'Ciencias Sociales'!M9) ->  | K26: =IF('Ciencias Sociales'!N9="","",'Ciencias Sociales'!N9) ->  | L26: =IF('Ciencias Sociales'!O9="","",'Ciencias Sociales'!O9) ->  | M26: =IF('Ciencias Sociales'!P9="","",'Ciencias Sociales'!P9) ->  | N26: =IF('Ciencias Sociales'!Q9="","",'Ciencias Sociales'!Q9) ->  | O26: =IF('Ciencias Sociales'!R9="","",'Ciencias Sociales'!R9) ->  | P26: =IF('Ciencias Sociales'!S9="","",'Ciencias Sociales'!S9) ->  | Q26: =IF('Ciencias Sociales'!T9="","",'Ciencias Sociales'!T9) ->  | R26: =IF('Ciencias Sociales'!U9="","",'Ciencias Sociales'!U9) ->  | S26: =IF('Ciencias Sociales'!V9="","",'Ciencias Sociales'!V9) ->  | T26: =IF('Ciencias Sociales'!W9="","",'Ciencias Sociales'!W9) ->  | U26: =IF('Ciencias Sociales'!X9="","",'Ciencias Sociales'!X9) ->  | V26: =IF('Ciencias Sociales'!Y9="","",'Ciencias Sociales'!Y9) ->  | W26: =IF('Ciencias Sociales'!Z9="","",'Ciencias Sociales'!Z9) ->  | X26: =IF('Ciencias Sociales'!AA9="","",'Ciencias Sociales'!AA9) ->  | Y26: =IF('Ciencias Sociales'!AB9="","",'Ciencias Sociales'!AB9) ->  | Z26: =IF('Ciencias Sociales'!AC9="","",'Ciencias Sociales'!AC9) ->  | AA26: =IF('Ciencias Sociales'!AD9="","",'Ciencias Sociales'!AD9) ->  | AB26: =IF('Ciencias Sociales'!AE9="","",'Ciencias Sociales'!AE9) ->  | AC26: =IF('Ciencias Sociales'!AF9="","",'Ciencias Sociales'!AF9) ->  | AD26: =IF('Ciencias Sociales'!AG9="","",'Ciencias Sociales'!AG9) ->  | AE26: =IF('Ciencias Sociales'!AH9="","",'Ciencias Sociales'!AH9) ->  | AF26: =IF('Ciencias Sociales'!AI9="","",'Ciencias Sociales'!AI9) ->  | AG26: =IF('Ciencias Sociales'!AJ9="","",'Ciencias Sociales'!AJ9) ->  | AH26: =IF('Ciencias Sociales'!AK9="","",'Ciencias Sociales'!AK9) ->  | AI26: =IF('Ciencias Sociales'!AL9="","",'Ciencias Sociales'!AL9) ->  | AJ26: =IF('Ciencias Sociales'!AM9="","",'Ciencias Sociales'!AM9) ->  | AK26: =IF('Ciencias Sociales'!AN9="","",'Ciencias Sociales'!AN9) ->  | AL26: =IF('Ciencias Sociales'!AO9="","",'Ciencias Sociales'!AO9) ->  | AM26: =IF('Ciencias Sociales'!AP9="","",'Ciencias Sociales'!AP9) -> 
D27: Criterio Evaluación 2.4 | E27: =IF('Ciencias Sociales'!H10="","",'Ciencias Sociales'!H10) ->  | F27: =IF('Ciencias Sociales'!I10="","",'Ciencias Sociales'!I10) ->  | G27: =IF('Ciencias Sociales'!J10="","",'Ciencias Sociales'!J10) ->  | H27: =IF('Ciencias Sociales'!K10="","",'Ciencias Sociales'!K10) ->  | I27: =IF('Ciencias Sociales'!L10="","",'Ciencias Sociales'!L10) ->  | J27: =IF('Ciencias Sociales'!M10="","",'Ciencias Sociales'!M10) ->  | K27: =IF('Ciencias Sociales'!N10="","",'Ciencias Sociales'!N10) ->  | L27: =IF('Ciencias Sociales'!O10="","",'Ciencias Sociales'!O10) ->  | M27: =IF('Ciencias Sociales'!P10="","",'Ciencias Sociales'!P10) ->  | N27: =IF('Ciencias Sociales'!Q10="","",'Ciencias Sociales'!Q10) ->  | O27: =IF('Ciencias Sociales'!R10="","",'Ciencias Sociales'!R10) ->  | P27: =IF('Ciencias Sociales'!S10="","",'Ciencias Sociales'!S10) ->  | Q27: =IF('Ciencias Sociales'!T10="","",'Ciencias Sociales'!T10) ->  | R27: =IF('Ciencias Sociales'!U10="","",'Ciencias Sociales'!U10) ->  | S27: =IF('Ciencias Sociales'!V10="","",'Ciencias Sociales'!V10) ->  | T27: =IF('Ciencias Sociales'!W10="","",'Ciencias Sociales'!W10) ->  | U27: =IF('Ciencias Sociales'!X10="","",'Ciencias Sociales'!X10) ->  | V27: =IF('Ciencias Sociales'!Y10="","",'Ciencias Sociales'!Y10) ->  | W27: =IF('Ciencias Sociales'!Z10="","",'Ciencias Sociales'!Z10) ->  | X27: =IF('Ciencias Sociales'!AA10="","",'Ciencias Sociales'!AA10) ->  | Y27: =IF('Ciencias Sociales'!AB10="","",'Ciencias Sociales'!AB10) ->  | Z27: =IF('Ciencias Sociales'!AC10="","",'Ciencias Sociales'!AC10) ->  | AA27: =IF('Ciencias Sociales'!AD10="","",'Ciencias Sociales'!AD10) ->  | AB27: =IF('Ciencias Sociales'!AE10="","",'Ciencias Sociales'!AE10) ->  | AC27: =IF('Ciencias Sociales'!AF10="","",'Ciencias Sociales'!AF10) ->  | AD27: =IF('Ciencias Sociales'!AG10="","",'Ciencias Sociales'!AG10) ->  | AE27: =IF('Ciencias Sociales'!AH10="","",'Ciencias Sociales'!AH10) ->  | AF27: =IF('Ciencias Sociales'!AI10="","",'Ciencias Sociales'!AI10) ->  | AG27: =IF('Ciencias Sociales'!AJ10="","",'Ciencias Sociales'!AJ10) ->  | AH27: =IF('Ciencias Sociales'!AK10="","",'Ciencias Sociales'!AK10) ->  | AI27: =IF('Ciencias Sociales'!AL10="","",'Ciencias Sociales'!AL10) ->  | AJ27: =IF('Ciencias Sociales'!AM10="","",'Ciencias Sociales'!AM10) ->  | AK27: =IF('Ciencias Sociales'!AN10="","",'Ciencias Sociales'!AN10) ->  | AL27: =IF('Ciencias Sociales'!AO10="","",'Ciencias Sociales'!AO10) ->  | AM27: =IF('Ciencias Sociales'!AP10="","",'Ciencias Sociales'!AP10) -> 
C28: Comp. Esp. 3 | D28: Criterio Evaluación 3.1 | E28: =IF('Ciencias Sociales'!H11="","",'Ciencias Sociales'!H11) ->  | F28: =IF('Ciencias Sociales'!I11="","",'Ciencias Sociales'!I11) ->  | G28: =IF('Ciencias Sociales'!J11="","",'Ciencias Sociales'!J11) ->  | H28: =IF('Ciencias Sociales'!K11="","",'Ciencias Sociales'!K11) ->  | I28: =IF('Ciencias Sociales'!L11="","",'Ciencias Sociales'!L11) ->  | J28: =IF('Ciencias Sociales'!M11="","",'Ciencias Sociales'!M11) ->  | K28: =IF('Ciencias Sociales'!N11="","",'Ciencias Sociales'!N11) ->  | L28: =IF('Ciencias Sociales'!O11="","",'Ciencias Sociales'!O11) ->  | M28: =IF('Ciencias Sociales'!P11="","",'Ciencias Sociales'!P11) ->  | N28: =IF('Ciencias Sociales'!Q11="","",'Ciencias Sociales'!Q11) ->  | O28: =IF('Ciencias Sociales'!R11="","",'Ciencias Sociales'!R11) ->  | P28: =IF('Ciencias Sociales'!S11="","",'Ciencias Sociales'!S11) ->  | Q28: =IF('Ciencias Sociales'!T11="","",'Ciencias Sociales'!T11) ->  | R28: =IF('Ciencias Sociales'!U11="","",'Ciencias Sociales'!U11) ->  | S28: =IF('Ciencias Sociales'!V11="","",'Ciencias Sociales'!V11) ->  | T28: =IF('Ciencias Sociales'!W11="","",'Ciencias Sociales'!W11) ->  | U28: =IF('Ciencias Sociales'!X11="","",'Ciencias Sociales'!X11) ->  | V28: =IF('Ciencias Sociales'!Y11="","",'Ciencias Sociales'!Y11) ->  | W28: =IF('Ciencias Sociales'!Z11="","",'Ciencias Sociales'!Z11) ->  | X28: =IF('Ciencias Sociales'!AA11="","",'Ciencias Sociales'!AA11) ->  | Y28: =IF('Ciencias Sociales'!AB11="","",'Ciencias Sociales'!AB11) ->  | Z28: =IF('Ciencias Sociales'!AC11="","",'Ciencias Sociales'!AC11) ->  | AA28: =IF('Ciencias Sociales'!AD11="","",'Ciencias Sociales'!AD11) ->  | AB28: =IF('Ciencias Sociales'!AE11="","",'Ciencias Sociales'!AE11) ->  | AC28: =IF('Ciencias Sociales'!AF11="","",'Ciencias Sociales'!AF11) ->  | AD28: =IF('Ciencias Sociales'!AG11="","",'Ciencias Sociales'!AG11) ->  | AE28: =IF('Ciencias Sociales'!AH11="","",'Ciencias Sociales'!AH11) ->  | AF28: =IF('Ciencias Sociales'!AI11="","",'Ciencias Sociales'!AI11) ->  | AG28: =IF('Ciencias Sociales'!AJ11="","",'Ciencias Sociales'!AJ11) ->  | AH28: =IF('Ciencias Sociales'!AK11="","",'Ciencias Sociales'!AK11) ->  | AI28: =IF('Ciencias Sociales'!AL11="","",'Ciencias Sociales'!AL11) ->  | AJ28: =IF('Ciencias Sociales'!AM11="","",'Ciencias Sociales'!AM11) ->  | AK28: =IF('Ciencias Sociales'!AN11="","",'Ciencias Sociales'!AN11) ->  | AL28: =IF('Ciencias Sociales'!AO11="","",'Ciencias Sociales'!AO11) ->  | AM28: =IF('Ciencias Sociales'!AP11="","",'Ciencias Sociales'!AP11) -> 
D29: Criterio Evaluación 3.2 | E29: =IF('Ciencias Sociales'!H12="","",'Ciencias Sociales'!H12) ->  | F29: =IF('Ciencias Sociales'!I12="","",'Ciencias Sociales'!I12) ->  | G29: =IF('Ciencias Sociales'!J12="","",'Ciencias Sociales'!J12) ->  | H29: =IF('Ciencias Sociales'!K12="","",'Ciencias Sociales'!K12) ->  | I29: =IF('Ciencias Sociales'!L12="","",'Ciencias Sociales'!L12) ->  | J29: =IF('Ciencias Sociales'!M12="","",'Ciencias Sociales'!M12) ->  | K29: =IF('Ciencias Sociales'!N12="","",'Ciencias Sociales'!N12) ->  | L29: =IF('Ciencias Sociales'!O12="","",'Ciencias Sociales'!O12) ->  | M29: =IF('Ciencias Sociales'!P12="","",'Ciencias Sociales'!P12) ->  | N29: =IF('Ciencias Sociales'!Q12="","",'Ciencias Sociales'!Q12) ->  | O29: =IF('Ciencias Sociales'!R12="","",'Ciencias Sociales'!R12) ->  | P29: =IF('Ciencias Sociales'!S12="","",'Ciencias Sociales'!S12) ->  | Q29: =IF('Ciencias Sociales'!T12="","",'Ciencias Sociales'!T12) ->  | R29: =IF('Ciencias Sociales'!U12="","",'Ciencias Sociales'!U12) ->  | S29: =IF('Ciencias Sociales'!V12="","",'Ciencias Sociales'!V12) ->  | T29: =IF('Ciencias Sociales'!W12="","",'Ciencias Sociales'!W12) ->  | U29: =IF('Ciencias Sociales'!X12="","",'Ciencias Sociales'!X12) ->  | V29: =IF('Ciencias Sociales'!Y12="","",'Ciencias Sociales'!Y12) ->  | W29: =IF('Ciencias Sociales'!Z12="","",'Ciencias Sociales'!Z12) ->  | X29: =IF('Ciencias Sociales'!AA12="","",'Ciencias Sociales'!AA12) ->  | Y29: =IF('Ciencias Sociales'!AB12="","",'Ciencias Sociales'!AB12) ->  | Z29: =IF('Ciencias Sociales'!AC12="","",'Ciencias Sociales'!AC12) ->  | AA29: =IF('Ciencias Sociales'!AD12="","",'Ciencias Sociales'!AD12) ->  | AB29: =IF('Ciencias Sociales'!AE12="","",'Ciencias Sociales'!AE12) ->  | AC29: =IF('Ciencias Sociales'!AF12="","",'Ciencias Sociales'!AF12) ->  | AD29: =IF('Ciencias Sociales'!AG12="","",'Ciencias Sociales'!AG12) ->  | AE29: =IF('Ciencias Sociales'!AH12="","",'Ciencias Sociales'!AH12) ->  | AF29: =IF('Ciencias Sociales'!AI12="","",'Ciencias Sociales'!AI12) ->  | AG29: =IF('Ciencias Sociales'!AJ12="","",'Ciencias Sociales'!AJ12) ->  | AH29: =IF('Ciencias Sociales'!AK12="","",'Ciencias Sociales'!AK12) ->  | AI29: =IF('Ciencias Sociales'!AL12="","",'Ciencias Sociales'!AL12) ->  | AJ29: =IF('Ciencias Sociales'!AM12="","",'Ciencias Sociales'!AM12) ->  | AK29: =IF('Ciencias Sociales'!AN12="","",'Ciencias Sociales'!AN12) ->  | AL29: =IF('Ciencias Sociales'!AO12="","",'Ciencias Sociales'!AO12) ->  | AM29: =IF('Ciencias Sociales'!AP12="","",'Ciencias Sociales'!AP12) -> 
D30: Criterio Evaluación 3.3 | E30: =IF('Ciencias Sociales'!H13="","",'Ciencias Sociales'!H13) ->  | F30: =IF('Ciencias Sociales'!I13="","",'Ciencias Sociales'!I13) ->  | G30: =IF('Ciencias Sociales'!J13="","",'Ciencias Sociales'!J13) ->  | H30: =IF('Ciencias Sociales'!K13="","",'Ciencias Sociales'!K13) ->  | I30: =IF('Ciencias Sociales'!L13="","",'Ciencias Sociales'!L13) ->  | J30: =IF('Ciencias Sociales'!M13="","",'Ciencias Sociales'!M13) ->  | K30: =IF('Ciencias Sociales'!N13="","",'Ciencias Sociales'!N13) ->  | L30: =IF('Ciencias Sociales'!O13="","",'Ciencias Sociales'!O13) ->  | M30: =IF('Ciencias Sociales'!P13="","",'Ciencias Sociales'!P13) ->  | N30: =IF('Ciencias Sociales'!Q13="","",'Ciencias Sociales'!Q13) ->  | O30: =IF('Ciencias Sociales'!R13="","",'Ciencias Sociales'!R13) ->  | P30: =IF('Ciencias Sociales'!S13="","",'Ciencias Sociales'!S13) ->  | Q30: =IF('Ciencias Sociales'!T13="","",'Ciencias Sociales'!T13) ->  | R30: =IF('Ciencias Sociales'!U13="","",'Ciencias Sociales'!U13) ->  | S30: =IF('Ciencias Sociales'!V13="","",'Ciencias Sociales'!V13) ->  | T30: =IF('Ciencias Sociales'!W13="","",'Ciencias Sociales'!W13) ->  | U30: =IF('Ciencias Sociales'!X13="","",'Ciencias Sociales'!X13) ->  | V30: =IF('Ciencias Sociales'!Y13="","",'Ciencias Sociales'!Y13) ->  | W30: =IF('Ciencias Sociales'!Z13="","",'Ciencias Sociales'!Z13) ->  | X30: =IF('Ciencias Sociales'!AA13="","",'Ciencias Sociales'!AA13) ->  | Y30: =IF('Ciencias Sociales'!AB13="","",'Ciencias Sociales'!AB13) ->  | Z30: =IF('Ciencias Sociales'!AC13="","",'Ciencias Sociales'!AC13) ->  | AA30: =IF('Ciencias Sociales'!AD13="","",'Ciencias Sociales'!AD13) ->  | AB30: =IF('Ciencias Sociales'!AE13="","",'Ciencias Sociales'!AE13) ->  | AC30: =IF('Ciencias Sociales'!AF13="","",'Ciencias Sociales'!AF13) ->  | AD30: =IF('Ciencias Sociales'!AG13="","",'Ciencias Sociales'!AG13) ->  | AE30: =IF('Ciencias Sociales'!AH13="","",'Ciencias Sociales'!AH13) ->  | AF30: =IF('Ciencias Sociales'!AI13="","",'Ciencias Sociales'!AI13) ->  | AG30: =IF('Ciencias Sociales'!AJ13="","",'Ciencias Sociales'!AJ13) ->  | AH30: =IF('Ciencias Sociales'!AK13="","",'Ciencias Sociales'!AK13) ->  | AI30: =IF('Ciencias Sociales'!AL13="","",'Ciencias Sociales'!AL13) ->  | AJ30: =IF('Ciencias Sociales'!AM13="","",'Ciencias Sociales'!AM13) ->  | AK30: =IF('Ciencias Sociales'!AN13="","",'Ciencias Sociales'!AN13) ->  | AL30: =IF('Ciencias Sociales'!AO13="","",'Ciencias Sociales'!AO13) ->  | AM30: =IF('Ciencias Sociales'!AP13="","",'Ciencias Sociales'!AP13) -> 
C31: Comp. Esp. 4 | D31: Criterio Evaluación 4.1 | E31: =IF('Ciencias Sociales'!H14="","",'Ciencias Sociales'!H14) ->  | F31: =IF('Ciencias Sociales'!I14="","",'Ciencias Sociales'!I14) ->  | G31: =IF('Ciencias Sociales'!J14="","",'Ciencias Sociales'!J14) ->  | H31: =IF('Ciencias Sociales'!K14="","",'Ciencias Sociales'!K14) ->  | I31: =IF('Ciencias Sociales'!L14="","",'Ciencias Sociales'!L14) ->  | J31: =IF('Ciencias Sociales'!M14="","",'Ciencias Sociales'!M14) ->  | K31: =IF('Ciencias Sociales'!N14="","",'Ciencias Sociales'!N14) ->  | L31: =IF('Ciencias Sociales'!O14="","",'Ciencias Sociales'!O14) ->  | M31: =IF('Ciencias Sociales'!P14="","",'Ciencias Sociales'!P14) ->  | N31: =IF('Ciencias Sociales'!Q14="","",'Ciencias Sociales'!Q14) ->  | O31: =IF('Ciencias Sociales'!R14="","",'Ciencias Sociales'!R14) ->  | P31: =IF('Ciencias Sociales'!S14="","",'Ciencias Sociales'!S14) ->  | Q31: =IF('Ciencias Sociales'!T14="","",'Ciencias Sociales'!T14) ->  | R31: =IF('Ciencias Sociales'!U14="","",'Ciencias Sociales'!U14) ->  | S31: =IF('Ciencias Sociales'!V14="","",'Ciencias Sociales'!V14) ->  | T31: =IF('Ciencias Sociales'!W14="","",'Ciencias Sociales'!W14) ->  | U31: =IF('Ciencias Sociales'!X14="","",'Ciencias Sociales'!X14) ->  | V31: =IF('Ciencias Sociales'!Y14="","",'Ciencias Sociales'!Y14) ->  | W31: =IF('Ciencias Sociales'!Z14="","",'Ciencias Sociales'!Z14) ->  | X31: =IF('Ciencias Sociales'!AA14="","",'Ciencias Sociales'!AA14) ->  | Y31: =IF('Ciencias Sociales'!AB14="","",'Ciencias Sociales'!AB14) ->  | Z31: =IF('Ciencias Sociales'!AC14="","",'Ciencias Sociales'!AC14) ->  | AA31: =IF('Ciencias Sociales'!AD14="","",'Ciencias Sociales'!AD14) ->  | AB31: =IF('Ciencias Sociales'!AE14="","",'Ciencias Sociales'!AE14) ->  | AC31: =IF('Ciencias Sociales'!AF14="","",'Ciencias Sociales'!AF14) ->  | AD31: =IF('Ciencias Sociales'!AG14="","",'Ciencias Sociales'!AG14) ->  | AE31: =IF('Ciencias Sociales'!AH14="","",'Ciencias Sociales'!AH14) ->  | AF31: =IF('Ciencias Sociales'!AI14="","",'Ciencias Sociales'!AI14) ->  | AG31: =IF('Ciencias Sociales'!AJ14="","",'Ciencias Sociales'!AJ14) ->  | AH31: =IF('Ciencias Sociales'!AK14="","",'Ciencias Sociales'!AK14) ->  | AI31: =IF('Ciencias Sociales'!AL14="","",'Ciencias Sociales'!AL14) ->  | AJ31: =IF('Ciencias Sociales'!AM14="","",'Ciencias Sociales'!AM14) ->  | AK31: =IF('Ciencias Sociales'!AN14="","",'Ciencias Sociales'!AN14) ->  | AL31: =IF('Ciencias Sociales'!AO14="","",'Ciencias Sociales'!AO14) ->  | AM31: =IF('Ciencias Sociales'!AP14="","",'Ciencias Sociales'!AP14) -> 
D32: Criterio Evaluación 4.2 | E32: =IF('Ciencias Sociales'!H15="","",'Ciencias Sociales'!H15) ->  | F32: =IF('Ciencias Sociales'!I15="","",'Ciencias Sociales'!I15) ->  | G32: =IF('Ciencias Sociales'!J15="","",'Ciencias Sociales'!J15) ->  | H32: =IF('Ciencias Sociales'!K15="","",'Ciencias Sociales'!K15) ->  | I32: =IF('Ciencias Sociales'!L15="","",'Ciencias Sociales'!L15) ->  | J32: =IF('Ciencias Sociales'!M15="","",'Ciencias Sociales'!M15) ->  | K32: =IF('Ciencias Sociales'!N15="","",'Ciencias Sociales'!N15) ->  | L32: =IF('Ciencias Sociales'!O15="","",'Ciencias Sociales'!O15) ->  | M32: =IF('Ciencias Sociales'!P15="","",'Ciencias Sociales'!P15) ->  | N32: =IF('Ciencias Sociales'!Q15="","",'Ciencias Sociales'!Q15) ->  | O32: =IF('Ciencias Sociales'!R15="","",'Ciencias Sociales'!R15) ->  | P32: =IF('Ciencias Sociales'!S15="","",'Ciencias Sociales'!S15) ->  | Q32: =IF('Ciencias Sociales'!T15="","",'Ciencias Sociales'!T15) ->  | R32: =IF('Ciencias Sociales'!U15="","",'Ciencias Sociales'!U15) ->  | S32: =IF('Ciencias Sociales'!V15="","",'Ciencias Sociales'!V15) ->  | T32: =IF('Ciencias Sociales'!W15="","",'Ciencias Sociales'!W15) ->  | U32: =IF('Ciencias Sociales'!X15="","",'Ciencias Sociales'!X15) ->  | V32: =IF('Ciencias Sociales'!Y15="","",'Ciencias Sociales'!Y15) ->  | W32: =IF('Ciencias Sociales'!Z15="","",'Ciencias Sociales'!Z15) ->  | X32: =IF('Ciencias Sociales'!AA15="","",'Ciencias Sociales'!AA15) ->  | Y32: =IF('Ciencias Sociales'!AB15="","",'Ciencias Sociales'!AB15) ->  | Z32: =IF('Ciencias Sociales'!AC15="","",'Ciencias Sociales'!AC15) ->  | AA32: =IF('Ciencias Sociales'!AD15="","",'Ciencias Sociales'!AD15) ->  | AB32: =IF('Ciencias Sociales'!AE15="","",'Ciencias Sociales'!AE15) ->  | AC32: =IF('Ciencias Sociales'!AF15="","",'Ciencias Sociales'!AF15) ->  | AD32: =IF('Ciencias Sociales'!AG15="","",'Ciencias Sociales'!AG15) ->  | AE32: =IF('Ciencias Sociales'!AH15="","",'Ciencias Sociales'!AH15) ->  | AF32: =IF('Ciencias Sociales'!AI15="","",'Ciencias Sociales'!AI15) ->  | AG32: =IF('Ciencias Sociales'!AJ15="","",'Ciencias Sociales'!AJ15) ->  | AH32: =IF('Ciencias Sociales'!AK15="","",'Ciencias Sociales'!AK15) ->  | AI32: =IF('Ciencias Sociales'!AL15="","",'Ciencias Sociales'!AL15) ->  | AJ32: =IF('Ciencias Sociales'!AM15="","",'Ciencias Sociales'!AM15) ->  | AK32: =IF('Ciencias Sociales'!AN15="","",'Ciencias Sociales'!AN15) ->  | AL32: =IF('Ciencias Sociales'!AO15="","",'Ciencias Sociales'!AO15) ->  | AM32: =IF('Ciencias Sociales'!AP15="","",'Ciencias Sociales'!AP15) -> 
C33: Comp. Esp. 5 | D33: Criterio Evaluación 5.1 | E33: =IF('Ciencias Sociales'!H16="","",'Ciencias Sociales'!H16) ->  | F33: =IF('Ciencias Sociales'!I16="","",'Ciencias Sociales'!I16) ->  | G33: =IF('Ciencias Sociales'!J16="","",'Ciencias Sociales'!J16) ->  | H33: =IF('Ciencias Sociales'!K16="","",'Ciencias Sociales'!K16) ->  | I33: =IF('Ciencias Sociales'!L16="","",'Ciencias Sociales'!L16) ->  | J33: =IF('Ciencias Sociales'!M16="","",'Ciencias Sociales'!M16) ->  | K33: =IF('Ciencias Sociales'!N16="","",'Ciencias Sociales'!N16) ->  | L33: =IF('Ciencias Sociales'!O16="","",'Ciencias Sociales'!O16) ->  | M33: =IF('Ciencias Sociales'!P16="","",'Ciencias Sociales'!P16) ->  | N33: =IF('Ciencias Sociales'!Q16="","",'Ciencias Sociales'!Q16) ->  | O33: =IF('Ciencias Sociales'!R16="","",'Ciencias Sociales'!R16) ->  | P33: =IF('Ciencias Sociales'!S16="","",'Ciencias Sociales'!S16) ->  | Q33: =IF('Ciencias Sociales'!T16="","",'Ciencias Sociales'!T16) ->  | R33: =IF('Ciencias Sociales'!U16="","",'Ciencias Sociales'!U16) ->  | S33: =IF('Ciencias Sociales'!V16="","",'Ciencias Sociales'!V16) ->  | T33: =IF('Ciencias Sociales'!W16="","",'Ciencias Sociales'!W16) ->  | U33: =IF('Ciencias Sociales'!X16="","",'Ciencias Sociales'!X16) ->  | V33: =IF('Ciencias Sociales'!Y16="","",'Ciencias Sociales'!Y16) ->  | W33: =IF('Ciencias Sociales'!Z16="","",'Ciencias Sociales'!Z16) ->  | X33: =IF('Ciencias Sociales'!AA16="","",'Ciencias Sociales'!AA16) ->  | Y33: =IF('Ciencias Sociales'!AB16="","",'Ciencias Sociales'!AB16) ->  | Z33: =IF('Ciencias Sociales'!AC16="","",'Ciencias Sociales'!AC16) ->  | AA33: =IF('Ciencias Sociales'!AD16="","",'Ciencias Sociales'!AD16) ->  | AB33: =IF('Ciencias Sociales'!AE16="","",'Ciencias Sociales'!AE16) ->  | AC33: =IF('Ciencias Sociales'!AF16="","",'Ciencias Sociales'!AF16) ->  | AD33: =IF('Ciencias Sociales'!AG16="","",'Ciencias Sociales'!AG16) ->  | AE33: =IF('Ciencias Sociales'!AH16="","",'Ciencias Sociales'!AH16) ->  | AF33: =IF('Ciencias Sociales'!AI16="","",'Ciencias Sociales'!AI16) ->  | AG33: =IF('Ciencias Sociales'!AJ16="","",'Ciencias Sociales'!AJ16) ->  | AH33: =IF('Ciencias Sociales'!AK16="","",'Ciencias Sociales'!AK16) ->  | AI33: =IF('Ciencias Sociales'!AL16="","",'Ciencias Sociales'!AL16) ->  | AJ33: =IF('Ciencias Sociales'!AM16="","",'Ciencias Sociales'!AM16) ->  | AK33: =IF('Ciencias Sociales'!AN16="","",'Ciencias Sociales'!AN16) ->  | AL33: =IF('Ciencias Sociales'!AO16="","",'Ciencias Sociales'!AO16) ->  | AM33: =IF('Ciencias Sociales'!AP16="","",'Ciencias Sociales'!AP16) -> 
D34: Criterio Evaluación 5.2 | E34: =IF('Ciencias Sociales'!H17="","",'Ciencias Sociales'!H17) ->  | F34: =IF('Ciencias Sociales'!I17="","",'Ciencias Sociales'!I17) ->  | G34: =IF('Ciencias Sociales'!J17="","",'Ciencias Sociales'!J17) ->  | H34: =IF('Ciencias Sociales'!K17="","",'Ciencias Sociales'!K17) ->  | I34: =IF('Ciencias Sociales'!L17="","",'Ciencias Sociales'!L17) ->  | J34: =IF('Ciencias Sociales'!M17="","",'Ciencias Sociales'!M17) ->  | K34: =IF('Ciencias Sociales'!N17="","",'Ciencias Sociales'!N17) ->  | L34: =IF('Ciencias Sociales'!O17="","",'Ciencias Sociales'!O17) ->  | M34: =IF('Ciencias Sociales'!P17="","",'Ciencias Sociales'!P17) ->  | N34: =IF('Ciencias Sociales'!Q17="","",'Ciencias Sociales'!Q17) ->  | O34: =IF('Ciencias Sociales'!R17="","",'Ciencias Sociales'!R17) ->  | P34: =IF('Ciencias Sociales'!S17="","",'Ciencias Sociales'!S17) ->  | Q34: =IF('Ciencias Sociales'!T17="","",'Ciencias Sociales'!T17) ->  | R34: =IF('Ciencias Sociales'!U17="","",'Ciencias Sociales'!U17) ->  | S34: =IF('Ciencias Sociales'!V17="","",'Ciencias Sociales'!V17) ->  | T34: =IF('Ciencias Sociales'!W17="","",'Ciencias Sociales'!W17) ->  | U34: =IF('Ciencias Sociales'!X17="","",'Ciencias Sociales'!X17) ->  | V34: =IF('Ciencias Sociales'!Y17="","",'Ciencias Sociales'!Y17) ->  | W34: =IF('Ciencias Sociales'!Z17="","",'Ciencias Sociales'!Z17) ->  | X34: =IF('Ciencias Sociales'!AA17="","",'Ciencias Sociales'!AA17) ->  | Y34: =IF('Ciencias Sociales'!AB17="","",'Ciencias Sociales'!AB17) ->  | Z34: =IF('Ciencias Sociales'!AC17="","",'Ciencias Sociales'!AC17) ->  | AA34: =IF('Ciencias Sociales'!AD17="","",'Ciencias Sociales'!AD17) ->  | AB34: =IF('Ciencias Sociales'!AE17="","",'Ciencias Sociales'!AE17) ->  | AC34: =IF('Ciencias Sociales'!AF17="","",'Ciencias Sociales'!AF17) ->  | AD34: =IF('Ciencias Sociales'!AG17="","",'Ciencias Sociales'!AG17) ->  | AE34: =IF('Ciencias Sociales'!AH17="","",'Ciencias Sociales'!AH17) ->  | AF34: =IF('Ciencias Sociales'!AI17="","",'Ciencias Sociales'!AI17) ->  | AG34: =IF('Ciencias Sociales'!AJ17="","",'Ciencias Sociales'!AJ17) ->  | AH34: =IF('Ciencias Sociales'!AK17="","",'Ciencias Sociales'!AK17) ->  | AI34: =IF('Ciencias Sociales'!AL17="","",'Ciencias Sociales'!AL17) ->  | AJ34: =IF('Ciencias Sociales'!AM17="","",'Ciencias Sociales'!AM17) ->  | AK34: =IF('Ciencias Sociales'!AN17="","",'Ciencias Sociales'!AN17) ->  | AL34: =IF('Ciencias Sociales'!AO17="","",'Ciencias Sociales'!AO17) ->  | AM34: =IF('Ciencias Sociales'!AP17="","",'Ciencias Sociales'!AP17) -> 
D35: Criterio Evaluación 5.3 | E35: =IF('Ciencias Sociales'!H18="","",'Ciencias Sociales'!H18) ->  | F35: =IF('Ciencias Sociales'!I18="","",'Ciencias Sociales'!I18) ->  | G35: =IF('Ciencias Sociales'!J18="","",'Ciencias Sociales'!J18) ->  | H35: =IF('Ciencias Sociales'!K18="","",'Ciencias Sociales'!K18) ->  | I35: =IF('Ciencias Sociales'!L18="","",'Ciencias Sociales'!L18) ->  | J35: =IF('Ciencias Sociales'!M18="","",'Ciencias Sociales'!M18) ->  | K35: =IF('Ciencias Sociales'!N18="","",'Ciencias Sociales'!N18) ->  | L35: =IF('Ciencias Sociales'!O18="","",'Ciencias Sociales'!O18) ->  | M35: =IF('Ciencias Sociales'!P18="","",'Ciencias Sociales'!P18) ->  | N35: =IF('Ciencias Sociales'!Q18="","",'Ciencias Sociales'!Q18) ->  | O35: =IF('Ciencias Sociales'!R18="","",'Ciencias Sociales'!R18) ->  | P35: =IF('Ciencias Sociales'!S18="","",'Ciencias Sociales'!S18) ->  | Q35: =IF('Ciencias Sociales'!T18="","",'Ciencias Sociales'!T18) ->  | R35: =IF('Ciencias Sociales'!U18="","",'Ciencias Sociales'!U18) ->  | S35: =IF('Ciencias Sociales'!V18="","",'Ciencias Sociales'!V18) ->  | T35: =IF('Ciencias Sociales'!W18="","",'Ciencias Sociales'!W18) ->  | U35: =IF('Ciencias Sociales'!X18="","",'Ciencias Sociales'!X18) ->  | V35: =IF('Ciencias Sociales'!Y18="","",'Ciencias Sociales'!Y18) ->  | W35: =IF('Ciencias Sociales'!Z18="","",'Ciencias Sociales'!Z18) ->  | X35: =IF('Ciencias Sociales'!AA18="","",'Ciencias Sociales'!AA18) ->  | Y35: =IF('Ciencias Sociales'!AB18="","",'Ciencias Sociales'!AB18) ->  | Z35: =IF('Ciencias Sociales'!AC18="","",'Ciencias Sociales'!AC18) ->  | AA35: =IF('Ciencias Sociales'!AD18="","",'Ciencias Sociales'!AD18) ->  | AB35: =IF('Ciencias Sociales'!AE18="","",'Ciencias Sociales'!AE18) ->  | AC35: =IF('Ciencias Sociales'!AF18="","",'Ciencias Sociales'!AF18) ->  | AD35: =IF('Ciencias Sociales'!AG18="","",'Ciencias Sociales'!AG18) ->  | AE35: =IF('Ciencias Sociales'!AH18="","",'Ciencias Sociales'!AH18) ->  | AF35: =IF('Ciencias Sociales'!AI18="","",'Ciencias Sociales'!AI18) ->  | AG35: =IF('Ciencias Sociales'!AJ18="","",'Ciencias Sociales'!AJ18) ->  | AH35: =IF('Ciencias Sociales'!AK18="","",'Ciencias Sociales'!AK18) ->  | AI35: =IF('Ciencias Sociales'!AL18="","",'Ciencias Sociales'!AL18) ->  | AJ35: =IF('Ciencias Sociales'!AM18="","",'Ciencias Sociales'!AM18) ->  | AK35: =IF('Ciencias Sociales'!AN18="","",'Ciencias Sociales'!AN18) ->  | AL35: =IF('Ciencias Sociales'!AO18="","",'Ciencias Sociales'!AO18) ->  | AM35: =IF('Ciencias Sociales'!AP18="","",'Ciencias Sociales'!AP18) -> 
D36: Criterio Evaluación 5.4 | E36: =IF('Ciencias Sociales'!H19="","",'Ciencias Sociales'!H19) ->  | F36: =IF('Ciencias Sociales'!I19="","",'Ciencias Sociales'!I19) ->  | G36: =IF('Ciencias Sociales'!J19="","",'Ciencias Sociales'!J19) ->  | H36: =IF('Ciencias Sociales'!K19="","",'Ciencias Sociales'!K19) ->  | I36: =IF('Ciencias Sociales'!L19="","",'Ciencias Sociales'!L19) ->  | J36: =IF('Ciencias Sociales'!M19="","",'Ciencias Sociales'!M19) ->  | K36: =IF('Ciencias Sociales'!N19="","",'Ciencias Sociales'!N19) ->  | L36: =IF('Ciencias Sociales'!O19="","",'Ciencias Sociales'!O19) ->  | M36: =IF('Ciencias Sociales'!P19="","",'Ciencias Sociales'!P19) ->  | N36: =IF('Ciencias Sociales'!Q19="","",'Ciencias Sociales'!Q19) ->  | O36: =IF('Ciencias Sociales'!R19="","",'Ciencias Sociales'!R19) ->  | P36: =IF('Ciencias Sociales'!S19="","",'Ciencias Sociales'!S19) ->  | Q36: =IF('Ciencias Sociales'!T19="","",'Ciencias Sociales'!T19) ->  | R36: =IF('Ciencias Sociales'!U19="","",'Ciencias Sociales'!U19) ->  | S36: =IF('Ciencias Sociales'!V19="","",'Ciencias Sociales'!V19) ->  | T36: =IF('Ciencias Sociales'!W19="","",'Ciencias Sociales'!W19) ->  | U36: =IF('Ciencias Sociales'!X19="","",'Ciencias Sociales'!X19) ->  | V36: =IF('Ciencias Sociales'!Y19="","",'Ciencias Sociales'!Y19) ->  | W36: =IF('Ciencias Sociales'!Z19="","",'Ciencias Sociales'!Z19) ->  | X36: =IF('Ciencias Sociales'!AA19="","",'Ciencias Sociales'!AA19) ->  | Y36: =IF('Ciencias Sociales'!AB19="","",'Ciencias Sociales'!AB19) ->  | Z36: =IF('Ciencias Sociales'!AC19="","",'Ciencias Sociales'!AC19) ->  | AA36: =IF('Ciencias Sociales'!AD19="","",'Ciencias Sociales'!AD19) ->  | AB36: =IF('Ciencias Sociales'!AE19="","",'Ciencias Sociales'!AE19) ->  | AC36: =IF('Ciencias Sociales'!AF19="","",'Ciencias Sociales'!AF19) ->  | AD36: =IF('Ciencias Sociales'!AG19="","",'Ciencias Sociales'!AG19) ->  | AE36: =IF('Ciencias Sociales'!AH19="","",'Ciencias Sociales'!AH19) ->  | AF36: =IF('Ciencias Sociales'!AI19="","",'Ciencias Sociales'!AI19) ->  | AG36: =IF('Ciencias Sociales'!AJ19="","",'Ciencias Sociales'!AJ19) ->  | AH36: =IF('Ciencias Sociales'!AK19="","",'Ciencias Sociales'!AK19) ->  | AI36: =IF('Ciencias Sociales'!AL19="","",'Ciencias Sociales'!AL19) ->  | AJ36: =IF('Ciencias Sociales'!AM19="","",'Ciencias Sociales'!AM19) ->  | AK36: =IF('Ciencias Sociales'!AN19="","",'Ciencias Sociales'!AN19) ->  | AL36: =IF('Ciencias Sociales'!AO19="","",'Ciencias Sociales'!AO19) ->  | AM36: =IF('Ciencias Sociales'!AP19="","",'Ciencias Sociales'!AP19) -> 
C37: Comp. Esp. 6 | D37: Criterio Evaluación 6.1 | E37: =IF('Ciencias Sociales'!H20="","",'Ciencias Sociales'!H20) ->  | F37: =IF('Ciencias Sociales'!I20="","",'Ciencias Sociales'!I20) ->  | G37: =IF('Ciencias Sociales'!J20="","",'Ciencias Sociales'!J20) ->  | H37: =IF('Ciencias Sociales'!K20="","",'Ciencias Sociales'!K20) ->  | I37: =IF('Ciencias Sociales'!L20="","",'Ciencias Sociales'!L20) ->  | J37: =IF('Ciencias Sociales'!M20="","",'Ciencias Sociales'!M20) ->  | K37: =IF('Ciencias Sociales'!N20="","",'Ciencias Sociales'!N20) ->  | L37: =IF('Ciencias Sociales'!O20="","",'Ciencias Sociales'!O20) ->  | M37: =IF('Ciencias Sociales'!P20="","",'Ciencias Sociales'!P20) ->  | N37: =IF('Ciencias Sociales'!Q20="","",'Ciencias Sociales'!Q20) ->  | O37: =IF('Ciencias Sociales'!R20="","",'Ciencias Sociales'!R20) ->  | P37: =IF('Ciencias Sociales'!S20="","",'Ciencias Sociales'!S20) ->  | Q37: =IF('Ciencias Sociales'!T20="","",'Ciencias Sociales'!T20) ->  | R37: =IF('Ciencias Sociales'!U20="","",'Ciencias Sociales'!U20) ->  | S37: =IF('Ciencias Sociales'!V20="","",'Ciencias Sociales'!V20) ->  | T37: =IF('Ciencias Sociales'!W20="","",'Ciencias Sociales'!W20) ->  | U37: =IF('Ciencias Sociales'!X20="","",'Ciencias Sociales'!X20) ->  | V37: =IF('Ciencias Sociales'!Y20="","",'Ciencias Sociales'!Y20) ->  | W37: =IF('Ciencias Sociales'!Z20="","",'Ciencias Sociales'!Z20) ->  | X37: =IF('Ciencias Sociales'!AA20="","",'Ciencias Sociales'!AA20) ->  | Y37: =IF('Ciencias Sociales'!AB20="","",'Ciencias Sociales'!AB20) ->  | Z37: =IF('Ciencias Sociales'!AC20="","",'Ciencias Sociales'!AC20) ->  | AA37: =IF('Ciencias Sociales'!AD20="","",'Ciencias Sociales'!AD20) ->  | AB37: =IF('Ciencias Sociales'!AE20="","",'Ciencias Sociales'!AE20) ->  | AC37: =IF('Ciencias Sociales'!AF20="","",'Ciencias Sociales'!AF20) ->  | AD37: =IF('Ciencias Sociales'!AG20="","",'Ciencias Sociales'!AG20) ->  | AE37: =IF('Ciencias Sociales'!AH20="","",'Ciencias Sociales'!AH20) ->  | AF37: =IF('Ciencias Sociales'!AI20="","",'Ciencias Sociales'!AI20) ->  | AG37: =IF('Ciencias Sociales'!AJ20="","",'Ciencias Sociales'!AJ20) ->  | AH37: =IF('Ciencias Sociales'!AK20="","",'Ciencias Sociales'!AK20) ->  | AI37: =IF('Ciencias Sociales'!AL20="","",'Ciencias Sociales'!AL20) ->  | AJ37: =IF('Ciencias Sociales'!AM20="","",'Ciencias Sociales'!AM20) ->  | AK37: =IF('Ciencias Sociales'!AN20="","",'Ciencias Sociales'!AN20) ->  | AL37: =IF('Ciencias Sociales'!AO20="","",'Ciencias Sociales'!AO20) ->  | AM37: =IF('Ciencias Sociales'!AP20="","",'Ciencias Sociales'!AP20) -> 
D38: Criterio Evaluación 6.2 | E38: =IF('Ciencias Sociales'!H21="","",'Ciencias Sociales'!H21) ->  | F38: =IF('Ciencias Sociales'!I21="","",'Ciencias Sociales'!I21) ->  | G38: =IF('Ciencias Sociales'!J21="","",'Ciencias Sociales'!J21) ->  | H38: =IF('Ciencias Sociales'!K21="","",'Ciencias Sociales'!K21) ->  | I38: =IF('Ciencias Sociales'!L21="","",'Ciencias Sociales'!L21) ->  | J38: =IF('Ciencias Sociales'!M21="","",'Ciencias Sociales'!M21) ->  | K38: =IF('Ciencias Sociales'!N21="","",'Ciencias Sociales'!N21) ->  | L38: =IF('Ciencias Sociales'!O21="","",'Ciencias Sociales'!O21) ->  | M38: =IF('Ciencias Sociales'!P21="","",'Ciencias Sociales'!P21) ->  | N38: =IF('Ciencias Sociales'!Q21="","",'Ciencias Sociales'!Q21) ->  | O38: =IF('Ciencias Sociales'!R21="","",'Ciencias Sociales'!R21) ->  | P38: =IF('Ciencias Sociales'!S21="","",'Ciencias Sociales'!S21) ->  | Q38: =IF('Ciencias Sociales'!T21="","",'Ciencias Sociales'!T21) ->  | R38: =IF('Ciencias Sociales'!U21="","",'Ciencias Sociales'!U21) ->  | S38: =IF('Ciencias Sociales'!V21="","",'Ciencias Sociales'!V21) ->  | T38: =IF('Ciencias Sociales'!W21="","",'Ciencias Sociales'!W21) ->  | U38: =IF('Ciencias Sociales'!X21="","",'Ciencias Sociales'!X21) ->  | V38: =IF('Ciencias Sociales'!Y21="","",'Ciencias Sociales'!Y21) ->  | W38: =IF('Ciencias Sociales'!Z21="","",'Ciencias Sociales'!Z21) ->  | X38: =IF('Ciencias Sociales'!AA21="","",'Ciencias Sociales'!AA21) ->  | Y38: =IF('Ciencias Sociales'!AB21="","",'Ciencias Sociales'!AB21) ->  | Z38: =IF('Ciencias Sociales'!AC21="","",'Ciencias Sociales'!AC21) ->  | AA38: =IF('Ciencias Sociales'!AD21="","",'Ciencias Sociales'!AD21) ->  | AB38: =IF('Ciencias Sociales'!AE21="","",'Ciencias Sociales'!AE21) ->  | AC38: =IF('Ciencias Sociales'!AF21="","",'Ciencias Sociales'!AF21) ->  | AD38: =IF('Ciencias Sociales'!AG21="","",'Ciencias Sociales'!AG21) ->  | AE38: =IF('Ciencias Sociales'!AH21="","",'Ciencias Sociales'!AH21) ->  | AF38: =IF('Ciencias Sociales'!AI21="","",'Ciencias Sociales'!AI21) ->  | AG38: =IF('Ciencias Sociales'!AJ21="","",'Ciencias Sociales'!AJ21) ->  | AH38: =IF('Ciencias Sociales'!AK21="","",'Ciencias Sociales'!AK21) ->  | AI38: =IF('Ciencias Sociales'!AL21="","",'Ciencias Sociales'!AL21) ->  | AJ38: =IF('Ciencias Sociales'!AM21="","",'Ciencias Sociales'!AM21) ->  | AK38: =IF('Ciencias Sociales'!AN21="","",'Ciencias Sociales'!AN21) ->  | AL38: =IF('Ciencias Sociales'!AO21="","",'Ciencias Sociales'!AO21) ->  | AM38: =IF('Ciencias Sociales'!AP21="","",'Ciencias Sociales'!AP21) -> 
C39: Comp. Esp. 7 | D39: Criterio Evaluación 7.1 | E39: =IF('Ciencias Sociales'!H22="","",'Ciencias Sociales'!H22) ->  | F39: =IF('Ciencias Sociales'!I22="","",'Ciencias Sociales'!I22) ->  | G39: =IF('Ciencias Sociales'!J22="","",'Ciencias Sociales'!J22) ->  | H39: =IF('Ciencias Sociales'!K22="","",'Ciencias Sociales'!K22) ->  | I39: =IF('Ciencias Sociales'!L22="","",'Ciencias Sociales'!L22) ->  | J39: =IF('Ciencias Sociales'!M22="","",'Ciencias Sociales'!M22) ->  | K39: =IF('Ciencias Sociales'!N22="","",'Ciencias Sociales'!N22) ->  | L39: =IF('Ciencias Sociales'!O22="","",'Ciencias Sociales'!O22) ->  | M39: =IF('Ciencias Sociales'!P22="","",'Ciencias Sociales'!P22) ->  | N39: =IF('Ciencias Sociales'!Q22="","",'Ciencias Sociales'!Q22) ->  | O39: =IF('Ciencias Sociales'!R22="","",'Ciencias Sociales'!R22) ->  | P39: =IF('Ciencias Sociales'!S22="","",'Ciencias Sociales'!S22) ->  | Q39: =IF('Ciencias Sociales'!T22="","",'Ciencias Sociales'!T22) ->  | R39: =IF('Ciencias Sociales'!U22="","",'Ciencias Sociales'!U22) ->  | S39: =IF('Ciencias Sociales'!V22="","",'Ciencias Sociales'!V22) ->  | T39: =IF('Ciencias Sociales'!W22="","",'Ciencias Sociales'!W22) ->  | U39: =IF('Ciencias Sociales'!X22="","",'Ciencias Sociales'!X22) ->  | V39: =IF('Ciencias Sociales'!Y22="","",'Ciencias Sociales'!Y22) ->  | W39: =IF('Ciencias Sociales'!Z22="","",'Ciencias Sociales'!Z22) ->  | X39: =IF('Ciencias Sociales'!AA22="","",'Ciencias Sociales'!AA22) ->  | Y39: =IF('Ciencias Sociales'!AB22="","",'Ciencias Sociales'!AB22) ->  | Z39: =IF('Ciencias Sociales'!AC22="","",'Ciencias Sociales'!AC22) ->  | AA39: =IF('Ciencias Sociales'!AD22="","",'Ciencias Sociales'!AD22) ->  | AB39: =IF('Ciencias Sociales'!AE22="","",'Ciencias Sociales'!AE22) ->  | AC39: =IF('Ciencias Sociales'!AF22="","",'Ciencias Sociales'!AF22) ->  | AD39: =IF('Ciencias Sociales'!AG22="","",'Ciencias Sociales'!AG22) ->  | AE39: =IF('Ciencias Sociales'!AH22="","",'Ciencias Sociales'!AH22) ->  | AF39: =IF('Ciencias Sociales'!AI22="","",'Ciencias Sociales'!AI22) ->  | AG39: =IF('Ciencias Sociales'!AJ22="","",'Ciencias Sociales'!AJ22) ->  | AH39: =IF('Ciencias Sociales'!AK22="","",'Ciencias Sociales'!AK22) ->  | AI39: =IF('Ciencias Sociales'!AL22="","",'Ciencias Sociales'!AL22) ->  | AJ39: =IF('Ciencias Sociales'!AM22="","",'Ciencias Sociales'!AM22) ->  | AK39: =IF('Ciencias Sociales'!AN22="","",'Ciencias Sociales'!AN22) ->  | AL39: =IF('Ciencias Sociales'!AO22="","",'Ciencias Sociales'!AO22) ->  | AM39: =IF('Ciencias Sociales'!AP22="","",'Ciencias Sociales'!AP22) -> 
D40: Criterio Evaluación 7.2 | E40: =IF('Ciencias Sociales'!H23="","",'Ciencias Sociales'!H23) ->  | F40: =IF('Ciencias Sociales'!I23="","",'Ciencias Sociales'!I23) ->  | G40: =IF('Ciencias Sociales'!J23="","",'Ciencias Sociales'!J23) ->  | H40: =IF('Ciencias Sociales'!K23="","",'Ciencias Sociales'!K23) ->  | I40: =IF('Ciencias Sociales'!L23="","",'Ciencias Sociales'!L23) ->  | J40: =IF('Ciencias Sociales'!M23="","",'Ciencias Sociales'!M23) ->  | K40: =IF('Ciencias Sociales'!N23="","",'Ciencias Sociales'!N23) ->  | L40: =IF('Ciencias Sociales'!O23="","",'Ciencias Sociales'!O23) ->  | M40: =IF('Ciencias Sociales'!P23="","",'Ciencias Sociales'!P23) ->  | N40: =IF('Ciencias Sociales'!Q23="","",'Ciencias Sociales'!Q23) ->  | O40: =IF('Ciencias Sociales'!R23="","",'Ciencias Sociales'!R23) ->  | P40: =IF('Ciencias Sociales'!S23="","",'Ciencias Sociales'!S23) ->  | Q40: =IF('Ciencias Sociales'!T23="","",'Ciencias Sociales'!T23) ->  | R40: =IF('Ciencias Sociales'!U23="","",'Ciencias Sociales'!U23) ->  | S40: =IF('Ciencias Sociales'!V23="","",'Ciencias Sociales'!V23) ->  | T40: =IF('Ciencias Sociales'!W23="","",'Ciencias Sociales'!W23) ->  | U40: =IF('Ciencias Sociales'!X23="","",'Ciencias Sociales'!X23) ->  | V40: =IF('Ciencias Sociales'!Y23="","",'Ciencias Sociales'!Y23) ->  | W40: =IF('Ciencias Sociales'!Z23="","",'Ciencias Sociales'!Z23) ->  | X40: =IF('Ciencias Sociales'!AA23="","",'Ciencias Sociales'!AA23) ->  | Y40: =IF('Ciencias Sociales'!AB23="","",'Ciencias Sociales'!AB23) ->  | Z40: =IF('Ciencias Sociales'!AC23="","",'Ciencias Sociales'!AC23) ->  | AA40: =IF('Ciencias Sociales'!AD23="","",'Ciencias Sociales'!AD23) ->  | AB40: =IF('Ciencias Sociales'!AE23="","",'Ciencias Sociales'!AE23) ->  | AC40: =IF('Ciencias Sociales'!AF23="","",'Ciencias Sociales'!AF23) ->  | AD40: =IF('Ciencias Sociales'!AG23="","",'Ciencias Sociales'!AG23) ->  | AE40: =IF('Ciencias Sociales'!AH23="","",'Ciencias Sociales'!AH23) ->  | AF40: =IF('Ciencias Sociales'!AI23="","",'Ciencias Sociales'!AI23) ->  | AG40: =IF('Ciencias Sociales'!AJ23="","",'Ciencias Sociales'!AJ23) ->  | AH40: =IF('Ciencias Sociales'!AK23="","",'Ciencias Sociales'!AK23) ->  | AI40: =IF('Ciencias Sociales'!AL23="","",'Ciencias Sociales'!AL23) ->  | AJ40: =IF('Ciencias Sociales'!AM23="","",'Ciencias Sociales'!AM23) ->  | AK40: =IF('Ciencias Sociales'!AN23="","",'Ciencias Sociales'!AN23) ->  | AL40: =IF('Ciencias Sociales'!AO23="","",'Ciencias Sociales'!AO23) ->  | AM40: =IF('Ciencias Sociales'!AP23="","",'Ciencias Sociales'!AP23) -> 
D41: Criterio Evaluación 7.3 | E41: =IF('Ciencias Sociales'!H24="","",'Ciencias Sociales'!H24) ->  | F41: =IF('Ciencias Sociales'!I24="","",'Ciencias Sociales'!I24) ->  | G41: =IF('Ciencias Sociales'!J24="","",'Ciencias Sociales'!J24) ->  | H41: =IF('Ciencias Sociales'!K24="","",'Ciencias Sociales'!K24) ->  | I41: =IF('Ciencias Sociales'!L24="","",'Ciencias Sociales'!L24) ->  | J41: =IF('Ciencias Sociales'!M24="","",'Ciencias Sociales'!M24) ->  | K41: =IF('Ciencias Sociales'!N24="","",'Ciencias Sociales'!N24) ->  | L41: =IF('Ciencias Sociales'!O24="","",'Ciencias Sociales'!O24) ->  | M41: =IF('Ciencias Sociales'!P24="","",'Ciencias Sociales'!P24) ->  | N41: =IF('Ciencias Sociales'!Q24="","",'Ciencias Sociales'!Q24) ->  | O41: =IF('Ciencias Sociales'!R24="","",'Ciencias Sociales'!R24) ->  | P41: =IF('Ciencias Sociales'!S24="","",'Ciencias Sociales'!S24) ->  | Q41: =IF('Ciencias Sociales'!T24="","",'Ciencias Sociales'!T24) ->  | R41: =IF('Ciencias Sociales'!U24="","",'Ciencias Sociales'!U24) ->  | S41: =IF('Ciencias Sociales'!V24="","",'Ciencias Sociales'!V24) ->  | T41: =IF('Ciencias Sociales'!W24="","",'Ciencias Sociales'!W24) ->  | U41: =IF('Ciencias Sociales'!X24="","",'Ciencias Sociales'!X24) ->  | V41: =IF('Ciencias Sociales'!Y24="","",'Ciencias Sociales'!Y24) ->  | W41: =IF('Ciencias Sociales'!Z24="","",'Ciencias Sociales'!Z24) ->  | X41: =IF('Ciencias Sociales'!AA24="","",'Ciencias Sociales'!AA24) ->  | Y41: =IF('Ciencias Sociales'!AB24="","",'Ciencias Sociales'!AB24) ->  | Z41: =IF('Ciencias Sociales'!AC24="","",'Ciencias Sociales'!AC24) ->  | AA41: =IF('Ciencias Sociales'!AD24="","",'Ciencias Sociales'!AD24) ->  | AB41: =IF('Ciencias Sociales'!AE24="","",'Ciencias Sociales'!AE24) ->  | AC41: =IF('Ciencias Sociales'!AF24="","",'Ciencias Sociales'!AF24) ->  | AD41: =IF('Ciencias Sociales'!AG24="","",'Ciencias Sociales'!AG24) ->  | AE41: =IF('Ciencias Sociales'!AH24="","",'Ciencias Sociales'!AH24) ->  | AF41: =IF('Ciencias Sociales'!AI24="","",'Ciencias Sociales'!AI24) ->  | AG41: =IF('Ciencias Sociales'!AJ24="","",'Ciencias Sociales'!AJ24) ->  | AH41: =IF('Ciencias Sociales'!AK24="","",'Ciencias Sociales'!AK24) ->  | AI41: =IF('Ciencias Sociales'!AL24="","",'Ciencias Sociales'!AL24) ->  | AJ41: =IF('Ciencias Sociales'!AM24="","",'Ciencias Sociales'!AM24) ->  | AK41: =IF('Ciencias Sociales'!AN24="","",'Ciencias Sociales'!AN24) ->  | AL41: =IF('Ciencias Sociales'!AO24="","",'Ciencias Sociales'!AO24) ->  | AM41: =IF('Ciencias Sociales'!AP24="","",'Ciencias Sociales'!AP24) -> 
B42: Educación Plástica y Visual | C42: Comp. Esp. 1 | D42: Criterio Evaluación 1.1 | E42: =IF(EPV!H4="","",EPV!H4) ->  | F42: =IF(EPV!I4="","",EPV!I4) ->  | G42: =IF(EPV!J4="","",EPV!J4) ->  | H42: =IF(EPV!K4="","",EPV!K4) ->  | I42: =IF(EPV!L4="","",EPV!L4) ->  | J42: =IF(EPV!M4="","",EPV!M4) ->  | K42: =IF(EPV!N4="","",EPV!N4) ->  | L42: =IF(EPV!O4="","",EPV!O4) ->  | M42: =IF(EPV!P4="","",EPV!P4) ->  | N42: =IF(EPV!Q4="","",EPV!Q4) ->  | O42: =IF(EPV!R4="","",EPV!R4) ->  | P42: =IF(EPV!S4="","",EPV!S4) ->  | Q42: =IF(EPV!T4="","",EPV!T4) ->  | R42: =IF(EPV!U4="","",EPV!U4) ->  | S42: =IF(EPV!V4="","",EPV!V4) ->  | T42: =IF(EPV!W4="","",EPV!W4) ->  | U42: =IF(EPV!X4="","",EPV!X4) ->  | V42: =IF(EPV!Y4="","",EPV!Y4) ->  | W42: =IF(EPV!Z4="","",EPV!Z4) ->  | X42: =IF(EPV!AA4="","",EPV!AA4) ->  | Y42: =IF(EPV!AB4="","",EPV!AB4) ->  | Z42: =IF(EPV!AC4="","",EPV!AC4) ->  | AA42: =IF(EPV!AD4="","",EPV!AD4) ->  | AB42: =IF(EPV!AE4="","",EPV!AE4) ->  | AC42: =IF(EPV!AF4="","",EPV!AF4) ->  | AD42: =IF(EPV!AG4="","",EPV!AG4) ->  | AE42: =IF(EPV!AH4="","",EPV!AH4) ->  | AF42: =IF(EPV!AI4="","",EPV!AI4) ->  | AG42: =IF(EPV!AJ4="","",EPV!AJ4) ->  | AH42: =IF(EPV!AK4="","",EPV!AK4) ->  | AI42: =IF(EPV!AL4="","",EPV!AL4) ->  | AJ42: =IF(EPV!AM4="","",EPV!AM4) ->  | AK42: =IF(EPV!AN4="","",EPV!AN4) ->  | AL42: =IF(EPV!AO4="","",EPV!AO4) ->  | AM42: =IF(EPV!AP4="","",EPV!AP4) -> 
D43: Criterio Evaluación 1.2 | E43: =IF(EPV!H5="","",EPV!H5) ->  | F43: =IF(EPV!I5="","",EPV!I5) ->  | G43: =IF(EPV!J5="","",EPV!J5) ->  | H43: =IF(EPV!K5="","",EPV!K5) ->  | I43: =IF(EPV!L5="","",EPV!L5) ->  | J43: =IF(EPV!M5="","",EPV!M5) ->  | K43: =IF(EPV!N5="","",EPV!N5) ->  | L43: =IF(EPV!O5="","",EPV!O5) ->  | M43: =IF(EPV!P5="","",EPV!P5) ->  | N43: =IF(EPV!Q5="","",EPV!Q5) ->  | O43: =IF(EPV!R5="","",EPV!R5) ->  | P43: =IF(EPV!S5="","",EPV!S5) ->  | Q43: =IF(EPV!T5="","",EPV!T5) ->  | R43: =IF(EPV!U5="","",EPV!U5) ->  | S43: =IF(EPV!V5="","",EPV!V5) ->  | T43: =IF(EPV!W5="","",EPV!W5) ->  | U43: =IF(EPV!X5="","",EPV!X5) ->  | V43: =IF(EPV!Y5="","",EPV!Y5) ->  | W43: =IF(EPV!Z5="","",EPV!Z5) ->  | X43: =IF(EPV!AA5="","",EPV!AA5) ->  | Y43: =IF(EPV!AB5="","",EPV!AB5) ->  | Z43: =IF(EPV!AC5="","",EPV!AC5) ->  | AA43: =IF(EPV!AD5="","",EPV!AD5) ->  | AB43: =IF(EPV!AE5="","",EPV!AE5) ->  | AC43: =IF(EPV!AF5="","",EPV!AF5) ->  | AD43: =IF(EPV!AG5="","",EPV!AG5) ->  | AE43: =IF(EPV!AH5="","",EPV!AH5) ->  | AF43: =IF(EPV!AI5="","",EPV!AI5) ->  | AG43: =IF(EPV!AJ5="","",EPV!AJ5) ->  | AH43: =IF(EPV!AK5="","",EPV!AK5) ->  | AI43: =IF(EPV!AL5="","",EPV!AL5) ->  | AJ43: =IF(EPV!AM5="","",EPV!AM5) ->  | AK43: =IF(EPV!AN5="","",EPV!AN5) ->  | AL43: =IF(EPV!AO5="","",EPV!AO5) ->  | AM43: =IF(EPV!AP5="","",EPV!AP5) -> 
D44: Criterio Evaluación 1.3 | E44: =IF(EPV!H6="","",EPV!H6) ->  | F44: =IF(EPV!I6="","",EPV!I6) ->  | G44: =IF(EPV!J6="","",EPV!J6) ->  | H44: =IF(EPV!K6="","",EPV!K6) ->  | I44: =IF(EPV!L6="","",EPV!L6) ->  | J44: =IF(EPV!M6="","",EPV!M6) ->  | K44: =IF(EPV!N6="","",EPV!N6) ->  | L44: =IF(EPV!O6="","",EPV!O6) ->  | M44: =IF(EPV!P6="","",EPV!P6) ->  | N44: =IF(EPV!Q6="","",EPV!Q6) ->  | O44: =IF(EPV!R6="","",EPV!R6) ->  | P44: =IF(EPV!S6="","",EPV!S6) ->  | Q44: =IF(EPV!T6="","",EPV!T6) ->  | R44: =IF(EPV!U6="","",EPV!U6) ->  | S44: =IF(EPV!V6="","",EPV!V6) ->  | T44: =IF(EPV!W6="","",EPV!W6) ->  | U44: =IF(EPV!X6="","",EPV!X6) ->  | V44: =IF(EPV!Y6="","",EPV!Y6) ->  | W44: =IF(EPV!Z6="","",EPV!Z6) ->  | X44: =IF(EPV!AA6="","",EPV!AA6) ->  | Y44: =IF(EPV!AB6="","",EPV!AB6) ->  | Z44: =IF(EPV!AC6="","",EPV!AC6) ->  | AA44: =IF(EPV!AD6="","",EPV!AD6) ->  | AB44: =IF(EPV!AE6="","",EPV!AE6) ->  | AC44: =IF(EPV!AF6="","",EPV!AF6) ->  | AD44: =IF(EPV!AG6="","",EPV!AG6) ->  | AE44: =IF(EPV!AH6="","",EPV!AH6) ->  | AF44: =IF(EPV!AI6="","",EPV!AI6) ->  | AG44: =IF(EPV!AJ6="","",EPV!AJ6) ->  | AH44: =IF(EPV!AK6="","",EPV!AK6) ->  | AI44: =IF(EPV!AL6="","",EPV!AL6) ->  | AJ44: =IF(EPV!AM6="","",EPV!AM6) ->  | AK44: =IF(EPV!AN6="","",EPV!AN6) ->  | AL44: =IF(EPV!AO6="","",EPV!AO6) ->  | AM44: =IF(EPV!AP6="","",EPV!AP6) -> 
C45: Comp. Esp. 2 | D45: Criterio Evaluación 2.1 | E45: =IF(EPV!H7="","",EPV!H7) ->  | F45: =IF(EPV!I7="","",EPV!I7) ->  | G45: =IF(EPV!J7="","",EPV!J7) ->  | H45: =IF(EPV!K7="","",EPV!K7) ->  | I45: =IF(EPV!L7="","",EPV!L7) ->  | J45: =IF(EPV!M7="","",EPV!M7) ->  | K45: =IF(EPV!N7="","",EPV!N7) ->  | L45: =IF(EPV!O7="","",EPV!O7) ->  | M45: =IF(EPV!P7="","",EPV!P7) ->  | N45: =IF(EPV!Q7="","",EPV!Q7) ->  | O45: =IF(EPV!R7="","",EPV!R7) ->  | P45: =IF(EPV!S7="","",EPV!S7) ->  | Q45: =IF(EPV!T7="","",EPV!T7) ->  | R45: =IF(EPV!U7="","",EPV!U7) ->  | S45: =IF(EPV!V7="","",EPV!V7) ->  | T45: =IF(EPV!W7="","",EPV!W7) ->  | U45: =IF(EPV!X7="","",EPV!X7) ->  | V45: =IF(EPV!Y7="","",EPV!Y7) ->  | W45: =IF(EPV!Z7="","",EPV!Z7) ->  | X45: =IF(EPV!AA7="","",EPV!AA7) ->  | Y45: =IF(EPV!AB7="","",EPV!AB7) ->  | Z45: =IF(EPV!AC7="","",EPV!AC7) ->  | AA45: =IF(EPV!AD7="","",EPV!AD7) ->  | AB45: =IF(EPV!AE7="","",EPV!AE7) ->  | AC45: =IF(EPV!AF7="","",EPV!AF7) ->  | AD45: =IF(EPV!AG7="","",EPV!AG7) ->  | AE45: =IF(EPV!AH7="","",EPV!AH7) ->  | AF45: =IF(EPV!AI7="","",EPV!AI7) ->  | AG45: =IF(EPV!AJ7="","",EPV!AJ7) ->  | AH45: =IF(EPV!AK7="","",EPV!AK7) ->  | AI45: =IF(EPV!AL7="","",EPV!AL7) ->  | AJ45: =IF(EPV!AM7="","",EPV!AM7) ->  | AK45: =IF(EPV!AN7="","",EPV!AN7) ->  | AL45: =IF(EPV!AO7="","",EPV!AO7) ->  | AM45: =IF(EPV!AP7="","",EPV!AP7) -> 
D46: Criterio Evaluación 2.2 | E46: =IF(EPV!H8="","",EPV!H8) ->  | F46: =IF(EPV!I8="","",EPV!I8) ->  | G46: =IF(EPV!J8="","",EPV!J8) ->  | H46: =IF(EPV!K8="","",EPV!K8) ->  | I46: =IF(EPV!L8="","",EPV!L8) ->  | J46: =IF(EPV!M8="","",EPV!M8) ->  | K46: =IF(EPV!N8="","",EPV!N8) ->  | L46: =IF(EPV!O8="","",EPV!O8) ->  | M46: =IF(EPV!P8="","",EPV!P8) ->  | N46: =IF(EPV!Q8="","",EPV!Q8) ->  | O46: =IF(EPV!R8="","",EPV!R8) ->  | P46: =IF(EPV!S8="","",EPV!S8) ->  | Q46: =IF(EPV!T8="","",EPV!T8) ->  | R46: =IF(EPV!U8="","",EPV!U8) ->  | S46: =IF(EPV!V8="","",EPV!V8) ->  | T46: =IF(EPV!W8="","",EPV!W8) ->  | U46: =IF(EPV!X8="","",EPV!X8) ->  | V46: =IF(EPV!Y8="","",EPV!Y8) ->  | W46: =IF(EPV!Z8="","",EPV!Z8) ->  | X46: =IF(EPV!AA8="","",EPV!AA8) ->  | Y46: =IF(EPV!AB8="","",EPV!AB8) ->  | Z46: =IF(EPV!AC8="","",EPV!AC8) ->  | AA46: =IF(EPV!AD8="","",EPV!AD8) ->  | AB46: =IF(EPV!AE8="","",EPV!AE8) ->  | AC46: =IF(EPV!AF8="","",EPV!AF8) ->  | AD46: =IF(EPV!AG8="","",EPV!AG8) ->  | AE46: =IF(EPV!AH8="","",EPV!AH8) ->  | AF46: =IF(EPV!AI8="","",EPV!AI8) ->  | AG46: =IF(EPV!AJ8="","",EPV!AJ8) ->  | AH46: =IF(EPV!AK8="","",EPV!AK8) ->  | AI46: =IF(EPV!AL8="","",EPV!AL8) ->  | AJ46: =IF(EPV!AM8="","",EPV!AM8) ->  | AK46: =IF(EPV!AN8="","",EPV!AN8) ->  | AL46: =IF(EPV!AO8="","",EPV!AO8) ->  | AM46: =IF(EPV!AP8="","",EPV!AP8) -> 
D47: Criterio Evaluación 2.3 | E47: =IF(EPV!H9="","",EPV!H9) ->  | F47: =IF(EPV!I9="","",EPV!I9) ->  | G47: =IF(EPV!J9="","",EPV!J9) ->  | H47: =IF(EPV!K9="","",EPV!K9) ->  | I47: =IF(EPV!L9="","",EPV!L9) ->  | J47: =IF(EPV!M9="","",EPV!M9) ->  | K47: =IF(EPV!N9="","",EPV!N9) ->  | L47: =IF(EPV!O9="","",EPV!O9) ->  | M47: =IF(EPV!P9="","",EPV!P9) ->  | N47: =IF(EPV!Q9="","",EPV!Q9) ->  | O47: =IF(EPV!R9="","",EPV!R9) ->  | P47: =IF(EPV!S9="","",EPV!S9) ->  | Q47: =IF(EPV!T9="","",EPV!T9) ->  | R47: =IF(EPV!U9="","",EPV!U9) ->  | S47: =IF(EPV!V9="","",EPV!V9) ->  | T47: =IF(EPV!W9="","",EPV!W9) ->  | U47: =IF(EPV!X9="","",EPV!X9) ->  | V47: =IF(EPV!Y9="","",EPV!Y9) ->  | W47: =IF(EPV!Z9="","",EPV!Z9) ->  | X47: =IF(EPV!AA9="","",EPV!AA9) ->  | Y47: =IF(EPV!AB9="","",EPV!AB9) ->  | Z47: =IF(EPV!AC9="","",EPV!AC9) ->  | AA47: =IF(EPV!AD9="","",EPV!AD9) ->  | AB47: =IF(EPV!AE9="","",EPV!AE9) ->  | AC47: =IF(EPV!AF9="","",EPV!AF9) ->  | AD47: =IF(EPV!AG9="","",EPV!AG9) ->  | AE47: =IF(EPV!AH9="","",EPV!AH9) ->  | AF47: =IF(EPV!AI9="","",EPV!AI9) ->  | AG47: =IF(EPV!AJ9="","",EPV!AJ9) ->  | AH47: =IF(EPV!AK9="","",EPV!AK9) ->  | AI47: =IF(EPV!AL9="","",EPV!AL9) ->  | AJ47: =IF(EPV!AM9="","",EPV!AM9) ->  | AK47: =IF(EPV!AN9="","",EPV!AN9) ->  | AL47: =IF(EPV!AO9="","",EPV!AO9) ->  | AM47: =IF(EPV!AP9="","",EPV!AP9) -> 
C48: Comp. Esp. 3 | D48: Criterio Evaluación 3.1 | E48: =IF(EPV!H10="","",EPV!H10) ->  | F48: =IF(EPV!I10="","",EPV!I10) ->  | G48: =IF(EPV!J10="","",EPV!J10) ->  | H48: =IF(EPV!K10="","",EPV!K10) ->  | I48: =IF(EPV!L10="","",EPV!L10) ->  | J48: =IF(EPV!M10="","",EPV!M10) ->  | K48: =IF(EPV!N10="","",EPV!N10) ->  | L48: =IF(EPV!O10="","",EPV!O10) ->  | M48: =IF(EPV!P10="","",EPV!P10) ->  | N48: =IF(EPV!Q10="","",EPV!Q10) ->  | O48: =IF(EPV!R10="","",EPV!R10) ->  | P48: =IF(EPV!S10="","",EPV!S10) ->  | Q48: =IF(EPV!T10="","",EPV!T10) ->  | R48: =IF(EPV!U10="","",EPV!U10) ->  | S48: =IF(EPV!V10="","",EPV!V10) ->  | T48: =IF(EPV!W10="","",EPV!W10) ->  | U48: =IF(EPV!X10="","",EPV!X10) ->  | V48: =IF(EPV!Y10="","",EPV!Y10) ->  | W48: =IF(EPV!Z10="","",EPV!Z10) ->  | X48: =IF(EPV!AA10="","",EPV!AA10) ->  | Y48: =IF(EPV!AB10="","",EPV!AB10) ->  | Z48: =IF(EPV!AC10="","",EPV!AC10) ->  | AA48: =IF(EPV!AD10="","",EPV!AD10) ->  | AB48: =IF(EPV!AE10="","",EPV!AE10) ->  | AC48: =IF(EPV!AF10="","",EPV!AF10) ->  | AD48: =IF(EPV!AG10="","",EPV!AG10) ->  | AE48: =IF(EPV!AH10="","",EPV!AH10) ->  | AF48: =IF(EPV!AI10="","",EPV!AI10) ->  | AG48: =IF(EPV!AJ10="","",EPV!AJ10) ->  | AH48: =IF(EPV!AK10="","",EPV!AK10) ->  | AI48: =IF(EPV!AL10="","",EPV!AL10) ->  | AJ48: =IF(EPV!AM10="","",EPV!AM10) ->  | AK48: =IF(EPV!AN10="","",EPV!AN10) ->  | AL48: =IF(EPV!AO10="","",EPV!AO10) ->  | AM48: =IF(EPV!AP10="","",EPV!AP10) -> 
D49: Criterio Evaluación 3.2 | E49: =IF(EPV!H11="","",EPV!H11) ->  | F49: =IF(EPV!I11="","",EPV!I11) ->  | G49: =IF(EPV!J11="","",EPV!J11) ->  | H49: =IF(EPV!K11="","",EPV!K11) ->  | I49: =IF(EPV!L11="","",EPV!L11) ->  | J49: =IF(EPV!M11="","",EPV!M11) ->  | K49: =IF(EPV!N11="","",EPV!N11) ->  | L49: =IF(EPV!O11="","",EPV!O11) ->  | M49: =IF(EPV!P11="","",EPV!P11) ->  | N49: =IF(EPV!Q11="","",EPV!Q11) ->  | O49: =IF(EPV!R11="","",EPV!R11) ->  | P49: =IF(EPV!S11="","",EPV!S11) ->  | Q49: =IF(EPV!T11="","",EPV!T11) ->  | R49: =IF(EPV!U11="","",EPV!U11) ->  | S49: =IF(EPV!V11="","",EPV!V11) ->  | T49: =IF(EPV!W11="","",EPV!W11) ->  | U49: =IF(EPV!X11="","",EPV!X11) ->  | V49: =IF(EPV!Y11="","",EPV!Y11) ->  | W49: =IF(EPV!Z11="","",EPV!Z11) ->  | X49: =IF(EPV!AA11="","",EPV!AA11) ->  | Y49: =IF(EPV!AB11="","",EPV!AB11) ->  | Z49: =IF(EPV!AC11="","",EPV!AC11) ->  | AA49: =IF(EPV!AD11="","",EPV!AD11) ->  | AB49: =IF(EPV!AE11="","",EPV!AE11) ->  | AC49: =IF(EPV!AF11="","",EPV!AF11) ->  | AD49: =IF(EPV!AG11="","",EPV!AG11) ->  | AE49: =IF(EPV!AH11="","",EPV!AH11) ->  | AF49: =IF(EPV!AI11="","",EPV!AI11) ->  | AG49: =IF(EPV!AJ11="","",EPV!AJ11) ->  | AH49: =IF(EPV!AK11="","",EPV!AK11) ->  | AI49: =IF(EPV!AL11="","",EPV!AL11) ->  | AJ49: =IF(EPV!AM11="","",EPV!AM11) ->  | AK49: =IF(EPV!AN11="","",EPV!AN11) ->  | AL49: =IF(EPV!AO11="","",EPV!AO11) ->  | AM49: =IF(EPV!AP11="","",EPV!AP11) -> 
D50: Criterio Evaluación 3.3 | E50: =IF(EPV!H12="","",EPV!H12) ->  | F50: =IF(EPV!I12="","",EPV!I12) ->  | G50: =IF(EPV!J12="","",EPV!J12) ->  | H50: =IF(EPV!K12="","",EPV!K12) ->  | I50: =IF(EPV!L12="","",EPV!L12) ->  | J50: =IF(EPV!M12="","",EPV!M12) ->  | K50: =IF(EPV!N12="","",EPV!N12) ->  | L50: =IF(EPV!O12="","",EPV!O12) ->  | M50: =IF(EPV!P12="","",EPV!P12) ->  | N50: =IF(EPV!Q12="","",EPV!Q12) ->  | O50: =IF(EPV!R12="","",EPV!R12) ->  | P50: =IF(EPV!S12="","",EPV!S12) ->  | Q50: =IF(EPV!T12="","",EPV!T12) ->  | R50: =IF(EPV!U12="","",EPV!U12) ->  | S50: =IF(EPV!V12="","",EPV!V12) ->  | T50: =IF(EPV!W12="","",EPV!W12) ->  | U50: =IF(EPV!X12="","",EPV!X12) ->  | V50: =IF(EPV!Y12="","",EPV!Y12) ->  | W50: =IF(EPV!Z12="","",EPV!Z12) ->  | X50: =IF(EPV!AA12="","",EPV!AA12) ->  | Y50: =IF(EPV!AB12="","",EPV!AB12) ->  | Z50: =IF(EPV!AC12="","",EPV!AC12) ->  | AA50: =IF(EPV!AD12="","",EPV!AD12) ->  | AB50: =IF(EPV!AE12="","",EPV!AE12) ->  | AC50: =IF(EPV!AF12="","",EPV!AF12) ->  | AD50: =IF(EPV!AG12="","",EPV!AG12) ->  | AE50: =IF(EPV!AH12="","",EPV!AH12) ->  | AF50: =IF(EPV!AI12="","",EPV!AI12) ->  | AG50: =IF(EPV!AJ12="","",EPV!AJ12) ->  | AH50: =IF(EPV!AK12="","",EPV!AK12) ->  | AI50: =IF(EPV!AL12="","",EPV!AL12) ->  | AJ50: =IF(EPV!AM12="","",EPV!AM12) ->  | AK50: =IF(EPV!AN12="","",EPV!AN12) ->  | AL50: =IF(EPV!AO12="","",EPV!AO12) ->  | AM50: =IF(EPV!AP12="","",EPV!AP12) -> 
C51: Comp. Esp. 4 | D51: Criterio Evaluación 4.1 | E51: =IF(EPV!H13="","",EPV!H13) ->  | F51: =IF(EPV!I13="","",EPV!I13) ->  | G51: =IF(EPV!J13="","",EPV!J13) ->  | H51: =IF(EPV!K13="","",EPV!K13) ->  | I51: =IF(EPV!L13="","",EPV!L13) ->  | J51: =IF(EPV!M13="","",EPV!M13) ->  | K51: =IF(EPV!N13="","",EPV!N13) ->  | L51: =IF(EPV!O13="","",EPV!O13) ->  | M51: =IF(EPV!P13="","",EPV!P13) ->  | N51: =IF(EPV!Q13="","",EPV!Q13) ->  | O51: =IF(EPV!R13="","",EPV!R13) ->  | P51: =IF(EPV!S13="","",EPV!S13) ->  | Q51: =IF(EPV!T13="","",EPV!T13) ->  | R51: =IF(EPV!U13="","",EPV!U13) ->  | S51: =IF(EPV!V13="","",EPV!V13) ->  | T51: =IF(EPV!W13="","",EPV!W13) ->  | U51: =IF(EPV!X13="","",EPV!X13) ->  | V51: =IF(EPV!Y13="","",EPV!Y13) ->  | W51: =IF(EPV!Z13="","",EPV!Z13) ->  | X51: =IF(EPV!AA13="","",EPV!AA13) ->  | Y51: =IF(EPV!AB13="","",EPV!AB13) ->  | Z51: =IF(EPV!AC13="","",EPV!AC13) ->  | AA51: =IF(EPV!AD13="","",EPV!AD13) ->  | AB51: =IF(EPV!AE13="","",EPV!AE13) ->  | AC51: =IF(EPV!AF13="","",EPV!AF13) ->  | AD51: =IF(EPV!AG13="","",EPV!AG13) ->  | AE51: =IF(EPV!AH13="","",EPV!AH13) ->  | AF51: =IF(EPV!AI13="","",EPV!AI13) ->  | AG51: =IF(EPV!AJ13="","",EPV!AJ13) ->  | AH51: =IF(EPV!AK13="","",EPV!AK13) ->  | AI51: =IF(EPV!AL13="","",EPV!AL13) ->  | AJ51: =IF(EPV!AM13="","",EPV!AM13) ->  | AK51: =IF(EPV!AN13="","",EPV!AN13) ->  | AL51: =IF(EPV!AO13="","",EPV!AO13) ->  | AM51: =IF(EPV!AP13="","",EPV!AP13) -> 
D52: Criterio Evaluación 4.2 | E52: =IF(EPV!H14="","",EPV!H14) ->  | F52: =IF(EPV!I14="","",EPV!I14) ->  | G52: =IF(EPV!J14="","",EPV!J14) ->  | H52: =IF(EPV!K14="","",EPV!K14) ->  | I52: =IF(EPV!L14="","",EPV!L14) ->  | J52: =IF(EPV!M14="","",EPV!M14) ->  | K52: =IF(EPV!N14="","",EPV!N14) ->  | L52: =IF(EPV!O14="","",EPV!O14) ->  | M52: =IF(EPV!P14="","",EPV!P14) ->  | N52: =IF(EPV!Q14="","",EPV!Q14) ->  | O52: =IF(EPV!R14="","",EPV!R14) ->  | P52: =IF(EPV!S14="","",EPV!S14) ->  | Q52: =IF(EPV!T14="","",EPV!T14) ->  | R52: =IF(EPV!U14="","",EPV!U14) ->  | S52: =IF(EPV!V14="","",EPV!V14) ->  | T52: =IF(EPV!W14="","",EPV!W14) ->  | U52: =IF(EPV!X14="","",EPV!X14) ->  | V52: =IF(EPV!Y14="","",EPV!Y14) ->  | W52: =IF(EPV!Z14="","",EPV!Z14) ->  | X52: =IF(EPV!AA14="","",EPV!AA14) ->  | Y52: =IF(EPV!AB14="","",EPV!AB14) ->  | Z52: =IF(EPV!AC14="","",EPV!AC14) ->  | AA52: =IF(EPV!AD14="","",EPV!AD14) ->  | AB52: =IF(EPV!AE14="","",EPV!AE14) ->  | AC52: =IF(EPV!AF14="","",EPV!AF14) ->  | AD52: =IF(EPV!AG14="","",EPV!AG14) ->  | AE52: =IF(EPV!AH14="","",EPV!AH14) ->  | AF52: =IF(EPV!AI14="","",EPV!AI14) ->  | AG52: =IF(EPV!AJ14="","",EPV!AJ14) ->  | AH52: =IF(EPV!AK14="","",EPV!AK14) ->  | AI52: =IF(EPV!AL14="","",EPV!AL14) ->  | AJ52: =IF(EPV!AM14="","",EPV!AM14) ->  | AK52: =IF(EPV!AN14="","",EPV!AN14) ->  | AL52: =IF(EPV!AO14="","",EPV!AO14) ->  | AM52: =IF(EPV!AP14="","",EPV!AP14) -> 
D53: Criterio Evaluación 4.3 | E53: =IF(EPV!H15="","",EPV!H15) ->  | F53: =IF(EPV!I15="","",EPV!I15) ->  | G53: =IF(EPV!J15="","",EPV!J15) ->  | H53: =IF(EPV!K15="","",EPV!K15) ->  | I53: =IF(EPV!L15="","",EPV!L15) ->  | J53: =IF(EPV!M15="","",EPV!M15) ->  | K53: =IF(EPV!N15="","",EPV!N15) ->  | L53: =IF(EPV!O15="","",EPV!O15) ->  | M53: =IF(EPV!P15="","",EPV!P15) ->  | N53: =IF(EPV!Q15="","",EPV!Q15) ->  | O53: =IF(EPV!R15="","",EPV!R15) ->  | P53: =IF(EPV!S15="","",EPV!S15) ->  | Q53: =IF(EPV!T15="","",EPV!T15) ->  | R53: =IF(EPV!U15="","",EPV!U15) ->  | S53: =IF(EPV!V15="","",EPV!V15) ->  | T53: =IF(EPV!W15="","",EPV!W15) ->  | U53: =IF(EPV!X15="","",EPV!X15) ->  | V53: =IF(EPV!Y15="","",EPV!Y15) ->  | W53: =IF(EPV!Z15="","",EPV!Z15) ->  | X53: =IF(EPV!AA15="","",EPV!AA15) ->  | Y53: =IF(EPV!AB15="","",EPV!AB15) ->  | Z53: =IF(EPV!AC15="","",EPV!AC15) ->  | AA53: =IF(EPV!AD15="","",EPV!AD15) ->  | AB53: =IF(EPV!AE15="","",EPV!AE15) ->  | AC53: =IF(EPV!AF15="","",EPV!AF15) ->  | AD53: =IF(EPV!AG15="","",EPV!AG15) ->  | AE53: =IF(EPV!AH15="","",EPV!AH15) ->  | AF53: =IF(EPV!AI15="","",EPV!AI15) ->  | AG53: =IF(EPV!AJ15="","",EPV!AJ15) ->  | AH53: =IF(EPV!AK15="","",EPV!AK15) ->  | AI53: =IF(EPV!AL15="","",EPV!AL15) ->  | AJ53: =IF(EPV!AM15="","",EPV!AM15) ->  | AK53: =IF(EPV!AN15="","",EPV!AN15) ->  | AL53: =IF(EPV!AO15="","",EPV!AO15) ->  | AM53: =IF(EPV!AP15="","",EPV!AP15) -> 
B54: Música y Danza | C54: Comp. Esp. 1 | D54: Criterio Evaluación 1.1 | E54: =IF('Musica y Danza'!H4="","",'Musica y Danza'!H4) ->  | F54: =IF('Musica y Danza'!I4="","",'Musica y Danza'!I4) ->  | G54: =IF('Musica y Danza'!J4="","",'Musica y Danza'!J4) ->  | H54: =IF('Musica y Danza'!K4="","",'Musica y Danza'!K4) ->  | I54: =IF('Musica y Danza'!L4="","",'Musica y Danza'!L4) ->  | J54: =IF('Musica y Danza'!M4="","",'Musica y Danza'!M4) ->  | K54: =IF('Musica y Danza'!N4="","",'Musica y Danza'!N4) ->  | L54: =IF('Musica y Danza'!O4="","",'Musica y Danza'!O4) ->  | M54: =IF('Musica y Danza'!P4="","",'Musica y Danza'!P4) ->  | N54: =IF('Musica y Danza'!Q4="","",'Musica y Danza'!Q4) ->  | O54: =IF('Musica y Danza'!R4="","",'Musica y Danza'!R4) ->  | P54: =IF('Musica y Danza'!S4="","",'Musica y Danza'!S4) ->  | Q54: =IF('Musica y Danza'!T4="","",'Musica y Danza'!T4) ->  | R54: =IF('Musica y Danza'!U4="","",'Musica y Danza'!U4) ->  | S54: =IF('Musica y Danza'!V4="","",'Musica y Danza'!V4) ->  | T54: =IF('Musica y Danza'!W4="","",'Musica y Danza'!W4) ->  | U54: =IF('Musica y Danza'!X4="","",'Musica y Danza'!X4) ->  | V54: =IF('Musica y Danza'!Y4="","",'Musica y Danza'!Y4) ->  | W54: =IF('Musica y Danza'!Z4="","",'Musica y Danza'!Z4) ->  | X54: =IF('Musica y Danza'!AA4="","",'Musica y Danza'!AA4) ->  | Y54: =IF('Musica y Danza'!AB4="","",'Musica y Danza'!AB4) ->  | Z54: =IF('Musica y Danza'!AC4="","",'Musica y Danza'!AC4) ->  | AA54: =IF('Musica y Danza'!AD4="","",'Musica y Danza'!AD4) ->  | AB54: =IF('Musica y Danza'!AE4="","",'Musica y Danza'!AE4) ->  | AC54: =IF('Musica y Danza'!AF4="","",'Musica y Danza'!AF4) ->  | AD54: =IF('Musica y Danza'!AG4="","",'Musica y Danza'!AG4) ->  | AE54: =IF('Musica y Danza'!AH4="","",'Musica y Danza'!AH4) ->  | AF54: =IF('Musica y Danza'!AI4="","",'Musica y Danza'!AI4) ->  | AG54: =IF('Musica y Danza'!AJ4="","",'Musica y Danza'!AJ4) ->  | AH54: =IF('Musica y Danza'!AK4="","",'Musica y Danza'!AK4) ->  | AI54: =IF('Musica y Danza'!AL4="","",'Musica y Danza'!AL4) ->  | AJ54: =IF('Musica y Danza'!AM4="","",'Musica y Danza'!AM4) ->  | AK54: =IF('Musica y Danza'!AN4="","",'Musica y Danza'!AN4) ->  | AL54: =IF('Musica y Danza'!AO4="","",'Musica y Danza'!AO4) ->  | AM54: =IF('Musica y Danza'!AP4="","",'Musica y Danza'!AP4) -> 
D55: Criterio Evaluación 1.2 | E55: =IF('Musica y Danza'!H5="","",'Musica y Danza'!H5) ->  | F55: =IF('Musica y Danza'!I5="","",'Musica y Danza'!I5) ->  | G55: =IF('Musica y Danza'!J5="","",'Musica y Danza'!J5) ->  | H55: =IF('Musica y Danza'!K5="","",'Musica y Danza'!K5) ->  | I55: =IF('Musica y Danza'!L5="","",'Musica y Danza'!L5) ->  | J55: =IF('Musica y Danza'!M5="","",'Musica y Danza'!M5) ->  | K55: =IF('Musica y Danza'!N5="","",'Musica y Danza'!N5) ->  | L55: =IF('Musica y Danza'!O5="","",'Musica y Danza'!O5) ->  | M55: =IF('Musica y Danza'!P5="","",'Musica y Danza'!P5) ->  | N55: =IF('Musica y Danza'!Q5="","",'Musica y Danza'!Q5) ->  | O55: =IF('Musica y Danza'!R5="","",'Musica y Danza'!R5) ->  | P55: =IF('Musica y Danza'!S5="","",'Musica y Danza'!S5) ->  | Q55: =IF('Musica y Danza'!T5="","",'Musica y Danza'!T5) ->  | R55: =IF('Musica y Danza'!U5="","",'Musica y Danza'!U5) ->  | S55: =IF('Musica y Danza'!V5="","",'Musica y Danza'!V5) ->  | T55: =IF('Musica y Danza'!W5="","",'Musica y Danza'!W5) ->  | U55: =IF('Musica y Danza'!X5="","",'Musica y Danza'!X5) ->  | V55: =IF('Musica y Danza'!Y5="","",'Musica y Danza'!Y5) ->  | W55: =IF('Musica y Danza'!Z5="","",'Musica y Danza'!Z5) ->  | X55: =IF('Musica y Danza'!AA5="","",'Musica y Danza'!AA5) ->  | Y55: =IF('Musica y Danza'!AB5="","",'Musica y Danza'!AB5) ->  | Z55: =IF('Musica y Danza'!AC5="","",'Musica y Danza'!AC5) ->  | AA55: =IF('Musica y Danza'!AD5="","",'Musica y Danza'!AD5) ->  | AB55: =IF('Musica y Danza'!AE5="","",'Musica y Danza'!AE5) ->  | AC55: =IF('Musica y Danza'!AF5="","",'Musica y Danza'!AF5) ->  | AD55: =IF('Musica y Danza'!AG5="","",'Musica y Danza'!AG5) ->  | AE55: =IF('Musica y Danza'!AH5="","",'Musica y Danza'!AH5) ->  | AF55: =IF('Musica y Danza'!AI5="","",'Musica y Danza'!AI5) ->  | AG55: =IF('Musica y Danza'!AJ5="","",'Musica y Danza'!AJ5) ->  | AH55: =IF('Musica y Danza'!AK5="","",'Musica y Danza'!AK5) ->  | AI55: =IF('Musica y Danza'!AL5="","",'Musica y Danza'!AL5) ->  | AJ55: =IF('Musica y Danza'!AM5="","",'Musica y Danza'!AM5) ->  | AK55: =IF('Musica y Danza'!AN5="","",'Musica y Danza'!AN5) ->  | AL55: =IF('Musica y Danza'!AO5="","",'Musica y Danza'!AO5) ->  | AM55: =IF('Musica y Danza'!AP5="","",'Musica y Danza'!AP5) -> 
D56: Criterio Evaluación 1.3 | E56: =IF('Musica y Danza'!H6="","",'Musica y Danza'!H6) ->  | F56: =IF('Musica y Danza'!I6="","",'Musica y Danza'!I6) ->  | G56: =IF('Musica y Danza'!J6="","",'Musica y Danza'!J6) ->  | H56: =IF('Musica y Danza'!K6="","",'Musica y Danza'!K6) ->  | I56: =IF('Musica y Danza'!L6="","",'Musica y Danza'!L6) ->  | J56: =IF('Musica y Danza'!M6="","",'Musica y Danza'!M6) ->  | K56: =IF('Musica y Danza'!N6="","",'Musica y Danza'!N6) ->  | L56: =IF('Musica y Danza'!O6="","",'Musica y Danza'!O6) ->  | M56: =IF('Musica y Danza'!P6="","",'Musica y Danza'!P6) ->  | N56: =IF('Musica y Danza'!Q6="","",'Musica y Danza'!Q6) ->  | O56: =IF('Musica y Danza'!R6="","",'Musica y Danza'!R6) ->  | P56: =IF('Musica y Danza'!S6="","",'Musica y Danza'!S6) ->  | Q56: =IF('Musica y Danza'!T6="","",'Musica y Danza'!T6) ->  | R56: =IF('Musica y Danza'!U6="","",'Musica y Danza'!U6) ->  | S56: =IF('Musica y Danza'!V6="","",'Musica y Danza'!V6) ->  | T56: =IF('Musica y Danza'!W6="","",'Musica y Danza'!W6) ->  | U56: =IF('Musica y Danza'!X6="","",'Musica y Danza'!X6) ->  | V56: =IF('Musica y Danza'!Y6="","",'Musica y Danza'!Y6) ->  | W56: =IF('Musica y Danza'!Z6="","",'Musica y Danza'!Z6) ->  | X56: =IF('Musica y Danza'!AA6="","",'Musica y Danza'!AA6) ->  | Y56: =IF('Musica y Danza'!AB6="","",'Musica y Danza'!AB6) ->  | Z56: =IF('Musica y Danza'!AC6="","",'Musica y Danza'!AC6) ->  | AA56: =IF('Musica y Danza'!AD6="","",'Musica y Danza'!AD6) ->  | AB56: =IF('Musica y Danza'!AE6="","",'Musica y Danza'!AE6) ->  | AC56: =IF('Musica y Danza'!AF6="","",'Musica y Danza'!AF6) ->  | AD56: =IF('Musica y Danza'!AG6="","",'Musica y Danza'!AG6) ->  | AE56: =IF('Musica y Danza'!AH6="","",'Musica y Danza'!AH6) ->  | AF56: =IF('Musica y Danza'!AI6="","",'Musica y Danza'!AI6) ->  | AG56: =IF('Musica y Danza'!AJ6="","",'Musica y Danza'!AJ6) ->  | AH56: =IF('Musica y Danza'!AK6="","",'Musica y Danza'!AK6) ->  | AI56: =IF('Musica y Danza'!AL6="","",'Musica y Danza'!AL6) ->  | AJ56: =IF('Musica y Danza'!AM6="","",'Musica y Danza'!AM6) ->  | AK56: =IF('Musica y Danza'!AN6="","",'Musica y Danza'!AN6) ->  | AL56: =IF('Musica y Danza'!AO6="","",'Musica y Danza'!AO6) ->  | AM56: =IF('Musica y Danza'!AP6="","",'Musica y Danza'!AP6) -> 
C57: Comp. Esp. 2 | D57: Criterio Evaluación 2.1 | E57: =IF('Musica y Danza'!H7="","",'Musica y Danza'!H7) ->  | F57: =IF('Musica y Danza'!I7="","",'Musica y Danza'!I7) ->  | G57: =IF('Musica y Danza'!J7="","",'Musica y Danza'!J7) ->  | H57: =IF('Musica y Danza'!K7="","",'Musica y Danza'!K7) ->  | I57: =IF('Musica y Danza'!L7="","",'Musica y Danza'!L7) ->  | J57: =IF('Musica y Danza'!M7="","",'Musica y Danza'!M7) ->  | K57: =IF('Musica y Danza'!N7="","",'Musica y Danza'!N7) ->  | L57: =IF('Musica y Danza'!O7="","",'Musica y Danza'!O7) ->  | M57: =IF('Musica y Danza'!P7="","",'Musica y Danza'!P7) ->  | N57: =IF('Musica y Danza'!Q7="","",'Musica y Danza'!Q7) ->  | O57: =IF('Musica y Danza'!R7="","",'Musica y Danza'!R7) ->  | P57: =IF('Musica y Danza'!S7="","",'Musica y Danza'!S7) ->  | Q57: =IF('Musica y Danza'!T7="","",'Musica y Danza'!T7) ->  | R57: =IF('Musica y Danza'!U7="","",'Musica y Danza'!U7) ->  | S57: =IF('Musica y Danza'!V7="","",'Musica y Danza'!V7) ->  | T57: =IF('Musica y Danza'!W7="","",'Musica y Danza'!W7) ->  | U57: =IF('Musica y Danza'!X7="","",'Musica y Danza'!X7) ->  | V57: =IF('Musica y Danza'!Y7="","",'Musica y Danza'!Y7) ->  | W57: =IF('Musica y Danza'!Z7="","",'Musica y Danza'!Z7) ->  | X57: =IF('Musica y Danza'!AA7="","",'Musica y Danza'!AA7) ->  | Y57: =IF('Musica y Danza'!AB7="","",'Musica y Danza'!AB7) ->  | Z57: =IF('Musica y Danza'!AC7="","",'Musica y Danza'!AC7) ->  | AA57: =IF('Musica y Danza'!AD7="","",'Musica y Danza'!AD7) ->  | AB57: =IF('Musica y Danza'!AE7="","",'Musica y Danza'!AE7) ->  | AC57: =IF('Musica y Danza'!AF7="","",'Musica y Danza'!AF7) ->  | AD57: =IF('Musica y Danza'!AG7="","",'Musica y Danza'!AG7) ->  | AE57: =IF('Musica y Danza'!AH7="","",'Musica y Danza'!AH7) ->  | AF57: =IF('Musica y Danza'!AI7="","",'Musica y Danza'!AI7) ->  | AG57: =IF('Musica y Danza'!AJ7="","",'Musica y Danza'!AJ7) ->  | AH57: =IF('Musica y Danza'!AK7="","",'Musica y Danza'!AK7) ->  | AI57: =IF('Musica y Danza'!AL7="","",'Musica y Danza'!AL7) ->  | AJ57: =IF('Musica y Danza'!AM7="","",'Musica y Danza'!AM7) ->  | AK57: =IF('Musica y Danza'!AN7="","",'Musica y Danza'!AN7) ->  | AL57: =IF('Musica y Danza'!AO7="","",'Musica y Danza'!AO7) ->  | AM57: =IF('Musica y Danza'!AP7="","",'Musica y Danza'!AP7) -> 
D58: Criterio Evaluación 2.2 | E58: =IF('Musica y Danza'!H8="","",'Musica y Danza'!H8) ->  | F58: =IF('Musica y Danza'!I8="","",'Musica y Danza'!I8) ->  | G58: =IF('Musica y Danza'!J8="","",'Musica y Danza'!J8) ->  | H58: =IF('Musica y Danza'!K8="","",'Musica y Danza'!K8) ->  | I58: =IF('Musica y Danza'!L8="","",'Musica y Danza'!L8) ->  | J58: =IF('Musica y Danza'!M8="","",'Musica y Danza'!M8) ->  | K58: =IF('Musica y Danza'!N8="","",'Musica y Danza'!N8) ->  | L58: =IF('Musica y Danza'!O8="","",'Musica y Danza'!O8) ->  | M58: =IF('Musica y Danza'!P8="","",'Musica y Danza'!P8) ->  | N58: =IF('Musica y Danza'!Q8="","",'Musica y Danza'!Q8) ->  | O58: =IF('Musica y Danza'!R8="","",'Musica y Danza'!R8) ->  | P58: =IF('Musica y Danza'!S8="","",'Musica y Danza'!S8) ->  | Q58: =IF('Musica y Danza'!T8="","",'Musica y Danza'!T8) ->  | R58: =IF('Musica y Danza'!U8="","",'Musica y Danza'!U8) ->  | S58: =IF('Musica y Danza'!V8="","",'Musica y Danza'!V8) ->  | T58: =IF('Musica y Danza'!W8="","",'Musica y Danza'!W8) ->  | U58: =IF('Musica y Danza'!X8="","",'Musica y Danza'!X8) ->  | V58: =IF('Musica y Danza'!Y8="","",'Musica y Danza'!Y8) ->  | W58: =IF('Musica y Danza'!Z8="","",'Musica y Danza'!Z8) ->  | X58: =IF('Musica y Danza'!AA8="","",'Musica y Danza'!AA8) ->  | Y58: =IF('Musica y Danza'!AB8="","",'Musica y Danza'!AB8) ->  | Z58: =IF('Musica y Danza'!AC8="","",'Musica y Danza'!AC8) ->  | AA58: =IF('Musica y Danza'!AD8="","",'Musica y Danza'!AD8) ->  | AB58: =IF('Musica y Danza'!AE8="","",'Musica y Danza'!AE8) ->  | AC58: =IF('Musica y Danza'!AF8="","",'Musica y Danza'!AF8) ->  | AD58: =IF('Musica y Danza'!AG8="","",'Musica y Danza'!AG8) ->  | AE58: =IF('Musica y Danza'!AH8="","",'Musica y Danza'!AH8) ->  | AF58: =IF('Musica y Danza'!AI8="","",'Musica y Danza'!AI8) ->  | AG58: =IF('Musica y Danza'!AJ8="","",'Musica y Danza'!AJ8) ->  | AH58: =IF('Musica y Danza'!AK8="","",'Musica y Danza'!AK8) ->  | AI58: =IF('Musica y Danza'!AL8="","",'Musica y Danza'!AL8) ->  | AJ58: =IF('Musica y Danza'!AM8="","",'Musica y Danza'!AM8) ->  | AK58: =IF('Musica y Danza'!AN8="","",'Musica y Danza'!AN8) ->  | AL58: =IF('Musica y Danza'!AO8="","",'Musica y Danza'!AO8) ->  | AM58: =IF('Musica y Danza'!AP8="","",'Musica y Danza'!AP8) -> 
D59: Criterio Evaluación 2.3 | E59: =IF('Musica y Danza'!H9="","",'Musica y Danza'!H9) ->  | F59: =IF('Musica y Danza'!I9="","",'Musica y Danza'!I9) ->  | G59: =IF('Musica y Danza'!J9="","",'Musica y Danza'!J9) ->  | H59: =IF('Musica y Danza'!K9="","",'Musica y Danza'!K9) ->  | I59: =IF('Musica y Danza'!L9="","",'Musica y Danza'!L9) ->  | J59: =IF('Musica y Danza'!M9="","",'Musica y Danza'!M9) ->  | K59: =IF('Musica y Danza'!N9="","",'Musica y Danza'!N9) ->  | L59: =IF('Musica y Danza'!O9="","",'Musica y Danza'!O9) ->  | M59: =IF('Musica y Danza'!P9="","",'Musica y Danza'!P9) ->  | N59: =IF('Musica y Danza'!Q9="","",'Musica y Danza'!Q9) ->  | O59: =IF('Musica y Danza'!R9="","",'Musica y Danza'!R9) ->  | P59: =IF('Musica y Danza'!S9="","",'Musica y Danza'!S9) ->  | Q59: =IF('Musica y Danza'!T9="","",'Musica y Danza'!T9) ->  | R59: =IF('Musica y Danza'!U9="","",'Musica y Danza'!U9) ->  | S59: =IF('Musica y Danza'!V9="","",'Musica y Danza'!V9) ->  | T59: =IF('Musica y Danza'!W9="","",'Musica y Danza'!W9) ->  | U59: =IF('Musica y Danza'!X9="","",'Musica y Danza'!X9) ->  | V59: =IF('Musica y Danza'!Y9="","",'Musica y Danza'!Y9) ->  | W59: =IF('Musica y Danza'!Z9="","",'Musica y Danza'!Z9) ->  | X59: =IF('Musica y Danza'!AA9="","",'Musica y Danza'!AA9) ->  | Y59: =IF('Musica y Danza'!AB9="","",'Musica y Danza'!AB9) ->  | Z59: =IF('Musica y Danza'!AC9="","",'Musica y Danza'!AC9) ->  | AA59: =IF('Musica y Danza'!AD9="","",'Musica y Danza'!AD9) ->  | AB59: =IF('Musica y Danza'!AE9="","",'Musica y Danza'!AE9) ->  | AC59: =IF('Musica y Danza'!AF9="","",'Musica y Danza'!AF9) ->  | AD59: =IF('Musica y Danza'!AG9="","",'Musica y Danza'!AG9) ->  | AE59: =IF('Musica y Danza'!AH9="","",'Musica y Danza'!AH9) ->  | AF59: =IF('Musica y Danza'!AI9="","",'Musica y Danza'!AI9) ->  | AG59: =IF('Musica y Danza'!AJ9="","",'Musica y Danza'!AJ9) ->  | AH59: =IF('Musica y Danza'!AK9="","",'Musica y Danza'!AK9) ->  | AI59: =IF('Musica y Danza'!AL9="","",'Musica y Danza'!AL9) ->  | AJ59: =IF('Musica y Danza'!AM9="","",'Musica y Danza'!AM9) ->  | AK59: =IF('Musica y Danza'!AN9="","",'Musica y Danza'!AN9) ->  | AL59: =IF('Musica y Danza'!AO9="","",'Musica y Danza'!AO9) ->  | AM59: =IF('Musica y Danza'!AP9="","",'Musica y Danza'!AP9) -> 
C60: Comp. Esp. 3 | D60: Criterio Evaluación 3.1 | E60: =IF('Musica y Danza'!H10="","",'Musica y Danza'!H10) ->  | F60: =IF('Musica y Danza'!I10="","",'Musica y Danza'!I10) ->  | G60: =IF('Musica y Danza'!J10="","",'Musica y Danza'!J10) ->  | H60: =IF('Musica y Danza'!K10="","",'Musica y Danza'!K10) ->  | I60: =IF('Musica y Danza'!L10="","",'Musica y Danza'!L10) ->  | J60: =IF('Musica y Danza'!M10="","",'Musica y Danza'!M10) ->  | K60: =IF('Musica y Danza'!N10="","",'Musica y Danza'!N10) ->  | L60: =IF('Musica y Danza'!O10="","",'Musica y Danza'!O10) ->  | M60: =IF('Musica y Danza'!P10="","",'Musica y Danza'!P10) ->  | N60: =IF('Musica y Danza'!Q10="","",'Musica y Danza'!Q10) ->  | O60: =IF('Musica y Danza'!R10="","",'Musica y Danza'!R10) ->  | P60: =IF('Musica y Danza'!S10="","",'Musica y Danza'!S10) ->  | Q60: =IF('Musica y Danza'!T10="","",'Musica y Danza'!T10) ->  | R60: =IF('Musica y Danza'!U10="","",'Musica y Danza'!U10) ->  | S60: =IF('Musica y Danza'!V10="","",'Musica y Danza'!V10) ->  | T60: =IF('Musica y Danza'!W10="","",'Musica y Danza'!W10) ->  | U60: =IF('Musica y Danza'!X10="","",'Musica y Danza'!X10) ->  | V60: =IF('Musica y Danza'!Y10="","",'Musica y Danza'!Y10) ->  | W60: =IF('Musica y Danza'!Z10="","",'Musica y Danza'!Z10) ->  | X60: =IF('Musica y Danza'!AA10="","",'Musica y Danza'!AA10) ->  | Y60: =IF('Musica y Danza'!AB10="","",'Musica y Danza'!AB10) ->  | Z60: =IF('Musica y Danza'!AC10="","",'Musica y Danza'!AC10) ->  | AA60: =IF('Musica y Danza'!AD10="","",'Musica y Danza'!AD10) ->  | AB60: =IF('Musica y Danza'!AE10="","",'Musica y Danza'!AE10) ->  | AC60: =IF('Musica y Danza'!AF10="","",'Musica y Danza'!AF10) ->  | AD60: =IF('Musica y Danza'!AG10="","",'Musica y Danza'!AG10) ->  | AE60: =IF('Musica y Danza'!AH10="","",'Musica y Danza'!AH10) ->  | AF60: =IF('Musica y Danza'!AI10="","",'Musica y Danza'!AI10) ->  | AG60: =IF('Musica y Danza'!AJ10="","",'Musica y Danza'!AJ10) ->  | AH60: =IF('Musica y Danza'!AK10="","",'Musica y Danza'!AK10) ->  | AI60: =IF('Musica y Danza'!AL10="","",'Musica y Danza'!AL10) ->  | AJ60: =IF('Musica y Danza'!AM10="","",'Musica y Danza'!AM10) ->  | AK60: =IF('Musica y Danza'!AN10="","",'Musica y Danza'!AN10) ->  | AL60: =IF('Musica y Danza'!AO10="","",'Musica y Danza'!AO10) ->  | AM60: =IF('Musica y Danza'!AP10="","",'Musica y Danza'!AP10) -> 
D61: Criterio Evaluación 3.2 | E61: =IF('Musica y Danza'!H11="","",'Musica y Danza'!H11) ->  | F61: =IF('Musica y Danza'!I11="","",'Musica y Danza'!I11) ->  | G61: =IF('Musica y Danza'!J11="","",'Musica y Danza'!J11) ->  | H61: =IF('Musica y Danza'!K11="","",'Musica y Danza'!K11) ->  | I61: =IF('Musica y Danza'!L11="","",'Musica y Danza'!L11) ->  | J61: =IF('Musica y Danza'!M11="","",'Musica y Danza'!M11) ->  | K61: =IF('Musica y Danza'!N11="","",'Musica y Danza'!N11) ->  | L61: =IF('Musica y Danza'!O11="","",'Musica y Danza'!O11) ->  | M61: =IF('Musica y Danza'!P11="","",'Musica y Danza'!P11) ->  | N61: =IF('Musica y Danza'!Q11="","",'Musica y Danza'!Q11) ->  | O61: =IF('Musica y Danza'!R11="","",'Musica y Danza'!R11) ->  | P61: =IF('Musica y Danza'!S11="","",'Musica y Danza'!S11) ->  | Q61: =IF('Musica y Danza'!T11="","",'Musica y Danza'!T11) ->  | R61: =IF('Musica y Danza'!U11="","",'Musica y Danza'!U11) ->  | S61: =IF('Musica y Danza'!V11="","",'Musica y Danza'!V11) ->  | T61: =IF('Musica y Danza'!W11="","",'Musica y Danza'!W11) ->  | U61: =IF('Musica y Danza'!X11="","",'Musica y Danza'!X11) ->  | V61: =IF('Musica y Danza'!Y11="","",'Musica y Danza'!Y11) ->  | W61: =IF('Musica y Danza'!Z11="","",'Musica y Danza'!Z11) ->  | X61: =IF('Musica y Danza'!AA11="","",'Musica y Danza'!AA11) ->  | Y61: =IF('Musica y Danza'!AB11="","",'Musica y Danza'!AB11) ->  | Z61: =IF('Musica y Danza'!AC11="","",'Musica y Danza'!AC11) ->  | AA61: =IF('Musica y Danza'!AD11="","",'Musica y Danza'!AD11) ->  | AB61: =IF('Musica y Danza'!AE11="","",'Musica y Danza'!AE11) ->  | AC61: =IF('Musica y Danza'!AF11="","",'Musica y Danza'!AF11) ->  | AD61: =IF('Musica y Danza'!AG11="","",'Musica y Danza'!AG11) ->  | AE61: =IF('Musica y Danza'!AH11="","",'Musica y Danza'!AH11) ->  | AF61: =IF('Musica y Danza'!AI11="","",'Musica y Danza'!AI11) ->  | AG61: =IF('Musica y Danza'!AJ11="","",'Musica y Danza'!AJ11) ->  | AH61: =IF('Musica y Danza'!AK11="","",'Musica y Danza'!AK11) ->  | AI61: =IF('Musica y Danza'!AL11="","",'Musica y Danza'!AL11) ->  | AJ61: =IF('Musica y Danza'!AM11="","",'Musica y Danza'!AM11) ->  | AK61: =IF('Musica y Danza'!AN11="","",'Musica y Danza'!AN11) ->  | AL61: =IF('Musica y Danza'!AO11="","",'Musica y Danza'!AO11) ->  | AM61: =IF('Musica y Danza'!AP11="","",'Musica y Danza'!AP11) -> 
D62: Criterio Evaluación 3.3 | E62: =IF('Musica y Danza'!H12="","",'Musica y Danza'!H12) ->  | F62: =IF('Musica y Danza'!I12="","",'Musica y Danza'!I12) ->  | G62: =IF('Musica y Danza'!J12="","",'Musica y Danza'!J12) ->  | H62: =IF('Musica y Danza'!K12="","",'Musica y Danza'!K12) ->  | I62: =IF('Musica y Danza'!L12="","",'Musica y Danza'!L12) ->  | J62: =IF('Musica y Danza'!M12="","",'Musica y Danza'!M12) ->  | K62: =IF('Musica y Danza'!N12="","",'Musica y Danza'!N12) ->  | L62: =IF('Musica y Danza'!O12="","",'Musica y Danza'!O12) ->  | M62: =IF('Musica y Danza'!P12="","",'Musica y Danza'!P12) ->  | N62: =IF('Musica y Danza'!Q12="","",'Musica y Danza'!Q12) ->  | O62: =IF('Musica y Danza'!R12="","",'Musica y Danza'!R12) ->  | P62: =IF('Musica y Danza'!S12="","",'Musica y Danza'!S12) ->  | Q62: =IF('Musica y Danza'!T12="","",'Musica y Danza'!T12) ->  | R62: =IF('Musica y Danza'!U12="","",'Musica y Danza'!U12) ->  | S62: =IF('Musica y Danza'!V12="","",'Musica y Danza'!V12) ->  | T62: =IF('Musica y Danza'!W12="","",'Musica y Danza'!W12) ->  | U62: =IF('Musica y Danza'!X12="","",'Musica y Danza'!X12) ->  | V62: =IF('Musica y Danza'!Y12="","",'Musica y Danza'!Y12) ->  | W62: =IF('Musica y Danza'!Z12="","",'Musica y Danza'!Z12) ->  | X62: =IF('Musica y Danza'!AA12="","",'Musica y Danza'!AA12) ->  | Y62: =IF('Musica y Danza'!AB12="","",'Musica y Danza'!AB12) ->  | Z62: =IF('Musica y Danza'!AC12="","",'Musica y Danza'!AC12) ->  | AA62: =IF('Musica y Danza'!AD12="","",'Musica y Danza'!AD12) ->  | AB62: =IF('Musica y Danza'!AE12="","",'Musica y Danza'!AE12) ->  | AC62: =IF('Musica y Danza'!AF12="","",'Musica y Danza'!AF12) ->  | AD62: =IF('Musica y Danza'!AG12="","",'Musica y Danza'!AG12) ->  | AE62: =IF('Musica y Danza'!AH12="","",'Musica y Danza'!AH12) ->  | AF62: =IF('Musica y Danza'!AI12="","",'Musica y Danza'!AI12) ->  | AG62: =IF('Musica y Danza'!AJ12="","",'Musica y Danza'!AJ12) ->  | AH62: =IF('Musica y Danza'!AK12="","",'Musica y Danza'!AK12) ->  | AI62: =IF('Musica y Danza'!AL12="","",'Musica y Danza'!AL12) ->  | AJ62: =IF('Musica y Danza'!AM12="","",'Musica y Danza'!AM12) ->  | AK62: =IF('Musica y Danza'!AN12="","",'Musica y Danza'!AN12) ->  | AL62: =IF('Musica y Danza'!AO12="","",'Musica y Danza'!AO12) ->  | AM62: =IF('Musica y Danza'!AP12="","",'Musica y Danza'!AP12) -> 
C63: Comp. Esp. 4 | D63: Criterio Evaluación 4.1 | E63: =IF('Musica y Danza'!H13="","",'Musica y Danza'!H13) ->  | F63: =IF('Musica y Danza'!I13="","",'Musica y Danza'!I13) ->  | G63: =IF('Musica y Danza'!J13="","",'Musica y Danza'!J13) ->  | H63: =IF('Musica y Danza'!K13="","",'Musica y Danza'!K13) ->  | I63: =IF('Musica y Danza'!L13="","",'Musica y Danza'!L13) ->  | J63: =IF('Musica y Danza'!M13="","",'Musica y Danza'!M13) ->  | K63: =IF('Musica y Danza'!N13="","",'Musica y Danza'!N13) ->  | L63: =IF('Musica y Danza'!O13="","",'Musica y Danza'!O13) ->  | M63: =IF('Musica y Danza'!P13="","",'Musica y Danza'!P13) ->  | N63: =IF('Musica y Danza'!Q13="","",'Musica y Danza'!Q13) ->  | O63: =IF('Musica y Danza'!R13="","",'Musica y Danza'!R13) ->  | P63: =IF('Musica y Danza'!S13="","",'Musica y Danza'!S13) ->  | Q63: =IF('Musica y Danza'!T13="","",'Musica y Danza'!T13) ->  | R63: =IF('Musica y Danza'!U13="","",'Musica y Danza'!U13) ->  | S63: =IF('Musica y Danza'!V13="","",'Musica y Danza'!V13) ->  | T63: =IF('Musica y Danza'!W13="","",'Musica y Danza'!W13) ->  | U63: =IF('Musica y Danza'!X13="","",'Musica y Danza'!X13) ->  | V63: =IF('Musica y Danza'!Y13="","",'Musica y Danza'!Y13) ->  | W63: =IF('Musica y Danza'!Z13="","",'Musica y Danza'!Z13) ->  | X63: =IF('Musica y Danza'!AA13="","",'Musica y Danza'!AA13) ->  | Y63: =IF('Musica y Danza'!AB13="","",'Musica y Danza'!AB13) ->  | Z63: =IF('Musica y Danza'!AC13="","",'Musica y Danza'!AC13) ->  | AA63: =IF('Musica y Danza'!AD13="","",'Musica y Danza'!AD13) ->  | AB63: =IF('Musica y Danza'!AE13="","",'Musica y Danza'!AE13) ->  | AC63: =IF('Musica y Danza'!AF13="","",'Musica y Danza'!AF13) ->  | AD63: =IF('Musica y Danza'!AG13="","",'Musica y Danza'!AG13) ->  | AE63: =IF('Musica y Danza'!AH13="","",'Musica y Danza'!AH13) ->  | AF63: =IF('Musica y Danza'!AI13="","",'Musica y Danza'!AI13) ->  | AG63: =IF('Musica y Danza'!AJ13="","",'Musica y Danza'!AJ13) ->  | AH63: =IF('Musica y Danza'!AK13="","",'Musica y Danza'!AK13) ->  | AI63: =IF('Musica y Danza'!AL13="","",'Musica y Danza'!AL13) ->  | AJ63: =IF('Musica y Danza'!AM13="","",'Musica y Danza'!AM13) ->  | AK63: =IF('Musica y Danza'!AN13="","",'Musica y Danza'!AN13) ->  | AL63: =IF('Musica y Danza'!AO13="","",'Musica y Danza'!AO13) ->  | AM63: =IF('Musica y Danza'!AP13="","",'Musica y Danza'!AP13) -> 
D64: Criterio Evaluación 4.2 | E64: =IF('Musica y Danza'!H14="","",'Musica y Danza'!H14) ->  | F64: =IF('Musica y Danza'!I14="","",'Musica y Danza'!I14) ->  | G64: =IF('Musica y Danza'!J14="","",'Musica y Danza'!J14) ->  | H64: =IF('Musica y Danza'!K14="","",'Musica y Danza'!K14) ->  | I64: =IF('Musica y Danza'!L14="","",'Musica y Danza'!L14) ->  | J64: =IF('Musica y Danza'!M14="","",'Musica y Danza'!M14) ->  | K64: =IF('Musica y Danza'!N14="","",'Musica y Danza'!N14) ->  | L64: =IF('Musica y Danza'!O14="","",'Musica y Danza'!O14) ->  | M64: =IF('Musica y Danza'!P14="","",'Musica y Danza'!P14) ->  | N64: =IF('Musica y Danza'!Q14="","",'Musica y Danza'!Q14) ->  | O64: =IF('Musica y Danza'!R14="","",'Musica y Danza'!R14) ->  | P64: =IF('Musica y Danza'!S14="","",'Musica y Danza'!S14) ->  | Q64: =IF('Musica y Danza'!T14="","",'Musica y Danza'!T14) ->  | R64: =IF('Musica y Danza'!U14="","",'Musica y Danza'!U14) ->  | S64: =IF('Musica y Danza'!V14="","",'Musica y Danza'!V14) ->  | T64: =IF('Musica y Danza'!W14="","",'Musica y Danza'!W14) ->  | U64: =IF('Musica y Danza'!X14="","",'Musica y Danza'!X14) ->  | V64: =IF('Musica y Danza'!Y14="","",'Musica y Danza'!Y14) ->  | W64: =IF('Musica y Danza'!Z14="","",'Musica y Danza'!Z14) ->  | X64: =IF('Musica y Danza'!AA14="","",'Musica y Danza'!AA14) ->  | Y64: =IF('Musica y Danza'!AB14="","",'Musica y Danza'!AB14) ->  | Z64: =IF('Musica y Danza'!AC14="","",'Musica y Danza'!AC14) ->  | AA64: =IF('Musica y Danza'!AD14="","",'Musica y Danza'!AD14) ->  | AB64: =IF('Musica y Danza'!AE14="","",'Musica y Danza'!AE14) ->  | AC64: =IF('Musica y Danza'!AF14="","",'Musica y Danza'!AF14) ->  | AD64: =IF('Musica y Danza'!AG14="","",'Musica y Danza'!AG14) ->  | AE64: =IF('Musica y Danza'!AH14="","",'Musica y Danza'!AH14) ->  | AF64: =IF('Musica y Danza'!AI14="","",'Musica y Danza'!AI14) ->  | AG64: =IF('Musica y Danza'!AJ14="","",'Musica y Danza'!AJ14) ->  | AH64: =IF('Musica y Danza'!AK14="","",'Musica y Danza'!AK14) ->  | AI64: =IF('Musica y Danza'!AL14="","",'Musica y Danza'!AL14) ->  | AJ64: =IF('Musica y Danza'!AM14="","",'Musica y Danza'!AM14) ->  | AK64: =IF('Musica y Danza'!AN14="","",'Musica y Danza'!AN14) ->  | AL64: =IF('Musica y Danza'!AO14="","",'Musica y Danza'!AO14) ->  | AM64: =IF('Musica y Danza'!AP14="","",'Musica y Danza'!AP14) -> 
D65: Criterio Evaluación 4.3 | E65: =IF('Musica y Danza'!H15="","",'Musica y Danza'!H15) ->  | F65: =IF('Musica y Danza'!I15="","",'Musica y Danza'!I15) ->  | G65: =IF('Musica y Danza'!J15="","",'Musica y Danza'!J15) ->  | H65: =IF('Musica y Danza'!K15="","",'Musica y Danza'!K15) ->  | I65: =IF('Musica y Danza'!L15="","",'Musica y Danza'!L15) ->  | J65: =IF('Musica y Danza'!M15="","",'Musica y Danza'!M15) ->  | K65: =IF('Musica y Danza'!N15="","",'Musica y Danza'!N15) ->  | L65: =IF('Musica y Danza'!O15="","",'Musica y Danza'!O15) ->  | M65: =IF('Musica y Danza'!P15="","",'Musica y Danza'!P15) ->  | N65: =IF('Musica y Danza'!Q15="","",'Musica y Danza'!Q15) ->  | O65: =IF('Musica y Danza'!R15="","",'Musica y Danza'!R15) ->  | P65: =IF('Musica y Danza'!S15="","",'Musica y Danza'!S15) ->  | Q65: =IF('Musica y Danza'!T15="","",'Musica y Danza'!T15) ->  | R65: =IF('Musica y Danza'!U15="","",'Musica y Danza'!U15) ->  | S65: =IF('Musica y Danza'!V15="","",'Musica y Danza'!V15) ->  | T65: =IF('Musica y Danza'!W15="","",'Musica y Danza'!W15) ->  | U65: =IF('Musica y Danza'!X15="","",'Musica y Danza'!X15) ->  | V65: =IF('Musica y Danza'!Y15="","",'Musica y Danza'!Y15) ->  | W65: =IF('Musica y Danza'!Z15="","",'Musica y Danza'!Z15) ->  | X65: =IF('Musica y Danza'!AA15="","",'Musica y Danza'!AA15) ->  | Y65: =IF('Musica y Danza'!AB15="","",'Musica y Danza'!AB15) ->  | Z65: =IF('Musica y Danza'!AC15="","",'Musica y Danza'!AC15) ->  | AA65: =IF('Musica y Danza'!AD15="","",'Musica y Danza'!AD15) ->  | AB65: =IF('Musica y Danza'!AE15="","",'Musica y Danza'!AE15) ->  | AC65: =IF('Musica y Danza'!AF15="","",'Musica y Danza'!AF15) ->  | AD65: =IF('Musica y Danza'!AG15="","",'Musica y Danza'!AG15) ->  | AE65: =IF('Musica y Danza'!AH15="","",'Musica y Danza'!AH15) ->  | AF65: =IF('Musica y Danza'!AI15="","",'Musica y Danza'!AI15) ->  | AG65: =IF('Musica y Danza'!AJ15="","",'Musica y Danza'!AJ15) ->  | AH65: =IF('Musica y Danza'!AK15="","",'Musica y Danza'!AK15) ->  | AI65: =IF('Musica y Danza'!AL15="","",'Musica y Danza'!AL15) ->  | AJ65: =IF('Musica y Danza'!AM15="","",'Musica y Danza'!AM15) ->  | AK65: =IF('Musica y Danza'!AN15="","",'Musica y Danza'!AN15) ->  | AL65: =IF('Musica y Danza'!AO15="","",'Musica y Danza'!AO15) ->  | AM65: =IF('Musica y Danza'!AP15="","",'Musica y Danza'!AP15) -> 
C66: Comp. Esp. 5 | D66: Criterio Evaluación 5.1 | E66: =IF('Musica y Danza'!H16="","",'Musica y Danza'!H16) ->  | F66: =IF('Musica y Danza'!I16="","",'Musica y Danza'!I16) ->  | G66: =IF('Musica y Danza'!J16="","",'Musica y Danza'!J16) ->  | H66: =IF('Musica y Danza'!K16="","",'Musica y Danza'!K16) ->  | I66: =IF('Musica y Danza'!L16="","",'Musica y Danza'!L16) ->  | J66: =IF('Musica y Danza'!M16="","",'Musica y Danza'!M16) ->  | K66: =IF('Musica y Danza'!N16="","",'Musica y Danza'!N16) ->  | L66: =IF('Musica y Danza'!O16="","",'Musica y Danza'!O16) ->  | M66: =IF('Musica y Danza'!P16="","",'Musica y Danza'!P16) ->  | N66: =IF('Musica y Danza'!Q16="","",'Musica y Danza'!Q16) ->  | O66: =IF('Musica y Danza'!R16="","",'Musica y Danza'!R16) ->  | P66: =IF('Musica y Danza'!S16="","",'Musica y Danza'!S16) ->  | Q66: =IF('Musica y Danza'!T16="","",'Musica y Danza'!T16) ->  | R66: =IF('Musica y Danza'!U16="","",'Musica y Danza'!U16) ->  | S66: =IF('Musica y Danza'!V16="","",'Musica y Danza'!V16) ->  | T66: =IF('Musica y Danza'!W16="","",'Musica y Danza'!W16) ->  | U66: =IF('Musica y Danza'!X16="","",'Musica y Danza'!X16) ->  | V66: =IF('Musica y Danza'!Y16="","",'Musica y Danza'!Y16) ->  | W66: =IF('Musica y Danza'!Z16="","",'Musica y Danza'!Z16) ->  | X66: =IF('Musica y Danza'!AA16="","",'Musica y Danza'!AA16) ->  | Y66: =IF('Musica y Danza'!AB16="","",'Musica y Danza'!AB16) ->  | Z66: =IF('Musica y Danza'!AC16="","",'Musica y Danza'!AC16) ->  | AA66: =IF('Musica y Danza'!AD16="","",'Musica y Danza'!AD16) ->  | AB66: =IF('Musica y Danza'!AE16="","",'Musica y Danza'!AE16) ->  | AC66: =IF('Musica y Danza'!AF16="","",'Musica y Danza'!AF16) ->  | AD66: =IF('Musica y Danza'!AG16="","",'Musica y Danza'!AG16) ->  | AE66: =IF('Musica y Danza'!AH16="","",'Musica y Danza'!AH16) ->  | AF66: =IF('Musica y Danza'!AI16="","",'Musica y Danza'!AI16) ->  | AG66: =IF('Musica y Danza'!AJ16="","",'Musica y Danza'!AJ16) ->  | AH66: =IF('Musica y Danza'!AK16="","",'Musica y Danza'!AK16) ->  | AI66: =IF('Musica y Danza'!AL16="","",'Musica y Danza'!AL16) ->  | AJ66: =IF('Musica y Danza'!AM16="","",'Musica y Danza'!AM16) ->  | AK66: =IF('Musica y Danza'!AN16="","",'Musica y Danza'!AN16) ->  | AL66: =IF('Musica y Danza'!AO16="","",'Musica y Danza'!AO16) ->  | AM66: =IF('Musica y Danza'!AP16="","",'Musica y Danza'!AP16) -> 
D67: Criterio Evaluación 5.2 | E67: =IF('Musica y Danza'!H17="","",'Musica y Danza'!H17) ->  | F67: =IF('Musica y Danza'!I17="","",'Musica y Danza'!I17) ->  | G67: =IF('Musica y Danza'!J17="","",'Musica y Danza'!J17) ->  | H67: =IF('Musica y Danza'!K17="","",'Musica y Danza'!K17) ->  | I67: =IF('Musica y Danza'!L17="","",'Musica y Danza'!L17) ->  | J67: =IF('Musica y Danza'!M17="","",'Musica y Danza'!M17) ->  | K67: =IF('Musica y Danza'!N17="","",'Musica y Danza'!N17) ->  | L67: =IF('Musica y Danza'!O17="","",'Musica y Danza'!O17) ->  | M67: =IF('Musica y Danza'!P17="","",'Musica y Danza'!P17) ->  | N67: =IF('Musica y Danza'!Q17="","",'Musica y Danza'!Q17) ->  | O67: =IF('Musica y Danza'!R17="","",'Musica y Danza'!R17) ->  | P67: =IF('Musica y Danza'!S17="","",'Musica y Danza'!S17) ->  | Q67: =IF('Musica y Danza'!T17="","",'Musica y Danza'!T17) ->  | R67: =IF('Musica y Danza'!U17="","",'Musica y Danza'!U17) ->  | S67: =IF('Musica y Danza'!V17="","",'Musica y Danza'!V17) ->  | T67: =IF('Musica y Danza'!W17="","",'Musica y Danza'!W17) ->  | U67: =IF('Musica y Danza'!X17="","",'Musica y Danza'!X17) ->  | V67: =IF('Musica y Danza'!Y17="","",'Musica y Danza'!Y17) ->  | W67: =IF('Musica y Danza'!Z17="","",'Musica y Danza'!Z17) ->  | X67: =IF('Musica y Danza'!AA17="","",'Musica y Danza'!AA17) ->  | Y67: =IF('Musica y Danza'!AB17="","",'Musica y Danza'!AB17) ->  | Z67: =IF('Musica y Danza'!AC17="","",'Musica y Danza'!AC17) ->  | AA67: =IF('Musica y Danza'!AD17="","",'Musica y Danza'!AD17) ->  | AB67: =IF('Musica y Danza'!AE17="","",'Musica y Danza'!AE17) ->  | AC67: =IF('Musica y Danza'!AF17="","",'Musica y Danza'!AF17) ->  | AD67: =IF('Musica y Danza'!AG17="","",'Musica y Danza'!AG17) ->  | AE67: =IF('Musica y Danza'!AH17="","",'Musica y Danza'!AH17) ->  | AF67: =IF('Musica y Danza'!AI17="","",'Musica y Danza'!AI17) ->  | AG67: =IF('Musica y Danza'!AJ17="","",'Musica y Danza'!AJ17) ->  | AH67: =IF('Musica y Danza'!AK17="","",'Musica y Danza'!AK17) ->  | AI67: =IF('Musica y Danza'!AL17="","",'Musica y Danza'!AL17) ->  | AJ67: =IF('Musica y Danza'!AM17="","",'Musica y Danza'!AM17) ->  | AK67: =IF('Musica y Danza'!AN17="","",'Musica y Danza'!AN17) ->  | AL67: =IF('Musica y Danza'!AO17="","",'Musica y Danza'!AO17) ->  | AM67: =IF('Musica y Danza'!AP17="","",'Musica y Danza'!AP17) -> 
D68: Criterio Evaluación 5.3 | E68: =IF('Musica y Danza'!H18="","",'Musica y Danza'!H18) ->  | F68: =IF('Musica y Danza'!I18="","",'Musica y Danza'!I18) ->  | G68: =IF('Musica y Danza'!J18="","",'Musica y Danza'!J18) ->  | H68: =IF('Musica y Danza'!K18="","",'Musica y Danza'!K18) ->  | I68: =IF('Musica y Danza'!L18="","",'Musica y Danza'!L18) ->  | J68: =IF('Musica y Danza'!M18="","",'Musica y Danza'!M18) ->  | K68: =IF('Musica y Danza'!N18="","",'Musica y Danza'!N18) ->  | L68: =IF('Musica y Danza'!O18="","",'Musica y Danza'!O18) ->  | M68: =IF('Musica y Danza'!P18="","",'Musica y Danza'!P18) ->  | N68: =IF('Musica y Danza'!Q18="","",'Musica y Danza'!Q18) ->  | O68: =IF('Musica y Danza'!R18="","",'Musica y Danza'!R18) ->  | P68: =IF('Musica y Danza'!S18="","",'Musica y Danza'!S18) ->  | Q68: =IF('Musica y Danza'!T18="","",'Musica y Danza'!T18) ->  | R68: =IF('Musica y Danza'!U18="","",'Musica y Danza'!U18) ->  | S68: =IF('Musica y Danza'!V18="","",'Musica y Danza'!V18) ->  | T68: =IF('Musica y Danza'!W18="","",'Musica y Danza'!W18) ->  | U68: =IF('Musica y Danza'!X18="","",'Musica y Danza'!X18) ->  | V68: =IF('Musica y Danza'!Y18="","",'Musica y Danza'!Y18) ->  | W68: =IF('Musica y Danza'!Z18="","",'Musica y Danza'!Z18) ->  | X68: =IF('Musica y Danza'!AA18="","",'Musica y Danza'!AA18) ->  | Y68: =IF('Musica y Danza'!AB18="","",'Musica y Danza'!AB18) ->  | Z68: =IF('Musica y Danza'!AC18="","",'Musica y Danza'!AC18) ->  | AA68: =IF('Musica y Danza'!AD18="","",'Musica y Danza'!AD18) ->  | AB68: =IF('Musica y Danza'!AE18="","",'Musica y Danza'!AE18) ->  | AC68: =IF('Musica y Danza'!AF18="","",'Musica y Danza'!AF18) ->  | AD68: =IF('Musica y Danza'!AG18="","",'Musica y Danza'!AG18) ->  | AE68: =IF('Musica y Danza'!AH18="","",'Musica y Danza'!AH18) ->  | AF68: =IF('Musica y Danza'!AI18="","",'Musica y Danza'!AI18) ->  | AG68: =IF('Musica y Danza'!AJ18="","",'Musica y Danza'!AJ18) ->  | AH68: =IF('Musica y Danza'!AK18="","",'Musica y Danza'!AK18) ->  | AI68: =IF('Musica y Danza'!AL18="","",'Musica y Danza'!AL18) ->  | AJ68: =IF('Musica y Danza'!AM18="","",'Musica y Danza'!AM18) ->  | AK68: =IF('Musica y Danza'!AN18="","",'Musica y Danza'!AN18) ->  | AL68: =IF('Musica y Danza'!AO18="","",'Musica y Danza'!AO18) ->  | AM68: =IF('Musica y Danza'!AP18="","",'Musica y Danza'!AP18) -> 
D69: Criterio Evaluación 5.4 | E69: =IF('Musica y Danza'!H19="","",'Musica y Danza'!H19) ->  | F69: =IF('Musica y Danza'!I19="","",'Musica y Danza'!I19) ->  | G69: =IF('Musica y Danza'!J19="","",'Musica y Danza'!J19) ->  | H69: =IF('Musica y Danza'!K19="","",'Musica y Danza'!K19) ->  | I69: =IF('Musica y Danza'!L19="","",'Musica y Danza'!L19) ->  | J69: =IF('Musica y Danza'!M19="","",'Musica y Danza'!M19) ->  | K69: =IF('Musica y Danza'!N19="","",'Musica y Danza'!N19) ->  | L69: =IF('Musica y Danza'!O19="","",'Musica y Danza'!O19) ->  | M69: =IF('Musica y Danza'!P19="","",'Musica y Danza'!P19) ->  | N69: =IF('Musica y Danza'!Q19="","",'Musica y Danza'!Q19) ->  | O69: =IF('Musica y Danza'!R19="","",'Musica y Danza'!R19) ->  | P69: =IF('Musica y Danza'!S19="","",'Musica y Danza'!S19) ->  | Q69: =IF('Musica y Danza'!T19="","",'Musica y Danza'!T19) ->  | R69: =IF('Musica y Danza'!U19="","",'Musica y Danza'!U19) ->  | S69: =IF('Musica y Danza'!V19="","",'Musica y Danza'!V19) ->  | T69: =IF('Musica y Danza'!W19="","",'Musica y Danza'!W19) ->  | U69: =IF('Musica y Danza'!X19="","",'Musica y Danza'!X19) ->  | V69: =IF('Musica y Danza'!Y19="","",'Musica y Danza'!Y19) ->  | W69: =IF('Musica y Danza'!Z19="","",'Musica y Danza'!Z19) ->  | X69: =IF('Musica y Danza'!AA19="","",'Musica y Danza'!AA19) ->  | Y69: =IF('Musica y Danza'!AB19="","",'Musica y Danza'!AB19) ->  | Z69: =IF('Musica y Danza'!AC19="","",'Musica y Danza'!AC19) ->  | AA69: =IF('Musica y Danza'!AD19="","",'Musica y Danza'!AD19) ->  | AB69: =IF('Musica y Danza'!AE19="","",'Musica y Danza'!AE19) ->  | AC69: =IF('Musica y Danza'!AF19="","",'Musica y Danza'!AF19) ->  | AD69: =IF('Musica y Danza'!AG19="","",'Musica y Danza'!AG19) ->  | AE69: =IF('Musica y Danza'!AH19="","",'Musica y Danza'!AH19) ->  | AF69: =IF('Musica y Danza'!AI19="","",'Musica y Danza'!AI19) ->  | AG69: =IF('Musica y Danza'!AJ19="","",'Musica y Danza'!AJ19) ->  | AH69: =IF('Musica y Danza'!AK19="","",'Musica y Danza'!AK19) ->  | AI69: =IF('Musica y Danza'!AL19="","",'Musica y Danza'!AL19) ->  | AJ69: =IF('Musica y Danza'!AM19="","",'Musica y Danza'!AM19) ->  | AK69: =IF('Musica y Danza'!AN19="","",'Musica y Danza'!AN19) ->  | AL69: =IF('Musica y Danza'!AO19="","",'Musica y Danza'!AO19) ->  | AM69: =IF('Musica y Danza'!AP19="","",'Musica y Danza'!AP19) -> 
D70: Criterio Evaluación 5.5 | E70: =IF('Musica y Danza'!H20="","",'Musica y Danza'!H20) ->  | F70: =IF('Musica y Danza'!I20="","",'Musica y Danza'!I20) ->  | G70: =IF('Musica y Danza'!J20="","",'Musica y Danza'!J20) ->  | H70: =IF('Musica y Danza'!K20="","",'Musica y Danza'!K20) ->  | I70: =IF('Musica y Danza'!L20="","",'Musica y Danza'!L20) ->  | J70: =IF('Musica y Danza'!M20="","",'Musica y Danza'!M20) ->  | K70: =IF('Musica y Danza'!N20="","",'Musica y Danza'!N20) ->  | L70: =IF('Musica y Danza'!O20="","",'Musica y Danza'!O20) ->  | M70: =IF('Musica y Danza'!P20="","",'Musica y Danza'!P20) ->  | N70: =IF('Musica y Danza'!Q20="","",'Musica y Danza'!Q20) ->  | O70: =IF('Musica y Danza'!R20="","",'Musica y Danza'!R20) ->  | P70: =IF('Musica y Danza'!S20="","",'Musica y Danza'!S20) ->  | Q70: =IF('Musica y Danza'!T20="","",'Musica y Danza'!T20) ->  | R70: =IF('Musica y Danza'!U20="","",'Musica y Danza'!U20) ->  | S70: =IF('Musica y Danza'!V20="","",'Musica y Danza'!V20) ->  | T70: =IF('Musica y Danza'!W20="","",'Musica y Danza'!W20) ->  | U70: =IF('Musica y Danza'!X20="","",'Musica y Danza'!X20) ->  | V70: =IF('Musica y Danza'!Y20="","",'Musica y Danza'!Y20) ->  | W70: =IF('Musica y Danza'!Z20="","",'Musica y Danza'!Z20) ->  | X70: =IF('Musica y Danza'!AA20="","",'Musica y Danza'!AA20) ->  | Y70: =IF('Musica y Danza'!AB20="","",'Musica y Danza'!AB20) ->  | Z70: =IF('Musica y Danza'!AC20="","",'Musica y Danza'!AC20) ->  | AA70: =IF('Musica y Danza'!AD20="","",'Musica y Danza'!AD20) ->  | AB70: =IF('Musica y Danza'!AE20="","",'Musica y Danza'!AE20) ->  | AC70: =IF('Musica y Danza'!AF20="","",'Musica y Danza'!AF20) ->  | AD70: =IF('Musica y Danza'!AG20="","",'Musica y Danza'!AG20) ->  | AE70: =IF('Musica y Danza'!AH20="","",'Musica y Danza'!AH20) ->  | AF70: =IF('Musica y Danza'!AI20="","",'Musica y Danza'!AI20) ->  | AG70: =IF('Musica y Danza'!AJ20="","",'Musica y Danza'!AJ20) ->  | AH70: =IF('Musica y Danza'!AK20="","",'Musica y Danza'!AK20) ->  | AI70: =IF('Musica y Danza'!AL20="","",'Musica y Danza'!AL20) ->  | AJ70: =IF('Musica y Danza'!AM20="","",'Musica y Danza'!AM20) ->  | AK70: =IF('Musica y Danza'!AN20="","",'Musica y Danza'!AN20) ->  | AL70: =IF('Musica y Danza'!AO20="","",'Musica y Danza'!AO20) ->  | AM70: =IF('Musica y Danza'!AP20="","",'Musica y Danza'!AP20) -> 
B71: Educación Física | C71: Comp. Esp. 1 | D71: Criterio Evaluación 1.1 | E71: =IF('Educacion Fisica'!H4="","",'Educacion Fisica'!H4) ->  | F71: =IF('Educacion Fisica'!I4="","",'Educacion Fisica'!I4) ->  | G71: =IF('Educacion Fisica'!J4="","",'Educacion Fisica'!J4) ->  | H71: =IF('Educacion Fisica'!K4="","",'Educacion Fisica'!K4) ->  | I71: =IF('Educacion Fisica'!L4="","",'Educacion Fisica'!L4) ->  | J71: =IF('Educacion Fisica'!M4="","",'Educacion Fisica'!M4) ->  | K71: =IF('Educacion Fisica'!N4="","",'Educacion Fisica'!N4) ->  | L71: =IF('Educacion Fisica'!O4="","",'Educacion Fisica'!O4) ->  | M71: =IF('Educacion Fisica'!P4="","",'Educacion Fisica'!P4) ->  | N71: =IF('Educacion Fisica'!Q4="","",'Educacion Fisica'!Q4) ->  | O71: =IF('Educacion Fisica'!R4="","",'Educacion Fisica'!R4) ->  | P71: =IF('Educacion Fisica'!S4="","",'Educacion Fisica'!S4) ->  | Q71: =IF('Educacion Fisica'!T4="","",'Educacion Fisica'!T4) ->  | R71: =IF('Educacion Fisica'!U4="","",'Educacion Fisica'!U4) ->  | S71: =IF('Educacion Fisica'!V4="","",'Educacion Fisica'!V4) ->  | T71: =IF('Educacion Fisica'!W4="","",'Educacion Fisica'!W4) ->  | U71: =IF('Educacion Fisica'!X4="","",'Educacion Fisica'!X4) ->  | V71: =IF('Educacion Fisica'!Y4="","",'Educacion Fisica'!Y4) ->  | W71: =IF('Educacion Fisica'!Z4="","",'Educacion Fisica'!Z4) ->  | X71: =IF('Educacion Fisica'!AA4="","",'Educacion Fisica'!AA4) ->  | Y71: =IF('Educacion Fisica'!AB4="","",'Educacion Fisica'!AB4) ->  | Z71: =IF('Educacion Fisica'!AC4="","",'Educacion Fisica'!AC4) ->  | AA71: =IF('Educacion Fisica'!AD4="","",'Educacion Fisica'!AD4) ->  | AB71: =IF('Educacion Fisica'!AE4="","",'Educacion Fisica'!AE4) ->  | AC71: =IF('Educacion Fisica'!AF4="","",'Educacion Fisica'!AF4) ->  | AD71: =IF('Educacion Fisica'!AG4="","",'Educacion Fisica'!AG4) ->  | AE71: =IF('Educacion Fisica'!AH4="","",'Educacion Fisica'!AH4) ->  | AF71: =IF('Educacion Fisica'!AI4="","",'Educacion Fisica'!AI4) ->  | AG71: =IF('Educacion Fisica'!AJ4="","",'Educacion Fisica'!AJ4) ->  | AH71: =IF('Educacion Fisica'!AK4="","",'Educacion Fisica'!AK4) ->  | AI71: =IF('Educacion Fisica'!AL4="","",'Educacion Fisica'!AL4) ->  | AJ71: =IF('Educacion Fisica'!AM4="","",'Educacion Fisica'!AM4) ->  | AK71: =IF('Educacion Fisica'!AN4="","",'Educacion Fisica'!AN4) ->  | AL71: =IF('Educacion Fisica'!AO4="","",'Educacion Fisica'!AO4) ->  | AM71: =IF('Educacion Fisica'!AP4="","",'Educacion Fisica'!AP4) -> 
D72: Criterio Evaluación 1.2 | E72: =IF('Educacion Fisica'!H5="","",'Educacion Fisica'!H5) ->  | F72: =IF('Educacion Fisica'!I5="","",'Educacion Fisica'!I5) ->  | G72: =IF('Educacion Fisica'!J5="","",'Educacion Fisica'!J5) ->  | H72: =IF('Educacion Fisica'!K5="","",'Educacion Fisica'!K5) ->  | I72: =IF('Educacion Fisica'!L5="","",'Educacion Fisica'!L5) ->  | J72: =IF('Educacion Fisica'!M5="","",'Educacion Fisica'!M5) ->  | K72: =IF('Educacion Fisica'!N5="","",'Educacion Fisica'!N5) ->  | L72: =IF('Educacion Fisica'!O5="","",'Educacion Fisica'!O5) ->  | M72: =IF('Educacion Fisica'!P5="","",'Educacion Fisica'!P5) ->  | N72: =IF('Educacion Fisica'!Q5="","",'Educacion Fisica'!Q5) ->  | O72: =IF('Educacion Fisica'!R5="","",'Educacion Fisica'!R5) ->  | P72: =IF('Educacion Fisica'!S5="","",'Educacion Fisica'!S5) ->  | Q72: =IF('Educacion Fisica'!T5="","",'Educacion Fisica'!T5) ->  | R72: =IF('Educacion Fisica'!U5="","",'Educacion Fisica'!U5) ->  | S72: =IF('Educacion Fisica'!V5="","",'Educacion Fisica'!V5) ->  | T72: =IF('Educacion Fisica'!W5="","",'Educacion Fisica'!W5) ->  | U72: =IF('Educacion Fisica'!X5="","",'Educacion Fisica'!X5) ->  | V72: =IF('Educacion Fisica'!Y5="","",'Educacion Fisica'!Y5) ->  | W72: =IF('Educacion Fisica'!Z5="","",'Educacion Fisica'!Z5) ->  | X72: =IF('Educacion Fisica'!AA5="","",'Educacion Fisica'!AA5) ->  | Y72: =IF('Educacion Fisica'!AB5="","",'Educacion Fisica'!AB5) ->  | Z72: =IF('Educacion Fisica'!AC5="","",'Educacion Fisica'!AC5) ->  | AA72: =IF('Educacion Fisica'!AD5="","",'Educacion Fisica'!AD5) ->  | AB72: =IF('Educacion Fisica'!AE5="","",'Educacion Fisica'!AE5) ->  | AC72: =IF('Educacion Fisica'!AF5="","",'Educacion Fisica'!AF5) ->  | AD72: =IF('Educacion Fisica'!AG5="","",'Educacion Fisica'!AG5) ->  | AE72: =IF('Educacion Fisica'!AH5="","",'Educacion Fisica'!AH5) ->  | AF72: =IF('Educacion Fisica'!AI5="","",'Educacion Fisica'!AI5) ->  | AG72: =IF('Educacion Fisica'!AJ5="","",'Educacion Fisica'!AJ5) ->  | AH72: =IF('Educacion Fisica'!AK5="","",'Educacion Fisica'!AK5) ->  | AI72: =IF('Educacion Fisica'!AL5="","",'Educacion Fisica'!AL5) ->  | AJ72: =IF('Educacion Fisica'!AM5="","",'Educacion Fisica'!AM5) ->  | AK72: =IF('Educacion Fisica'!AN5="","",'Educacion Fisica'!AN5) ->  | AL72: =IF('Educacion Fisica'!AO5="","",'Educacion Fisica'!AO5) ->  | AM72: =IF('Educacion Fisica'!AP5="","",'Educacion Fisica'!AP5) -> 
D73: Criterio Evaluación 1.3 | E73: =IF('Educacion Fisica'!H6="","",'Educacion Fisica'!H6) ->  | F73: =IF('Educacion Fisica'!I6="","",'Educacion Fisica'!I6) ->  | G73: =IF('Educacion Fisica'!J6="","",'Educacion Fisica'!J6) ->  | H73: =IF('Educacion Fisica'!K6="","",'Educacion Fisica'!K6) ->  | I73: =IF('Educacion Fisica'!L6="","",'Educacion Fisica'!L6) ->  | J73: =IF('Educacion Fisica'!M6="","",'Educacion Fisica'!M6) ->  | K73: =IF('Educacion Fisica'!N6="","",'Educacion Fisica'!N6) ->  | L73: =IF('Educacion Fisica'!O6="","",'Educacion Fisica'!O6) ->  | M73: =IF('Educacion Fisica'!P6="","",'Educacion Fisica'!P6) ->  | N73: =IF('Educacion Fisica'!Q6="","",'Educacion Fisica'!Q6) ->  | O73: =IF('Educacion Fisica'!R6="","",'Educacion Fisica'!R6) ->  | P73: =IF('Educacion Fisica'!S6="","",'Educacion Fisica'!S6) ->  | Q73: =IF('Educacion Fisica'!T6="","",'Educacion Fisica'!T6) ->  | R73: =IF('Educacion Fisica'!U6="","",'Educacion Fisica'!U6) ->  | S73: =IF('Educacion Fisica'!V6="","",'Educacion Fisica'!V6) ->  | T73: =IF('Educacion Fisica'!W6="","",'Educacion Fisica'!W6) ->  | U73: =IF('Educacion Fisica'!X6="","",'Educacion Fisica'!X6) ->  | V73: =IF('Educacion Fisica'!Y6="","",'Educacion Fisica'!Y6) ->  | W73: =IF('Educacion Fisica'!Z6="","",'Educacion Fisica'!Z6) ->  | X73: =IF('Educacion Fisica'!AA6="","",'Educacion Fisica'!AA6) ->  | Y73: =IF('Educacion Fisica'!AB6="","",'Educacion Fisica'!AB6) ->  | Z73: =IF('Educacion Fisica'!AC6="","",'Educacion Fisica'!AC6) ->  | AA73: =IF('Educacion Fisica'!AD6="","",'Educacion Fisica'!AD6) ->  | AB73: =IF('Educacion Fisica'!AE6="","",'Educacion Fisica'!AE6) ->  | AC73: =IF('Educacion Fisica'!AF6="","",'Educacion Fisica'!AF6) ->  | AD73: =IF('Educacion Fisica'!AG6="","",'Educacion Fisica'!AG6) ->  | AE73: =IF('Educacion Fisica'!AH6="","",'Educacion Fisica'!AH6) ->  | AF73: =IF('Educacion Fisica'!AI6="","",'Educacion Fisica'!AI6) ->  | AG73: =IF('Educacion Fisica'!AJ6="","",'Educacion Fisica'!AJ6) ->  | AH73: =IF('Educacion Fisica'!AK6="","",'Educacion Fisica'!AK6) ->  | AI73: =IF('Educacion Fisica'!AL6="","",'Educacion Fisica'!AL6) ->  | AJ73: =IF('Educacion Fisica'!AM6="","",'Educacion Fisica'!AM6) ->  | AK73: =IF('Educacion Fisica'!AN6="","",'Educacion Fisica'!AN6) ->  | AL73: =IF('Educacion Fisica'!AO6="","",'Educacion Fisica'!AO6) ->  | AM73: =IF('Educacion Fisica'!AP6="","",'Educacion Fisica'!AP6) -> 
D74: Criterio Evaluación 1.4 | E74: =IF('Educacion Fisica'!H7="","",'Educacion Fisica'!H7) ->  | F74: =IF('Educacion Fisica'!I7="","",'Educacion Fisica'!I7) ->  | G74: =IF('Educacion Fisica'!J7="","",'Educacion Fisica'!J7) ->  | H74: =IF('Educacion Fisica'!K7="","",'Educacion Fisica'!K7) ->  | I74: =IF('Educacion Fisica'!L7="","",'Educacion Fisica'!L7) ->  | J74: =IF('Educacion Fisica'!M7="","",'Educacion Fisica'!M7) ->  | K74: =IF('Educacion Fisica'!N7="","",'Educacion Fisica'!N7) ->  | L74: =IF('Educacion Fisica'!O7="","",'Educacion Fisica'!O7) ->  | M74: =IF('Educacion Fisica'!P7="","",'Educacion Fisica'!P7) ->  | N74: =IF('Educacion Fisica'!Q7="","",'Educacion Fisica'!Q7) ->  | O74: =IF('Educacion Fisica'!R7="","",'Educacion Fisica'!R7) ->  | P74: =IF('Educacion Fisica'!S7="","",'Educacion Fisica'!S7) ->  | Q74: =IF('Educacion Fisica'!T7="","",'Educacion Fisica'!T7) ->  | R74: =IF('Educacion Fisica'!U7="","",'Educacion Fisica'!U7) ->  | S74: =IF('Educacion Fisica'!V7="","",'Educacion Fisica'!V7) ->  | T74: =IF('Educacion Fisica'!W7="","",'Educacion Fisica'!W7) ->  | U74: =IF('Educacion Fisica'!X7="","",'Educacion Fisica'!X7) ->  | V74: =IF('Educacion Fisica'!Y7="","",'Educacion Fisica'!Y7) ->  | W74: =IF('Educacion Fisica'!Z7="","",'Educacion Fisica'!Z7) ->  | X74: =IF('Educacion Fisica'!AA7="","",'Educacion Fisica'!AA7) ->  | Y74: =IF('Educacion Fisica'!AB7="","",'Educacion Fisica'!AB7) ->  | Z74: =IF('Educacion Fisica'!AC7="","",'Educacion Fisica'!AC7) ->  | AA74: =IF('Educacion Fisica'!AD7="","",'Educacion Fisica'!AD7) ->  | AB74: =IF('Educacion Fisica'!AE7="","",'Educacion Fisica'!AE7) ->  | AC74: =IF('Educacion Fisica'!AF7="","",'Educacion Fisica'!AF7) ->  | AD74: =IF('Educacion Fisica'!AG7="","",'Educacion Fisica'!AG7) ->  | AE74: =IF('Educacion Fisica'!AH7="","",'Educacion Fisica'!AH7) ->  | AF74: =IF('Educacion Fisica'!AI7="","",'Educacion Fisica'!AI7) ->  | AG74: =IF('Educacion Fisica'!AJ7="","",'Educacion Fisica'!AJ7) ->  | AH74: =IF('Educacion Fisica'!AK7="","",'Educacion Fisica'!AK7) ->  | AI74: =IF('Educacion Fisica'!AL7="","",'Educacion Fisica'!AL7) ->  | AJ74: =IF('Educacion Fisica'!AM7="","",'Educacion Fisica'!AM7) ->  | AK74: =IF('Educacion Fisica'!AN7="","",'Educacion Fisica'!AN7) ->  | AL74: =IF('Educacion Fisica'!AO7="","",'Educacion Fisica'!AO7) ->  | AM74: =IF('Educacion Fisica'!AP7="","",'Educacion Fisica'!AP7) -> 
C75: Comp. Esp. 2 | D75: Criterio Evaluación 2.1 | E75: =IF('Educacion Fisica'!H8="","",'Educacion Fisica'!H8) ->  | F75: =IF('Educacion Fisica'!I8="","",'Educacion Fisica'!I8) ->  | G75: =IF('Educacion Fisica'!J8="","",'Educacion Fisica'!J8) ->  | H75: =IF('Educacion Fisica'!K8="","",'Educacion Fisica'!K8) ->  | I75: =IF('Educacion Fisica'!L8="","",'Educacion Fisica'!L8) ->  | J75: =IF('Educacion Fisica'!M8="","",'Educacion Fisica'!M8) ->  | K75: =IF('Educacion Fisica'!N8="","",'Educacion Fisica'!N8) ->  | L75: =IF('Educacion Fisica'!O8="","",'Educacion Fisica'!O8) ->  | M75: =IF('Educacion Fisica'!P8="","",'Educacion Fisica'!P8) ->  | N75: =IF('Educacion Fisica'!Q8="","",'Educacion Fisica'!Q8) ->  | O75: =IF('Educacion Fisica'!R8="","",'Educacion Fisica'!R8) ->  | P75: =IF('Educacion Fisica'!S8="","",'Educacion Fisica'!S8) ->  | Q75: =IF('Educacion Fisica'!T8="","",'Educacion Fisica'!T8) ->  | R75: =IF('Educacion Fisica'!U8="","",'Educacion Fisica'!U8) ->  | S75: =IF('Educacion Fisica'!V8="","",'Educacion Fisica'!V8) ->  | T75: =IF('Educacion Fisica'!W8="","",'Educacion Fisica'!W8) ->  | U75: =IF('Educacion Fisica'!X8="","",'Educacion Fisica'!X8) ->  | V75: =IF('Educacion Fisica'!Y8="","",'Educacion Fisica'!Y8) ->  | W75: =IF('Educacion Fisica'!Z8="","",'Educacion Fisica'!Z8) ->  | X75: =IF('Educacion Fisica'!AA8="","",'Educacion Fisica'!AA8) ->  | Y75: =IF('Educacion Fisica'!AB8="","",'Educacion Fisica'!AB8) ->  | Z75: =IF('Educacion Fisica'!AC8="","",'Educacion Fisica'!AC8) ->  | AA75: =IF('Educacion Fisica'!AD8="","",'Educacion Fisica'!AD8) ->  | AB75: =IF('Educacion Fisica'!AE8="","",'Educacion Fisica'!AE8) ->  | AC75: =IF('Educacion Fisica'!AF8="","",'Educacion Fisica'!AF8) ->  | AD75: =IF('Educacion Fisica'!AG8="","",'Educacion Fisica'!AG8) ->  | AE75: =IF('Educacion Fisica'!AH8="","",'Educacion Fisica'!AH8) ->  | AF75: =IF('Educacion Fisica'!AI8="","",'Educacion Fisica'!AI8) ->  | AG75: =IF('Educacion Fisica'!AJ8="","",'Educacion Fisica'!AJ8) ->  | AH75: =IF('Educacion Fisica'!AK8="","",'Educacion Fisica'!AK8) ->  | AI75: =IF('Educacion Fisica'!AL8="","",'Educacion Fisica'!AL8) ->  | AJ75: =IF('Educacion Fisica'!AM8="","",'Educacion Fisica'!AM8) ->  | AK75: =IF('Educacion Fisica'!AN8="","",'Educacion Fisica'!AN8) ->  | AL75: =IF('Educacion Fisica'!AO8="","",'Educacion Fisica'!AO8) ->  | AM75: =IF('Educacion Fisica'!AP8="","",'Educacion Fisica'!AP8) -> 
D76: Criterio Evaluación 2.2 | E76: =IF('Educacion Fisica'!H9="","",'Educacion Fisica'!H9) ->  | F76: =IF('Educacion Fisica'!I9="","",'Educacion Fisica'!I9) ->  | G76: =IF('Educacion Fisica'!J9="","",'Educacion Fisica'!J9) ->  | H76: =IF('Educacion Fisica'!K9="","",'Educacion Fisica'!K9) ->  | I76: =IF('Educacion Fisica'!L9="","",'Educacion Fisica'!L9) ->  | J76: =IF('Educacion Fisica'!M9="","",'Educacion Fisica'!M9) ->  | K76: =IF('Educacion Fisica'!N9="","",'Educacion Fisica'!N9) ->  | L76: =IF('Educacion Fisica'!O9="","",'Educacion Fisica'!O9) ->  | M76: =IF('Educacion Fisica'!P9="","",'Educacion Fisica'!P9) ->  | N76: =IF('Educacion Fisica'!Q9="","",'Educacion Fisica'!Q9) ->  | O76: =IF('Educacion Fisica'!R9="","",'Educacion Fisica'!R9) ->  | P76: =IF('Educacion Fisica'!S9="","",'Educacion Fisica'!S9) ->  | Q76: =IF('Educacion Fisica'!T9="","",'Educacion Fisica'!T9) ->  | R76: =IF('Educacion Fisica'!U9="","",'Educacion Fisica'!U9) ->  | S76: =IF('Educacion Fisica'!V9="","",'Educacion Fisica'!V9) ->  | T76: =IF('Educacion Fisica'!W9="","",'Educacion Fisica'!W9) ->  | U76: =IF('Educacion Fisica'!X9="","",'Educacion Fisica'!X9) ->  | V76: =IF('Educacion Fisica'!Y9="","",'Educacion Fisica'!Y9) ->  | W76: =IF('Educacion Fisica'!Z9="","",'Educacion Fisica'!Z9) ->  | X76: =IF('Educacion Fisica'!AA9="","",'Educacion Fisica'!AA9) ->  | Y76: =IF('Educacion Fisica'!AB9="","",'Educacion Fisica'!AB9) ->  | Z76: =IF('Educacion Fisica'!AC9="","",'Educacion Fisica'!AC9) ->  | AA76: =IF('Educacion Fisica'!AD9="","",'Educacion Fisica'!AD9) ->  | AB76: =IF('Educacion Fisica'!AE9="","",'Educacion Fisica'!AE9) ->  | AC76: =IF('Educacion Fisica'!AF9="","",'Educacion Fisica'!AF9) ->  | AD76: =IF('Educacion Fisica'!AG9="","",'Educacion Fisica'!AG9) ->  | AE76: =IF('Educacion Fisica'!AH9="","",'Educacion Fisica'!AH9) ->  | AF76: =IF('Educacion Fisica'!AI9="","",'Educacion Fisica'!AI9) ->  | AG76: =IF('Educacion Fisica'!AJ9="","",'Educacion Fisica'!AJ9) ->  | AH76: =IF('Educacion Fisica'!AK9="","",'Educacion Fisica'!AK9) ->  | AI76: =IF('Educacion Fisica'!AL9="","",'Educacion Fisica'!AL9) ->  | AJ76: =IF('Educacion Fisica'!AM9="","",'Educacion Fisica'!AM9) ->  | AK76: =IF('Educacion Fisica'!AN9="","",'Educacion Fisica'!AN9) ->  | AL76: =IF('Educacion Fisica'!AO9="","",'Educacion Fisica'!AO9) ->  | AM76: =IF('Educacion Fisica'!AP9="","",'Educacion Fisica'!AP9) -> 
D77: Criterio Evaluación 2.3 | E77: =IF('Educacion Fisica'!H10="","",'Educacion Fisica'!H10) ->  | F77: =IF('Educacion Fisica'!I10="","",'Educacion Fisica'!I10) ->  | G77: =IF('Educacion Fisica'!J10="","",'Educacion Fisica'!J10) ->  | H77: =IF('Educacion Fisica'!K10="","",'Educacion Fisica'!K10) ->  | I77: =IF('Educacion Fisica'!L10="","",'Educacion Fisica'!L10) ->  | J77: =IF('Educacion Fisica'!M10="","",'Educacion Fisica'!M10) ->  | K77: =IF('Educacion Fisica'!N10="","",'Educacion Fisica'!N10) ->  | L77: =IF('Educacion Fisica'!O10="","",'Educacion Fisica'!O10) ->  | M77: =IF('Educacion Fisica'!P10="","",'Educacion Fisica'!P10) ->  | N77: =IF('Educacion Fisica'!Q10="","",'Educacion Fisica'!Q10) ->  | O77: =IF('Educacion Fisica'!R10="","",'Educacion Fisica'!R10) ->  | P77: =IF('Educacion Fisica'!S10="","",'Educacion Fisica'!S10) ->  | Q77: =IF('Educacion Fisica'!T10="","",'Educacion Fisica'!T10) ->  | R77: =IF('Educacion Fisica'!U10="","",'Educacion Fisica'!U10) ->  | S77: =IF('Educacion Fisica'!V10="","",'Educacion Fisica'!V10) ->  | T77: =IF('Educacion Fisica'!W10="","",'Educacion Fisica'!W10) ->  | U77: =IF('Educacion Fisica'!X10="","",'Educacion Fisica'!X10) ->  | V77: =IF('Educacion Fisica'!Y10="","",'Educacion Fisica'!Y10) ->  | W77: =IF('Educacion Fisica'!Z10="","",'Educacion Fisica'!Z10) ->  | X77: =IF('Educacion Fisica'!AA10="","",'Educacion Fisica'!AA10) ->  | Y77: =IF('Educacion Fisica'!AB10="","",'Educacion Fisica'!AB10) ->  | Z77: =IF('Educacion Fisica'!AC10="","",'Educacion Fisica'!AC10) ->  | AA77: =IF('Educacion Fisica'!AD10="","",'Educacion Fisica'!AD10) ->  | AB77: =IF('Educacion Fisica'!AE10="","",'Educacion Fisica'!AE10) ->  | AC77: =IF('Educacion Fisica'!AF10="","",'Educacion Fisica'!AF10) ->  | AD77: =IF('Educacion Fisica'!AG10="","",'Educacion Fisica'!AG10) ->  | AE77: =IF('Educacion Fisica'!AH10="","",'Educacion Fisica'!AH10) ->  | AF77: =IF('Educacion Fisica'!AI10="","",'Educacion Fisica'!AI10) ->  | AG77: =IF('Educacion Fisica'!AJ10="","",'Educacion Fisica'!AJ10) ->  | AH77: =IF('Educacion Fisica'!AK10="","",'Educacion Fisica'!AK10) ->  | AI77: =IF('Educacion Fisica'!AL10="","",'Educacion Fisica'!AL10) ->  | AJ77: =IF('Educacion Fisica'!AM10="","",'Educacion Fisica'!AM10) ->  | AK77: =IF('Educacion Fisica'!AN10="","",'Educacion Fisica'!AN10) ->  | AL77: =IF('Educacion Fisica'!AO10="","",'Educacion Fisica'!AO10) ->  | AM77: =IF('Educacion Fisica'!AP10="","",'Educacion Fisica'!AP10) -> 
C78: Comp. Esp. 3 | D78: Criterio Evaluación 3.1 | E78: =IF('Educacion Fisica'!H11="","",'Educacion Fisica'!H11) ->  | F78: =IF('Educacion Fisica'!I11="","",'Educacion Fisica'!I11) ->  | G78: =IF('Educacion Fisica'!J11="","",'Educacion Fisica'!J11) ->  | H78: =IF('Educacion Fisica'!K11="","",'Educacion Fisica'!K11) ->  | I78: =IF('Educacion Fisica'!L11="","",'Educacion Fisica'!L11) ->  | J78: =IF('Educacion Fisica'!M11="","",'Educacion Fisica'!M11) ->  | K78: =IF('Educacion Fisica'!N11="","",'Educacion Fisica'!N11) ->  | L78: =IF('Educacion Fisica'!O11="","",'Educacion Fisica'!O11) ->  | M78: =IF('Educacion Fisica'!P11="","",'Educacion Fisica'!P11) ->  | N78: =IF('Educacion Fisica'!Q11="","",'Educacion Fisica'!Q11) ->  | O78: =IF('Educacion Fisica'!R11="","",'Educacion Fisica'!R11) ->  | P78: =IF('Educacion Fisica'!S11="","",'Educacion Fisica'!S11) ->  | Q78: =IF('Educacion Fisica'!T11="","",'Educacion Fisica'!T11) ->  | R78: =IF('Educacion Fisica'!U11="","",'Educacion Fisica'!U11) ->  | S78: =IF('Educacion Fisica'!V11="","",'Educacion Fisica'!V11) ->  | T78: =IF('Educacion Fisica'!W11="","",'Educacion Fisica'!W11) ->  | U78: =IF('Educacion Fisica'!X11="","",'Educacion Fisica'!X11) ->  | V78: =IF('Educacion Fisica'!Y11="","",'Educacion Fisica'!Y11) ->  | W78: =IF('Educacion Fisica'!Z11="","",'Educacion Fisica'!Z11) ->  | X78: =IF('Educacion Fisica'!AA11="","",'Educacion Fisica'!AA11) ->  | Y78: =IF('Educacion Fisica'!AB11="","",'Educacion Fisica'!AB11) ->  | Z78: =IF('Educacion Fisica'!AC11="","",'Educacion Fisica'!AC11) ->  | AA78: =IF('Educacion Fisica'!AD11="","",'Educacion Fisica'!AD11) ->  | AB78: =IF('Educacion Fisica'!AE11="","",'Educacion Fisica'!AE11) ->  | AC78: =IF('Educacion Fisica'!AF11="","",'Educacion Fisica'!AF11) ->  | AD78: =IF('Educacion Fisica'!AG11="","",'Educacion Fisica'!AG11) ->  | AE78: =IF('Educacion Fisica'!AH11="","",'Educacion Fisica'!AH11) ->  | AF78: =IF('Educacion Fisica'!AI11="","",'Educacion Fisica'!AI11) ->  | AG78: =IF('Educacion Fisica'!AJ11="","",'Educacion Fisica'!AJ11) ->  | AH78: =IF('Educacion Fisica'!AK11="","",'Educacion Fisica'!AK11) ->  | AI78: =IF('Educacion Fisica'!AL11="","",'Educacion Fisica'!AL11) ->  | AJ78: =IF('Educacion Fisica'!AM11="","",'Educacion Fisica'!AM11) ->  | AK78: =IF('Educacion Fisica'!AN11="","",'Educacion Fisica'!AN11) ->  | AL78: =IF('Educacion Fisica'!AO11="","",'Educacion Fisica'!AO11) ->  | AM78: =IF('Educacion Fisica'!AP11="","",'Educacion Fisica'!AP11) -> 
D79: Criterio Evaluación 3.2 | E79: =IF('Educacion Fisica'!H12="","",'Educacion Fisica'!H12) ->  | F79: =IF('Educacion Fisica'!I12="","",'Educacion Fisica'!I12) ->  | G79: =IF('Educacion Fisica'!J12="","",'Educacion Fisica'!J12) ->  | H79: =IF('Educacion Fisica'!K12="","",'Educacion Fisica'!K12) ->  | I79: =IF('Educacion Fisica'!L12="","",'Educacion Fisica'!L12) ->  | J79: =IF('Educacion Fisica'!M12="","",'Educacion Fisica'!M12) ->  | K79: =IF('Educacion Fisica'!N12="","",'Educacion Fisica'!N12) ->  | L79: =IF('Educacion Fisica'!O12="","",'Educacion Fisica'!O12) ->  | M79: =IF('Educacion Fisica'!P12="","",'Educacion Fisica'!P12) ->  | N79: =IF('Educacion Fisica'!Q12="","",'Educacion Fisica'!Q12) ->  | O79: =IF('Educacion Fisica'!R12="","",'Educacion Fisica'!R12) ->  | P79: =IF('Educacion Fisica'!S12="","",'Educacion Fisica'!S12) ->  | Q79: =IF('Educacion Fisica'!T12="","",'Educacion Fisica'!T12) ->  | R79: =IF('Educacion Fisica'!U12="","",'Educacion Fisica'!U12) ->  | S79: =IF('Educacion Fisica'!V12="","",'Educacion Fisica'!V12) ->  | T79: =IF('Educacion Fisica'!W12="","",'Educacion Fisica'!W12) ->  | U79: =IF('Educacion Fisica'!X12="","",'Educacion Fisica'!X12) ->  | V79: =IF('Educacion Fisica'!Y12="","",'Educacion Fisica'!Y12) ->  | W79: =IF('Educacion Fisica'!Z12="","",'Educacion Fisica'!Z12) ->  | X79: =IF('Educacion Fisica'!AA12="","",'Educacion Fisica'!AA12) ->  | Y79: =IF('Educacion Fisica'!AB12="","",'Educacion Fisica'!AB12) ->  | Z79: =IF('Educacion Fisica'!AC12="","",'Educacion Fisica'!AC12) ->  | AA79: =IF('Educacion Fisica'!AD12="","",'Educacion Fisica'!AD12) ->  | AB79: =IF('Educacion Fisica'!AE12="","",'Educacion Fisica'!AE12) ->  | AC79: =IF('Educacion Fisica'!AF12="","",'Educacion Fisica'!AF12) ->  | AD79: =IF('Educacion Fisica'!AG12="","",'Educacion Fisica'!AG12) ->  | AE79: =IF('Educacion Fisica'!AH12="","",'Educacion Fisica'!AH12) ->  | AF79: =IF('Educacion Fisica'!AI12="","",'Educacion Fisica'!AI12) ->  | AG79: =IF('Educacion Fisica'!AJ12="","",'Educacion Fisica'!AJ12) ->  | AH79: =IF('Educacion Fisica'!AK12="","",'Educacion Fisica'!AK12) ->  | AI79: =IF('Educacion Fisica'!AL12="","",'Educacion Fisica'!AL12) ->  | AJ79: =IF('Educacion Fisica'!AM12="","",'Educacion Fisica'!AM12) ->  | AK79: =IF('Educacion Fisica'!AN12="","",'Educacion Fisica'!AN12) ->  | AL79: =IF('Educacion Fisica'!AO12="","",'Educacion Fisica'!AO12) ->  | AM79: =IF('Educacion Fisica'!AP12="","",'Educacion Fisica'!AP12) -> 
D80: Criterio Evaluación 3.3 | E80: =IF('Educacion Fisica'!H13="","",'Educacion Fisica'!H13) ->  | F80: =IF('Educacion Fisica'!I13="","",'Educacion Fisica'!I13) ->  | G80: =IF('Educacion Fisica'!J13="","",'Educacion Fisica'!J13) ->  | H80: =IF('Educacion Fisica'!K13="","",'Educacion Fisica'!K13) ->  | I80: =IF('Educacion Fisica'!L13="","",'Educacion Fisica'!L13) ->  | J80: =IF('Educacion Fisica'!M13="","",'Educacion Fisica'!M13) ->  | K80: =IF('Educacion Fisica'!N13="","",'Educacion Fisica'!N13) ->  | L80: =IF('Educacion Fisica'!O13="","",'Educacion Fisica'!O13) ->  | M80: =IF('Educacion Fisica'!P13="","",'Educacion Fisica'!P13) ->  | N80: =IF('Educacion Fisica'!Q13="","",'Educacion Fisica'!Q13) ->  | O80: =IF('Educacion Fisica'!R13="","",'Educacion Fisica'!R13) ->  | P80: =IF('Educacion Fisica'!S13="","",'Educacion Fisica'!S13) ->  | Q80: =IF('Educacion Fisica'!T13="","",'Educacion Fisica'!T13) ->  | R80: =IF('Educacion Fisica'!U13="","",'Educacion Fisica'!U13) ->  | S80: =IF('Educacion Fisica'!V13="","",'Educacion Fisica'!V13) ->  | T80: =IF('Educacion Fisica'!W13="","",'Educacion Fisica'!W13) ->  | U80: =IF('Educacion Fisica'!X13="","",'Educacion Fisica'!X13) ->  | V80: =IF('Educacion Fisica'!Y13="","",'Educacion Fisica'!Y13) ->  | W80: =IF('Educacion Fisica'!Z13="","",'Educacion Fisica'!Z13) ->  | X80: =IF('Educacion Fisica'!AA13="","",'Educacion Fisica'!AA13) ->  | Y80: =IF('Educacion Fisica'!AB13="","",'Educacion Fisica'!AB13) ->  | Z80: =IF('Educacion Fisica'!AC13="","",'Educacion Fisica'!AC13) ->  | AA80: =IF('Educacion Fisica'!AD13="","",'Educacion Fisica'!AD13) ->  | AB80: =IF('Educacion Fisica'!AE13="","",'Educacion Fisica'!AE13) ->  | AC80: =IF('Educacion Fisica'!AF13="","",'Educacion Fisica'!AF13) ->  | AD80: =IF('Educacion Fisica'!AG13="","",'Educacion Fisica'!AG13) ->  | AE80: =IF('Educacion Fisica'!AH13="","",'Educacion Fisica'!AH13) ->  | AF80: =IF('Educacion Fisica'!AI13="","",'Educacion Fisica'!AI13) ->  | AG80: =IF('Educacion Fisica'!AJ13="","",'Educacion Fisica'!AJ13) ->  | AH80: =IF('Educacion Fisica'!AK13="","",'Educacion Fisica'!AK13) ->  | AI80: =IF('Educacion Fisica'!AL13="","",'Educacion Fisica'!AL13) ->  | AJ80: =IF('Educacion Fisica'!AM13="","",'Educacion Fisica'!AM13) ->  | AK80: =IF('Educacion Fisica'!AN13="","",'Educacion Fisica'!AN13) ->  | AL80: =IF('Educacion Fisica'!AO13="","",'Educacion Fisica'!AO13) ->  | AM80: =IF('Educacion Fisica'!AP13="","",'Educacion Fisica'!AP13) -> 
C81: Comp. Esp. 4 | D81: Criterio Evaluación 4.1 | E81: =IF('Educacion Fisica'!H14="","",'Educacion Fisica'!H14) ->  | F81: =IF('Educacion Fisica'!I14="","",'Educacion Fisica'!I14) ->  | G81: =IF('Educacion Fisica'!J14="","",'Educacion Fisica'!J14) ->  | H81: =IF('Educacion Fisica'!K14="","",'Educacion Fisica'!K14) ->  | I81: =IF('Educacion Fisica'!L14="","",'Educacion Fisica'!L14) ->  | J81: =IF('Educacion Fisica'!M14="","",'Educacion Fisica'!M14) ->  | K81: =IF('Educacion Fisica'!N14="","",'Educacion Fisica'!N14) ->  | L81: =IF('Educacion Fisica'!O14="","",'Educacion Fisica'!O14) ->  | M81: =IF('Educacion Fisica'!P14="","",'Educacion Fisica'!P14) ->  | N81: =IF('Educacion Fisica'!Q14="","",'Educacion Fisica'!Q14) ->  | O81: =IF('Educacion Fisica'!R14="","",'Educacion Fisica'!R14) ->  | P81: =IF('Educacion Fisica'!S14="","",'Educacion Fisica'!S14) ->  | Q81: =IF('Educacion Fisica'!T14="","",'Educacion Fisica'!T14) ->  | R81: =IF('Educacion Fisica'!U14="","",'Educacion Fisica'!U14) ->  | S81: =IF('Educacion Fisica'!V14="","",'Educacion Fisica'!V14) ->  | T81: =IF('Educacion Fisica'!W14="","",'Educacion Fisica'!W14) ->  | U81: =IF('Educacion Fisica'!X14="","",'Educacion Fisica'!X14) ->  | V81: =IF('Educacion Fisica'!Y14="","",'Educacion Fisica'!Y14) ->  | W81: =IF('Educacion Fisica'!Z14="","",'Educacion Fisica'!Z14) ->  | X81: =IF('Educacion Fisica'!AA14="","",'Educacion Fisica'!AA14) ->  | Y81: =IF('Educacion Fisica'!AB14="","",'Educacion Fisica'!AB14) ->  | Z81: =IF('Educacion Fisica'!AC14="","",'Educacion Fisica'!AC14) ->  | AA81: =IF('Educacion Fisica'!AD14="","",'Educacion Fisica'!AD14) ->  | AB81: =IF('Educacion Fisica'!AE14="","",'Educacion Fisica'!AE14) ->  | AC81: =IF('Educacion Fisica'!AF14="","",'Educacion Fisica'!AF14) ->  | AD81: =IF('Educacion Fisica'!AG14="","",'Educacion Fisica'!AG14) ->  | AE81: =IF('Educacion Fisica'!AH14="","",'Educacion Fisica'!AH14) ->  | AF81: =IF('Educacion Fisica'!AI14="","",'Educacion Fisica'!AI14) ->  | AG81: =IF('Educacion Fisica'!AJ14="","",'Educacion Fisica'!AJ14) ->  | AH81: =IF('Educacion Fisica'!AK14="","",'Educacion Fisica'!AK14) ->  | AI81: =IF('Educacion Fisica'!AL14="","",'Educacion Fisica'!AL14) ->  | AJ81: =IF('Educacion Fisica'!AM14="","",'Educacion Fisica'!AM14) ->  | AK81: =IF('Educacion Fisica'!AN14="","",'Educacion Fisica'!AN14) ->  | AL81: =IF('Educacion Fisica'!AO14="","",'Educacion Fisica'!AO14) ->  | AM81: =IF('Educacion Fisica'!AP14="","",'Educacion Fisica'!AP14) -> 
D82: Criterio Evaluación 4.2 | E82: =IF('Educacion Fisica'!H15="","",'Educacion Fisica'!H15) ->  | F82: =IF('Educacion Fisica'!I15="","",'Educacion Fisica'!I15) ->  | G82: =IF('Educacion Fisica'!J15="","",'Educacion Fisica'!J15) ->  | H82: =IF('Educacion Fisica'!K15="","",'Educacion Fisica'!K15) ->  | I82: =IF('Educacion Fisica'!L15="","",'Educacion Fisica'!L15) ->  | J82: =IF('Educacion Fisica'!M15="","",'Educacion Fisica'!M15) ->  | K82: =IF('Educacion Fisica'!N15="","",'Educacion Fisica'!N15) ->  | L82: =IF('Educacion Fisica'!O15="","",'Educacion Fisica'!O15) ->  | M82: =IF('Educacion Fisica'!P15="","",'Educacion Fisica'!P15) ->  | N82: =IF('Educacion Fisica'!Q15="","",'Educacion Fisica'!Q15) ->  | O82: =IF('Educacion Fisica'!R15="","",'Educacion Fisica'!R15) ->  | P82: =IF('Educacion Fisica'!S15="","",'Educacion Fisica'!S15) ->  | Q82: =IF('Educacion Fisica'!T15="","",'Educacion Fisica'!T15) ->  | R82: =IF('Educacion Fisica'!U15="","",'Educacion Fisica'!U15) ->  | S82: =IF('Educacion Fisica'!V15="","",'Educacion Fisica'!V15) ->  | T82: =IF('Educacion Fisica'!W15="","",'Educacion Fisica'!W15) ->  | U82: =IF('Educacion Fisica'!X15="","",'Educacion Fisica'!X15) ->  | V82: =IF('Educacion Fisica'!Y15="","",'Educacion Fisica'!Y15) ->  | W82: =IF('Educacion Fisica'!Z15="","",'Educacion Fisica'!Z15) ->  | X82: =IF('Educacion Fisica'!AA15="","",'Educacion Fisica'!AA15) ->  | Y82: =IF('Educacion Fisica'!AB15="","",'Educacion Fisica'!AB15) ->  | Z82: =IF('Educacion Fisica'!AC15="","",'Educacion Fisica'!AC15) ->  | AA82: =IF('Educacion Fisica'!AD15="","",'Educacion Fisica'!AD15) ->  | AB82: =IF('Educacion Fisica'!AE15="","",'Educacion Fisica'!AE15) ->  | AC82: =IF('Educacion Fisica'!AF15="","",'Educacion Fisica'!AF15) ->  | AD82: =IF('Educacion Fisica'!AG15="","",'Educacion Fisica'!AG15) ->  | AE82: =IF('Educacion Fisica'!AH15="","",'Educacion Fisica'!AH15) ->  | AF82: =IF('Educacion Fisica'!AI15="","",'Educacion Fisica'!AI15) ->  | AG82: =IF('Educacion Fisica'!AJ15="","",'Educacion Fisica'!AJ15) ->  | AH82: =IF('Educacion Fisica'!AK15="","",'Educacion Fisica'!AK15) ->  | AI82: =IF('Educacion Fisica'!AL15="","",'Educacion Fisica'!AL15) ->  | AJ82: =IF('Educacion Fisica'!AM15="","",'Educacion Fisica'!AM15) ->  | AK82: =IF('Educacion Fisica'!AN15="","",'Educacion Fisica'!AN15) ->  | AL82: =IF('Educacion Fisica'!AO15="","",'Educacion Fisica'!AO15) ->  | AM82: =IF('Educacion Fisica'!AP15="","",'Educacion Fisica'!AP15) -> 
D83: Criterio Evaluación 4.3 | E83: =IF('Educacion Fisica'!H16="","",'Educacion Fisica'!H16) ->  | F83: =IF('Educacion Fisica'!I16="","",'Educacion Fisica'!I16) ->  | G83: =IF('Educacion Fisica'!J16="","",'Educacion Fisica'!J16) ->  | H83: =IF('Educacion Fisica'!K16="","",'Educacion Fisica'!K16) ->  | I83: =IF('Educacion Fisica'!L16="","",'Educacion Fisica'!L16) ->  | J83: =IF('Educacion Fisica'!M16="","",'Educacion Fisica'!M16) ->  | K83: =IF('Educacion Fisica'!N16="","",'Educacion Fisica'!N16) ->  | L83: =IF('Educacion Fisica'!O16="","",'Educacion Fisica'!O16) ->  | M83: =IF('Educacion Fisica'!P16="","",'Educacion Fisica'!P16) ->  | N83: =IF('Educacion Fisica'!Q16="","",'Educacion Fisica'!Q16) ->  | O83: =IF('Educacion Fisica'!R16="","",'Educacion Fisica'!R16) ->  | P83: =IF('Educacion Fisica'!S16="","",'Educacion Fisica'!S16) ->  | Q83: =IF('Educacion Fisica'!T16="","",'Educacion Fisica'!T16) ->  | R83: =IF('Educacion Fisica'!U16="","",'Educacion Fisica'!U16) ->  | S83: =IF('Educacion Fisica'!V16="","",'Educacion Fisica'!V16) ->  | T83: =IF('Educacion Fisica'!W16="","",'Educacion Fisica'!W16) ->  | U83: =IF('Educacion Fisica'!X16="","",'Educacion Fisica'!X16) ->  | V83: =IF('Educacion Fisica'!Y16="","",'Educacion Fisica'!Y16) ->  | W83: =IF('Educacion Fisica'!Z16="","",'Educacion Fisica'!Z16) ->  | X83: =IF('Educacion Fisica'!AA16="","",'Educacion Fisica'!AA16) ->  | Y83: =IF('Educacion Fisica'!AB16="","",'Educacion Fisica'!AB16) ->  | Z83: =IF('Educacion Fisica'!AC16="","",'Educacion Fisica'!AC16) ->  | AA83: =IF('Educacion Fisica'!AD16="","",'Educacion Fisica'!AD16) ->  | AB83: =IF('Educacion Fisica'!AE16="","",'Educacion Fisica'!AE16) ->  | AC83: =IF('Educacion Fisica'!AF16="","",'Educacion Fisica'!AF16) ->  | AD83: =IF('Educacion Fisica'!AG16="","",'Educacion Fisica'!AG16) ->  | AE83: =IF('Educacion Fisica'!AH16="","",'Educacion Fisica'!AH16) ->  | AF83: =IF('Educacion Fisica'!AI16="","",'Educacion Fisica'!AI16) ->  | AG83: =IF('Educacion Fisica'!AJ16="","",'Educacion Fisica'!AJ16) ->  | AH83: =IF('Educacion Fisica'!AK16="","",'Educacion Fisica'!AK16) ->  | AI83: =IF('Educacion Fisica'!AL16="","",'Educacion Fisica'!AL16) ->  | AJ83: =IF('Educacion Fisica'!AM16="","",'Educacion Fisica'!AM16) ->  | AK83: =IF('Educacion Fisica'!AN16="","",'Educacion Fisica'!AN16) ->  | AL83: =IF('Educacion Fisica'!AO16="","",'Educacion Fisica'!AO16) ->  | AM83: =IF('Educacion Fisica'!AP16="","",'Educacion Fisica'!AP16) -> 
D84: Criterio Evaluación 4.4 | E84: =IF('Educacion Fisica'!H17="","",'Educacion Fisica'!H17) ->  | F84: =IF('Educacion Fisica'!I17="","",'Educacion Fisica'!I17) ->  | G84: =IF('Educacion Fisica'!J17="","",'Educacion Fisica'!J17) ->  | H84: =IF('Educacion Fisica'!K17="","",'Educacion Fisica'!K17) ->  | I84: =IF('Educacion Fisica'!L17="","",'Educacion Fisica'!L17) ->  | J84: =IF('Educacion Fisica'!M17="","",'Educacion Fisica'!M17) ->  | K84: =IF('Educacion Fisica'!N17="","",'Educacion Fisica'!N17) ->  | L84: =IF('Educacion Fisica'!O17="","",'Educacion Fisica'!O17) ->  | M84: =IF('Educacion Fisica'!P17="","",'Educacion Fisica'!P17) ->  | N84: =IF('Educacion Fisica'!Q17="","",'Educacion Fisica'!Q17) ->  | O84: =IF('Educacion Fisica'!R17="","",'Educacion Fisica'!R17) ->  | P84: =IF('Educacion Fisica'!S17="","",'Educacion Fisica'!S17) ->  | Q84: =IF('Educacion Fisica'!T17="","",'Educacion Fisica'!T17) ->  | R84: =IF('Educacion Fisica'!U17="","",'Educacion Fisica'!U17) ->  | S84: =IF('Educacion Fisica'!V17="","",'Educacion Fisica'!V17) ->  | T84: =IF('Educacion Fisica'!W17="","",'Educacion Fisica'!W17) ->  | U84: =IF('Educacion Fisica'!X17="","",'Educacion Fisica'!X17) ->  | V84: =IF('Educacion Fisica'!Y17="","",'Educacion Fisica'!Y17) ->  | W84: =IF('Educacion Fisica'!Z17="","",'Educacion Fisica'!Z17) ->  | X84: =IF('Educacion Fisica'!AA17="","",'Educacion Fisica'!AA17) ->  | Y84: =IF('Educacion Fisica'!AB17="","",'Educacion Fisica'!AB17) ->  | Z84: =IF('Educacion Fisica'!AC17="","",'Educacion Fisica'!AC17) ->  | AA84: =IF('Educacion Fisica'!AD17="","",'Educacion Fisica'!AD17) ->  | AB84: =IF('Educacion Fisica'!AE17="","",'Educacion Fisica'!AE17) ->  | AC84: =IF('Educacion Fisica'!AF17="","",'Educacion Fisica'!AF17) ->  | AD84: =IF('Educacion Fisica'!AG17="","",'Educacion Fisica'!AG17) ->  | AE84: =IF('Educacion Fisica'!AH17="","",'Educacion Fisica'!AH17) ->  | AF84: =IF('Educacion Fisica'!AI17="","",'Educacion Fisica'!AI17) ->  | AG84: =IF('Educacion Fisica'!AJ17="","",'Educacion Fisica'!AJ17) ->  | AH84: =IF('Educacion Fisica'!AK17="","",'Educacion Fisica'!AK17) ->  | AI84: =IF('Educacion Fisica'!AL17="","",'Educacion Fisica'!AL17) ->  | AJ84: =IF('Educacion Fisica'!AM17="","",'Educacion Fisica'!AM17) ->  | AK84: =IF('Educacion Fisica'!AN17="","",'Educacion Fisica'!AN17) ->  | AL84: =IF('Educacion Fisica'!AO17="","",'Educacion Fisica'!AO17) ->  | AM84: =IF('Educacion Fisica'!AP17="","",'Educacion Fisica'!AP17) -> 
C85: Comp. Esp. 5 | D85: Criterio Evaluación 5.1 | E85: =IF('Educacion Fisica'!H18="","",'Educacion Fisica'!H18) ->  | F85: =IF('Educacion Fisica'!I18="","",'Educacion Fisica'!I18) ->  | G85: =IF('Educacion Fisica'!J18="","",'Educacion Fisica'!J18) ->  | H85: =IF('Educacion Fisica'!K18="","",'Educacion Fisica'!K18) ->  | I85: =IF('Educacion Fisica'!L18="","",'Educacion Fisica'!L18) ->  | J85: =IF('Educacion Fisica'!M18="","",'Educacion Fisica'!M18) ->  | K85: =IF('Educacion Fisica'!N18="","",'Educacion Fisica'!N18) ->  | L85: =IF('Educacion Fisica'!O18="","",'Educacion Fisica'!O18) ->  | M85: =IF('Educacion Fisica'!P18="","",'Educacion Fisica'!P18) ->  | N85: =IF('Educacion Fisica'!Q18="","",'Educacion Fisica'!Q18) ->  | O85: =IF('Educacion Fisica'!R18="","",'Educacion Fisica'!R18) ->  | P85: =IF('Educacion Fisica'!S18="","",'Educacion Fisica'!S18) ->  | Q85: =IF('Educacion Fisica'!T18="","",'Educacion Fisica'!T18) ->  | R85: =IF('Educacion Fisica'!U18="","",'Educacion Fisica'!U18) ->  | S85: =IF('Educacion Fisica'!V18="","",'Educacion Fisica'!V18) ->  | T85: =IF('Educacion Fisica'!W18="","",'Educacion Fisica'!W18) ->  | U85: =IF('Educacion Fisica'!X18="","",'Educacion Fisica'!X18) ->  | V85: =IF('Educacion Fisica'!Y18="","",'Educacion Fisica'!Y18) ->  | W85: =IF('Educacion Fisica'!Z18="","",'Educacion Fisica'!Z18) ->  | X85: =IF('Educacion Fisica'!AA18="","",'Educacion Fisica'!AA18) ->  | Y85: =IF('Educacion Fisica'!AB18="","",'Educacion Fisica'!AB18) ->  | Z85: =IF('Educacion Fisica'!AC18="","",'Educacion Fisica'!AC18) ->  | AA85: =IF('Educacion Fisica'!AD18="","",'Educacion Fisica'!AD18) ->  | AB85: =IF('Educacion Fisica'!AE18="","",'Educacion Fisica'!AE18) ->  | AC85: =IF('Educacion Fisica'!AF18="","",'Educacion Fisica'!AF18) ->  | AD85: =IF('Educacion Fisica'!AG18="","",'Educacion Fisica'!AG18) ->  | AE85: =IF('Educacion Fisica'!AH18="","",'Educacion Fisica'!AH18) ->  | AF85: =IF('Educacion Fisica'!AI18="","",'Educacion Fisica'!AI18) ->  | AG85: =IF('Educacion Fisica'!AJ18="","",'Educacion Fisica'!AJ18) ->  | AH85: =IF('Educacion Fisica'!AK18="","",'Educacion Fisica'!AK18) ->  | AI85: =IF('Educacion Fisica'!AL18="","",'Educacion Fisica'!AL18) ->  | AJ85: =IF('Educacion Fisica'!AM18="","",'Educacion Fisica'!AM18) ->  | AK85: =IF('Educacion Fisica'!AN18="","",'Educacion Fisica'!AN18) ->  | AL85: =IF('Educacion Fisica'!AO18="","",'Educacion Fisica'!AO18) ->  | AM85: =IF('Educacion Fisica'!AP18="","",'Educacion Fisica'!AP18) -> 
D86: Criterio Evaluación 5.2 | E86: =IF('Educacion Fisica'!H19="","",'Educacion Fisica'!H19) ->  | F86: =IF('Educacion Fisica'!I19="","",'Educacion Fisica'!I19) ->  | G86: =IF('Educacion Fisica'!J19="","",'Educacion Fisica'!J19) ->  | H86: =IF('Educacion Fisica'!K19="","",'Educacion Fisica'!K19) ->  | I86: =IF('Educacion Fisica'!L19="","",'Educacion Fisica'!L19) ->  | J86: =IF('Educacion Fisica'!M19="","",'Educacion Fisica'!M19) ->  | K86: =IF('Educacion Fisica'!N19="","",'Educacion Fisica'!N19) ->  | L86: =IF('Educacion Fisica'!O19="","",'Educacion Fisica'!O19) ->  | M86: =IF('Educacion Fisica'!P19="","",'Educacion Fisica'!P19) ->  | N86: =IF('Educacion Fisica'!Q19="","",'Educacion Fisica'!Q19) ->  | O86: =IF('Educacion Fisica'!R19="","",'Educacion Fisica'!R19) ->  | P86: =IF('Educacion Fisica'!S19="","",'Educacion Fisica'!S19) ->  | Q86: =IF('Educacion Fisica'!T19="","",'Educacion Fisica'!T19) ->  | R86: =IF('Educacion Fisica'!U19="","",'Educacion Fisica'!U19) ->  | S86: =IF('Educacion Fisica'!V19="","",'Educacion Fisica'!V19) ->  | T86: =IF('Educacion Fisica'!W19="","",'Educacion Fisica'!W19) ->  | U86: =IF('Educacion Fisica'!X19="","",'Educacion Fisica'!X19) ->  | V86: =IF('Educacion Fisica'!Y19="","",'Educacion Fisica'!Y19) ->  | W86: =IF('Educacion Fisica'!Z19="","",'Educacion Fisica'!Z19) ->  | X86: =IF('Educacion Fisica'!AA19="","",'Educacion Fisica'!AA19) ->  | Y86: =IF('Educacion Fisica'!AB19="","",'Educacion Fisica'!AB19) ->  | Z86: =IF('Educacion Fisica'!AC19="","",'Educacion Fisica'!AC19) ->  | AA86: =IF('Educacion Fisica'!AD19="","",'Educacion Fisica'!AD19) ->  | AB86: =IF('Educacion Fisica'!AE19="","",'Educacion Fisica'!AE19) ->  | AC86: =IF('Educacion Fisica'!AF19="","",'Educacion Fisica'!AF19) ->  | AD86: =IF('Educacion Fisica'!AG19="","",'Educacion Fisica'!AG19) ->  | AE86: =IF('Educacion Fisica'!AH19="","",'Educacion Fisica'!AH19) ->  | AF86: =IF('Educacion Fisica'!AI19="","",'Educacion Fisica'!AI19) ->  | AG86: =IF('Educacion Fisica'!AJ19="","",'Educacion Fisica'!AJ19) ->  | AH86: =IF('Educacion Fisica'!AK19="","",'Educacion Fisica'!AK19) ->  | AI86: =IF('Educacion Fisica'!AL19="","",'Educacion Fisica'!AL19) ->  | AJ86: =IF('Educacion Fisica'!AM19="","",'Educacion Fisica'!AM19) ->  | AK86: =IF('Educacion Fisica'!AN19="","",'Educacion Fisica'!AN19) ->  | AL86: =IF('Educacion Fisica'!AO19="","",'Educacion Fisica'!AO19) ->  | AM86: =IF('Educacion Fisica'!AP19="","",'Educacion Fisica'!AP19) -> 
D87: Criterio Evaluación 5.3 | E87: =IF('Educacion Fisica'!H20="","",'Educacion Fisica'!H20) ->  | F87: =IF('Educacion Fisica'!I20="","",'Educacion Fisica'!I20) ->  | G87: =IF('Educacion Fisica'!J20="","",'Educacion Fisica'!J20) ->  | H87: =IF('Educacion Fisica'!K20="","",'Educacion Fisica'!K20) ->  | I87: =IF('Educacion Fisica'!L20="","",'Educacion Fisica'!L20) ->  | J87: =IF('Educacion Fisica'!M20="","",'Educacion Fisica'!M20) ->  | K87: =IF('Educacion Fisica'!N20="","",'Educacion Fisica'!N20) ->  | L87: =IF('Educacion Fisica'!O20="","",'Educacion Fisica'!O20) ->  | M87: =IF('Educacion Fisica'!P20="","",'Educacion Fisica'!P20) ->  | N87: =IF('Educacion Fisica'!Q20="","",'Educacion Fisica'!Q20) ->  | O87: =IF('Educacion Fisica'!R20="","",'Educacion Fisica'!R20) ->  | P87: =IF('Educacion Fisica'!S20="","",'Educacion Fisica'!S20) ->  | Q87: =IF('Educacion Fisica'!T20="","",'Educacion Fisica'!T20) ->  | R87: =IF('Educacion Fisica'!U20="","",'Educacion Fisica'!U20) ->  | S87: =IF('Educacion Fisica'!V20="","",'Educacion Fisica'!V20) ->  | T87: =IF('Educacion Fisica'!W20="","",'Educacion Fisica'!W20) ->  | U87: =IF('Educacion Fisica'!X20="","",'Educacion Fisica'!X20) ->  | V87: =IF('Educacion Fisica'!Y20="","",'Educacion Fisica'!Y20) ->  | W87: =IF('Educacion Fisica'!Z20="","",'Educacion Fisica'!Z20) ->  | X87: =IF('Educacion Fisica'!AA20="","",'Educacion Fisica'!AA20) ->  | Y87: =IF('Educacion Fisica'!AB20="","",'Educacion Fisica'!AB20) ->  | Z87: =IF('Educacion Fisica'!AC20="","",'Educacion Fisica'!AC20) ->  | AA87: =IF('Educacion Fisica'!AD20="","",'Educacion Fisica'!AD20) ->  | AB87: =IF('Educacion Fisica'!AE20="","",'Educacion Fisica'!AE20) ->  | AC87: =IF('Educacion Fisica'!AF20="","",'Educacion Fisica'!AF20) ->  | AD87: =IF('Educacion Fisica'!AG20="","",'Educacion Fisica'!AG20) ->  | AE87: =IF('Educacion Fisica'!AH20="","",'Educacion Fisica'!AH20) ->  | AF87: =IF('Educacion Fisica'!AI20="","",'Educacion Fisica'!AI20) ->  | AG87: =IF('Educacion Fisica'!AJ20="","",'Educacion Fisica'!AJ20) ->  | AH87: =IF('Educacion Fisica'!AK20="","",'Educacion Fisica'!AK20) ->  | AI87: =IF('Educacion Fisica'!AL20="","",'Educacion Fisica'!AL20) ->  | AJ87: =IF('Educacion Fisica'!AM20="","",'Educacion Fisica'!AM20) ->  | AK87: =IF('Educacion Fisica'!AN20="","",'Educacion Fisica'!AN20) ->  | AL87: =IF('Educacion Fisica'!AO20="","",'Educacion Fisica'!AO20) ->  | AM87: =IF('Educacion Fisica'!AP20="","",'Educacion Fisica'!AP20) -> 
C88: Comp. Esp. 6 | D88: Criterio Evaluación 6.1 | E88: =IF('Educacion Fisica'!H21="","",'Educacion Fisica'!H21) ->  | F88: =IF('Educacion Fisica'!I21="","",'Educacion Fisica'!I21) ->  | G88: =IF('Educacion Fisica'!J21="","",'Educacion Fisica'!J21) ->  | H88: =IF('Educacion Fisica'!K21="","",'Educacion Fisica'!K21) ->  | I88: =IF('Educacion Fisica'!L21="","",'Educacion Fisica'!L21) ->  | J88: =IF('Educacion Fisica'!M21="","",'Educacion Fisica'!M21) ->  | K88: =IF('Educacion Fisica'!N21="","",'Educacion Fisica'!N21) ->  | L88: =IF('Educacion Fisica'!O21="","",'Educacion Fisica'!O21) ->  | M88: =IF('Educacion Fisica'!P21="","",'Educacion Fisica'!P21) ->  | N88: =IF('Educacion Fisica'!Q21="","",'Educacion Fisica'!Q21) ->  | O88: =IF('Educacion Fisica'!R21="","",'Educacion Fisica'!R21) ->  | P88: =IF('Educacion Fisica'!S21="","",'Educacion Fisica'!S21) ->  | Q88: =IF('Educacion Fisica'!T21="","",'Educacion Fisica'!T21) ->  | R88: =IF('Educacion Fisica'!U21="","",'Educacion Fisica'!U21) ->  | S88: =IF('Educacion Fisica'!V21="","",'Educacion Fisica'!V21) ->  | T88: =IF('Educacion Fisica'!W21="","",'Educacion Fisica'!W21) ->  | U88: =IF('Educacion Fisica'!X21="","",'Educacion Fisica'!X21) ->  | V88: =IF('Educacion Fisica'!Y21="","",'Educacion Fisica'!Y21) ->  | W88: =IF('Educacion Fisica'!Z21="","",'Educacion Fisica'!Z21) ->  | X88: =IF('Educacion Fisica'!AA21="","",'Educacion Fisica'!AA21) ->  | Y88: =IF('Educacion Fisica'!AB21="","",'Educacion Fisica'!AB21) ->  | Z88: =IF('Educacion Fisica'!AC21="","",'Educacion Fisica'!AC21) ->  | AA88: =IF('Educacion Fisica'!AD21="","",'Educacion Fisica'!AD21) ->  | AB88: =IF('Educacion Fisica'!AE21="","",'Educacion Fisica'!AE21) ->  | AC88: =IF('Educacion Fisica'!AF21="","",'Educacion Fisica'!AF21) ->  | AD88: =IF('Educacion Fisica'!AG21="","",'Educacion Fisica'!AG21) ->  | AE88: =IF('Educacion Fisica'!AH21="","",'Educacion Fisica'!AH21) ->  | AF88: =IF('Educacion Fisica'!AI21="","",'Educacion Fisica'!AI21) ->  | AG88: =IF('Educacion Fisica'!AJ21="","",'Educacion Fisica'!AJ21) ->  | AH88: =IF('Educacion Fisica'!AK21="","",'Educacion Fisica'!AK21) ->  | AI88: =IF('Educacion Fisica'!AL21="","",'Educacion Fisica'!AL21) ->  | AJ88: =IF('Educacion Fisica'!AM21="","",'Educacion Fisica'!AM21) ->  | AK88: =IF('Educacion Fisica'!AN21="","",'Educacion Fisica'!AN21) ->  | AL88: =IF('Educacion Fisica'!AO21="","",'Educacion Fisica'!AO21) ->  | AM88: =IF('Educacion Fisica'!AP21="","",'Educacion Fisica'!AP21) -> 
D89: Criterio Evaluación 6.2 | E89: =IF('Educacion Fisica'!H22="","",'Educacion Fisica'!H22) ->  | F89: =IF('Educacion Fisica'!I22="","",'Educacion Fisica'!I22) ->  | G89: =IF('Educacion Fisica'!J22="","",'Educacion Fisica'!J22) ->  | H89: =IF('Educacion Fisica'!K22="","",'Educacion Fisica'!K22) ->  | I89: =IF('Educacion Fisica'!L22="","",'Educacion Fisica'!L22) ->  | J89: =IF('Educacion Fisica'!M22="","",'Educacion Fisica'!M22) ->  | K89: =IF('Educacion Fisica'!N22="","",'Educacion Fisica'!N22) ->  | L89: =IF('Educacion Fisica'!O22="","",'Educacion Fisica'!O22) ->  | M89: =IF('Educacion Fisica'!P22="","",'Educacion Fisica'!P22) ->  | N89: =IF('Educacion Fisica'!Q22="","",'Educacion Fisica'!Q22) ->  | O89: =IF('Educacion Fisica'!R22="","",'Educacion Fisica'!R22) ->  | P89: =IF('Educacion Fisica'!S22="","",'Educacion Fisica'!S22) ->  | Q89: =IF('Educacion Fisica'!T22="","",'Educacion Fisica'!T22) ->  | R89: =IF('Educacion Fisica'!U22="","",'Educacion Fisica'!U22) ->  | S89: =IF('Educacion Fisica'!V22="","",'Educacion Fisica'!V22) ->  | T89: =IF('Educacion Fisica'!W22="","",'Educacion Fisica'!W22) ->  | U89: =IF('Educacion Fisica'!X22="","",'Educacion Fisica'!X22) ->  | V89: =IF('Educacion Fisica'!Y22="","",'Educacion Fisica'!Y22) ->  | W89: =IF('Educacion Fisica'!Z22="","",'Educacion Fisica'!Z22) ->  | X89: =IF('Educacion Fisica'!AA22="","",'Educacion Fisica'!AA22) ->  | Y89: =IF('Educacion Fisica'!AB22="","",'Educacion Fisica'!AB22) ->  | Z89: =IF('Educacion Fisica'!AC22="","",'Educacion Fisica'!AC22) ->  | AA89: =IF('Educacion Fisica'!AD22="","",'Educacion Fisica'!AD22) ->  | AB89: =IF('Educacion Fisica'!AE22="","",'Educacion Fisica'!AE22) ->  | AC89: =IF('Educacion Fisica'!AF22="","",'Educacion Fisica'!AF22) ->  | AD89: =IF('Educacion Fisica'!AG22="","",'Educacion Fisica'!AG22) ->  | AE89: =IF('Educacion Fisica'!AH22="","",'Educacion Fisica'!AH22) ->  | AF89: =IF('Educacion Fisica'!AI22="","",'Educacion Fisica'!AI22) ->  | AG89: =IF('Educacion Fisica'!AJ22="","",'Educacion Fisica'!AJ22) ->  | AH89: =IF('Educacion Fisica'!AK22="","",'Educacion Fisica'!AK22) ->  | AI89: =IF('Educacion Fisica'!AL22="","",'Educacion Fisica'!AL22) ->  | AJ89: =IF('Educacion Fisica'!AM22="","",'Educacion Fisica'!AM22) ->  | AK89: =IF('Educacion Fisica'!AN22="","",'Educacion Fisica'!AN22) ->  | AL89: =IF('Educacion Fisica'!AO22="","",'Educacion Fisica'!AO22) ->  | AM89: =IF('Educacion Fisica'!AP22="","",'Educacion Fisica'!AP22) -> 
D90: Criterio Evaluación 6.3 | E90: =IF('Educacion Fisica'!H23="","",'Educacion Fisica'!H23) ->  | F90: =IF('Educacion Fisica'!I23="","",'Educacion Fisica'!I23) ->  | G90: =IF('Educacion Fisica'!J23="","",'Educacion Fisica'!J23) ->  | H90: =IF('Educacion Fisica'!K23="","",'Educacion Fisica'!K23) ->  | I90: =IF('Educacion Fisica'!L23="","",'Educacion Fisica'!L23) ->  | J90: =IF('Educacion Fisica'!M23="","",'Educacion Fisica'!M23) ->  | K90: =IF('Educacion Fisica'!N23="","",'Educacion Fisica'!N23) ->  | L90: =IF('Educacion Fisica'!O23="","",'Educacion Fisica'!O23) ->  | M90: =IF('Educacion Fisica'!P23="","",'Educacion Fisica'!P23) ->  | N90: =IF('Educacion Fisica'!Q23="","",'Educacion Fisica'!Q23) ->  | O90: =IF('Educacion Fisica'!R23="","",'Educacion Fisica'!R23) ->  | P90: =IF('Educacion Fisica'!S23="","",'Educacion Fisica'!S23) ->  | Q90: =IF('Educacion Fisica'!T23="","",'Educacion Fisica'!T23) ->  | R90: =IF('Educacion Fisica'!U23="","",'Educacion Fisica'!U23) ->  | S90: =IF('Educacion Fisica'!V23="","",'Educacion Fisica'!V23) ->  | T90: =IF('Educacion Fisica'!W23="","",'Educacion Fisica'!W23) ->  | U90: =IF('Educacion Fisica'!X23="","",'Educacion Fisica'!X23) ->  | V90: =IF('Educacion Fisica'!Y23="","",'Educacion Fisica'!Y23) ->  | W90: =IF('Educacion Fisica'!Z23="","",'Educacion Fisica'!Z23) ->  | X90: =IF('Educacion Fisica'!AA23="","",'Educacion Fisica'!AA23) ->  | Y90: =IF('Educacion Fisica'!AB23="","",'Educacion Fisica'!AB23) ->  | Z90: =IF('Educacion Fisica'!AC23="","",'Educacion Fisica'!AC23) ->  | AA90: =IF('Educacion Fisica'!AD23="","",'Educacion Fisica'!AD23) ->  | AB90: =IF('Educacion Fisica'!AE23="","",'Educacion Fisica'!AE23) ->  | AC90: =IF('Educacion Fisica'!AF23="","",'Educacion Fisica'!AF23) ->  | AD90: =IF('Educacion Fisica'!AG23="","",'Educacion Fisica'!AG23) ->  | AE90: =IF('Educacion Fisica'!AH23="","",'Educacion Fisica'!AH23) ->  | AF90: =IF('Educacion Fisica'!AI23="","",'Educacion Fisica'!AI23) ->  | AG90: =IF('Educacion Fisica'!AJ23="","",'Educacion Fisica'!AJ23) ->  | AH90: =IF('Educacion Fisica'!AK23="","",'Educacion Fisica'!AK23) ->  | AI90: =IF('Educacion Fisica'!AL23="","",'Educacion Fisica'!AL23) ->  | AJ90: =IF('Educacion Fisica'!AM23="","",'Educacion Fisica'!AM23) ->  | AK90: =IF('Educacion Fisica'!AN23="","",'Educacion Fisica'!AN23) ->  | AL90: =IF('Educacion Fisica'!AO23="","",'Educacion Fisica'!AO23) ->  | AM90: =IF('Educacion Fisica'!AP23="","",'Educacion Fisica'!AP23) -> 
B91: Lengua Castellana y Literatura | C91: Comp. Esp. 1 | D91: Criterio Evaluación 1.1 | E91: =IF('Lengua Castellana y Lit.'!H4="","",'Lengua Castellana y Lit.'!H4) ->  | F91: =IF('Lengua Castellana y Lit.'!I4="","",'Lengua Castellana y Lit.'!I4) ->  | G91: =IF('Lengua Castellana y Lit.'!J4="","",'Lengua Castellana y Lit.'!J4) ->  | H91: =IF('Lengua Castellana y Lit.'!K4="","",'Lengua Castellana y Lit.'!K4) ->  | I91: =IF('Lengua Castellana y Lit.'!L4="","",'Lengua Castellana y Lit.'!L4) ->  | J91: =IF('Lengua Castellana y Lit.'!M4="","",'Lengua Castellana y Lit.'!M4) ->  | K91: =IF('Lengua Castellana y Lit.'!N4="","",'Lengua Castellana y Lit.'!N4) ->  | L91: =IF('Lengua Castellana y Lit.'!O4="","",'Lengua Castellana y Lit.'!O4) ->  | M91: =IF('Lengua Castellana y Lit.'!P4="","",'Lengua Castellana y Lit.'!P4) ->  | N91: =IF('Lengua Castellana y Lit.'!Q4="","",'Lengua Castellana y Lit.'!Q4) ->  | O91: =IF('Lengua Castellana y Lit.'!R4="","",'Lengua Castellana y Lit.'!R4) ->  | P91: =IF('Lengua Castellana y Lit.'!S4="","",'Lengua Castellana y Lit.'!S4) ->  | Q91: =IF('Lengua Castellana y Lit.'!T4="","",'Lengua Castellana y Lit.'!T4) ->  | R91: =IF('Lengua Castellana y Lit.'!U4="","",'Lengua Castellana y Lit.'!U4) ->  | S91: =IF('Lengua Castellana y Lit.'!V4="","",'Lengua Castellana y Lit.'!V4) ->  | T91: =IF('Lengua Castellana y Lit.'!W4="","",'Lengua Castellana y Lit.'!W4) ->  | U91: =IF('Lengua Castellana y Lit.'!X4="","",'Lengua Castellana y Lit.'!X4) ->  | V91: =IF('Lengua Castellana y Lit.'!Y4="","",'Lengua Castellana y Lit.'!Y4) ->  | W91: =IF('Lengua Castellana y Lit.'!Z4="","",'Lengua Castellana y Lit.'!Z4) ->  | X91: =IF('Lengua Castellana y Lit.'!AA4="","",'Lengua Castellana y Lit.'!AA4) ->  | Y91: =IF('Lengua Castellana y Lit.'!AB4="","",'Lengua Castellana y Lit.'!AB4) ->  | Z91: =IF('Lengua Castellana y Lit.'!AC4="","",'Lengua Castellana y Lit.'!AC4) ->  | AA91: =IF('Lengua Castellana y Lit.'!AD4="","",'Lengua Castellana y Lit.'!AD4) ->  | AB91: =IF('Lengua Castellana y Lit.'!AE4="","",'Lengua Castellana y Lit.'!AE4) ->  | AC91: =IF('Lengua Castellana y Lit.'!AF4="","",'Lengua Castellana y Lit.'!AF4) ->  | AD91: =IF('Lengua Castellana y Lit.'!AG4="","",'Lengua Castellana y Lit.'!AG4) ->  | AE91: =IF('Lengua Castellana y Lit.'!AH4="","",'Lengua Castellana y Lit.'!AH4) ->  | AF91: =IF('Lengua Castellana y Lit.'!AI4="","",'Lengua Castellana y Lit.'!AI4) ->  | AG91: =IF('Lengua Castellana y Lit.'!AJ4="","",'Lengua Castellana y Lit.'!AJ4) ->  | AH91: =IF('Lengua Castellana y Lit.'!AK4="","",'Lengua Castellana y Lit.'!AK4) ->  | AI91: =IF('Lengua Castellana y Lit.'!AL4="","",'Lengua Castellana y Lit.'!AL4) ->  | AJ91: =IF('Lengua Castellana y Lit.'!AM4="","",'Lengua Castellana y Lit.'!AM4) ->  | AK91: =IF('Lengua Castellana y Lit.'!AN4="","",'Lengua Castellana y Lit.'!AN4) ->  | AL91: =IF('Lengua Castellana y Lit.'!AO4="","",'Lengua Castellana y Lit.'!AO4) ->  | AM91: =IF('Lengua Castellana y Lit.'!AP4="","",'Lengua Castellana y Lit.'!AP4) -> 
D92: Criterio Evaluación 1.2 | E92: =IF('Lengua Castellana y Lit.'!H5="","",'Lengua Castellana y Lit.'!H5) ->  | F92: =IF('Lengua Castellana y Lit.'!I5="","",'Lengua Castellana y Lit.'!I5) ->  | G92: =IF('Lengua Castellana y Lit.'!J5="","",'Lengua Castellana y Lit.'!J5) ->  | H92: =IF('Lengua Castellana y Lit.'!K5="","",'Lengua Castellana y Lit.'!K5) ->  | I92: =IF('Lengua Castellana y Lit.'!L5="","",'Lengua Castellana y Lit.'!L5) ->  | J92: =IF('Lengua Castellana y Lit.'!M5="","",'Lengua Castellana y Lit.'!M5) ->  | K92: =IF('Lengua Castellana y Lit.'!N5="","",'Lengua Castellana y Lit.'!N5) ->  | L92: =IF('Lengua Castellana y Lit.'!O5="","",'Lengua Castellana y Lit.'!O5) ->  | M92: =IF('Lengua Castellana y Lit.'!P5="","",'Lengua Castellana y Lit.'!P5) ->  | N92: =IF('Lengua Castellana y Lit.'!Q5="","",'Lengua Castellana y Lit.'!Q5) ->  | O92: =IF('Lengua Castellana y Lit.'!R5="","",'Lengua Castellana y Lit.'!R5) ->  | P92: =IF('Lengua Castellana y Lit.'!S5="","",'Lengua Castellana y Lit.'!S5) ->  | Q92: =IF('Lengua Castellana y Lit.'!T5="","",'Lengua Castellana y Lit.'!T5) ->  | R92: =IF('Lengua Castellana y Lit.'!U5="","",'Lengua Castellana y Lit.'!U5) ->  | S92: =IF('Lengua Castellana y Lit.'!V5="","",'Lengua Castellana y Lit.'!V5) ->  | T92: =IF('Lengua Castellana y Lit.'!W5="","",'Lengua Castellana y Lit.'!W5) ->  | U92: =IF('Lengua Castellana y Lit.'!X5="","",'Lengua Castellana y Lit.'!X5) ->  | V92: =IF('Lengua Castellana y Lit.'!Y5="","",'Lengua Castellana y Lit.'!Y5) ->  | W92: =IF('Lengua Castellana y Lit.'!Z5="","",'Lengua Castellana y Lit.'!Z5) ->  | X92: =IF('Lengua Castellana y Lit.'!AA5="","",'Lengua Castellana y Lit.'!AA5) ->  | Y92: =IF('Lengua Castellana y Lit.'!AB5="","",'Lengua Castellana y Lit.'!AB5) ->  | Z92: =IF('Lengua Castellana y Lit.'!AC5="","",'Lengua Castellana y Lit.'!AC5) ->  | AA92: =IF('Lengua Castellana y Lit.'!AD5="","",'Lengua Castellana y Lit.'!AD5) ->  | AB92: =IF('Lengua Castellana y Lit.'!AE5="","",'Lengua Castellana y Lit.'!AE5) ->  | AC92: =IF('Lengua Castellana y Lit.'!AF5="","",'Lengua Castellana y Lit.'!AF5) ->  | AD92: =IF('Lengua Castellana y Lit.'!AG5="","",'Lengua Castellana y Lit.'!AG5) ->  | AE92: =IF('Lengua Castellana y Lit.'!AH5="","",'Lengua Castellana y Lit.'!AH5) ->  | AF92: =IF('Lengua Castellana y Lit.'!AI5="","",'Lengua Castellana y Lit.'!AI5) ->  | AG92: =IF('Lengua Castellana y Lit.'!AJ5="","",'Lengua Castellana y Lit.'!AJ5) ->  | AH92: =IF('Lengua Castellana y Lit.'!AK5="","",'Lengua Castellana y Lit.'!AK5) ->  | AI92: =IF('Lengua Castellana y Lit.'!AL5="","",'Lengua Castellana y Lit.'!AL5) ->  | AJ92: =IF('Lengua Castellana y Lit.'!AM5="","",'Lengua Castellana y Lit.'!AM5) ->  | AK92: =IF('Lengua Castellana y Lit.'!AN5="","",'Lengua Castellana y Lit.'!AN5) ->  | AL92: =IF('Lengua Castellana y Lit.'!AO5="","",'Lengua Castellana y Lit.'!AO5) ->  | AM92: =IF('Lengua Castellana y Lit.'!AP5="","",'Lengua Castellana y Lit.'!AP5) -> 
C93: Comp. Esp. 2 | D93: Criterio Evaluación 2.1 | E93: =IF('Lengua Castellana y Lit.'!H6="","",'Lengua Castellana y Lit.'!H6) ->  | F93: =IF('Lengua Castellana y Lit.'!I6="","",'Lengua Castellana y Lit.'!I6) ->  | G93: =IF('Lengua Castellana y Lit.'!J6="","",'Lengua Castellana y Lit.'!J6) ->  | H93: =IF('Lengua Castellana y Lit.'!K6="","",'Lengua Castellana y Lit.'!K6) ->  | I93: =IF('Lengua Castellana y Lit.'!L6="","",'Lengua Castellana y Lit.'!L6) ->  | J93: =IF('Lengua Castellana y Lit.'!M6="","",'Lengua Castellana y Lit.'!M6) ->  | K93: =IF('Lengua Castellana y Lit.'!N6="","",'Lengua Castellana y Lit.'!N6) ->  | L93: =IF('Lengua Castellana y Lit.'!O6="","",'Lengua Castellana y Lit.'!O6) ->  | M93: =IF('Lengua Castellana y Lit.'!P6="","",'Lengua Castellana y Lit.'!P6) ->  | N93: =IF('Lengua Castellana y Lit.'!Q6="","",'Lengua Castellana y Lit.'!Q6) ->  | O93: =IF('Lengua Castellana y Lit.'!R6="","",'Lengua Castellana y Lit.'!R6) ->  | P93: =IF('Lengua Castellana y Lit.'!S6="","",'Lengua Castellana y Lit.'!S6) ->  | Q93: =IF('Lengua Castellana y Lit.'!T6="","",'Lengua Castellana y Lit.'!T6) ->  | R93: =IF('Lengua Castellana y Lit.'!U6="","",'Lengua Castellana y Lit.'!U6) ->  | S93: =IF('Lengua Castellana y Lit.'!V6="","",'Lengua Castellana y Lit.'!V6) ->  | T93: =IF('Lengua Castellana y Lit.'!W6="","",'Lengua Castellana y Lit.'!W6) ->  | U93: =IF('Lengua Castellana y Lit.'!X6="","",'Lengua Castellana y Lit.'!X6) ->  | V93: =IF('Lengua Castellana y Lit.'!Y6="","",'Lengua Castellana y Lit.'!Y6) ->  | W93: =IF('Lengua Castellana y Lit.'!Z6="","",'Lengua Castellana y Lit.'!Z6) ->  | X93: =IF('Lengua Castellana y Lit.'!AA6="","",'Lengua Castellana y Lit.'!AA6) ->  | Y93: =IF('Lengua Castellana y Lit.'!AB6="","",'Lengua Castellana y Lit.'!AB6) ->  | Z93: =IF('Lengua Castellana y Lit.'!AC6="","",'Lengua Castellana y Lit.'!AC6) ->  | AA93: =IF('Lengua Castellana y Lit.'!AD6="","",'Lengua Castellana y Lit.'!AD6) ->  | AB93: =IF('Lengua Castellana y Lit.'!AE6="","",'Lengua Castellana y Lit.'!AE6) ->  | AC93: =IF('Lengua Castellana y Lit.'!AF6="","",'Lengua Castellana y Lit.'!AF6) ->  | AD93: =IF('Lengua Castellana y Lit.'!AG6="","",'Lengua Castellana y Lit.'!AG6) ->  | AE93: =IF('Lengua Castellana y Lit.'!AH6="","",'Lengua Castellana y Lit.'!AH6) ->  | AF93: =IF('Lengua Castellana y Lit.'!AI6="","",'Lengua Castellana y Lit.'!AI6) ->  | AG93: =IF('Lengua Castellana y Lit.'!AJ6="","",'Lengua Castellana y Lit.'!AJ6) ->  | AH93: =IF('Lengua Castellana y Lit.'!AK6="","",'Lengua Castellana y Lit.'!AK6) ->  | AI93: =IF('Lengua Castellana y Lit.'!AL6="","",'Lengua Castellana y Lit.'!AL6) ->  | AJ93: =IF('Lengua Castellana y Lit.'!AM6="","",'Lengua Castellana y Lit.'!AM6) ->  | AK93: =IF('Lengua Castellana y Lit.'!AN6="","",'Lengua Castellana y Lit.'!AN6) ->  | AL93: =IF('Lengua Castellana y Lit.'!AO6="","",'Lengua Castellana y Lit.'!AO6) ->  | AM93: =IF('Lengua Castellana y Lit.'!AP6="","",'Lengua Castellana y Lit.'!AP6) -> 
D94: Criterio Evaluación 2.2 | E94: =IF('Lengua Castellana y Lit.'!H7="","",'Lengua Castellana y Lit.'!H7) ->  | F94: =IF('Lengua Castellana y Lit.'!I7="","",'Lengua Castellana y Lit.'!I7) ->  | G94: =IF('Lengua Castellana y Lit.'!J7="","",'Lengua Castellana y Lit.'!J7) ->  | H94: =IF('Lengua Castellana y Lit.'!K7="","",'Lengua Castellana y Lit.'!K7) ->  | I94: =IF('Lengua Castellana y Lit.'!L7="","",'Lengua Castellana y Lit.'!L7) ->  | J94: =IF('Lengua Castellana y Lit.'!M7="","",'Lengua Castellana y Lit.'!M7) ->  | K94: =IF('Lengua Castellana y Lit.'!N7="","",'Lengua Castellana y Lit.'!N7) ->  | L94: =IF('Lengua Castellana y Lit.'!O7="","",'Lengua Castellana y Lit.'!O7) ->  | M94: =IF('Lengua Castellana y Lit.'!P7="","",'Lengua Castellana y Lit.'!P7) ->  | N94: =IF('Lengua Castellana y Lit.'!Q7="","",'Lengua Castellana y Lit.'!Q7) ->  | O94: =IF('Lengua Castellana y Lit.'!R7="","",'Lengua Castellana y Lit.'!R7) ->  | P94: =IF('Lengua Castellana y Lit.'!S7="","",'Lengua Castellana y Lit.'!S7) ->  | Q94: =IF('Lengua Castellana y Lit.'!T7="","",'Lengua Castellana y Lit.'!T7) ->  | R94: =IF('Lengua Castellana y Lit.'!U7="","",'Lengua Castellana y Lit.'!U7) ->  | S94: =IF('Lengua Castellana y Lit.'!V7="","",'Lengua Castellana y Lit.'!V7) ->  | T94: =IF('Lengua Castellana y Lit.'!W7="","",'Lengua Castellana y Lit.'!W7) ->  | U94: =IF('Lengua Castellana y Lit.'!X7="","",'Lengua Castellana y Lit.'!X7) ->  | V94: =IF('Lengua Castellana y Lit.'!Y7="","",'Lengua Castellana y Lit.'!Y7) ->  | W94: =IF('Lengua Castellana y Lit.'!Z7="","",'Lengua Castellana y Lit.'!Z7) ->  | X94: =IF('Lengua Castellana y Lit.'!AA7="","",'Lengua Castellana y Lit.'!AA7) ->  | Y94: =IF('Lengua Castellana y Lit.'!AB7="","",'Lengua Castellana y Lit.'!AB7) ->  | Z94: =IF('Lengua Castellana y Lit.'!AC7="","",'Lengua Castellana y Lit.'!AC7) ->  | AA94: =IF('Lengua Castellana y Lit.'!AD7="","",'Lengua Castellana y Lit.'!AD7) ->  | AB94: =IF('Lengua Castellana y Lit.'!AE7="","",'Lengua Castellana y Lit.'!AE7) ->  | AC94: =IF('Lengua Castellana y Lit.'!AF7="","",'Lengua Castellana y Lit.'!AF7) ->  | AD94: =IF('Lengua Castellana y Lit.'!AG7="","",'Lengua Castellana y Lit.'!AG7) ->  | AE94: =IF('Lengua Castellana y Lit.'!AH7="","",'Lengua Castellana y Lit.'!AH7) ->  | AF94: =IF('Lengua Castellana y Lit.'!AI7="","",'Lengua Castellana y Lit.'!AI7) ->  | AG94: =IF('Lengua Castellana y Lit.'!AJ7="","",'Lengua Castellana y Lit.'!AJ7) ->  | AH94: =IF('Lengua Castellana y Lit.'!AK7="","",'Lengua Castellana y Lit.'!AK7) ->  | AI94: =IF('Lengua Castellana y Lit.'!AL7="","",'Lengua Castellana y Lit.'!AL7) ->  | AJ94: =IF('Lengua Castellana y Lit.'!AM7="","",'Lengua Castellana y Lit.'!AM7) ->  | AK94: =IF('Lengua Castellana y Lit.'!AN7="","",'Lengua Castellana y Lit.'!AN7) ->  | AL94: =IF('Lengua Castellana y Lit.'!AO7="","",'Lengua Castellana y Lit.'!AO7) ->  | AM94: =IF('Lengua Castellana y Lit.'!AP7="","",'Lengua Castellana y Lit.'!AP7) -> 
C95: Comp. Esp. 3 | D95: Criterio Evaluación 3.1 | E95: =IF('Lengua Castellana y Lit.'!H8="","",'Lengua Castellana y Lit.'!H8) ->  | F95: =IF('Lengua Castellana y Lit.'!I8="","",'Lengua Castellana y Lit.'!I8) ->  | G95: =IF('Lengua Castellana y Lit.'!J8="","",'Lengua Castellana y Lit.'!J8) ->  | H95: =IF('Lengua Castellana y Lit.'!K8="","",'Lengua Castellana y Lit.'!K8) ->  | I95: =IF('Lengua Castellana y Lit.'!L8="","",'Lengua Castellana y Lit.'!L8) ->  | J95: =IF('Lengua Castellana y Lit.'!M8="","",'Lengua Castellana y Lit.'!M8) ->  | K95: =IF('Lengua Castellana y Lit.'!N8="","",'Lengua Castellana y Lit.'!N8) ->  | L95: =IF('Lengua Castellana y Lit.'!O8="","",'Lengua Castellana y Lit.'!O8) ->  | M95: =IF('Lengua Castellana y Lit.'!P8="","",'Lengua Castellana y Lit.'!P8) ->  | N95: =IF('Lengua Castellana y Lit.'!Q8="","",'Lengua Castellana y Lit.'!Q8) ->  | O95: =IF('Lengua Castellana y Lit.'!R8="","",'Lengua Castellana y Lit.'!R8) ->  | P95: =IF('Lengua Castellana y Lit.'!S8="","",'Lengua Castellana y Lit.'!S8) ->  | Q95: =IF('Lengua Castellana y Lit.'!T8="","",'Lengua Castellana y Lit.'!T8) ->  | R95: =IF('Lengua Castellana y Lit.'!U8="","",'Lengua Castellana y Lit.'!U8) ->  | S95: =IF('Lengua Castellana y Lit.'!V8="","",'Lengua Castellana y Lit.'!V8) ->  | T95: =IF('Lengua Castellana y Lit.'!W8="","",'Lengua Castellana y Lit.'!W8) ->  | U95: =IF('Lengua Castellana y Lit.'!X8="","",'Lengua Castellana y Lit.'!X8) ->  | V95: =IF('Lengua Castellana y Lit.'!Y8="","",'Lengua Castellana y Lit.'!Y8) ->  | W95: =IF('Lengua Castellana y Lit.'!Z8="","",'Lengua Castellana y Lit.'!Z8) ->  | X95: =IF('Lengua Castellana y Lit.'!AA8="","",'Lengua Castellana y Lit.'!AA8) ->  | Y95: =IF('Lengua Castellana y Lit.'!AB8="","",'Lengua Castellana y Lit.'!AB8) ->  | Z95: =IF('Lengua Castellana y Lit.'!AC8="","",'Lengua Castellana y Lit.'!AC8) ->  | AA95: =IF('Lengua Castellana y Lit.'!AD8="","",'Lengua Castellana y Lit.'!AD8) ->  | AB95: =IF('Lengua Castellana y Lit.'!AE8="","",'Lengua Castellana y Lit.'!AE8) ->  | AC95: =IF('Lengua Castellana y Lit.'!AF8="","",'Lengua Castellana y Lit.'!AF8) ->  | AD95: =IF('Lengua Castellana y Lit.'!AG8="","",'Lengua Castellana y Lit.'!AG8) ->  | AE95: =IF('Lengua Castellana y Lit.'!AH8="","",'Lengua Castellana y Lit.'!AH8) ->  | AF95: =IF('Lengua Castellana y Lit.'!AI8="","",'Lengua Castellana y Lit.'!AI8) ->  | AG95: =IF('Lengua Castellana y Lit.'!AJ8="","",'Lengua Castellana y Lit.'!AJ8) ->  | AH95: =IF('Lengua Castellana y Lit.'!AK8="","",'Lengua Castellana y Lit.'!AK8) ->  | AI95: =IF('Lengua Castellana y Lit.'!AL8="","",'Lengua Castellana y Lit.'!AL8) ->  | AJ95: =IF('Lengua Castellana y Lit.'!AM8="","",'Lengua Castellana y Lit.'!AM8) ->  | AK95: =IF('Lengua Castellana y Lit.'!AN8="","",'Lengua Castellana y Lit.'!AN8) ->  | AL95: =IF('Lengua Castellana y Lit.'!AO8="","",'Lengua Castellana y Lit.'!AO8) ->  | AM95: =IF('Lengua Castellana y Lit.'!AP8="","",'Lengua Castellana y Lit.'!AP8) -> 
D96: Criterio Evaluación 3.2 | E96: =IF('Lengua Castellana y Lit.'!H9="","",'Lengua Castellana y Lit.'!H9) ->  | F96: =IF('Lengua Castellana y Lit.'!I9="","",'Lengua Castellana y Lit.'!I9) ->  | G96: =IF('Lengua Castellana y Lit.'!J9="","",'Lengua Castellana y Lit.'!J9) ->  | H96: =IF('Lengua Castellana y Lit.'!K9="","",'Lengua Castellana y Lit.'!K9) ->  | I96: =IF('Lengua Castellana y Lit.'!L9="","",'Lengua Castellana y Lit.'!L9) ->  | J96: =IF('Lengua Castellana y Lit.'!M9="","",'Lengua Castellana y Lit.'!M9) ->  | K96: =IF('Lengua Castellana y Lit.'!N9="","",'Lengua Castellana y Lit.'!N9) ->  | L96: =IF('Lengua Castellana y Lit.'!O9="","",'Lengua Castellana y Lit.'!O9) ->  | M96: =IF('Lengua Castellana y Lit.'!P9="","",'Lengua Castellana y Lit.'!P9) ->  | N96: =IF('Lengua Castellana y Lit.'!Q9="","",'Lengua Castellana y Lit.'!Q9) ->  | O96: =IF('Lengua Castellana y Lit.'!R9="","",'Lengua Castellana y Lit.'!R9) ->  | P96: =IF('Lengua Castellana y Lit.'!S9="","",'Lengua Castellana y Lit.'!S9) ->  | Q96: =IF('Lengua Castellana y Lit.'!T9="","",'Lengua Castellana y Lit.'!T9) ->  | R96: =IF('Lengua Castellana y Lit.'!U9="","",'Lengua Castellana y Lit.'!U9) ->  | S96: =IF('Lengua Castellana y Lit.'!V9="","",'Lengua Castellana y Lit.'!V9) ->  | T96: =IF('Lengua Castellana y Lit.'!W9="","",'Lengua Castellana y Lit.'!W9) ->  | U96: =IF('Lengua Castellana y Lit.'!X9="","",'Lengua Castellana y Lit.'!X9) ->  | V96: =IF('Lengua Castellana y Lit.'!Y9="","",'Lengua Castellana y Lit.'!Y9) ->  | W96: =IF('Lengua Castellana y Lit.'!Z9="","",'Lengua Castellana y Lit.'!Z9) ->  | X96: =IF('Lengua Castellana y Lit.'!AA9="","",'Lengua Castellana y Lit.'!AA9) ->  | Y96: =IF('Lengua Castellana y Lit.'!AB9="","",'Lengua Castellana y Lit.'!AB9) ->  | Z96: =IF('Lengua Castellana y Lit.'!AC9="","",'Lengua Castellana y Lit.'!AC9) ->  | AA96: =IF('Lengua Castellana y Lit.'!AD9="","",'Lengua Castellana y Lit.'!AD9) ->  | AB96: =IF('Lengua Castellana y Lit.'!AE9="","",'Lengua Castellana y Lit.'!AE9) ->  | AC96: =IF('Lengua Castellana y Lit.'!AF9="","",'Lengua Castellana y Lit.'!AF9) ->  | AD96: =IF('Lengua Castellana y Lit.'!AG9="","",'Lengua Castellana y Lit.'!AG9) ->  | AE96: =IF('Lengua Castellana y Lit.'!AH9="","",'Lengua Castellana y Lit.'!AH9) ->  | AF96: =IF('Lengua Castellana y Lit.'!AI9="","",'Lengua Castellana y Lit.'!AI9) ->  | AG96: =IF('Lengua Castellana y Lit.'!AJ9="","",'Lengua Castellana y Lit.'!AJ9) ->  | AH96: =IF('Lengua Castellana y Lit.'!AK9="","",'Lengua Castellana y Lit.'!AK9) ->  | AI96: =IF('Lengua Castellana y Lit.'!AL9="","",'Lengua Castellana y Lit.'!AL9) ->  | AJ96: =IF('Lengua Castellana y Lit.'!AM9="","",'Lengua Castellana y Lit.'!AM9) ->  | AK96: =IF('Lengua Castellana y Lit.'!AN9="","",'Lengua Castellana y Lit.'!AN9) ->  | AL96: =IF('Lengua Castellana y Lit.'!AO9="","",'Lengua Castellana y Lit.'!AO9) ->  | AM96: =IF('Lengua Castellana y Lit.'!AP9="","",'Lengua Castellana y Lit.'!AP9) -> 
D97: Criterio Evaluación 3.3 | E97: =IF('Lengua Castellana y Lit.'!H10="","",'Lengua Castellana y Lit.'!H10) ->  | F97: =IF('Lengua Castellana y Lit.'!I10="","",'Lengua Castellana y Lit.'!I10) ->  | G97: =IF('Lengua Castellana y Lit.'!J10="","",'Lengua Castellana y Lit.'!J10) ->  | H97: =IF('Lengua Castellana y Lit.'!K10="","",'Lengua Castellana y Lit.'!K10) ->  | I97: =IF('Lengua Castellana y Lit.'!L10="","",'Lengua Castellana y Lit.'!L10) ->  | J97: =IF('Lengua Castellana y Lit.'!M10="","",'Lengua Castellana y Lit.'!M10) ->  | K97: =IF('Lengua Castellana y Lit.'!N10="","",'Lengua Castellana y Lit.'!N10) ->  | L97: =IF('Lengua Castellana y Lit.'!O10="","",'Lengua Castellana y Lit.'!O10) ->  | M97: =IF('Lengua Castellana y Lit.'!P10="","",'Lengua Castellana y Lit.'!P10) ->  | N97: =IF('Lengua Castellana y Lit.'!Q10="","",'Lengua Castellana y Lit.'!Q10) ->  | O97: =IF('Lengua Castellana y Lit.'!R10="","",'Lengua Castellana y Lit.'!R10) ->  | P97: =IF('Lengua Castellana y Lit.'!S10="","",'Lengua Castellana y Lit.'!S10) ->  | Q97: =IF('Lengua Castellana y Lit.'!T10="","",'Lengua Castellana y Lit.'!T10) ->  | R97: =IF('Lengua Castellana y Lit.'!U10="","",'Lengua Castellana y Lit.'!U10) ->  | S97: =IF('Lengua Castellana y Lit.'!V10="","",'Lengua Castellana y Lit.'!V10) ->  | T97: =IF('Lengua Castellana y Lit.'!W10="","",'Lengua Castellana y Lit.'!W10) ->  | U97: =IF('Lengua Castellana y Lit.'!X10="","",'Lengua Castellana y Lit.'!X10) ->  | V97: =IF('Lengua Castellana y Lit.'!Y10="","",'Lengua Castellana y Lit.'!Y10) ->  | W97: =IF('Lengua Castellana y Lit.'!Z10="","",'Lengua Castellana y Lit.'!Z10) ->  | X97: =IF('Lengua Castellana y Lit.'!AA10="","",'Lengua Castellana y Lit.'!AA10) ->  | Y97: =IF('Lengua Castellana y Lit.'!AB10="","",'Lengua Castellana y Lit.'!AB10) ->  | Z97: =IF('Lengua Castellana y Lit.'!AC10="","",'Lengua Castellana y Lit.'!AC10) ->  | AA97: =IF('Lengua Castellana y Lit.'!AD10="","",'Lengua Castellana y Lit.'!AD10) ->  | AB97: =IF('Lengua Castellana y Lit.'!AE10="","",'Lengua Castellana y Lit.'!AE10) ->  | AC97: =IF('Lengua Castellana y Lit.'!AF10="","",'Lengua Castellana y Lit.'!AF10) ->  | AD97: =IF('Lengua Castellana y Lit.'!AG10="","",'Lengua Castellana y Lit.'!AG10) ->  | AE97: =IF('Lengua Castellana y Lit.'!AH10="","",'Lengua Castellana y Lit.'!AH10) ->  | AF97: =IF('Lengua Castellana y Lit.'!AI10="","",'Lengua Castellana y Lit.'!AI10) ->  | AG97: =IF('Lengua Castellana y Lit.'!AJ10="","",'Lengua Castellana y Lit.'!AJ10) ->  | AH97: =IF('Lengua Castellana y Lit.'!AK10="","",'Lengua Castellana y Lit.'!AK10) ->  | AI97: =IF('Lengua Castellana y Lit.'!AL10="","",'Lengua Castellana y Lit.'!AL10) ->  | AJ97: =IF('Lengua Castellana y Lit.'!AM10="","",'Lengua Castellana y Lit.'!AM10) ->  | AK97: =IF('Lengua Castellana y Lit.'!AN10="","",'Lengua Castellana y Lit.'!AN10) ->  | AL97: =IF('Lengua Castellana y Lit.'!AO10="","",'Lengua Castellana y Lit.'!AO10) ->  | AM97: =IF('Lengua Castellana y Lit.'!AP10="","",'Lengua Castellana y Lit.'!AP10) -> 
C98: Comp. Esp. 4 | D98: Criterio Evaluación 4.1 | E98: =IF('Lengua Castellana y Lit.'!H11="","",'Lengua Castellana y Lit.'!H11) ->  | F98: =IF('Lengua Castellana y Lit.'!I11="","",'Lengua Castellana y Lit.'!I11) ->  | G98: =IF('Lengua Castellana y Lit.'!J11="","",'Lengua Castellana y Lit.'!J11) ->  | H98: =IF('Lengua Castellana y Lit.'!K11="","",'Lengua Castellana y Lit.'!K11) ->  | I98: =IF('Lengua Castellana y Lit.'!L11="","",'Lengua Castellana y Lit.'!L11) ->  | J98: =IF('Lengua Castellana y Lit.'!M11="","",'Lengua Castellana y Lit.'!M11) ->  | K98: =IF('Lengua Castellana y Lit.'!N11="","",'Lengua Castellana y Lit.'!N11) ->  | L98: =IF('Lengua Castellana y Lit.'!O11="","",'Lengua Castellana y Lit.'!O11) ->  | M98: =IF('Lengua Castellana y Lit.'!P11="","",'Lengua Castellana y Lit.'!P11) ->  | N98: =IF('Lengua Castellana y Lit.'!Q11="","",'Lengua Castellana y Lit.'!Q11) ->  | O98: =IF('Lengua Castellana y Lit.'!R11="","",'Lengua Castellana y Lit.'!R11) ->  | P98: =IF('Lengua Castellana y Lit.'!S11="","",'Lengua Castellana y Lit.'!S11) ->  | Q98: =IF('Lengua Castellana y Lit.'!T11="","",'Lengua Castellana y Lit.'!T11) ->  | R98: =IF('Lengua Castellana y Lit.'!U11="","",'Lengua Castellana y Lit.'!U11) ->  | S98: =IF('Lengua Castellana y Lit.'!V11="","",'Lengua Castellana y Lit.'!V11) ->  | T98: =IF('Lengua Castellana y Lit.'!W11="","",'Lengua Castellana y Lit.'!W11) ->  | U98: =IF('Lengua Castellana y Lit.'!X11="","",'Lengua Castellana y Lit.'!X11) ->  | V98: =IF('Lengua Castellana y Lit.'!Y11="","",'Lengua Castellana y Lit.'!Y11) ->  | W98: =IF('Lengua Castellana y Lit.'!Z11="","",'Lengua Castellana y Lit.'!Z11) ->  | X98: =IF('Lengua Castellana y Lit.'!AA11="","",'Lengua Castellana y Lit.'!AA11) ->  | Y98: =IF('Lengua Castellana y Lit.'!AB11="","",'Lengua Castellana y Lit.'!AB11) ->  | Z98: =IF('Lengua Castellana y Lit.'!AC11="","",'Lengua Castellana y Lit.'!AC11) ->  | AA98: =IF('Lengua Castellana y Lit.'!AD11="","",'Lengua Castellana y Lit.'!AD11) ->  | AB98: =IF('Lengua Castellana y Lit.'!AE11="","",'Lengua Castellana y Lit.'!AE11) ->  | AC98: =IF('Lengua Castellana y Lit.'!AF11="","",'Lengua Castellana y Lit.'!AF11) ->  | AD98: =IF('Lengua Castellana y Lit.'!AG11="","",'Lengua Castellana y Lit.'!AG11) ->  | AE98: =IF('Lengua Castellana y Lit.'!AH11="","",'Lengua Castellana y Lit.'!AH11) ->  | AF98: =IF('Lengua Castellana y Lit.'!AI11="","",'Lengua Castellana y Lit.'!AI11) ->  | AG98: =IF('Lengua Castellana y Lit.'!AJ11="","",'Lengua Castellana y Lit.'!AJ11) ->  | AH98: =IF('Lengua Castellana y Lit.'!AK11="","",'Lengua Castellana y Lit.'!AK11) ->  | AI98: =IF('Lengua Castellana y Lit.'!AL11="","",'Lengua Castellana y Lit.'!AL11) ->  | AJ98: =IF('Lengua Castellana y Lit.'!AM11="","",'Lengua Castellana y Lit.'!AM11) ->  | AK98: =IF('Lengua Castellana y Lit.'!AN11="","",'Lengua Castellana y Lit.'!AN11) ->  | AL98: =IF('Lengua Castellana y Lit.'!AO11="","",'Lengua Castellana y Lit.'!AO11) ->  | AM98: =IF('Lengua Castellana y Lit.'!AP11="","",'Lengua Castellana y Lit.'!AP11) -> 
D99: Criterio Evaluación 4.2 | E99: =IF('Lengua Castellana y Lit.'!H12="","",'Lengua Castellana y Lit.'!H12) ->  | F99: =IF('Lengua Castellana y Lit.'!I12="","",'Lengua Castellana y Lit.'!I12) ->  | G99: =IF('Lengua Castellana y Lit.'!J12="","",'Lengua Castellana y Lit.'!J12) ->  | H99: =IF('Lengua Castellana y Lit.'!K12="","",'Lengua Castellana y Lit.'!K12) ->  | I99: =IF('Lengua Castellana y Lit.'!L12="","",'Lengua Castellana y Lit.'!L12) ->  | J99: =IF('Lengua Castellana y Lit.'!M12="","",'Lengua Castellana y Lit.'!M12) ->  | K99: =IF('Lengua Castellana y Lit.'!N12="","",'Lengua Castellana y Lit.'!N12) ->  | L99: =IF('Lengua Castellana y Lit.'!O12="","",'Lengua Castellana y Lit.'!O12) ->  | M99: =IF('Lengua Castellana y Lit.'!P12="","",'Lengua Castellana y Lit.'!P12) ->  | N99: =IF('Lengua Castellana y Lit.'!Q12="","",'Lengua Castellana y Lit.'!Q12) ->  | O99: =IF('Lengua Castellana y Lit.'!R12="","",'Lengua Castellana y Lit.'!R12) ->  | P99: =IF('Lengua Castellana y Lit.'!S12="","",'Lengua Castellana y Lit.'!S12) ->  | Q99: =IF('Lengua Castellana y Lit.'!T12="","",'Lengua Castellana y Lit.'!T12) ->  | R99: =IF('Lengua Castellana y Lit.'!U12="","",'Lengua Castellana y Lit.'!U12) ->  | S99: =IF('Lengua Castellana y Lit.'!V12="","",'Lengua Castellana y Lit.'!V12) ->  | T99: =IF('Lengua Castellana y Lit.'!W12="","",'Lengua Castellana y Lit.'!W12) ->  | U99: =IF('Lengua Castellana y Lit.'!X12="","",'Lengua Castellana y Lit.'!X12) ->  | V99: =IF('Lengua Castellana y Lit.'!Y12="","",'Lengua Castellana y Lit.'!Y12) ->  | W99: =IF('Lengua Castellana y Lit.'!Z12="","",'Lengua Castellana y Lit.'!Z12) ->  | X99: =IF('Lengua Castellana y Lit.'!AA12="","",'Lengua Castellana y Lit.'!AA12) ->  | Y99: =IF('Lengua Castellana y Lit.'!AB12="","",'Lengua Castellana y Lit.'!AB12) ->  | Z99: =IF('Lengua Castellana y Lit.'!AC12="","",'Lengua Castellana y Lit.'!AC12) ->  | AA99: =IF('Lengua Castellana y Lit.'!AD12="","",'Lengua Castellana y Lit.'!AD12) ->  | AB99: =IF('Lengua Castellana y Lit.'!AE12="","",'Lengua Castellana y Lit.'!AE12) ->  | AC99: =IF('Lengua Castellana y Lit.'!AF12="","",'Lengua Castellana y Lit.'!AF12) ->  | AD99: =IF('Lengua Castellana y Lit.'!AG12="","",'Lengua Castellana y Lit.'!AG12) ->  | AE99: =IF('Lengua Castellana y Lit.'!AH12="","",'Lengua Castellana y Lit.'!AH12) ->  | AF99: =IF('Lengua Castellana y Lit.'!AI12="","",'Lengua Castellana y Lit.'!AI12) ->  | AG99: =IF('Lengua Castellana y Lit.'!AJ12="","",'Lengua Castellana y Lit.'!AJ12) ->  | AH99: =IF('Lengua Castellana y Lit.'!AK12="","",'Lengua Castellana y Lit.'!AK12) ->  | AI99: =IF('Lengua Castellana y Lit.'!AL12="","",'Lengua Castellana y Lit.'!AL12) ->  | AJ99: =IF('Lengua Castellana y Lit.'!AM12="","",'Lengua Castellana y Lit.'!AM12) ->  | AK99: =IF('Lengua Castellana y Lit.'!AN12="","",'Lengua Castellana y Lit.'!AN12) ->  | AL99: =IF('Lengua Castellana y Lit.'!AO12="","",'Lengua Castellana y Lit.'!AO12) ->  | AM99: =IF('Lengua Castellana y Lit.'!AP12="","",'Lengua Castellana y Lit.'!AP12) -> 
D100: Criterio Evaluación 4.3 | E100: =IF('Lengua Castellana y Lit.'!H13="","",'Lengua Castellana y Lit.'!H13) ->  | F100: =IF('Lengua Castellana y Lit.'!I13="","",'Lengua Castellana y Lit.'!I13) ->  | G100: =IF('Lengua Castellana y Lit.'!J13="","",'Lengua Castellana y Lit.'!J13) ->  | H100: =IF('Lengua Castellana y Lit.'!K13="","",'Lengua Castellana y Lit.'!K13) ->  | I100: =IF('Lengua Castellana y Lit.'!L13="","",'Lengua Castellana y Lit.'!L13) ->  | J100: =IF('Lengua Castellana y Lit.'!M13="","",'Lengua Castellana y Lit.'!M13) ->  | K100: =IF('Lengua Castellana y Lit.'!N13="","",'Lengua Castellana y Lit.'!N13) ->  | L100: =IF('Lengua Castellana y Lit.'!O13="","",'Lengua Castellana y Lit.'!O13) ->  | M100: =IF('Lengua Castellana y Lit.'!P13="","",'Lengua Castellana y Lit.'!P13) ->  | N100: =IF('Lengua Castellana y Lit.'!Q13="","",'Lengua Castellana y Lit.'!Q13) ->  | O100: =IF('Lengua Castellana y Lit.'!R13="","",'Lengua Castellana y Lit.'!R13) ->  | P100: =IF('Lengua Castellana y Lit.'!S13="","",'Lengua Castellana y Lit.'!S13) ->  | Q100: =IF('Lengua Castellana y Lit.'!T13="","",'Lengua Castellana y Lit.'!T13) ->  | R100: =IF('Lengua Castellana y Lit.'!U13="","",'Lengua Castellana y Lit.'!U13) ->  | S100: =IF('Lengua Castellana y Lit.'!V13="","",'Lengua Castellana y Lit.'!V13) ->  | T100: =IF('Lengua Castellana y Lit.'!W13="","",'Lengua Castellana y Lit.'!W13) ->  | U100: =IF('Lengua Castellana y Lit.'!X13="","",'Lengua Castellana y Lit.'!X13) ->  | V100: =IF('Lengua Castellana y Lit.'!Y13="","",'Lengua Castellana y Lit.'!Y13) ->  | W100: =IF('Lengua Castellana y Lit.'!Z13="","",'Lengua Castellana y Lit.'!Z13) ->  | X100: =IF('Lengua Castellana y Lit.'!AA13="","",'Lengua Castellana y Lit.'!AA13) ->  | Y100: =IF('Lengua Castellana y Lit.'!AB13="","",'Lengua Castellana y Lit.'!AB13) ->  | Z100: =IF('Lengua Castellana y Lit.'!AC13="","",'Lengua Castellana y Lit.'!AC13) ->  | AA100: =IF('Lengua Castellana y Lit.'!AD13="","",'Lengua Castellana y Lit.'!AD13) ->  | AB100: =IF('Lengua Castellana y Lit.'!AE13="","",'Lengua Castellana y Lit.'!AE13) ->  | AC100: =IF('Lengua Castellana y Lit.'!AF13="","",'Lengua Castellana y Lit.'!AF13) ->  | AD100: =IF('Lengua Castellana y Lit.'!AG13="","",'Lengua Castellana y Lit.'!AG13) ->  | AE100: =IF('Lengua Castellana y Lit.'!AH13="","",'Lengua Castellana y Lit.'!AH13) ->  | AF100: =IF('Lengua Castellana y Lit.'!AI13="","",'Lengua Castellana y Lit.'!AI13) ->  | AG100: =IF('Lengua Castellana y Lit.'!AJ13="","",'Lengua Castellana y Lit.'!AJ13) ->  | AH100: =IF('Lengua Castellana y Lit.'!AK13="","",'Lengua Castellana y Lit.'!AK13) ->  | AI100: =IF('Lengua Castellana y Lit.'!AL13="","",'Lengua Castellana y Lit.'!AL13) ->  | AJ100: =IF('Lengua Castellana y Lit.'!AM13="","",'Lengua Castellana y Lit.'!AM13) ->  | AK100: =IF('Lengua Castellana y Lit.'!AN13="","",'Lengua Castellana y Lit.'!AN13) ->  | AL100: =IF('Lengua Castellana y Lit.'!AO13="","",'Lengua Castellana y Lit.'!AO13) ->  | AM100: =IF('Lengua Castellana y Lit.'!AP13="","",'Lengua Castellana y Lit.'!AP13) -> 
C101: Comp. Esp. 5 | D101: Criterio Evaluación 5.1 | E101: =IF('Lengua Castellana y Lit.'!H14="","",'Lengua Castellana y Lit.'!H14) ->  | F101: =IF('Lengua Castellana y Lit.'!I14="","",'Lengua Castellana y Lit.'!I14) ->  | G101: =IF('Lengua Castellana y Lit.'!J14="","",'Lengua Castellana y Lit.'!J14) ->  | H101: =IF('Lengua Castellana y Lit.'!K14="","",'Lengua Castellana y Lit.'!K14) ->  | I101: =IF('Lengua Castellana y Lit.'!L14="","",'Lengua Castellana y Lit.'!L14) ->  | J101: =IF('Lengua Castellana y Lit.'!M14="","",'Lengua Castellana y Lit.'!M14) ->  | K101: =IF('Lengua Castellana y Lit.'!N14="","",'Lengua Castellana y Lit.'!N14) ->  | L101: =IF('Lengua Castellana y Lit.'!O14="","",'Lengua Castellana y Lit.'!O14) ->  | M101: =IF('Lengua Castellana y Lit.'!P14="","",'Lengua Castellana y Lit.'!P14) ->  | N101: =IF('Lengua Castellana y Lit.'!Q14="","",'Lengua Castellana y Lit.'!Q14) ->  | O101: =IF('Lengua Castellana y Lit.'!R14="","",'Lengua Castellana y Lit.'!R14) ->  | P101: =IF('Lengua Castellana y Lit.'!S14="","",'Lengua Castellana y Lit.'!S14) ->  | Q101: =IF('Lengua Castellana y Lit.'!T14="","",'Lengua Castellana y Lit.'!T14) ->  | R101: =IF('Lengua Castellana y Lit.'!U14="","",'Lengua Castellana y Lit.'!U14) ->  | S101: =IF('Lengua Castellana y Lit.'!V14="","",'Lengua Castellana y Lit.'!V14) ->  | T101: =IF('Lengua Castellana y Lit.'!W14="","",'Lengua Castellana y Lit.'!W14) ->  | U101: =IF('Lengua Castellana y Lit.'!X14="","",'Lengua Castellana y Lit.'!X14) ->  | V101: =IF('Lengua Castellana y Lit.'!Y14="","",'Lengua Castellana y Lit.'!Y14) ->  | W101: =IF('Lengua Castellana y Lit.'!Z14="","",'Lengua Castellana y Lit.'!Z14) ->  | X101: =IF('Lengua Castellana y Lit.'!AA14="","",'Lengua Castellana y Lit.'!AA14) ->  | Y101: =IF('Lengua Castellana y Lit.'!AB14="","",'Lengua Castellana y Lit.'!AB14) ->  | Z101: =IF('Lengua Castellana y Lit.'!AC14="","",'Lengua Castellana y Lit.'!AC14) ->  | AA101: =IF('Lengua Castellana y Lit.'!AD14="","",'Lengua Castellana y Lit.'!AD14) ->  | AB101: =IF('Lengua Castellana y Lit.'!AE14="","",'Lengua Castellana y Lit.'!AE14) ->  | AC101: =IF('Lengua Castellana y Lit.'!AF14="","",'Lengua Castellana y Lit.'!AF14) ->  | AD101: =IF('Lengua Castellana y Lit.'!AG14="","",'Lengua Castellana y Lit.'!AG14) ->  | AE101: =IF('Lengua Castellana y Lit.'!AH14="","",'Lengua Castellana y Lit.'!AH14) ->  | AF101: =IF('Lengua Castellana y Lit.'!AI14="","",'Lengua Castellana y Lit.'!AI14) ->  | AG101: =IF('Lengua Castellana y Lit.'!AJ14="","",'Lengua Castellana y Lit.'!AJ14) ->  | AH101: =IF('Lengua Castellana y Lit.'!AK14="","",'Lengua Castellana y Lit.'!AK14) ->  | AI101: =IF('Lengua Castellana y Lit.'!AL14="","",'Lengua Castellana y Lit.'!AL14) ->  | AJ101: =IF('Lengua Castellana y Lit.'!AM14="","",'Lengua Castellana y Lit.'!AM14) ->  | AK101: =IF('Lengua Castellana y Lit.'!AN14="","",'Lengua Castellana y Lit.'!AN14) ->  | AL101: =IF('Lengua Castellana y Lit.'!AO14="","",'Lengua Castellana y Lit.'!AO14) ->  | AM101: =IF('Lengua Castellana y Lit.'!AP14="","",'Lengua Castellana y Lit.'!AP14) -> 
D102: Criterio Evaluación 5.2 | E102: =IF('Lengua Castellana y Lit.'!H15="","",'Lengua Castellana y Lit.'!H15) ->  | F102: =IF('Lengua Castellana y Lit.'!I15="","",'Lengua Castellana y Lit.'!I15) ->  | G102: =IF('Lengua Castellana y Lit.'!J15="","",'Lengua Castellana y Lit.'!J15) ->  | H102: =IF('Lengua Castellana y Lit.'!K15="","",'Lengua Castellana y Lit.'!K15) ->  | I102: =IF('Lengua Castellana y Lit.'!L15="","",'Lengua Castellana y Lit.'!L15) ->  | J102: =IF('Lengua Castellana y Lit.'!M15="","",'Lengua Castellana y Lit.'!M15) ->  | K102: =IF('Lengua Castellana y Lit.'!N15="","",'Lengua Castellana y Lit.'!N15) ->  | L102: =IF('Lengua Castellana y Lit.'!O15="","",'Lengua Castellana y Lit.'!O15) ->  | M102: =IF('Lengua Castellana y Lit.'!P15="","",'Lengua Castellana y Lit.'!P15) ->  | N102: =IF('Lengua Castellana y Lit.'!Q15="","",'Lengua Castellana y Lit.'!Q15) ->  | O102: =IF('Lengua Castellana y Lit.'!R15="","",'Lengua Castellana y Lit.'!R15) ->  | P102: =IF('Lengua Castellana y Lit.'!S15="","",'Lengua Castellana y Lit.'!S15) ->  | Q102: =IF('Lengua Castellana y Lit.'!T15="","",'Lengua Castellana y Lit.'!T15) ->  | R102: =IF('Lengua Castellana y Lit.'!U15="","",'Lengua Castellana y Lit.'!U15) ->  | S102: =IF('Lengua Castellana y Lit.'!V15="","",'Lengua Castellana y Lit.'!V15) ->  | T102: =IF('Lengua Castellana y Lit.'!W15="","",'Lengua Castellana y Lit.'!W15) ->  | U102: =IF('Lengua Castellana y Lit.'!X15="","",'Lengua Castellana y Lit.'!X15) ->  | V102: =IF('Lengua Castellana y Lit.'!Y15="","",'Lengua Castellana y Lit.'!Y15) ->  | W102: =IF('Lengua Castellana y Lit.'!Z15="","",'Lengua Castellana y Lit.'!Z15) ->  | X102: =IF('Lengua Castellana y Lit.'!AA15="","",'Lengua Castellana y Lit.'!AA15) ->  | Y102: =IF('Lengua Castellana y Lit.'!AB15="","",'Lengua Castellana y Lit.'!AB15) ->  | Z102: =IF('Lengua Castellana y Lit.'!AC15="","",'Lengua Castellana y Lit.'!AC15) ->  | AA102: =IF('Lengua Castellana y Lit.'!AD15="","",'Lengua Castellana y Lit.'!AD15) ->  | AB102: =IF('Lengua Castellana y Lit.'!AE15="","",'Lengua Castellana y Lit.'!AE15) ->  | AC102: =IF('Lengua Castellana y Lit.'!AF15="","",'Lengua Castellana y Lit.'!AF15) ->  | AD102: =IF('Lengua Castellana y Lit.'!AG15="","",'Lengua Castellana y Lit.'!AG15) ->  | AE102: =IF('Lengua Castellana y Lit.'!AH15="","",'Lengua Castellana y Lit.'!AH15) ->  | AF102: =IF('Lengua Castellana y Lit.'!AI15="","",'Lengua Castellana y Lit.'!AI15) ->  | AG102: =IF('Lengua Castellana y Lit.'!AJ15="","",'Lengua Castellana y Lit.'!AJ15) ->  | AH102: =IF('Lengua Castellana y Lit.'!AK15="","",'Lengua Castellana y Lit.'!AK15) ->  | AI102: =IF('Lengua Castellana y Lit.'!AL15="","",'Lengua Castellana y Lit.'!AL15) ->  | AJ102: =IF('Lengua Castellana y Lit.'!AM15="","",'Lengua Castellana y Lit.'!AM15) ->  | AK102: =IF('Lengua Castellana y Lit.'!AN15="","",'Lengua Castellana y Lit.'!AN15) ->  | AL102: =IF('Lengua Castellana y Lit.'!AO15="","",'Lengua Castellana y Lit.'!AO15) ->  | AM102: =IF('Lengua Castellana y Lit.'!AP15="","",'Lengua Castellana y Lit.'!AP15) -> 
C103: Comp. Esp. 6 | D103: Criterio Evaluación 6.1 | E103: =IF('Lengua Castellana y Lit.'!H16="","",'Lengua Castellana y Lit.'!H16) ->  | F103: =IF('Lengua Castellana y Lit.'!I16="","",'Lengua Castellana y Lit.'!I16) ->  | G103: =IF('Lengua Castellana y Lit.'!J16="","",'Lengua Castellana y Lit.'!J16) ->  | H103: =IF('Lengua Castellana y Lit.'!K16="","",'Lengua Castellana y Lit.'!K16) ->  | I103: =IF('Lengua Castellana y Lit.'!L16="","",'Lengua Castellana y Lit.'!L16) ->  | J103: =IF('Lengua Castellana y Lit.'!M16="","",'Lengua Castellana y Lit.'!M16) ->  | K103: =IF('Lengua Castellana y Lit.'!N16="","",'Lengua Castellana y Lit.'!N16) ->  | L103: =IF('Lengua Castellana y Lit.'!O16="","",'Lengua Castellana y Lit.'!O16) ->  | M103: =IF('Lengua Castellana y Lit.'!P16="","",'Lengua Castellana y Lit.'!P16) ->  | N103: =IF('Lengua Castellana y Lit.'!Q16="","",'Lengua Castellana y Lit.'!Q16) ->  | O103: =IF('Lengua Castellana y Lit.'!R16="","",'Lengua Castellana y Lit.'!R16) ->  | P103: =IF('Lengua Castellana y Lit.'!S16="","",'Lengua Castellana y Lit.'!S16) ->  | Q103: =IF('Lengua Castellana y Lit.'!T16="","",'Lengua Castellana y Lit.'!T16) ->  | R103: =IF('Lengua Castellana y Lit.'!U16="","",'Lengua Castellana y Lit.'!U16) ->  | S103: =IF('Lengua Castellana y Lit.'!V16="","",'Lengua Castellana y Lit.'!V16) ->  | T103: =IF('Lengua Castellana y Lit.'!W16="","",'Lengua Castellana y Lit.'!W16) ->  | U103: =IF('Lengua Castellana y Lit.'!X16="","",'Lengua Castellana y Lit.'!X16) ->  | V103: =IF('Lengua Castellana y Lit.'!Y16="","",'Lengua Castellana y Lit.'!Y16) ->  | W103: =IF('Lengua Castellana y Lit.'!Z16="","",'Lengua Castellana y Lit.'!Z16) ->  | X103: =IF('Lengua Castellana y Lit.'!AA16="","",'Lengua Castellana y Lit.'!AA16) ->  | Y103: =IF('Lengua Castellana y Lit.'!AB16="","",'Lengua Castellana y Lit.'!AB16) ->  | Z103: =IF('Lengua Castellana y Lit.'!AC16="","",'Lengua Castellana y Lit.'!AC16) ->  | AA103: =IF('Lengua Castellana y Lit.'!AD16="","",'Lengua Castellana y Lit.'!AD16) ->  | AB103: =IF('Lengua Castellana y Lit.'!AE16="","",'Lengua Castellana y Lit.'!AE16) ->  | AC103: =IF('Lengua Castellana y Lit.'!AF16="","",'Lengua Castellana y Lit.'!AF16) ->  | AD103: =IF('Lengua Castellana y Lit.'!AG16="","",'Lengua Castellana y Lit.'!AG16) ->  | AE103: =IF('Lengua Castellana y Lit.'!AH16="","",'Lengua Castellana y Lit.'!AH16) ->  | AF103: =IF('Lengua Castellana y Lit.'!AI16="","",'Lengua Castellana y Lit.'!AI16) ->  | AG103: =IF('Lengua Castellana y Lit.'!AJ16="","",'Lengua Castellana y Lit.'!AJ16) ->  | AH103: =IF('Lengua Castellana y Lit.'!AK16="","",'Lengua Castellana y Lit.'!AK16) ->  | AI103: =IF('Lengua Castellana y Lit.'!AL16="","",'Lengua Castellana y Lit.'!AL16) ->  | AJ103: =IF('Lengua Castellana y Lit.'!AM16="","",'Lengua Castellana y Lit.'!AM16) ->  | AK103: =IF('Lengua Castellana y Lit.'!AN16="","",'Lengua Castellana y Lit.'!AN16) ->  | AL103: =IF('Lengua Castellana y Lit.'!AO16="","",'Lengua Castellana y Lit.'!AO16) ->  | AM103: =IF('Lengua Castellana y Lit.'!AP16="","",'Lengua Castellana y Lit.'!AP16) -> 
D104: Criterio Evaluación 6.2 | E104: =IF('Lengua Castellana y Lit.'!H17="","",'Lengua Castellana y Lit.'!H17) ->  | F104: =IF('Lengua Castellana y Lit.'!I17="","",'Lengua Castellana y Lit.'!I17) ->  | G104: =IF('Lengua Castellana y Lit.'!J17="","",'Lengua Castellana y Lit.'!J17) ->  | H104: =IF('Lengua Castellana y Lit.'!K17="","",'Lengua Castellana y Lit.'!K17) ->  | I104: =IF('Lengua Castellana y Lit.'!L17="","",'Lengua Castellana y Lit.'!L17) ->  | J104: =IF('Lengua Castellana y Lit.'!M17="","",'Lengua Castellana y Lit.'!M17) ->  | K104: =IF('Lengua Castellana y Lit.'!N17="","",'Lengua Castellana y Lit.'!N17) ->  | L104: =IF('Lengua Castellana y Lit.'!O17="","",'Lengua Castellana y Lit.'!O17) ->  | M104: =IF('Lengua Castellana y Lit.'!P17="","",'Lengua Castellana y Lit.'!P17) ->  | N104: =IF('Lengua Castellana y Lit.'!Q17="","",'Lengua Castellana y Lit.'!Q17) ->  | O104: =IF('Lengua Castellana y Lit.'!R17="","",'Lengua Castellana y Lit.'!R17) ->  | P104: =IF('Lengua Castellana y Lit.'!S17="","",'Lengua Castellana y Lit.'!S17) ->  | Q104: =IF('Lengua Castellana y Lit.'!T17="","",'Lengua Castellana y Lit.'!T17) ->  | R104: =IF('Lengua Castellana y Lit.'!U17="","",'Lengua Castellana y Lit.'!U17) ->  | S104: =IF('Lengua Castellana y Lit.'!V17="","",'Lengua Castellana y Lit.'!V17) ->  | T104: =IF('Lengua Castellana y Lit.'!W17="","",'Lengua Castellana y Lit.'!W17) ->  | U104: =IF('Lengua Castellana y Lit.'!X17="","",'Lengua Castellana y Lit.'!X17) ->  | V104: =IF('Lengua Castellana y Lit.'!Y17="","",'Lengua Castellana y Lit.'!Y17) ->  | W104: =IF('Lengua Castellana y Lit.'!Z17="","",'Lengua Castellana y Lit.'!Z17) ->  | X104: =IF('Lengua Castellana y Lit.'!AA17="","",'Lengua Castellana y Lit.'!AA17) ->  | Y104: =IF('Lengua Castellana y Lit.'!AB17="","",'Lengua Castellana y Lit.'!AB17) ->  | Z104: =IF('Lengua Castellana y Lit.'!AC17="","",'Lengua Castellana y Lit.'!AC17) ->  | AA104: =IF('Lengua Castellana y Lit.'!AD17="","",'Lengua Castellana y Lit.'!AD17) ->  | AB104: =IF('Lengua Castellana y Lit.'!AE17="","",'Lengua Castellana y Lit.'!AE17) ->  | AC104: =IF('Lengua Castellana y Lit.'!AF17="","",'Lengua Castellana y Lit.'!AF17) ->  | AD104: =IF('Lengua Castellana y Lit.'!AG17="","",'Lengua Castellana y Lit.'!AG17) ->  | AE104: =IF('Lengua Castellana y Lit.'!AH17="","",'Lengua Castellana y Lit.'!AH17) ->  | AF104: =IF('Lengua Castellana y Lit.'!AI17="","",'Lengua Castellana y Lit.'!AI17) ->  | AG104: =IF('Lengua Castellana y Lit.'!AJ17="","",'Lengua Castellana y Lit.'!AJ17) ->  | AH104: =IF('Lengua Castellana y Lit.'!AK17="","",'Lengua Castellana y Lit.'!AK17) ->  | AI104: =IF('Lengua Castellana y Lit.'!AL17="","",'Lengua Castellana y Lit.'!AL17) ->  | AJ104: =IF('Lengua Castellana y Lit.'!AM17="","",'Lengua Castellana y Lit.'!AM17) ->  | AK104: =IF('Lengua Castellana y Lit.'!AN17="","",'Lengua Castellana y Lit.'!AN17) ->  | AL104: =IF('Lengua Castellana y Lit.'!AO17="","",'Lengua Castellana y Lit.'!AO17) ->  | AM104: =IF('Lengua Castellana y Lit.'!AP17="","",'Lengua Castellana y Lit.'!AP17) -> 
D105: Criterio Evaluación 6.3 | E105: =IF('Lengua Castellana y Lit.'!H18="","",'Lengua Castellana y Lit.'!H18) ->  | F105: =IF('Lengua Castellana y Lit.'!I18="","",'Lengua Castellana y Lit.'!I18) ->  | G105: =IF('Lengua Castellana y Lit.'!J18="","",'Lengua Castellana y Lit.'!J18) ->  | H105: =IF('Lengua Castellana y Lit.'!K18="","",'Lengua Castellana y Lit.'!K18) ->  | I105: =IF('Lengua Castellana y Lit.'!L18="","",'Lengua Castellana y Lit.'!L18) ->  | J105: =IF('Lengua Castellana y Lit.'!M18="","",'Lengua Castellana y Lit.'!M18) ->  | K105: =IF('Lengua Castellana y Lit.'!N18="","",'Lengua Castellana y Lit.'!N18) ->  | L105: =IF('Lengua Castellana y Lit.'!O18="","",'Lengua Castellana y Lit.'!O18) ->  | M105: =IF('Lengua Castellana y Lit.'!P18="","",'Lengua Castellana y Lit.'!P18) ->  | N105: =IF('Lengua Castellana y Lit.'!Q18="","",'Lengua Castellana y Lit.'!Q18) ->  | O105: =IF('Lengua Castellana y Lit.'!R18="","",'Lengua Castellana y Lit.'!R18) ->  | P105: =IF('Lengua Castellana y Lit.'!S18="","",'Lengua Castellana y Lit.'!S18) ->  | Q105: =IF('Lengua Castellana y Lit.'!T18="","",'Lengua Castellana y Lit.'!T18) ->  | R105: =IF('Lengua Castellana y Lit.'!U18="","",'Lengua Castellana y Lit.'!U18) ->  | S105: =IF('Lengua Castellana y Lit.'!V18="","",'Lengua Castellana y Lit.'!V18) ->  | T105: =IF('Lengua Castellana y Lit.'!W18="","",'Lengua Castellana y Lit.'!W18) ->  | U105: =IF('Lengua Castellana y Lit.'!X18="","",'Lengua Castellana y Lit.'!X18) ->  | V105: =IF('Lengua Castellana y Lit.'!Y18="","",'Lengua Castellana y Lit.'!Y18) ->  | W105: =IF('Lengua Castellana y Lit.'!Z18="","",'Lengua Castellana y Lit.'!Z18) ->  | X105: =IF('Lengua Castellana y Lit.'!AA18="","",'Lengua Castellana y Lit.'!AA18) ->  | Y105: =IF('Lengua Castellana y Lit.'!AB18="","",'Lengua Castellana y Lit.'!AB18) ->  | Z105: =IF('Lengua Castellana y Lit.'!AC18="","",'Lengua Castellana y Lit.'!AC18) ->  | AA105: =IF('Lengua Castellana y Lit.'!AD18="","",'Lengua Castellana y Lit.'!AD18) ->  | AB105: =IF('Lengua Castellana y Lit.'!AE18="","",'Lengua Castellana y Lit.'!AE18) ->  | AC105: =IF('Lengua Castellana y Lit.'!AF18="","",'Lengua Castellana y Lit.'!AF18) ->  | AD105: =IF('Lengua Castellana y Lit.'!AG18="","",'Lengua Castellana y Lit.'!AG18) ->  | AE105: =IF('Lengua Castellana y Lit.'!AH18="","",'Lengua Castellana y Lit.'!AH18) ->  | AF105: =IF('Lengua Castellana y Lit.'!AI18="","",'Lengua Castellana y Lit.'!AI18) ->  | AG105: =IF('Lengua Castellana y Lit.'!AJ18="","",'Lengua Castellana y Lit.'!AJ18) ->  | AH105: =IF('Lengua Castellana y Lit.'!AK18="","",'Lengua Castellana y Lit.'!AK18) ->  | AI105: =IF('Lengua Castellana y Lit.'!AL18="","",'Lengua Castellana y Lit.'!AL18) ->  | AJ105: =IF('Lengua Castellana y Lit.'!AM18="","",'Lengua Castellana y Lit.'!AM18) ->  | AK105: =IF('Lengua Castellana y Lit.'!AN18="","",'Lengua Castellana y Lit.'!AN18) ->  | AL105: =IF('Lengua Castellana y Lit.'!AO18="","",'Lengua Castellana y Lit.'!AO18) ->  | AM105: =IF('Lengua Castellana y Lit.'!AP18="","",'Lengua Castellana y Lit.'!AP18) -> 
D106: Criterio Evaluación 6.4 | E106: =IF('Lengua Castellana y Lit.'!H19="","",'Lengua Castellana y Lit.'!H19) ->  | F106: =IF('Lengua Castellana y Lit.'!I19="","",'Lengua Castellana y Lit.'!I19) ->  | G106: =IF('Lengua Castellana y Lit.'!J19="","",'Lengua Castellana y Lit.'!J19) ->  | H106: =IF('Lengua Castellana y Lit.'!K19="","",'Lengua Castellana y Lit.'!K19) ->  | I106: =IF('Lengua Castellana y Lit.'!L19="","",'Lengua Castellana y Lit.'!L19) ->  | J106: =IF('Lengua Castellana y Lit.'!M19="","",'Lengua Castellana y Lit.'!M19) ->  | K106: =IF('Lengua Castellana y Lit.'!N19="","",'Lengua Castellana y Lit.'!N19) ->  | L106: =IF('Lengua Castellana y Lit.'!O19="","",'Lengua Castellana y Lit.'!O19) ->  | M106: =IF('Lengua Castellana y Lit.'!P19="","",'Lengua Castellana y Lit.'!P19) ->  | N106: =IF('Lengua Castellana y Lit.'!Q19="","",'Lengua Castellana y Lit.'!Q19) ->  | O106: =IF('Lengua Castellana y Lit.'!R19="","",'Lengua Castellana y Lit.'!R19) ->  | P106: =IF('Lengua Castellana y Lit.'!S19="","",'Lengua Castellana y Lit.'!S19) ->  | Q106: =IF('Lengua Castellana y Lit.'!T19="","",'Lengua Castellana y Lit.'!T19) ->  | R106: =IF('Lengua Castellana y Lit.'!U19="","",'Lengua Castellana y Lit.'!U19) ->  | S106: =IF('Lengua Castellana y Lit.'!V19="","",'Lengua Castellana y Lit.'!V19) ->  | T106: =IF('Lengua Castellana y Lit.'!W19="","",'Lengua Castellana y Lit.'!W19) ->  | U106: =IF('Lengua Castellana y Lit.'!X19="","",'Lengua Castellana y Lit.'!X19) ->  | V106: =IF('Lengua Castellana y Lit.'!Y19="","",'Lengua Castellana y Lit.'!Y19) ->  | W106: =IF('Lengua Castellana y Lit.'!Z19="","",'Lengua Castellana y Lit.'!Z19) ->  | X106: =IF('Lengua Castellana y Lit.'!AA19="","",'Lengua Castellana y Lit.'!AA19) ->  | Y106: =IF('Lengua Castellana y Lit.'!AB19="","",'Lengua Castellana y Lit.'!AB19) ->  | Z106: =IF('Lengua Castellana y Lit.'!AC19="","",'Lengua Castellana y Lit.'!AC19) ->  | AA106: =IF('Lengua Castellana y Lit.'!AD19="","",'Lengua Castellana y Lit.'!AD19) ->  | AB106: =IF('Lengua Castellana y Lit.'!AE19="","",'Lengua Castellana y Lit.'!AE19) ->  | AC106: =IF('Lengua Castellana y Lit.'!AF19="","",'Lengua Castellana y Lit.'!AF19) ->  | AD106: =IF('Lengua Castellana y Lit.'!AG19="","",'Lengua Castellana y Lit.'!AG19) ->  | AE106: =IF('Lengua Castellana y Lit.'!AH19="","",'Lengua Castellana y Lit.'!AH19) ->  | AF106: =IF('Lengua Castellana y Lit.'!AI19="","",'Lengua Castellana y Lit.'!AI19) ->  | AG106: =IF('Lengua Castellana y Lit.'!AJ19="","",'Lengua Castellana y Lit.'!AJ19) ->  | AH106: =IF('Lengua Castellana y Lit.'!AK19="","",'Lengua Castellana y Lit.'!AK19) ->  | AI106: =IF('Lengua Castellana y Lit.'!AL19="","",'Lengua Castellana y Lit.'!AL19) ->  | AJ106: =IF('Lengua Castellana y Lit.'!AM19="","",'Lengua Castellana y Lit.'!AM19) ->  | AK106: =IF('Lengua Castellana y Lit.'!AN19="","",'Lengua Castellana y Lit.'!AN19) ->  | AL106: =IF('Lengua Castellana y Lit.'!AO19="","",'Lengua Castellana y Lit.'!AO19) ->  | AM106: =IF('Lengua Castellana y Lit.'!AP19="","",'Lengua Castellana y Lit.'!AP19) -> 
C107: Comp. Esp. 7 | D107: Criterio Evaluación 7.1 | E107: =IF('Lengua Castellana y Lit.'!H20="","",'Lengua Castellana y Lit.'!H20) ->  | F107: =IF('Lengua Castellana y Lit.'!I20="","",'Lengua Castellana y Lit.'!I20) ->  | G107: =IF('Lengua Castellana y Lit.'!J20="","",'Lengua Castellana y Lit.'!J20) ->  | H107: =IF('Lengua Castellana y Lit.'!K20="","",'Lengua Castellana y Lit.'!K20) ->  | I107: =IF('Lengua Castellana y Lit.'!L20="","",'Lengua Castellana y Lit.'!L20) ->  | J107: =IF('Lengua Castellana y Lit.'!M20="","",'Lengua Castellana y Lit.'!M20) ->  | K107: =IF('Lengua Castellana y Lit.'!N20="","",'Lengua Castellana y Lit.'!N20) ->  | L107: =IF('Lengua Castellana y Lit.'!O20="","",'Lengua Castellana y Lit.'!O20) ->  | M107: =IF('Lengua Castellana y Lit.'!P20="","",'Lengua Castellana y Lit.'!P20) ->  | N107: =IF('Lengua Castellana y Lit.'!Q20="","",'Lengua Castellana y Lit.'!Q20) ->  | O107: =IF('Lengua Castellana y Lit.'!R20="","",'Lengua Castellana y Lit.'!R20) ->  | P107: =IF('Lengua Castellana y Lit.'!S20="","",'Lengua Castellana y Lit.'!S20) ->  | Q107: =IF('Lengua Castellana y Lit.'!T20="","",'Lengua Castellana y Lit.'!T20) ->  | R107: =IF('Lengua Castellana y Lit.'!U20="","",'Lengua Castellana y Lit.'!U20) ->  | S107: =IF('Lengua Castellana y Lit.'!V20="","",'Lengua Castellana y Lit.'!V20) ->  | T107: =IF('Lengua Castellana y Lit.'!W20="","",'Lengua Castellana y Lit.'!W20) ->  | U107: =IF('Lengua Castellana y Lit.'!X20="","",'Lengua Castellana y Lit.'!X20) ->  | V107: =IF('Lengua Castellana y Lit.'!Y20="","",'Lengua Castellana y Lit.'!Y20) ->  | W107: =IF('Lengua Castellana y Lit.'!Z20="","",'Lengua Castellana y Lit.'!Z20) ->  | X107: =IF('Lengua Castellana y Lit.'!AA20="","",'Lengua Castellana y Lit.'!AA20) ->  | Y107: =IF('Lengua Castellana y Lit.'!AB20="","",'Lengua Castellana y Lit.'!AB20) ->  | Z107: =IF('Lengua Castellana y Lit.'!AC20="","",'Lengua Castellana y Lit.'!AC20) ->  | AA107: =IF('Lengua Castellana y Lit.'!AD20="","",'Lengua Castellana y Lit.'!AD20) ->  | AB107: =IF('Lengua Castellana y Lit.'!AE20="","",'Lengua Castellana y Lit.'!AE20) ->  | AC107: =IF('Lengua Castellana y Lit.'!AF20="","",'Lengua Castellana y Lit.'!AF20) ->  | AD107: =IF('Lengua Castellana y Lit.'!AG20="","",'Lengua Castellana y Lit.'!AG20) ->  | AE107: =IF('Lengua Castellana y Lit.'!AH20="","",'Lengua Castellana y Lit.'!AH20) ->  | AF107: =IF('Lengua Castellana y Lit.'!AI20="","",'Lengua Castellana y Lit.'!AI20) ->  | AG107: =IF('Lengua Castellana y Lit.'!AJ20="","",'Lengua Castellana y Lit.'!AJ20) ->  | AH107: =IF('Lengua Castellana y Lit.'!AK20="","",'Lengua Castellana y Lit.'!AK20) ->  | AI107: =IF('Lengua Castellana y Lit.'!AL20="","",'Lengua Castellana y Lit.'!AL20) ->  | AJ107: =IF('Lengua Castellana y Lit.'!AM20="","",'Lengua Castellana y Lit.'!AM20) ->  | AK107: =IF('Lengua Castellana y Lit.'!AN20="","",'Lengua Castellana y Lit.'!AN20) ->  | AL107: =IF('Lengua Castellana y Lit.'!AO20="","",'Lengua Castellana y Lit.'!AO20) ->  | AM107: =IF('Lengua Castellana y Lit.'!AP20="","",'Lengua Castellana y Lit.'!AP20) -> 
